{"text_format":"1","workbook":"xlsx","n_sheets":14,"sheets":["cover data","Cover","Creation","MD Companies Centers","Transfer AUC - PO","Capitalization"," Scrapping"," Sale","Transfer","Unplanned Depreciation","Validation","Correction to previuos years ","Leasing","MD"],"not_rendered":{"charts":0,"images":1,"macros":1,"external_links":0,"defined_names":106,"comments":1,"pivot_tables":0},"unopened":[],"bounds":{"document_bytes":16777216,"sheet_cells":100000,"rows_first":2000,"rows_last":500,"rows_between":2000,"halvings":0,"cell_chars":16384,"cell_head_chars":4096},"cells_cut":0,"cells_raw":0,"read":"whole","date_system":"1900"}

{"sheet":"cover data","index":0,"n_rows":550,"n_cols":18,"rows_kept":550,"cut":false,"hidden":true,"merged":[]}
[null,null,null,null,null,null,null,null,null,null,null,"Mandatory","Mandatory"]
[null,null,null,null,null,null,null,null,null,null,null,2,3,27]
[null,null,null,null,null,null,null,null,null,null,null,"BU","Country Name","Nuevo centro SAP","CURRENT Center Name SAP","Hotel or Restaurant (0)/Other(9)","SHARED CENTER SERVICES (YES/NO)","TEMPLATE NAME"]
[null,null,null,null,null,null,null,null,null,null,null,"HESPERIA","ANDORRA","0577","AD01 NH ANDORRA LA VELLA",0,"Y",{"$f":"CONCATENATE(LEFT(O4,4),N4,MID(O4,5,999))","v":"AD010577 NH ANDORRA LA VELLA"}]
["Request",null,"BU","BUSOUTHERN","BUNORTHERN","BUHESPERIA","BUROYAL","BUMERCOSUR","BUMEXICO",null,null,"MERCOSUR","ARGENTINA",9875,"AR01 TREASURY ARGENTINA",9,"Y",{"$f":"CONCATENATE(LEFT(O5,4),N5,MID(O5,5,999))","v":"AR019875 TREASURY ARGENTINA"}]
["Please select",null,"Please select","Please select","Please select","Please select","Please select","Please select","Please select",null,null,"MERCOSUR","ARGENTINA",9883,"AR01 NH WORLD ARGENTINA",9,"Y","AR019883 NH WORLD ARGENTINA"]
["Creation",null,"BU SOUTHERN","SPAIN","NETHERLANDS","ANDORRA","COLOMBIA","ARGENTINA","MEXICO",null,null,"MERCOSUR","ARGENTINA","0164","AR01 NH URBANO",0,"Y","AR010164 NH URBANO"]
["Capitalization",null,"BU NORTHERN","ITALY","GERMANY","SPAIN","CHILE","CHILE",null,null,null,"MERCOSUR","ARGENTINA","0163","AR01 NH PANORAMA",0,"Y","AR010163 NH PANORAMA"]
["Sale",null,"ROYAL","FRANCE","BELGIUM",null,"ECUADOR","URUGUAY",null,null,null,"MERCOSUR","ARGENTINA","0162","AR01 NH LATINO",0,"Y","AR010162 NH LATINO"]
["Transfer",null,"MERCOSUR","PORTUGAL","AUSTRIA",null,"BRASIL",null,null,null,null,"MERCOSUR","ARGENTINA","0161","AR01 NH JOUSTEN",0,"Y","AR010161 NH JOUSTEN"]
["Scrapping",null,"CORPORATE","US","SWITZERLAND",null,"US",null,null,null,null,"MERCOSUR","ARGENTINA","0160","AR01 NH FLORIDA",0,"Y","AR010160 NH FLORIDA"]
["Impairment",null,"MEXICO",null,"HUNGARY",null,null,null,null,null,null,"MERCOSUR","ARGENTINA","0169","AR01 NH CORDILLERA",0,"Y","AR010169 NH CORDILLERA"]
[null,null,"HESPERIA",null,"LUXEMBOURG",null,null,null,null,null,null,"MERCOSUR","ARGENTINA","9509","AR01 CS ARGENTINA",9,"Y","AR019509 CS ARGENTINA"]
["Correction to previous years",null,null,null,"CZECH RPC",null,null,null,null,null,null,"MERCOSUR","ARGENTINA","0430","AR03 NH CRILLON",0,"Y","AR030430 NH CRILLON"]
["Leasing",null,null,null,"UK",null,null,null,null,null,null,"MERCOSUR","ARGENTINA","0432","AR04 NH LANCASTER",0,"Y","AR040432 NH LANCASTER"]
["Transfer AUC-PO",null,null,null,"POLAND",null,null,null,null,null,null,"MERCOSUR","ARGENTINA","0433","AR05 NH TANGO",0,"Y","AR050433 NH TANGO"]
["Country Name target",null,null,null,"ROMANIA",null,null,null,null,null,null,"MERCOSUR","ARGENTINA","0435","AR06 NH 9 DE JULIO",0,"Y","AR060435 NH 9 DE JULIO"]
["ANDORRA.",null,null,null,null,null,null,null,null,null,null,"MERCOSUR","ARGENTINA","9437","AR08 BLACOM",9,"Y","AR089437 BLACOM"]
["ARGENTINA.",null,null,null,null,null,null,null,null,null,null,"BU NORTHERN","AUSTRIA",9428,"AT01 TREASURY AUSTRIA",9,"Y","AT019428 TREASURY AUSTRIA"]
["AUSTRIA.",null,null,null,null,null,null,null,null,null,null,"BU NORTHERN","AUSTRIA",9882,"AT01 NH WORLD AUSTRIA",9,"Y","AT019882 NH WORLD AUSTRIA"]
["BELGIUM.",null,"MONEDAS:",null,null,null,null,null,null,null,null,"BU NORTHERN","AUSTRIA","0410","AT01 NH WIEN ZENTRUM",0,"Y","AT010410 NH WIEN ZENTRUM"]
["BRAZIL.",null,null,null,null,null,null,null,null,null,null,"BU NORTHERN","AUSTRIA","0415","AT01 NH WIEN CITY CENTER",0,"Y","AT010415 NH WIEN CITY CENTER"]
["CZECH.RPC.",null,"BUSOUTHERNCURRENCY","EUR","USD",null,null,null,null,null,null,"BU NORTHERN","AUSTRIA","0411","AT01 NH WIEN BELVEDERE",0,"Y","AT010411 NH WIEN BELVEDERE"]
["CHILE.",null,"BUNORTHERNCURRENCY","EUR","CHF","GBP","HUF","CZK","PLN","RON",null,"BU NORTHERN","AUSTRIA","0414","AT01 NH VIENNA AIRPORT",0,"Y","AT010414 NH VIENNA AIRPORT"]
["DOMINICAN_RPC.",null,"BUHESPERIACURRENCY","EUR","USD",null,null,null,null,null,null,"BU NORTHERN","AUSTRIA","0413","AT01 NH SALZBURG CITY",0,"Y","AT010413 NH SALZBURG CITY"]
["FRANCE.",null,"BUROYALCURRENCY","EUR","COP","CLP","USD","BRL",null,null,null,"BU NORTHERN","AUSTRIA","0833","AT01 NH GRAZ CITY",0,"Y","AT010833 NH GRAZ CITY"]
["GERMANY.",null,"BUMERCOSURCURRENCY","EUR","ARS","BRL","CLP","UYU",null,null,null,"BU NORTHERN","AUSTRIA","0657","AT01 NH DANUBE CITY",0,"Y","AT010657 NH DANUBE CITY"]
["HAITI.",null,"BUMEXICOCURRENCY","EUR","MXN","USD","COP","DOP",null,null,null,"BU NORTHERN","AUSTRIA","9296","AT01 CS AUSTRIA",9,"Y","AT019296 CS AUSTRIA"]
["HUNGARY.",null,null,null,null,null,null,null,null,null,null,"BU NORTHERN","BELGIUM",9037,"BE01 TREASURY BELGIUM",9,"Y","BE019037 TREASURY BELGIUM"]
["ITALY.",null,null,null,null,null,null,null,null,null,null,"BU NORTHERN","BELGIUM",9891,"BE01 NH WORLD BELGIUM",9,"Y","BE019891 NH WORLD BELGIUM"]
["LUXEMBOURG.",null,null,null,null,null,null,null,null,null,null,"BU NORTHERN","BELGIUM",9297,"BE01 CS BELGIUM",9,"Y","BE019297 CS BELGIUM"]
["MEXICO.",null,null,null,null,null,null,null,null,null,null,"BU NORTHERN","BELGIUM","0627","BE02NH CARREFOUR BRUSSELS",0,"Y","BE020627NH CARREFOUR BRUSSELS"]
["NETHERLANDS.",null,null,null,null,null,null,null,null,null,null,"BU NORTHERN","BELGIUM","0201","BE02 NH STEPHANIE",0,"Y","BE020201 NH STEPHANIE"]
["PANAMA.",null,null,null,null,null,null,null,null,null,null,"BU NORTHERN","BELGIUM","0408","BE02 NH MECHELEN",0,"Y","BE020408 NH MECHELEN"]
["POLAND.",null,null,null,null,null,null,null,null,null,null,"BU NORTHERN","BELGIUM","5760","BE02 NH HOTEL DU GRAND SABLON",0,"Y","BE025760 NH HOTEL DU GRAND SABLON"]
["PORTUGAL.",null,null,null,null,null,null,null,null,null,null,"BU NORTHERN","BELGIUM","0204","BE02 NH GRAND PLACE ARENBERG",0,"Y","BE020204 NH GRAND PLACE ARENBERG"]
["ROMANIA.",null,null,null,null,null,null,null,null,null,null,"BU NORTHERN","BELGIUM","0407","BE02 NH GENT SINT PIETERS",0,"Y","BE020407 NH GENT SINT PIETERS"]
["SLOVAKIA.",null,null,null,null,null,null,null,null,null,null,"BU NORTHERN","BELGIUM","0345","BE02 NH GENT BELFORT",0,"Y","BE020345 NH GENT BELFORT"]
["SOUTH_AFRICA.",null,null,null,null,null,null,null,null,null,null,"BU NORTHERN","BELGIUM","0242","BE02 NH COLLECTION BRUSSELS CE",0,"Y","BE020242 NH COLLECTION BRUSSELS CE"]
["SPAIN.",null,null,null,null,null,null,null,null,null,null,"BU NORTHERN","BELGIUM","0202","BE02 NH BRUSSELS CITY CENTRE",0,"Y","BE020202 NH BRUSSELS CITY CENTRE"]
["HESP.SPAIN.",null,null,null,null,null,null,null,null,null,null,"BU NORTHERN","BELGIUM","0203","BE02 NH BRUSSELS AIRPORT",0,"Y","BE020203 NH BRUSSELS AIRPORT"]
["SWITZERLAND.",null,null,null,null,null,null,null,null,null,null,"BU NORTHERN","BELGIUM","0346","BE02 NH BRUGGE",0,"Y","BE020346 NH BRUGGE"]
["UK.",null,null,null,null,null,null,null,null,null,null,"BU NORTHERN","BELGIUM","9628","BE03 JOLLY HOTELS BELGIO SA CS",9,"Y","BE039628 JOLLY HOTELS BELGIO SA CS"]
["URUGUAY.",null,null,null,null,null,null,null,null,null,null,"BU NORTHERN","BELGIUM",9613,"BE04 IMMO HOTEL BCC N.V.",9,"Y","BE049613 IMMO HOTEL BCC N.V."]
["US.",null,null,null,null,null,null,null,null,null,null,"BU NORTHERN","BELGIUM",9615,"BE05 IMMO HOTEL BELFORT N.V.",9,"Y","BE059615 IMMO HOTEL BELFORT N.V."]
["VENEZUELA.",null,null,null,null,null,null,null,null,null,null,"BU NORTHERN","BELGIUM",9617,"BE06 IMMO HOTEL BRUGGE N.V.",9,"Y","BE069617 IMMO HOTEL BRUGGE N.V."]
[null,null,null,null,null,null,null,null,null,null,null,"BU NORTHERN","BELGIUM",9619,"BE07 IMMO HOTEL DIEGEM N.V.",9,"Y","BE079619 IMMO HOTEL DIEGEM N.V."]
[null,null,null,null,null,null,null,null,null,null,null,"BU NORTHERN","BELGIUM",9614,"BE08 IMMO HOTEL GENT N.V.",9,"Y","BE089614 IMMO HOTEL GENT N.V."]
[null,null,null,null,null,null,null,null,null,null,null,"BU NORTHERN","BELGIUM",9616,"BE09 IMMO HOTEL GP N.V.",9,"Y","BE099616 IMMO HOTEL GP N.V."]
[null,null,null,null,null,null,null,null,null,null,null,"BU NORTHERN","BELGIUM",9622,"BE10 IMMO HOTEL STEPHANIE N.V.",9,"Y","BE109622 IMMO HOTEL STEPHANIE N.V."]
[null,null,null,null,null,null,null,null,null,null,null,"BU NORTHERN","BELGIUM",9618,"BE11 IMMO HOTEL MECHELEN N.V.",9,"Y","BE119618 IMMO HOTEL MECHELEN N.V."]
[null,null,null,null,null,null,null,null,null,null,null,"BU NORTHERN","BELGIUM","0937","BE02 NH COLLECTION ANTWERPEN",0,"Y",{"$f":"CONCATENATE(LEFT(O52,4),N52,MID(O52,5,999))","v":"BE020937 NH COLLECTION ANTWERPEN"}]
[null,null,null,null,null,null,null,null,null,null,null,"BU NORTHERN","BELGIUM","0940","BE02 NH BERLAYMONT BRUSSELS",0,"Y","BE020940 NH BERLAYMONT BRUSSELS"]
[null,null,null,null,null,null,null,null,null,null,null,"BU NORTHERN","BELGIUM","0941","BE02 NH BLOOM BRUSSELS",0,"Y","BE020941 NH BLOOM BRUSSELS"]
[null,null,null,null,null,null,null,null,null,null,null,"MERCOSUR","BRASIL",9802,"BR01 CS BRASIL",9,"Y","BR019802 CS BRASIL"]
[null,null,null,null,null,null,null,null,null,null,null,"ROYAL","BRASIL","0810","BR03 NH CURITIBA THE FIVE",0,"Y","BR030810 NH CURITIBA THE FIVE"]
[null,null,null,null,null,null,null,null,null,null,null,"BU NORTHERN","SWITZERLAND",9879,"CH01 TREASURY SWITZERLAND",9,"Y","CH019879 TREASURY SWITZERLAND"]
[null,null,null,null,null,null,null,null,null,null,null,"BU NORTHERN","SWITZERLAND","0180","CH01 NH ZURICH AIRPORT",0,"Y","CH010180 NH ZURICH AIRPORT"]
[null,null,null,null,null,null,null,null,null,null,null,"BU NORTHERN","SWITZERLAND",9892,"CH01 NH WORLD SWITZERLAND",9,"Y","CH019892 NH WORLD SWITZERLAND"]
[null,null,null,null,null,null,null,null,null,null,null,"BU NORTHERN","SWITZERLAND","0254","CH01 NH GENEVA CITY",0,"Y","CH010254 NH GENEVA CITY"]
[null,null,null,null,null,null,null,null,null,null,null,"BU NORTHERN","SWITZERLAND","0178","CH01 NH GENEVA AIRPORT",0,"Y","CH010178 NH GENEVA AIRPORT"]
[null,null,null,null,null,null,null,null,null,null,null,"BU NORTHERN","SWITZERLAND","0176","CH01 NH FRIBOURG (OLD)",0,"Y","CH010176 NH FRIBOURG (OLD)"]
[null,null,null,null,null,null,null,null,null,null,null,"BU NORTHERN","SWITZERLAND",9510,"CH01 CENTRAL SERVICES SWITZERL",9,"Y","CH019510 CENTRAL SERVICES SWITZERL"]
[null,null,null,null,null,null,null,null,null,null,null,"MERCOSUR","CHILE",9872,"CL01TREASURY CHILE",9,"Y","CL019872TREASURY CHILE"]
[null,null,null,null,null,null,null,null,null,null,null,"MERCOSUR","CHILE",9886,"CL01 NH WORLD CHILE",9,"Y","CL019886 NH WORLD CHILE"]
[null,null,null,null,null,null,null,null,null,null,null,"MERCOSUR","CHILE",9508,"CL01 CS CHILE",9,"Y","CL019508 CS CHILE"]
[null,null,null,null,null,null,null,null,null,null,null,"MERCOSUR","CHILE","9936","CL02 SERVICIOS CENTRALES CHILE (NEW)",9,"Y","CL029936 SERVICIOS CENTRALES CHILE (NEW)"]
[null,null,null,null,null,null,null,null,null,null,null,"MERCOSUR","CHILE","0166","CL02 NH CIUDAD DE SANTIAGO",0,"Y","CL020166 NH CIUDAD DE SANTIAGO"]
[null,null,null,null,null,null,null,null,null,null,null,"MERCOSUR","CHILE","9938","CL02 TREASURY CHILE (NEW)",9,"Y","CL029938 TREASURY CHILE (NEW)"]
[null,null,null,null,null,null,null,null,null,null,null,"MERCOSUR","CHILE","9939","CL02 NH WORLD CHILE (NEW)",9,"Y","CL029939 NH WORLD CHILE (NEW)"]
[null,null,null,null,null,null,null,null,null,null,null,"MERCOSUR","CHILE","9633","CL03 INMOB. FINANCIERA CHILE",9,"Y","CL039633 INMOB. FINANCIERA CHILE"]
[null,null,null,null,null,null,null,null,null,null,null,"ROYAL","CHILE","0669","CL04NH IQUIQUE",0,"Y",{"$f":"CONCATENATE(LEFT(O72,4),N72,MID(O72,5,999))","v":"CL040669NH IQUIQUE"}]
[null,null,null,null,null,null,null,null,null,null,null,"ROYAL","CHILE","0667","CL04NH COLLECTION PLAZA SANTIAGO",0,"Y","CL040667NH COLLECTION PLAZA SANTIAGO"]
[null,null,null,null,null,null,null,null,null,null,null,"ROYAL","CHILE","0670","CL04NH ANTOFAGASTA",0,"Y","CL040670NH ANTOFAGASTA"]
[null,null,null,null,null,null,null,null,null,null,null,"ROYAL","CHILE","9696","CL04 SERVICIOS CENTRALES CHILE ROYAL",9,"Y","CL049696 SERVICIOS CENTRALES CHILE ROYAL"]
[null,null,null,null,null,null,null,null,null,null,null,"ROYAL","CHILE",9671,"CL05HOTELERA NORTE SUR S.A.",9,"Y","CL059671HOTELERA NORTE SUR S.A."]
[null,null,null,null,null,null,null,null,null,null,null,"ROYAL","CHILE",9672,"CL06INMOBILIARIA ROYAL S.A.",9,"Y","CL069672INMOBILIARIA ROYAL S.A."]
[null,null,null,null,null,null,null,null,null,null,null,"ROYAL","CHILE","9673","CL07 SOCIEDAD INVERSORA EUROTELS CHILE",9,"Y","CL079673 SOCIEDAD INVERSORA EUROTELS CHILE"]
[null,null,null,null,null,null,null,null,null,null,null,"ROYAL","COLOMBIA","9827","CO01 TREASURY  COLOMBIA",9,"Y","CO019827 TREASURY  COLOMBIA"]
[null,null,null,null,null,null,null,null,null,null,null,"ROYAL","COLOMBIA",9674,"CO01 SERVICIOS CENTRALES ROYAL",9,"Y","CO019674 SERVICIOS CENTRALES ROYAL"]
[null,null,null,null,null,null,null,null,null,null,null,"ROYAL","COLOMBIA","9931","CO01 SERVICIOS CENTRALES LATAM",9,"Y","CO019931 SERVICIOS CENTRALES LATAM"]
[null,null,null,null,null,null,null,null,null,null,null,"ROYAL","COLOMBIA","9828","CO01 NH WORLD COLOMBIA",9,"Y","CO019828 NH WORLD COLOMBIA"]
[null,null,null,null,null,null,null,null,null,null,null,"ROYAL","COLOMBIA","0676","CO03NH ROYAL METROTEL",0,"Y","CO030676NH ROYAL METROTEL"]
[null,null,null,null,null,null,null,null,null,null,null,"ROYAL","COLOMBIA","0677","CO04NH ROYAL URBAN 26",0,"Y","CO040677NH ROYAL URBAN 26"]
[null,null,null,null,null,null,null,null,null,null,null,"ROYAL","COLOMBIA","0678","CO05NH ROYAL URBAN 93",0,"Y","CO050678NH ROYAL URBAN 93"]
[null,null,null,null,null,null,null,null,null,null,null,"ROYAL","COLOMBIA","0679","CO06NH ROYAL PAVILLON",0,"Y","CO060679NH ROYAL PAVILLON"]
[null,null,null,null,null,null,null,null,null,null,null,"ROYAL","COLOMBIA","0680","CO07NH COLLECTION ROYAL WTC BOGOTA",0,"Y","CO070680NH COLLECTION ROYAL WTC BOGOTA"]
[null,null,null,null,null,null,null,null,null,null,null,"ROYAL","COLOMBIA","0682","CO09NH COLLECTION ROYAL TERRA 100",0,"Y","CO090682NH COLLECTION ROYAL TERRA 100"]
[null,null,null,null,null,null,null,null,null,null,null,"ROYAL","COLOMBIA","0683","CO10NH COLLECTION ROYAL TELEPORT BOGOTA ",0,"Y","CO100683NH COLLECTION ROYAL TELEPORT BOGOTA "]
[null,null,null,null,null,null,null,null,null,null,null,"ROYAL","COLOMBIA","0684","CO11NH COLLECTION ROYAL HACIENDA",0,"Y","CO110684NH COLLECTION ROYAL HACIENDA"]
[null,null,null,null,null,null,null,null,null,null,null,"ROYAL","COLOMBIA","0685","CO12NH COLLECTION ROYAL ANDINO",0,"Y","CO120685NH COLLECTION ROYAL ANDINO"]
[null,null,null,null,null,null,null,null,null,null,null,"ROYAL","COLOMBIA","0686","CO13NH ROYAL LA BOHEME",0,"Y","CO130686NH ROYAL LA BOHEME"]
[null,null,null,null,null,null,null,null,null,null,null,"ROYAL","COLOMBIA","0687","CO14NH COLLECTION ROYAL MEDELLIN ",0,"Y","CO140687NH COLLECTION ROYAL MEDELLIN "]
[null,null,null,null,null,null,null,null,null,null,null,"ROYAL","COLOMBIA","0688","CO15NH COLLECTION ROYAL SMARTSUITES",0,"Y","CO150688NH COLLECTION ROYAL SMARTSUITES"]
[null,null,null,null,null,null,null,null,null,null,null,"ROYAL","COLOMBIA","0689","CO16NH ROYAL CALI",0,"Y","CO160689NH ROYAL CALI"]
[null,null,null,null,null,null,null,null,null,null,null,"ROYAL","COLOMBIA","0690","CO17NH ROYAL URBAN CARTAGENA",0,"Y","CO170690NH ROYAL URBAN CARTAGENA"]
[null,null,null,null,null,null,null,null,null,null,null,"ROYAL","COLOMBIA","0691","CO17NH COLLECTION ROYAL LA MERCED",0,"Y","CO170691NH COLLECTION ROYAL LA MERCED"]
[null,null,null,null,null,null,null,null,null,null,null,"ROYAL","COLOMBIA","9692","CO18HR QUANTICA S.A.",9,"Y","CO189692HR QUANTICA S.A."]
[null,null,null,null,null,null,null,null,null,null,null,"ROYAL","COLOMBIA","9932","COMPLEJO MEDELLIN ROYAL-PROPIEDAD HORIZONTAL",9,"Y",{"$f":"CONCATENATE(LEFT(O99,4),N99,MID(O99,5,999))","v":"COMP9932LEJO MEDELLIN ROYAL-PROPIEDAD HORIZONTAL"}]
[null,null,null,null,null,null,null,null,null,null,null,"BU NORTHERN","CZECH RPC",9452,"CZ01 CS CZECH REPUBLIC",9,"Y","CZ019452 CS CZECH REPUBLIC"]
[null,null,null,null,null,null,null,null,null,null,null,"BU NORTHERN","GERMANY","0181","DE01 NH DUSSELDORF CITY",0,"Y","DE010181 NH DUSSELDORF CITY"]
[null,null,null,null,null,null,null,null,null,null,null,"BU NORTHERN","GERMANY","0182","DE01 NH DORTMUND",0,"Y","DE010182 NH DORTMUND"]
[null,null,null,null,null,null,null,null,null,null,null,"BU NORTHERN","GERMANY","0183","DE01 NH MUENCHEN OST CONF CEN",0,"Y","DE010183 NH MUENCHEN OST CONF CEN"]
[null,null,null,null,null,null,null,null,null,null,null,"BU NORTHERN","GERMANY","0184","DE01 NH OBERHAUSEN",0,"Y","DE010184 NH OBERHAUSEN"]
[null,null,null,null,null,null,null,null,null,null,null,"BU NORTHERN","GERMANY","0185","DE01 NH KOLN ALTSTADT",0,"Y","DE010185 NH KOLN ALTSTADT"]
[null,null,null,null,null,null,null,null,null,null,null,"BU NORTHERN","GERMANY","0186","DE01 NH FRANKFURT VILLA",0,"Y","DE010186 NH FRANKFURT VILLA"]
[null,null,null,null,null,null,null,null,null,null,null,"BU NORTHERN","GERMANY","0187","DE01 NH FRANKFURT AIRPORT",0,"Y","DE010187 NH FRANKFURT AIRPORT"]
[null,null,null,null,null,null,null,null,null,null,null,"BU NORTHERN","GERMANY","0188","DE01 NH FRANKFURT AIRPORT WEST",0,"Y","DE010188 NH FRANKFURT AIRPORT WEST"]
[null,null,null,null,null,null,null,null,null,null,null,"BU NORTHERN","GERMANY","0189","DE01 NH BERLIN ALEXANDERPLATZ",0,"Y","DE010189 NH BERLIN ALEXANDERPLATZ"]
[null,null,null,null,null,null,null,null,null,null,null,"BU NORTHERN","GERMANY","0190","DE01 NH BERLIN MITTE",0,"Y","DE010190 NH BERLIN MITTE"]
[null,null,null,null,null,null,null,null,null,null,null,"BU NORTHERN","GERMANY","0191","DE01 NH BERLIN POTSDAM CC",0,"Y","DE010191 NH BERLIN POTSDAM CC"]
[null,null,null,null,null,null,null,null,null,null,null,"BU NORTHERN","GERMANY","0192","DE01 NH BERLIN TREPTOW",0,"Y","DE010192 NH BERLIN TREPTOW"]
[null,null,null,null,null,null,null,null,null,null,null,"BU NORTHERN","GERMANY","0193","DE01 NH BERLIN KREUZBERG",0,"Y","DE010193 NH BERLIN KREUZBERG"]
[null,null,null,null,null,null,null,null,null,null,null,"BU NORTHERN","GERMANY","0194","DE01 NH BINGEN",0,"Y","DE010194 NH BINGEN"]
[null,null,null,null,null,null,null,null,null,null,null,"BU NORTHERN","GERMANY","0195","DE01 NH DEGGENDORF",0,"Y","DE010195 NH DEGGENDORF"]
[null,null,null,null,null,null,null,null,null,null,null,"BU NORTHERN","GERMANY","0197","DE01 NH DESSAU",0,"Y","DE010197 NH DESSAU"]
[null,null,null,null,null,null,null,null,null,null,null,"BU NORTHERN","GERMANY","0198","DE01 NH BERLIN KURFUERSTENDAMM",0,"Y","DE010198 NH BERLIN KURFUERSTENDAMM"]
[null,null,null,null,null,null,null,null,null,null,null,"BU NORTHERN","GERMANY","0237","DE01 NH DRESDEN NEUSTADT",0,"Y","DE010237 NH DRESDEN NEUSTADT"]
[null,null,null,null,null,null,null,null,null,null,null,"BU NORTHERN","GERMANY","0239","DE01 NH DUSSELDORF CITY NORD",0,"Y","DE010239 NH DUSSELDORF CITY NORD"]
[null,null,null,null,null,null,null,null,null,null,null,"BU NORTHERN","GERMANY","0252","DE01 NH ERLANGEN",0,"Y","DE010252 NH ERLANGEN"]
[null,null,null,null,null,null,null,null,null,null,null,"BU NORTHERN","GERMANY","0255","DE01 NH HAMBURG MITTE",0,"Y","DE010255 NH HAMBURG MITTE"]
[null,null,null,null,null,null,null,null,null,null,null,"BU NORTHERN","GERMANY","0256","DE01 NH BERLIN CITY OST",0,"Y","DE010256 NH BERLIN CITY OST"]
[null,null,null,null,null,null,null,null,null,null,null,"BU NORTHERN","GERMANY","0257","DE01NH FRANKFURT MOERFELDEN CC",0,"Y","DE010257NH FRANKFURT MOERFELDEN CC"]
[null,null,null,null,null,null,null,null,null,null,null,"BU NORTHERN","GERMANY","0260","DE01 NH HAMBURG CITY CENTER",0,"Y","DE010260 NH HAMBURG CITY CENTER"]
[null,null,null,null,null,null,null,null,null,null,null,"BU NORTHERN","GERMANY","0261","DE01 NH HAMBURG HORNER RENN.",0,"Y","DE010261 NH HAMBURG HORNER RENN."]
[null,null,null,null,null,null,null,null,null,null,null,"BU NORTHERN","GERMANY","0262","DE01 NH HAMBURG ALTONA",0,"Y","DE010262 NH HAMBURG ALTONA"]
[null,null,null,null,null,null,null,null,null,null,null,"BU NORTHERN","GERMANY","0263","DE01 NH HEIDELBERG",0,"Y","DE010263 NH HEIDELBERG"]
[null,null,null,null,null,null,null,null,null,null,null,"BU NORTHERN","GERMANY","0264","DE01 NH HEIDENHEIM",0,"Y","DE010264 NH HEIDENHEIM"]
[null,null,null,null,null,null,null,null,null,null,null,"BU NORTHERN","GERMANY","0265","DE01 NH HIRSCHBERG HEIDELBERG",0,"Y","DE010265 NH HIRSCHBERG HEIDELBERG"]
[null,null,null,null,null,null,null,null,null,null,null,"BU NORTHERN","GERMANY","0266","DE01 NH INGOLSTADT",0,"Y","DE010266 NH INGOLSTADT"]
[null,null,null,null,null,null,null,null,null,null,null,"BU NORTHERN","GERMANY","0268","DE01 NH LEIPZIG MESSE",0,"Y",{"$f":"CONCATENATE(LEFT(O131,4),N131,MID(O131,5,999))","v":"DE010268 NH LEIPZIG MESSE"}]
[null,null,null,null,null,null,null,null,null,null,null,"BU NORTHERN","GERMANY","0269","DE01 NH MAGDEBURG",0,"Y","DE010269 NH MAGDEBURG"]
[null,null,null,null,null,null,null,null,null,null,null,"BU NORTHERN","GERMANY","0270","DE01 NH MUNCHEN AIRPORT",0,"Y","DE010270 NH MUNCHEN AIRPORT"]
[null,null,null,null,null,null,null,null,null,null,null,"BU NORTHERN","GERMANY","0271","DE01 NH MUENCHEN CITY CENT",0,"Y","DE010271 NH MUENCHEN CITY CENT"]
[null,null,null,null,null,null,null,null,null,null,null,"BU NORTHERN","GERMANY","0272","DE01 NH MUNCHEN MESSE",0,"Y","DE010272 NH MUNCHEN MESSE"]
[null,null,null,null,null,null,null,null,null,null,null,"BU NORTHERN","GERMANY","0273","DE01 NH MUNCHEN UNTERHACHING",0,"Y","DE010273 NH MUNCHEN UNTERHACHING"]
[null,null,null,null,null,null,null,null,null,null,null,"BU NORTHERN","GERMANY","0274","DE01NH MÜNCHEN AM RING",0,"Y","DE010274NH MÜNCHEN AM RING"]
[null,null,null,null,null,null,null,null,null,null,null,"BU NORTHERN","GERMANY","0275","DE01NH  KLÖSTERLE NÖRDLINGEN",0,"Y","DE010275NH  KLÖSTERLE NÖRDLINGEN"]
[null,null,null,null,null,null,null,null,null,null,null,"BU NORTHERN","GERMANY","0276","DE01 NH FURTH NURNBERG",0,"Y","DE010276 NH FURTH NURNBERG"]
[null,null,null,null,null,null,null,null,null,null,null,"BU NORTHERN","GERMANY","0277","DE01NH FUERTH NUERNB FORSTHAUS",0,"Y","DE010277NH FUERTH NUERNB FORSTHAUS"]
[null,null,null,null,null,null,null,null,null,null,null,"BU NORTHERN","GERMANY","0278","DE01 NH POTSDAM CITY CENTER",0,"Y","DE010278 NH POTSDAM CITY CENTER"]
[null,null,null,null,null,null,null,null,null,null,null,"BU NORTHERN","GERMANY","0279","DE01 NH SCHWERIN",0,"Y","DE010279 NH SCHWERIN"]
[null,null,null,null,null,null,null,null,null,null,null,"BU NORTHERN","GERMANY","0280","DE01 NH STUTTGART SINDELFINGEN",0,"Y","DE010280 NH STUTTGART SINDELFINGEN"]
[null,null,null,null,null,null,null,null,null,null,null,"BU NORTHERN","GERMANY","0281","DE01 NH STUTTGART AIRPORT",0,"Y","DE010281 NH STUTTGART AIRPORT"]
[null,null,null,null,null,null,null,null,null,null,null,"BU NORTHERN","GERMANY","0282","DE01 NH MANNHEIM VIERNHEIM",0,"Y","DE010282 NH MANNHEIM VIERNHEIM"]
[null,null,null,null,null,null,null,null,null,null,null,"BU NORTHERN","GERMANY","0283","DE01 NH WEINHEIM",0,"Y","DE010283 NH WEINHEIM"]
[null,null,null,null,null,null,null,null,null,null,null,"BU NORTHERN","GERMANY","0285","DE01 NH WIESBADEN",0,"Y","DE010285 NH WIESBADEN"]
[null,null,null,null,null,null,null,null,null,null,null,"BU NORTHERN","GERMANY","0290","DE01 NH COLLEC FRANKFURT CITY",0,"Y","DE010290 NH COLLEC FRANKFURT CITY"]
[null,null,null,null,null,null,null,null,null,null,null,"BU NORTHERN","GERMANY","0325","DE01 NH COLLECTION  NURNBERG CITY",0,"Y","DE010325 NH COLLECTION  NURNBERG CITY"]
[null,null,null,null,null,null,null,null,null,null,null,"BU NORTHERN","GERMANY","0337","DE01 NH BERLIN CITY WEST",0,"Y","DE010337 NH BERLIN CITY WEST"]
[null,null,null,null,null,null,null,null,null,null,null,"BU NORTHERN","GERMANY","0419","DE01NH DUSSELDORF KONIGSALLEE",0,"Y","DE010419NH DUSSELDORF KONIGSALLEE"]
[null,null,null,null,null,null,null,null,null,null,null,"BU NORTHERN","GERMANY","0457","DE01 NH LUDWIGSBURG",0,"Y","DE010457 NH LUDWIGSBURG"]
[null,null,null,null,null,null,null,null,null,null,null,"BU NORTHERN","GERMANY","0458","DE01 NHOW BERLIN",0,"Y","DE010458 NHOW BERLIN"]
[null,null,null,null,null,null,null,null,null,null,null,"BU NORTHERN","GERMANY","0808","DE01 NH ESSEN",0,"Y","DE010808 NH ESSEN"]
[null,null,null,null,null,null,null,null,null,null,null,"BU NORTHERN","GERMANY","0818","DE01 NH LEIPZIG CITY",0,"Y","DE010818 NH LEIPZIG CITY"]
[null,null,null,null,null,null,null,null,null,null,null,"BU NORTHERN","GERMANY","0819","DE01 NH MANNHEIM",0,"Y","DE010819 NH MANNHEIM"]
[null,null,null,null,null,null,null,null,null,null,null,"BU NORTHERN","GERMANY","0821","DE01 NH COLLECTION  FRANKFURT AM MAIN MESSE",0,"Y","DE010821 NH COLLECTION  FRANKFURT AM MAIN MESSE"]
[null,null,null,null,null,null,null,null,null,null,null,"BU NORTHERN","GERMANY","0822","DE01 NHOW FRANKFURT AM MAIN",0,"Y","DE010822 NHOW FRANKFURT AM MAIN"]
[null,null,null,null,null,null,null,null,null,null,null,"BU NORTHERN","GERMANY","9284","DE01 NH WEINHEIM OTTHEINRICH",9,"Y","DE019284 NH WEINHEIM OTTHEINRICH"]
[null,null,null,null,null,null,null,null,null,null,null,"BU NORTHERN","GERMANY",9505,"DE01 TREASURY GERMANY",9,"Y","DE019505 TREASURY GERMANY"]
[null,null,null,null,null,null,null,null,null,null,null,"BU NORTHERN","GERMANY",9511,"DE01 CS BOOKING OFFICE BERLIN",9,"Y","DE019511 CS BOOKING OFFICE BERLIN"]
[null,null,null,null,null,null,null,null,null,null,null,"BU NORTHERN","GERMANY",9600,"DE01 CS GERMANY",9,"Y","DE019600 CS GERMANY"]
[null,null,null,null,null,null,null,null,null,null,null,"BU NORTHERN","GERMANY",9890,"DE01 NH WORLD GERMANY",9,"Y",{"$f":"CONCATENATE(LEFT(O163,4),N163,MID(O163,5,999))","v":"DE019890 NH WORLD GERMANY"}]
[null,null,null,null,null,null,null,null,null,null,null,"BU NORTHERN","GERMANY","0443","DE02 NH DRESDEN ALTMARKT",0,"Y","DE020443 NH DRESDEN ALTMARKT"]
[null,null,null,null,null,null,null,null,null,null,null,"BU NORTHERN","GERMANY","9420","DE02 CS GERMANY 0420",9,"Y","DE029420 CS GERMANY 0420"]
[null,null,null,null,null,null,null,null,null,null,null,"BU NORTHERN","GERMANY","0442","DE03 NH BERLIN POTZDAMER PLATZ",0,"Y","DE030442 NH BERLIN POTZDAMER PLATZ"]
[null,null,null,null,null,null,null,null,null,null,null,"BU NORTHERN","GERMANY","0460","DE03 NH FRANKFURT MESSE",0,"Y","DE030460 NH FRANKFURT MESSE"]
[null,null,null,null,null,null,null,null,null,null,null,"BU NORTHERN","GERMANY","9238","DE03 CS GERMANY 0238",9,"Y","DE039238 CS GERMANY 0238"]
[null,null,null,null,null,null,null,null,null,null,null,"BU NORTHERN","GERMANY","0258","DE04 NH FRANKFURT NIEDERRAD",0,"Y","DE040258 NH FRANKFURT NIEDERRAD"]
[null,null,null,null,null,null,null,null,null,null,null,"BU NORTHERN","GERMANY","9294","DE04 CS GERMANY 0294",9,"Y","DE049294 CS GERMANY 0294"]
[null,null,null,null,null,null,null,null,null,null,null,"BU NORTHERN","GERMANY",9295,"DE04 CS GERMANY 0295",9,"Y","DE049295 CS GERMANY 0295"]
[null,null,null,null,null,null,null,null,null,null,null,"BU NORTHERN","GERMANY",9293,"DE05 CS GERMANY 0293",9,"Y","DE059293 CS GERMANY 0293"]
[null,null,null,null,null,null,null,null,null,null,null,"BU NORTHERN","GERMANY",9515,"DE06 PLAETTIG HOTEL",9,"Y","DE069515 PLAETTIG HOTEL"]
[null,null,null,null,null,null,null,null,null,null,null,"BU NORTHERN","GERMANY","0772","DE07 NH BERLIN FRIEDRICHSTRASS",0,"Y","DE070772 NH BERLIN FRIEDRICHSTRASS"]
[null,null,null,null,null,null,null,null,null,null,null,"BU NORTHERN","GERMANY","0773","DE07 NH COLLECTION KOLN MEDIAPARK",0,"Y","DE070773 NH COLLECTION KOLN MEDIAPARK"]
[null,null,null,null,null,null,null,null,null,null,null,"BU NORTHERN","GERMANY",9777,"DE07 CS GERMANY 0777",9,"Y","DE079777 CS GERMANY 0777"]
[null,null,null,null,null,null,null,null,null,null,null,"BU NORTHERN","GERMANY","9604","DE08 CS ARTOS BETEILIGUNG GMBH",9,"Y","DE089604 CS ARTOS BETEILIGUNG GMBH"]
[null,null,null,null,null,null,null,null,null,null,null,"BU NORTHERN","GERMANY",9605,"DE09 CS ASTRON IMMOBILIEN GMBH",9,"Y","DE099605 CS ASTRON IMMOBILIEN GMBH"]
[null,null,null,null,null,null,null,null,null,null,null,"BU NORTHERN","GERMANY",9606,"DE10 CS HOTEL AUKAMM WIESBADEN",9,"Y","DE109606 CS HOTEL AUKAMM WIESBADEN"]
[null,null,null,null,null,null,null,null,null,null,null,"BU NORTHERN","GERMANY",9607,"DE11 CS HOTELS BINGEN & VIERNH",9,"Y","DE119607 CS HOTELS BINGEN & VIERNH"]
[null,null,null,null,null,null,null,null,null,null,null,"BU NORTHERN","GERMANY",9608,"DE12 CS HOTEL LEIPZIG-MESSE  G",9,"Y","DE129608 CS HOTEL LEIPZIG-MESSE  G"]
[null,null,null,null,null,null,null,null,null,null,null,"BU NORTHERN","GERMANY",9609,"DE13 CS AIRPORTHOTEL FRANKFURT",9,"Y","DE139609 CS AIRPORTHOTEL FRANKFURT"]
[null,null,null,null,null,null,null,null,null,null,null,"MEXICO&CARIBBEAN","DOMINICAN RPC",9361,"DO02 AGUA MARINA",9,"Y","DO029361 AGUA MARINA"]
[null,null,null,null,null,null,null,null,null,null,null,"ROYAL","ECUADOR","0693","EC01NH COLLECTION ROYAL QUITO",0,"Y","EC010693NH COLLECTION ROYAL QUITO"]
[null,null,null,null,null,null,null,null,null,null,null,"ROYAL","ECUADOR","9829","EC01 TREASURY ECUADOR",9,"Y","EC019829 TREASURY ECUADOR"]
[null,null,null,null,null,null,null,null,null,null,null,"ROYAL","ECUADOR","9830","EC01 NH WORLD ECUADOR",9,"Y","EC019830 NH WORLD ECUADOR"]
[null,null,null,null,null,null,null,null,null,null,null,"ROYAL","ECUADOR",9694,"EC02HOTELES ROYAL DEL ECUADOR S.A. HORODELSA",9,"Y","EC029694HOTELES ROYAL DEL ECUADOR S.A. HORODELSA"]
[null,null,null,null,null,null,null,null,null,null,null,"CORPORATE","SPAIN","0009","ES01NH INGLATERRA",0,"Y",{"$f":"CONCATENATE(LEFT(O188,4),N188,MID(O188,5,999))","v":"ES010009NH INGLATERRA"}]
[null,null,null,null,null,null,null,null,null,null,null,"CORPORATE","SPAIN",9015,"ES01 TREASURY CORPORATE",9,"Y","ES019015 TREASURY CORPORATE"]
[null,null,null,null,null,null,null,null,null,null,null,"CORPORATE","SPAIN","9825","ES01 PROPCO CORPORATE",9,"Y","ES019825 PROPCO CORPORATE"]
[null,null,null,null,null,null,null,null,null,null,null,"CORPORATE","SPAIN","0014","ES01 NH PLAZA DE ARMAS",0,"Y","ES010014 NH PLAZA DE ARMAS"]
[null,null,null,null,null,null,null,null,null,null,null,"CORPORATE","SPAIN","0019","ES01 NH NACIONAL",0,"Y","ES010019 NH NACIONAL"]
[null,null,null,null,null,null,null,null,null,null,null,"CORPORATE","SPAIN","0031","ES01 NH CIUDAD DE ALMERIA",0,"Y","ES010031 NH CIUDAD DE ALMERIA"]
[null,null,null,null,null,null,null,null,null,null,null,"CORPORATE","SPAIN","9924","ES01 HQ LOYALTY & REWARDS",9,"Y","ES019924 HQ LOYALTY & REWARDS"]
[null,null,null,null,null,null,null,null,null,null,null,"CORPORATE","SPAIN",9039,"ES01 CS CORPORATE",9,"Y","ES019039 CS CORPORATE"]
[null,null,null,null,null,null,null,null,null,null,null,"BU SOUTHERN","SPAIN","0121","ES02 NH PODIUM",0,"Y","ES020121 NH PODIUM"]
[null,null,null,null,null,null,null,null,null,null,null,"BU SOUTHERN","SPAIN","0165","ES02 NH DIAGONAL CENTER",0,"Y","ES020165 NH DIAGONAL CENTER"]
[null,null,null,null,null,null,null,null,null,null,null,"CORPORATE","SPAIN","9100","ES03 NH EUROPA SL",9,"Y","ES039100 NH EUROPA SL"]
[null,null,null,null,null,null,null,null,null,null,null,"BU SOUTHERN","SPAIN","5170","ES04 NH TENERIFE",0,"Y","ES045170 NH TENERIFE"]
[null,null,null,null,null,null,null,null,null,null,null,"BU SOUTHERN","SPAIN","0118","ES04 NH PLAYA LAS CANTERAS",0,"Y","ES040118 NH PLAYA LAS CANTERAS"]
[null,null,null,null,null,null,null,null,null,null,null,"BU SOUTHERN","SPAIN","0117","ES04 NH IMPERIAL PLAYA",0,"Y",{"$f":"CONCATENATE(LEFT(O201,4),N201,MID(O201,5,999))","v":"ES040117 NH IMPERIAL PLAYA"}]
[null,null,null,null,null,null,null,null,null,null,null,"BU SOUTHERN","SPAIN","0122","ES07 NH LAGASCA",0,"Y","ES070122 NH LAGASCA"]
[null,null,null,null,null,null,null,null,null,null,null,"BU SOUTHERN","SPAIN","0146","ES08 NH LOGROÑO",0,"Y","ES080146 NH LOGROÑO"]
[null,null,null,null,null,null,null,null,null,null,null,"BU SOUTHERN","SPAIN","0124","ES08 NH HERENCIA RIOJA",0,"Y","ES080124 NH HERENCIA RIOJA"]
[null,null,null,null,null,null,null,null,null,null,null,"BU SOUTHERN","SPAIN","0142","ES09 NH CIUTAT DE REUS",0,"Y","ES090142 NH CIUTAT DE REUS"]
[null,null,null,null,null,null,null,null,null,null,null,"BU SOUTHERN","SPAIN","0287","ES10NH VICTORIA PALACE",0,"Y","ES100287NH VICTORIA PALACE"]
[null,null,null,null,null,null,null,null,null,null,null,"BU SOUTHERN","SPAIN","0011","ES10NH SUITES PRISMA",0,"Y","ES100011NH SUITES PRISMA"]
[null,null,null,null,null,null,null,null,null,null,null,"BU SOUTHERN","SPAIN","0305","ES10NH SOTOGRANDE (OLD)",0,"Y","ES100305NH SOTOGRANDE (OLD)"]
[null,null,null,null,null,null,null,null,null,null,null,"BU SOUTHERN","SPAIN","0029","ES10NH SANTANDER PARAYAS",0,"Y","ES100029NH SANTANDER PARAYAS"]
[null,null,null,null,null,null,null,null,null,null,null,"BU SOUTHERN","SPAIN","0141","ES10NH PUERTA DE ALCALA",0,"Y","ES100141NH PUERTA DE ALCALA"]
[null,null,null,null,null,null,null,null,null,null,null,"BU SOUTHERN","SPAIN","0016","ES10NH PRACTICO",0,"Y","ES100016NH PRACTICO"]
[null,null,null,null,null,null,null,null,null,null,null,"BU SOUTHERN","SPAIN","0086","ES10NH PALACIO DE ORIOL",0,"Y","ES100086NH PALACIO DE ORIOL"]
[null,null,null,null,null,null,null,null,null,null,null,"BU SOUTHERN","SPAIN","0253","ES10NH ORUS",0,"Y","ES100253NH ORUS"]
[null,null,null,null,null,null,null,null,null,null,null,"BU SOUTHERN","SPAIN","0097","ES10NH MONTEROZAS",0,"Y","ES100097NH MONTEROZAS"]
[null,null,null,null,null,null,null,null,null,null,null,"BU SOUTHERN","SPAIN","0318","ES10NH MERCADER",0,"Y","ES100318NH MERCADER"]
[null,null,null,null,null,null,null,null,null,null,null,"BU SOUTHERN","SPAIN","0092","ES10NH LA PERDIZ",0,"Y","ES100092NH LA PERDIZ"]
[null,null,null,null,null,null,null,null,null,null,null,"BU SOUTHERN","SPAIN","0582","ES10NH GIRONA",0,"Y","ES100582NH GIRONA"]
[null,null,null,null,null,null,null,null,null,null,null,"BU SOUTHERN","SPAIN","0087","ES10NH FUENLABRADA",0,"Y","ES100087NH FUENLABRADA"]
[null,null,null,null,null,null,null,null,null,null,null,"BU SOUTHERN","SPAIN","0101","ES10NH CONDOR",0,"Y","ES100101NH CONDOR"]
[null,null,null,null,null,null,null,null,null,null,null,"BU SOUTHERN","SPAIN","0140","ES10NH COLLECTION VILLA BILBAO",0,"Y","ES100140NH COLLECTION VILLA BILBAO"]
[null,null,null,null,null,null,null,null,null,null,null,"BU SOUTHERN","SPAIN","0035","ES10NH COLLECTION SEVILLA",0,"Y","ES100035NH COLLECTION SEVILLA"]
[null,null,null,null,null,null,null,null,null,null,null,"BU SOUTHERN","SPAIN","0319","ES10NH COLLECTION SANTIAGO",0,"Y","ES100319NH COLLECTION SANTIAGO"]
[null,null,null,null,null,null,null,null,null,null,null,"BU SOUTHERN","SPAIN","0661","ES10NH COLLECTION PASEO PRADO",0,"Y","ES100661NH COLLECTION PASEO PRADO"]
[null,null,null,null,null,null,null,null,null,null,null,"BU SOUTHERN","SPAIN","0386","ES10NH COLLECTION PALACIO TEPA",0,"Y","ES100386NH COLLECTION PALACIO TEPA"]
[null,null,null,null,null,null,null,null,null,null,null,"BU SOUTHERN","SPAIN","0376","ES10NH COLLECTION P.DE OQUENDO",0,"Y","ES100376NH COLLECTION P.DE OQUENDO"]
[null,null,null,null,null,null,null,null,null,null,null,"BU SOUTHERN","SPAIN","0094","ES10NH COLLECTION EUROBUILDING",0,"Y","ES100094NH COLLECTION EUROBUILDING"]
[null,null,null,null,null,null,null,null,null,null,null,"BU SOUTHERN","SPAIN","0327","ES10NH COLLECTION CONSTANZA",0,"Y","ES100327NH COLLECTION CONSTANZA"]
[null,null,null,null,null,null,null,null,null,null,null,"BU SOUTHERN","SPAIN","0302","ES10NH COLLECT PALACIO AVILES",0,"Y","ES100302NH COLLECT PALACIO AVILES"]
[null,null,null,null,null,null,null,null,null,null,null,"BU SOUTHERN","SPAIN","0226","ES10NH COLLECT AMISTAD CORDOBA",0,"Y","ES100226NH COLLECT AMISTAD CORDOBA"]
[null,null,null,null,null,null,null,null,null,null,null,"BU SOUTHERN","SPAIN","0005","ES10NH CANCILLER AYALA VITORIA",0,"Y","ES100005NH CANCILLER AYALA VITORIA"]
[null,null,null,null,null,null,null,null,null,null,null,"BU SOUTHERN","SPAIN","0489","ES10NH CAMPUS LA MORALEJA",0,"Y","ES100489NH CAMPUS LA MORALEJA"]
[null,null,null,null,null,null,null,null,null,null,null,"BU SOUTHERN","SPAIN","0134","ES10NH ALBAR",0,"Y","ES100134NH ALBAR"]
[null,null,null,null,null,null,null,null,null,null,null,"BU SOUTHERN","SPAIN","0008","ES10NH ABASHIRI",0,"Y","ES100008NH ABASHIRI"]
[null,null,null,null,null,null,null,null,null,null,null,"BU SOUTHERN","SPAIN","0038","ES10MARKETING CENTRE SPAIN",0,"Y","ES100038MARKETING CENTRE SPAIN"]
[null,null,null,null,null,null,null,null,null,null,null,"BU SOUTHERN","SPAIN","0046","ES10HOTEL ALMENARA (OLD)",0,"Y","ES100046HOTEL ALMENARA (OLD)"]
[null,null,null,null,null,null,null,null,null,null,null,"BU SOUTHERN","SPAIN","9040","ES10 TREASURY SPAIN ZBAL",9,"Y","ES109040 TREASURY SPAIN ZBAL"]
[null,null,null,null,null,null,null,null,null,null,null,"BU SOUTHERN","SPAIN",9050,"ES10 SSCC TREASURY SPAIN",9,"Y","ES109050 SSCC TREASURY SPAIN"]
[null,null,null,null,null,null,null,null,null,null,null,"BU SOUTHERN","SPAIN","5313","ES10 SPA EUROBUILDING",9,"Y","ES105313 SPA EUROBUILDING"]
[null,null,null,null,null,null,null,null,null,null,null,"BU SOUTHERN","SPAIN","0091","ES10 NH ZURBANO",0,"Y","ES100091 NH ZURBANO"]
[null,null,null,null,null,null,null,null,null,null,null,"BU SOUTHERN","SPAIN",9888,"ES10 NH WORLD SPAIN",9,"Y","ES109888 NH WORLD SPAIN"]
[null,null,null,null,null,null,null,null,null,null,null,"BU SOUTHERN","SPAIN","0385","ES10 NH VILLA MADRID(MLEQU)",0,"Y","ES100385 NH VILLA MADRID(MLEQU)"]
[null,null,null,null,null,null,null,null,null,null,null,"BU SOUTHERN","SPAIN","0024","ES10 NH VILLA DE COSLADA",0,"Y","ES100024 NH VILLA DE COSLADA"]
[null,null,null,null,null,null,null,null,null,null,null,"BU SOUTHERN","SPAIN","0023","ES10 NH VIAPOL",0,"Y","ES100023 NH VIAPOL"]
[null,null,null,null,null,null,null,null,null,null,null,"BU SOUTHERN","SPAIN","0012","ES10 NH VENTAS",0,"Y","ES100012 NH VENTAS"]
[null,null,null,null,null,null,null,null,null,null,null,"BU SOUTHERN","SPAIN","0021","ES10 NH TURCOSA",0,"Y","ES100021 NH TURCOSA"]
[null,null,null,null,null,null,null,null,null,null,null,"BU SOUTHERN","SPAIN","0490","ES10 NH SUECIA",0,"Y","ES100490 NH SUECIA"]
[null,null,null,null,null,null,null,null,null,null,null,"BU SOUTHERN","SPAIN","0053","ES10 NH SPORT",0,"Y","ES100053 NH SPORT"]
[null,null,null,null,null,null,null,null,null,null,null,"BU SOUTHERN","SPAIN","0105","ES10 NH SANTS BARCELONA",0,"Y","ES100105 NH SANTS BARCELONA"]
[null,null,null,null,null,null,null,null,null,null,null,"BU SOUTHERN","SPAIN","0317","ES10 NH SANT BOI",0,"Y","ES100317 NH SANT BOI"]
[null,null,null,null,null,null,null,null,null,null,null,"BU SOUTHERN","SPAIN","0310","ES10 NH S.SEBASTIAN D.L REYES",0,"Y","ES100310 NH S.SEBASTIAN D.L REYES"]
[null,null,null,null,null,null,null,null,null,null,null,"BU SOUTHERN","SPAIN","0371","ES10 NH RIBERA DEL MANZANARES",0,"Y","ES100371 NH RIBERA DEL MANZANARES"]
[null,null,null,null,null,null,null,null,null,null,null,"BU SOUTHERN","SPAIN","0007","ES10 NH RAMBLA DE ALICANTE",0,"Y","ES100007 NH RAMBLA DE ALICANTE"]
[null,null,null,null,null,null,null,null,null,null,null,"BU SOUTHERN","SPAIN","0342","ES10 NH PUERTO DE SAGUNTO",0,"Y","ES100342 NH PUERTO DE SAGUNTO"]
[null,null,null,null,null,null,null,null,null,null,null,"BU SOUTHERN","SPAIN","0157","ES10 NH PUERTA DE LA CATEDRAL",0,"Y","ES100157 NH PUERTA DE LA CATEDRAL"]
[null,null,null,null,null,null,null,null,null,null,null,"BU SOUTHERN","SPAIN","0043","ES10 NH PRINCIPE DE VERGARA",0,"Y","ES100043 NH PRINCIPE DE VERGARA"]
[null,null,null,null,null,null,null,null,null,null,null,"BU SOUTHERN","SPAIN","0229","ES10 NH PORTA BARCELONA",0,"Y","ES100229 NH PORTA BARCELONA"]
[null,null,null,null,null,null,null,null,null,null,null,"BU SOUTHERN","SPAIN","0132","ES10 NH PIRINEOS",0,"Y","ES100132 NH PIRINEOS"]
[null,null,null,null,null,null,null,null,null,null,null,"BU SOUTHERN","SPAIN","0073","ES10 NH PASEO DE LA HABANA",0,"Y","ES100073 NH PASEO DE LA HABANA"]
[null,null,null,null,null,null,null,null,null,null,null,"BU SOUTHERN","SPAIN","0323","ES10 NH PARLA",0,"Y","ES100323 NH PARLA"]
[null,null,null,null,null,null,null,null,null,null,null,"BU SOUTHERN","SPAIN","0114","ES10 NH PALACIO DE CASTELLANOS",0,"Y","ES100114 NH PALACIO DE CASTELLANOS"]
[null,null,null,null,null,null,null,null,null,null,null,"BU SOUTHERN","SPAIN","0093","ES10 NH MINDORO",0,"Y","ES100093 NH MINDORO"]
[null,null,null,null,null,null,null,null,null,null,null,"BU SOUTHERN","SPAIN","0045","ES10 NH MALAGA",0,"Y","ES100045 NH MALAGA"]
[null,null,null,null,null,null,null,null,null,null,null,"BU SOUTHERN","SPAIN","0309","ES10 NH MADRID SUR",0,"Y","ES100309 NH MADRID SUR"]
[null,null,null,null,null,null,null,null,null,null,null,"BU SOUTHERN","SPAIN","0083","ES10 NH LUZ HUELVA",0,"Y","ES100083 NH LUZ HUELVA"]
[null,null,null,null,null,null,null,null,null,null,null,"BU SOUTHERN","SPAIN","0104","ES10 NH LES CORTS",0,"Y",{"$f":"CONCATENATE(LEFT(O265,4),N265,MID(O265,5,999))","v":"ES100104 NH LES CORTS"}]
[null,null,null,null,null,null,null,null,null,null,null,"BU SOUTHERN","SPAIN","0145","ES10 NH LEGANES",0,"Y","ES100145 NH LEGANES"]
[null,null,null,null,null,null,null,null,null,null,null,"BU SOUTHERN","SPAIN","0378","ES10 NH LAS TABLAS",0,"Y","ES100378 NH LAS TABLAS"]
[null,null,null,null,null,null,null,null,null,null,null,"BU SOUTHERN","SPAIN","0028","ES10 NH LAS CIENCIAS",0,"Y","ES100028 NH LAS CIENCIAS"]
[null,null,null,null,null,null,null,null,null,null,null,"BU SOUTHERN","SPAIN","0027","ES10 NH LAS ARTES",0,"Y","ES100027 NH LAS ARTES"]
[null,null,null,null,null,null,null,null,null,null,null,"BU SOUTHERN","SPAIN","0088","ES10 NH LA MAQUINISTA",0,"Y","ES100088 NH LA MAQUINISTA"]
[null,null,null,null,null,null,null,null,null,null,null,"BU SOUTHERN","SPAIN","0123","ES10 NH IRUÑA PARK",0,"Y","ES100123 NH IRUÑA PARK"]
[null,null,null,null,null,null,null,null,null,null,null,"BU SOUTHERN","SPAIN","0004","ES10 NH GRAN HOTEL ZARAGOZA",0,"Y","ES100004 NH GRAN HOTEL ZARAGOZA"]
[null,null,null,null,null,null,null,null,null,null,null,"BU SOUTHERN","SPAIN","0107","ES10 NH ENTENZA",0,"Y","ES100107 NH ENTENZA"]
[null,null,null,null,null,null,null,null,null,null,null,"BU SOUTHERN","SPAIN","0112","ES10 NH EL TORO",0,"Y","ES100112 NH EL TORO"]
[null,null,null,null,null,null,null,null,null,null,null,"BU SOUTHERN","SPAIN","0041","ES10 NH EIXAMPLE",0,"Y","ES100041 NH EIXAMPLE"]
[null,null,null,null,null,null,null,null,null,null,null,"BU SOUTHERN","SPAIN",9304,"ES10 NH DOMO",9,"Y","ES109304 NH DOMO"]
[null,null,null,null,null,null,null,null,null,null,null,"BU SOUTHERN","SPAIN","0030","ES10 NH CORNELLA",0,"Y","ES100030 NH CORNELLA"]
[null,null,null,null,null,null,null,null,null,null,null,"BU SOUTHERN","SPAIN","0316","ES10 NH COLLECTION VICTORIA",0,"Y","ES100316 NH COLLECTION VICTORIA"]
[null,null,null,null,null,null,null,null,null,null,null,"BU SOUTHERN","SPAIN","0321","ES10 NH COLLECTION PLAZA MAYOR",0,"Y","ES100321 NH COLLECTION PLAZA MAYOR"]
[null,null,null,null,null,null,null,null,null,null,null,"BU SOUTHERN","SPAIN","0495","ES10 NH COLLECTION GRAN VIA",0,"Y","ES100495 NH COLLECTION GRAN VIA"]
[null,null,null,null,null,null,null,null,null,null,null,"BU SOUTHERN","SPAIN","0071","ES10 NH COLLECTION COLON MADRI",0,"Y","ES100071 NH COLLECTION COLON MADRI"]
[null,null,null,null,null,null,null,null,null,null,null,"BU SOUTHERN","SPAIN","0110","ES10 NH COLLECTION ARANZAZU",0,"Y","ES100110 NH COLLECTION ARANZAZU"]
[null,null,null,null,null,null,null,null,null,null,null,"BU SOUTHERN","SPAIN","0018","ES10 NH COLLECTION ABASCAL",0,"Y","ES100018 NH COLLECTION ABASCAL"]
[null,null,null,null,null,null,null,null,null,null,null,"BU SOUTHERN","SPAIN","0591","ES10 NH CLUB NAUTICO SALINAS",0,"Y","ES100591 NH CLUB NAUTICO SALINAS"]
[null,null,null,null,null,null,null,null,null,null,null,"BU SOUTHERN","SPAIN","0220","ES10 NH CIUTAT DE VIC",0,"Y","ES100220 NH CIUTAT DE VIC"]
[null,null,null,null,null,null,null,null,null,null,null,"BU SOUTHERN","SPAIN","0127","ES10 NH CIUDAD REAL",0,"Y","ES100127 NH CIUDAD REAL"]
[null,null,null,null,null,null,null,null,null,null,null,"BU SOUTHERN","SPAIN","0002","ES10 NH CIUDAD DE ZARAGOZA",0,"Y","ES100002 NH CIUDAD DE ZARAGOZA"]
[null,null,null,null,null,null,null,null,null,null,null,"BU SOUTHERN","SPAIN","0119","ES10 NH CIUDAD DE VALLADOLID",0,"Y","ES100119 NH CIUDAD DE VALLADOLID"]
[null,null,null,null,null,null,null,null,null,null,null,"BU SOUTHERN","SPAIN","0082","ES10 NH CIUDAD DE VALENCIA",0,"Y","ES100082 NH CIUDAD DE VALENCIA"]
[null,null,null,null,null,null,null,null,null,null,null,"BU SOUTHERN","SPAIN","0113","ES10 NH CIUDAD DE SANTANDER",0,"Y","ES100113 NH CIUDAD DE SANTANDER"]
[null,null,null,null,null,null,null,null,null,null,null,"BU SOUTHERN","SPAIN","0151","ES10 NH CIUDAD DE LA IMAGEN",0,"Y","ES100151 NH CIUDAD DE LA IMAGEN"]
[null,null,null,null,null,null,null,null,null,null,null,"BU SOUTHERN","SPAIN","0138","ES10 NH CIUDAD DE CUENCA",0,"Y","ES100138 NH CIUDAD DE CUENCA"]
[null,null,null,null,null,null,null,null,null,null,null,"BU SOUTHERN","SPAIN","0017","ES10 NH CENTER",0,"Y","ES100017 NH CENTER"]
[null,null,null,null,null,null,null,null,null,null,null,"BU SOUTHERN","SPAIN","0303","ES10 NH CARTAGENA",0,"Y","ES100303 NH CARTAGENA"]
[null,null,null,null,null,null,null,null,null,null,null,"BU SOUTHERN","SPAIN","0308","ES10 NH CAMPUS",0,"Y","ES100308 NH CAMPUS"]
[null,null,null,null,null,null,null,null,null,null,null,"BU SOUTHERN","SPAIN","0300","ES10 NH CAMPO DE GIBRALTAR",0,"Y","ES100300 NH CAMPO DE GIBRALTAR"]
[null,null,null,null,null,null,null,null,null,null,null,"BU SOUTHERN","SPAIN","0581","ES10 NH CAMPO CARTAGENA (OLD)",0,"Y","ES100581 NH CAMPO CARTAGENA (OLD)"]
[null,null,null,null,null,null,null,null,null,null,null,"BU SOUTHERN","SPAIN","0967","ES10 NH CALIFA (ANTIGUO)",0,"Y","ES100967 NH CALIFA (ANTIGUO)"]
[null,null,null,null,null,null,null,null,null,null,null,"BU SOUTHERN","SPAIN","0081","ES10 NH CALDERON",0,"Y","ES100081 NH CALDERON"]
[null,null,null,null,null,null,null,null,null,null,null,"BU SOUTHERN","SPAIN","0251","ES10 NH BELAGUA",0,"Y","ES100251 NH BELAGUA"]
[null,null,null,null,null,null,null,null,null,null,null,"BU SOUTHERN","SPAIN","0106","ES10 NH BARCELONA STADIUM 4",0,"Y","ES100106 NH BARCELONA STADIUM 4"]
[null,null,null,null,null,null,null,null,null,null,null,"BU SOUTHERN","SPAIN","0025","ES10 NH BARCELONA CENTRO",0,"Y","ES100025 NH BARCELONA CENTRO"]
[null,null,null,null,null,null,null,null,null,null,null,"BU SOUTHERN","SPAIN","0152","ES10 NH BARAJAS AIRPORT",0,"Y","ES100152 NH BARAJAS AIRPORT"]
[null,null,null,null,null,null,null,null,null,null,null,"BU SOUTHERN","SPAIN","0116","ES10 NH BALUARTE",0,"Y","ES100116 NH BALUARTE"]
[null,null,null,null,null,null,null,null,null,null,null,"BU SOUTHERN","SPAIN","0042","ES10 NH BALBOA",0,"Y","ES100042 NH BALBOA"]
[null,null,null,null,null,null,null,null,null,null,null,"BU SOUTHERN","SPAIN","0333","ES10 NH BALAGO",0,"Y","ES100333 NH BALAGO"]
[null,null,null,null,null,null,null,null,null,null,null,"BU SOUTHERN","SPAIN","0133","ES10 NH AVENIDA JEREZ",0,"Y","ES100133 NH AVENIDA JEREZ"]
[null,null,null,null,null,null,null,null,null,null,null,"BU SOUTHERN","SPAIN","0115","ES10 NH ATOCHA",0,"Y","ES100115 NH ATOCHA"]
[null,null,null,null,null,null,null,null,null,null,null,"BU SOUTHERN","SPAIN","0020","ES10 NH ATLANTICO",0,"Y","ES100020 NH ATLANTICO"]
[null,null,null,null,null,null,null,null,null,null,null,"BU SOUTHERN","SPAIN","0013","ES10 NH ARGUELLES",0,"Y","ES100013 NH ARGUELLES"]
[null,null,null,null,null,null,null,null,null,null,null,"BU SOUTHERN","SPAIN","0128","ES10 NH AMISTAD MURCIA",0,"Y","ES100128 NH AMISTAD MURCIA"]
[null,null,null,null,null,null,null,null,null,null,null,"BU SOUTHERN","SPAIN","0010","ES10 NH ALONSO MARTINEZ",0,"Y","ES100010 NH ALONSO MARTINEZ"]
[null,null,null,null,null,null,null,null,null,null,null,"BU SOUTHERN","SPAIN","0322","ES10 NH ALICANTE",0,"Y","ES100322 NH ALICANTE"]
[null,null,null,null,null,null,null,null,null,null,null,"BU SOUTHERN","SPAIN","0311","ES10 NH ALCORCON",0,"Y","ES100311 NH ALCORCON"]
[null,null,null,null,null,null,null,null,null,null,null,"BU SOUTHERN","SPAIN","0022","ES10 NH ALBERTO AGUILERA",0,"Y","ES100022 NH ALBERTO AGUILERA"]
[null,null,null,null,null,null,null,null,null,null,null,"BU SOUTHERN","SPAIN",9103,"ES10 CS SPAIN MADRID",9,"Y","ES109103 CS SPAIN MADRID"]
[null,null,null,null,null,null,null,null,null,null,null,"BU SOUTHERN","SPAIN","9824","ES10  PROPCO SPAIN",9,"Y","ES109824  PROPCO SPAIN"]
[null,null,null,null,null,null,null,null,null,null,null,"CORPORATE","SPAIN",9336,"ES15 CENTRAL DE RESERVAS (CRO)",9,"Y","ES159336 CENTRAL DE RESERVAS (CRO)"]
[null,null,null,null,null,null,null,null,null,null,null,"BU SOUTHERN","SPAIN","0248","ES16 CASINO DE MADRID",0,"Y","ES160248 CASINO DE MADRID"]
[null,null,null,null,null,null,null,null,null,null,null,"BU SOUTHERN","SPAIN","0301","ES17NH COLLEC PALACIO ARANJUEZ",0,"Y","ES170301NH COLLEC PALACIO ARANJUEZ"]
[null,null,null,null,null,null,null,null,null,null,null,"BU SOUTHERN","SPAIN","0130","ES32 NH MARBELLA",0,"Y","ES320130 NH MARBELLA"]
[null,null,null,null,null,null,null,null,null,null,null,"CORPORATE","SPAIN","9240","ES35 LATINOAMERICANA",9,"Y","ES359240 LATINOAMERICANA"]
[null,null,null,null,null,null,null,null,null,null,null,"CORPORATE","SPAIN",9111,"ES39 ATARDECER CARIBEÑO",9,"Y","ES399111 ATARDECER CARIBEÑO"]
[null,null,null,null,null,null,null,null,null,null,null,"BU SOUTHERN","SPAIN",9355,"ES41 FAST GOOD ISLAS CANARIAS",9,"Y","ES419355 FAST GOOD ISLAS CANARIAS"]
[null,null,null,null,null,null,null,null,null,null,null,"BU SOUTHERN","SPAIN","0174","ES47NH ALANDA",0,"Y","ES470174NH ALANDA"]
[null,null,null,null,null,null,null,null,null,null,null,"BU SOUTHERN","SPAIN","9516","ES50 CS HESPERIA",9,"Y","ES509516 CS HESPERIA"]
[null,null,null,null,null,null,null,null,null,null,null,"CORPORATE","SPAIN",9474,"ES51 SOTOCARIBE",9,"Y","ES519474 SOTOCARIBE"]
[null,null,null,null,null,null,null,null,null,null,null,"HESPERIA","SPAIN","0519","ES57 HESPERIA LANZAROTE",0,"Y","ES570519 HESPERIA LANZAROTE"]
[null,null,null,null,null,null,null,null,null,null,null,"HESPERIA","SPAIN","0520","ES58 NH CIUDAD DE MALLORCA",0,"Y",{"$f":"CONCATENATE(LEFT(O329,4),N329,MID(O329,5,999))","v":"ES580520 NH CIUDAD DE MALLORCA"}]
[null,null,null,null,null,null,null,null,null,null,null,"HESPERIA","SPAIN","0521","ES59 HESPERIA BRISTOL PLAYA",0,"Y","ES590521 HESPERIA BRISTOL PLAYA"]
[null,null,null,null,null,null,null,null,null,null,null,"HESPERIA","SPAIN","0523","ES60 NH GUADALQUIVIR",0,"Y","ES600523 NH GUADALQUIVIR"]
[null,null,null,null,null,null,null,null,null,null,null,"HESPERIA","SPAIN","0526","ES61 NH GRANADA CENTRO",0,"Y","ES610526 NH GRANADA CENTRO"]
[null,null,null,null,null,null,null,null,null,null,null,"HESPERIA","SPAIN","0531","ES61 NH FIRA SUITES",0,"Y","ES610531 NH FIRA SUITES"]
[null,null,null,null,null,null,null,null,null,null,null,"HESPERIA","SPAIN","0524","ES61 NH DONOSTI",0,"Y","ES610524 NH DONOSTI"]
[null,null,null,null,null,null,null,null,null,null,null,"HESPERIA","SPAIN","0530","ES61 NH COLLECTION  TOWER",0,"Y","ES610530 NH COLLECTION  TOWER"]
[null,null,null,null,null,null,null,null,null,null,null,"HESPERIA","SPAIN","0529","ES61 HESPERIA SANT JOAN",0,"Y","ES610529 HESPERIA SANT JOAN"]
[null,null,null,null,null,null,null,null,null,null,null,"HESPERIA","SPAIN","0528","ES61 HESPERIA PRESIDENTE",0,"Y","ES610528 HESPERIA PRESIDENTE"]
[null,null,null,null,null,null,null,null,null,null,null,"HESPERIA","SPAIN","0533","ES62 HESPERIA SEVILLA",0,"Y","ES620533 HESPERIA SEVILLA"]
[null,null,null,null,null,null,null,null,null,null,null,"HESPERIA","SPAIN",9599,"ES63 TREASURY GIHSA",9,"Y","ES639599 TREASURY GIHSA"]
[null,null,null,null,null,null,null,null,null,null,null,"HESPERIA","SPAIN",9884,"ES63 NH WORLD HESPERIA",9,"Y","ES639884 NH WORLD HESPERIA"]
[null,null,null,null,null,null,null,null,null,null,null,"HESPERIA","SPAIN","0537","ES64 NH BARCELONA DEL MAR",0,"Y","ES640537 NH BARCELONA DEL MAR"]
[null,null,null,null,null,null,null,null,null,null,null,"HESPERIA","SPAIN","0539","ES65 NH  ZARAGOZA CENTRO",0,"Y","ES650539 NH  ZARAGOZA CENTRO"]
[null,null,null,null,null,null,null,null,null,null,null,"HESPERIA","SPAIN","0540","ES66 HESPERIA MURCIA",0,"Y","ES660540 HESPERIA MURCIA"]
[null,null,null,null,null,null,null,null,null,null,null,"HESPERIA","SPAIN","0542","ES67 HESPERIA MADRID",0,"Y","ES670542 HESPERIA MADRID"]
[null,null,null,null,null,null,null,null,null,null,null,"HESPERIA","SPAIN","0545","ES68 NH RAMBLAS",0,"Y","ES680545 NH RAMBLAS"]
[null,null,null,null,null,null,null,null,null,null,null,"HESPERIA","SPAIN","0547","ES69 HESPERIA VILLAMIL",0,"Y","ES690547 HESPERIA VILLAMIL"]
[null,null,null,null,null,null,null,null,null,null,null,"HESPERIA","SPAIN","0548","ES70 NH BARRI GOTIC",0,"Y","ES700548 NH BARRI GOTIC"]
[null,null,null,null,null,null,null,null,null,null,null,"HESPERIA","SPAIN","0555","ES71 NH PEREGRINO",0,"Y","ES710555 NH PEREGRINO"]
[null,null,null,null,null,null,null,null,null,null,null,"HESPERIA","SPAIN","0552","ES71 NH COLLECTION FINISTERRE",0,"Y","ES710552 NH COLLECTION FINISTERRE"]
[null,null,null,null,null,null,null,null,null,null,null,"HESPERIA","SPAIN","0549","ES71 NH A CORUÑA CENTRO",0,"Y","ES710549 NH A CORUÑA CENTRO"]
[null,null,null,null,null,null,null,null,null,null,null,"HESPERIA","SPAIN","0556","ES71 HESPERIA VIGO",0,"Y","ES710556 HESPERIA VIGO"]
[null,null,null,null,null,null,null,null,null,null,null,"HESPERIA","SPAIN","0558","ES72 NH TOLEDO",0,"Y","ES720558 NH TOLEDO"]
[null,null,null,null,null,null,null,null,null,null,null,"HESPERIA","SPAIN","0559","ES72 NH  ZUBIALDE",0,"Y","ES720559 NH  ZUBIALDE"]
[null,null,null,null,null,null,null,null,null,null,null,"HESPERIA","SPAIN","0557","ES73 NH COLLECTION RIA DE BILBAO",0,"Y","ES730557 NH COLLECTION RIA DE BILBAO"]
[null,null,null,null,null,null,null,null,null,null,null,"HESPERIA","SPAIN","0560","ES74 NH SANT JUST",0,"Y","ES740560 NH SANT JUST"]
[null,null,null,null,null,null,null,null,null,null,null,"HESPERIA","SPAIN","0562","ES76 HESPERIA PLAYA DORADA",0,"Y","ES760562 HESPERIA PLAYA DORADA"]
[null,null,null,null,null,null,null,null,null,null,null,"BU SOUTHERN","SPAIN",5305,"ES89NH SOTOGRANDE",0,"Y","ES895305NH SOTOGRANDE"]
[null,null,null,null,null,null,null,null,null,null,null,"BU SOUTHERN","SPAIN",5046,"ES89HOTEL ALMENARA",0,"Y","ES895046HOTEL ALMENARA"]
[null,null,null,null,null,null,null,null,null,null,null,"BU SOUTHERN","SPAIN","0493","ES92 NH SOTOGRANDE",0,"Y","ES920493 NH SOTOGRANDE"]
[null,null,null,null,null,null,null,null,null,null,null,"BU SOUTHERN","SPAIN","0494","ES93 NH ALMENARA",0,"Y","ES930494 NH ALMENARA"]
[null,null,null,null,null,null,null,null,null,null,null,"BU SOUTHERN","SPAIN","9933","WILAN ANDER, S.L.  ",9,"Y","WILA9933N ANDER, S.L.  "]
[null,null,null,null,null,null,null,null,null,null,null,"BU SOUTHERN","SPAIN","9934","WILAN HUEL, S.L.  ",9,"Y","WILA9934N HUEL, S.L.  "]
[null,null,null,null,null,null,null,null,null,null,null,"BU SOUTHERN","FRANCE",9868,"FR01 TREASURY FRANCE",9,"Y","FR019868 TREASURY FRANCE"]
[null,null,null,null,null,null,null,null,null,null,null,"BU SOUTHERN","FRANCE",9848,"FR01 NH WORLD FRANCE",9,"Y","FR019848 NH WORLD FRANCE"]
[null,null,null,null,null,null,null,null,null,null,null,"BU SOUTHERN","FRANCE","0835","FR01 NH TOULOUSE AIRPORT",0,"Y","FR010835 NH TOULOUSE AIRPORT"]
[null,null,null,null,null,null,null,null,null,null,null,"BU SOUTHERN","FRANCE","0753","FR01 NH NICE",0,"Y","FR010753 NH NICE"]
[null,null,null,null,null,null,null,null,null,null,null,"BU SOUTHERN","FRANCE","0758","FR01 NH LYON AIRPORT",0,"Y","FR010758 NH LYON AIRPORT"]
[null,null,null,null,null,null,null,null,null,null,null,"BU SOUTHERN","FRANCE","0826","FR01 NH COLLECTION MARSEILLE",0,"Y","FR010826 NH COLLECTION MARSEILLE"]
[null,null,null,null,null,null,null,null,null,null,null,"BU SOUTHERN","FRANCE","9831","FR01 CS FRANCE",9,"Y","FR019831 CS FRANCE"]
[null,null,null,null,null,null,null,null,null,null,null,"BU SOUTHERN","FRANCE","0754","FR03 NH PALM BEACH",0,"Y","FR030754 NH PALM BEACH"]
[null,null,null,null,null,null,null,null,null,null,null,"BU NORTHERN","HUNGARY",9874,"HU01 TREASURY HUNGARY",9,"Y","HU019874 TREASURY HUNGARY"]
[null,null,null,null,null,null,null,null,null,null,null,"BU NORTHERN","HUNGARY",9854,"HU01 NH WORLD HUNGARY",9,"Y","HU019854 NH WORLD HUNGARY"]
[null,null,null,null,null,null,null,null,null,null,null,"BU NORTHERN","HUNGARY","0291","HU01 NH BUDAPEST",0,"Y","HU010291 NH BUDAPEST"]
[null,null,null,null,null,null,null,null,null,null,null,"BU NORTHERN","HUNGARY",9894,"HU01 CS HUNGARY",9,"Y","HU019894 CS HUNGARY"]
[null,null,null,null,null,null,null,null,null,null,null,"BU SOUTHERN","ITALY","0717","IT01NH PADOVA",0,"Y","IT010717NH PADOVA"]
[null,null,null,null,null,null,null,null,null,null,null,"BU SOUTHERN","ITALY",9780,"IT01 TREASURY ITALY",9,"Y","IT019780 TREASURY ITALY"]
[null,null,null,null,null,null,null,null,null,null,null,"BU SOUTHERN","ITALY","0703","IT01 NHOW MILANO",0,"Y","IT010703 NHOW MILANO"]
[null,null,null,null,null,null,null,null,null,null,null,"BU SOUTHERN","ITALY","9383","IT01 NH WORLD ITALY",9,"Y","IT019383 NH WORLD ITALY"]
[null,null,null,null,null,null,null,null,null,null,null,"BU SOUTHERN","ITALY","0764","IT01 NH VITTORIO VENETO",0,"Y","IT010764 NH VITTORIO VENETO"]
[null,null,null,null,null,null,null,null,null,null,null,"BU SOUTHERN","ITALY","0713","IT01 NH VILLA SAN MAURO",0,"Y","IT010713 NH VILLA SAN MAURO"]
[null,null,null,null,null,null,null,null,null,null,null,"BU SOUTHERN","ITALY","0765","IT01 NH VILLA CARPEGNA",0,"Y","IT010765 NH VILLA CARPEGNA"]
[null,null,null,null,null,null,null,null,null,null,null,"BU SOUTHERN","ITALY","0769","IT01 NH TRIESTE",0,"Y","IT010769 NH TRIESTE"]
[null,null,null,null,null,null,null,null,null,null,null,"BU SOUTHERN","ITALY","0767","IT01 NH TORINO CENTRO ",0,"Y","IT010767 NH TORINO CENTRO "]
[null,null,null,null,null,null,null,null,null,null,null,"BU SOUTHERN","ITALY","0766","IT01 NH SIENA",0,"Y","IT010766 NH SIENA"]
[null,null,null,null,null,null,null,null,null,null,null,"BU SOUTHERN","ITALY","0781","IT01 NH SAVONA DARSENA",0,"Y","IT010781 NH SAVONA DARSENA"]
[null,null,null,null,null,null,null,null,null,null,null,"BU SOUTHERN","ITALY",5702,"IT01 NH SANTO STEFANO",0,"Y","IT015702 NH SANTO STEFANO"]
[null,null,null,null,null,null,null,null,null,null,null,"BU SOUTHERN","ITALY","0813","IT01 NH RIO NOVO",0,"Y","IT010813 NH RIO NOVO"]
[null,null,null,null,null,null,null,null,null,null,null,"BU SOUTHERN","ITALY","0761","IT01 NH RAVENNA",0,"Y","IT010761 NH RAVENNA"]
[null,null,null,null,null,null,null,null,null,null,null,"BU SOUTHERN","ITALY","0744","IT01 NH PRESIDENT",0,"Y","IT010744 NH PRESIDENT"]
[null,null,null,null,null,null,null,null,null,null,null,"BU SOUTHERN","ITALY","0741","IT01 NH PONTEVECCHIO",0,"Y","IT010741 NH PONTEVECCHIO"]
[null,null,null,null,null,null,null,null,null,null,null,"BU SOUTHERN","ITALY","0749","IT01 NH PISA",0,"Y","IT010749 NH PISA"]
[null,null,null,null,null,null,null,null,null,null,null,"BU SOUTHERN","ITALY","0789","IT01 NH PARMA",0,"Y","IT010789 NH PARMA"]
[null,null,null,null,null,null,null,null,null,null,null,"BU SOUTHERN","ITALY","0720","IT01 NH PARCO DEGLI ARAGONESI",0,"Y",{"$f":"CONCATENATE(LEFT(O393,4),N393,MID(O393,5,999))","v":"IT010720 NH PARCO DEGLI ARAGONESI"}]
[null,null,null,null,null,null,null,null,null,null,null,"BU SOUTHERN","ITALY","0748","IT01 NH PALERMO",0,"Y","IT010748 NH PALERMO"]
[null,null,null,null,null,null,null,null,null,null,null,"BU SOUTHERN","ITALY","0806","IT01 NH PALAZZO MOSCOVA",0,"Y","IT010806 NH PALAZZO MOSCOVA"]
[null,null,null,null,null,null,null,null,null,null,null,"BU SOUTHERN","ITALY","0709","IT01 NH PALAZZO BAROCCI",0,"Y","IT010709 NH PALAZZO BAROCCI"]
[null,null,null,null,null,null,null,null,null,null,null,"BU SOUTHERN","ITALY","0706","IT01 NH ORIO AL SERIO",0,"Y","IT010706 NH ORIO AL SERIO"]
[null,null,null,null,null,null,null,null,null,null,null,"BU SOUTHERN","ITALY","0745","IT01 NH MILANO TOURING",0,"Y","IT010745 NH MILANO TOURING"]
[null,null,null,null,null,null,null,null,null,null,null,"BU SOUTHERN","ITALY","0746","IT01 NH MILANO CONGRESS CENTRE",0,"Y","IT010746 NH MILANO CONGRESS CENTRE"]
[null,null,null,null,null,null,null,null,null,null,null,"BU SOUTHERN","ITALY","0470","IT01 NH MILANO CONGRESS",0,"Y","IT010470 NH MILANO CONGRESS"]
[null,null,null,null,null,null,null,null,null,null,null,"BU SOUTHERN","ITALY","0823","IT01 NH MILANO BUENOS AIRES",0,"Y","IT010823 NH MILANO BUENOS AIRES"]
[null,null,null,null,null,null,null,null,null,null,null,"BU SOUTHERN","ITALY","0771","IT01 NH MILANO 2 RESIDENCE",0,"Y","IT010771 NH MILANO 2 RESIDENCE"]
[null,null,null,null,null,null,null,null,null,null,null,"BU SOUTHERN","ITALY","0742","IT01 NH MILANO 2",0,"Y","IT010742 NH MILANO 2"]
[null,null,null,null,null,null,null,null,null,null,null,"BU SOUTHERN","ITALY","0763","IT01 NH MIDAS",0,"Y","IT010763 NH MIDAS"]
[null,null,null,null,null,null,null,null,null,null,null,"BU SOUTHERN","ITALY","0737","IT01 NH MARINA",0,"Y","IT010737 NH MARINA"]
[null,null,null,null,null,null,null,null,null,null,null,"BU SOUTHERN","ITALY","0743","IT01 NH MACHIAVELLI",0,"Y","IT010743 NH MACHIAVELLI"]
[null,null,null,null,null,null,null,null,null,null,null,"BU SOUTHERN","ITALY","0782","IT01 NH LINATE",0,"Y","IT010782 NH LINATE"]
[null,null,null,null,null,null,null,null,null,null,null,"BU SOUTHERN","ITALY","0762","IT01 NH LEONARDO DA VINCI",0,"Y","IT010762 NH LEONARDO DA VINCI"]
[null,null,null,null,null,null,null,null,null,null,null,"BU SOUTHERN","ITALY","0701","IT01 NH LAGUNA PALACE",0,"Y","IT010701 NH LAGUNA PALACE"]
[null,null,null,null,null,null,null,null,null,null,null,"BU SOUTHERN","ITALY","0740","IT01 NH LA SPEZIA",0,"Y","IT010740 NH LA SPEZIA"]
[null,null,null,null,null,null,null,null,null,null,null,"BU SOUTHERN","ITALY","0708","IT01 NH GRAND HOTEL VERDI",0,"Y","IT010708 NH GRAND HOTEL VERDI"]
[null,null,null,null,null,null,null,null,null,null,null,"BU SOUTHERN","ITALY","0786","IT01 NH GRAND HOTEL PALAZZO",0,"Y","IT010786 NH GRAND HOTEL PALAZZO"]
[null,null,null,null,null,null,null,null,null,null,null,"BU SOUTHERN","ITALY","0716","IT01 NH GIUSTINIANO",0,"Y","IT010716 NH GIUSTINIANO"]
[null,null,null,null,null,null,null,null,null,null,null,"BU SOUTHERN","ITALY","0738","IT01 NH GENOVA CENTRO",0,"Y","IT010738 NH GENOVA CENTRO"]
[null,null,null,null,null,null,null,null,null,null,null,"BU SOUTHERN","ITALY","0736","IT01 NH FIRENZE",0,"Y","IT010736 NH FIRENZE"]
[null,null,null,null,null,null,null,null,null,null,null,"BU SOUTHERN","ITALY","0757","IT01 NH FIERA",0,"Y","IT010757 NH FIERA"]
[null,null,null,null,null,null,null,null,null,null,null,"BU SOUTHERN","ITALY","0705","IT01 NH CONCORDIA",0,"Y","IT010705 NH CONCORDIA"]
[null,null,null,null,null,null,null,null,null,null,null,"BU SOUTHERN","ITALY","0805","IT01 NH COLLECTION TAORMINA",0,"Y","IT010805 NH COLLECTION TAORMINA"]
[null,null,null,null,null,null,null,null,null,null,null,"BU SOUTHERN","ITALY","0783","IT01 NH COLLECTION PORTA ROSSA",0,"Y","IT010783 NH COLLECTION PORTA ROSSA"]
[null,null,null,null,null,null,null,null,null,null,null,"BU SOUTHERN","ITALY","0807","IT01 NH COLLECTION PALAZZO CINQUECENTO",0,"Y","IT010807 NH COLLECTION PALAZZO CINQUECENTO"]
[null,null,null,null,null,null,null,null,null,null,null,"BU SOUTHERN","ITALY","0735","IT01 NH CATANIA CENTRO",0,"Y","IT010735 NH CATANIA CENTRO"]
[null,null,null,null,null,null,null,null,null,null,null,"BU SOUTHERN","ITALY","0733","IT01 NH BRESCIA",0,"Y","IT010733 NH BRESCIA"]
[null,null,null,null,null,null,null,null,null,null,null,"BU SOUTHERN","ITALY","0732","IT01 NH BOLOGNA VILLANOVA",0,"Y","IT010732 NH BOLOGNA VILLANOVA"]
[null,null,null,null,null,null,null,null,null,null,null,"BU SOUTHERN","ITALY","0731","IT01 NH BOLOGNA DE LA GARE",0,"Y","IT010731 NH BOLOGNA DE LA GARE"]
[null,null,null,null,null,null,null,null,null,null,null,"BU SOUTHERN","ITALY","0730","IT01 NH BERGAMO",0,"Y","IT010730 NH BERGAMO"]
[null,null,null,null,null,null,null,null,null,null,null,"BU SOUTHERN","ITALY","0710","IT01 NH ANGLO AMERICAN",0,"Y","IT010710 NH ANGLO AMERICAN"]
[null,null,null,null,null,null,null,null,null,null,null,"BU SOUTHERN","ITALY","0729","IT01 NH ANCONA",0,"Y","IT010729 NH ANCONA"]
[null,null,null,null,null,null,null,null,null,null,null,"BU SOUTHERN","ITALY","0747","IT01 NH AMBASSADOR",0,"Y","IT010747 NH AMBASSADOR"]
[null,null,null,null,null,null,null,null,null,null,null,"BU SOUTHERN","ITALY","0718","IT01 GRAN HOTEL CONVENTO DI AM",0,"Y","IT010718 GRAN HOTEL CONVENTO DI AM"]
[null,null,null,null,null,null,null,null,null,null,null,"BU SOUTHERN","ITALY",9700,"IT01 CS ITALY",9,"Y","IT019700 CS ITALY"]
[null,null,null,null,null,null,null,null,null,null,null,"BU SOUTHERN","ITALY",9700,"IT01 CS ITALY",9,"Y","IT019700 CS ITALY"]
[null,null,null,null,null,null,null,null,null,null,null,"BU SOUTHERN","ITALY","9700","IT01 CS ITALY",9,"Y","IT019700 CS ITALY"]
[null,null,null,null,null,null,null,null,null,null,null,"BU SOUTHERN","ITALY","9707",null,9,"Y","9707"]
[null,null,null,null,null,null,null,null,null,null,null,"BU NORTHERN","LUXEMBOURG",9867,"LU03 TREASURY LUXEMBOURG",9,"Y","LU039867 TREASURY LUXEMBOURG"]
[null,null,null,null,null,null,null,null,null,null,null,"BU NORTHERN","LUXEMBOURG",9847,"LU03 NH WORLD LUXEMBOURG",9,"Y","LU039847 NH WORLD LUXEMBOURG"]
[null,null,null,null,null,null,null,null,null,null,null,"BU NORTHERN","LUXEMBOURG","0339","LU03 NH LUXEMBOURG",0,"Y","LU030339 NH LUXEMBOURG"]
[null,null,null,null,null,null,null,null,null,null,null,"MEXICO&CARIBBEAN","MEXICO",9475,"MX01 HOLDING MEXICO",9,"Y","MX019475 HOLDING MEXICO"]
[null,null,null,null,null,null,null,null,null,null,null,"MEXICO&CARIBBEAN","MEXICO",9650,"MX02 TREASURY MEXICO",9,"Y","MX029650 TREASURY MEXICO"]
[null,null,null,null,null,null,null,null,null,null,null,"MEXICO&CARIBBEAN","MEXICO",9476,"MX02 OPERADORA MEXICO",9,"Y","MX029476 OPERADORA MEXICO"]
[null,null,null,null,null,null,null,null,null,null,null,"MEXICO&CARIBBEAN","MEXICO",9881,"MX02 NH WORLD MEXICO",9,"Y","MX029881 NH WORLD MEXICO"]
[null,null,null,null,null,null,null,null,null,null,null,"MEXICO&CARIBBEAN","MEXICO","0652","MX02 NH CENTRO HISTORICO",0,"Y","MX020652 NH CENTRO HISTORICO"]
[null,null,null,null,null,null,null,null,null,null,null,"MEXICO&CARIBBEAN","MEXICO","0647","MX02 NH  VERACRUZ ",0,"Y","MX020647 NH  VERACRUZ "]
[null,null,null,null,null,null,null,null,null,null,null,"MEXICO&CARIBBEAN","MEXICO",9477,"MX03 FRANQUICIAS LODGE",9,"Y","MX039477 FRANQUICIAS LODGE"]
[null,null,null,null,null,null,null,null,null,null,null,"MEXICO&CARIBBEAN","MEXICO",9478,"MX04 SERVICIOS CORP. MEXICO",9,"Y","MX049478 SERVICIOS CORP. MEXICO"]
[null,null,null,null,null,null,null,null,null,null,null,"MEXICO&CARIBBEAN","MEXICO","0076","MX05 NH COATZACOALCOS",0,"Y","MX050076 NH COATZACOALCOS"]
[null,null,null,null,null,null,null,null,null,null,null,"MEXICO&CARIBBEAN","MEXICO","0423","MX05 NH  VERACRUZ (ANTIGUO)",0,"Y","MX050423 NH  VERACRUZ (ANTIGUO)"]
[null,null,null,null,null,null,null,null,null,null,null,"MEXICO&CARIBBEAN","MEXICO","0074","MX08 NH MEXICO CITY",0,"Y","MX080074 NH MEXICO CITY"]
[null,null,null,null,null,null,null,null,null,null,null,"MEXICO&CARIBBEAN","MEXICO",9067,"MX09 SERV.NOMINA H. NH MEXICO",9,"Y","MX099067 SERV.NOMINA H. NH MEXICO"]
[null,null,null,null,null,null,null,null,null,null,null,"MEXICO&CARIBBEAN","MEXICO","0659","MX10 NH MONTERREY",0,"Y","MX100659 NH MONTERREY"]
[null,null,null,null,null,null,null,null,null,null,null,"MEXICO&CARIBBEAN","MEXICO","0817","MX11 NH MONTERREY LA FE",0,"Y","MX110817 NH MONTERREY LA FE"]
[null,null,null,null,null,null,null,null,null,null,null,"MEXICO&CARIBBEAN","MEXICO",9648,"MX11 CHARTWELL DE MEXICO",9,"Y","MX119648 CHARTWELL DE MEXICO"]
[null,null,null,null,null,null,null,null,null,null,null,"MEXICO&CARIBBEAN","MEXICO","0064","MX12HILTON AEROPUERTO",0,"Y","MX120064HILTON AEROPUERTO"]
[null,null,null,null,null,null,null,null,null,null,null,"MEXICO&CARIBBEAN","MEXICO","0649","MX12 NH VALLE DORADO",0,"Y","MX120649 NH VALLE DORADO"]
[null,null,null,null,null,null,null,null,null,null,null,"MEXICO&CARIBBEAN","MEXICO","0056","MX12 H. HILTON GARDEN INN N.LA",0,"Y","MX120056 H. HILTON GARDEN INN N.LA"]
[null,null,null,null,null,null,null,null,null,null,null,"MEXICO&CARIBBEAN","MEXICO",9051,"MX13 SERV. NOMINA HOTEL  MONTE",9,"Y","MX139051 SERV. NOMINA HOTEL  MONTE"]
[null,null,null,null,null,null,null,null,null,null,null,"MEXICO&CARIBBEAN","MEXICO","0332","MX15 NH SANTA FE MEXICO CITY",0,"Y","MX150332 NH SANTA FE MEXICO CITY"]
[null,null,null,null,null,null,null,null,null,null,null,"MEXICO&CARIBBEAN","MEXICO","0655","MX16 NH QUERETARO",0,"Y",{"$f":"CONCATENATE(LEFT(O457,4),N457,MID(O457,5,999))","v":"MX160655 NH QUERETARO"}]
[null,null,null,null,null,null,null,null,null,null,null,"MEXICO&CARIBBEAN","MEXICO","9658","MX18 SERV.NOMINA HISPANA SANTA",9,"Y","MX189658 SERV.NOMINA HISPANA SANTA"]
[null,null,null,null,null,null,null,null,null,null,null,"MEXICO&CARIBBEAN","MEXICO",9055,"MX25 COMPANIA NUEVO LAREDO",9,"Y","MX259055 COMPANIA NUEVO LAREDO"]
[null,null,null,null,null,null,null,null,null,null,null,"BU NORTHERN","NETHERLANDS",9901,"NL01 NH HOTELES PARTICIPATIES",9,"Y","NL019901 NH HOTELES PARTICIPATIES"]
[null,null,null,null,null,null,null,null,null,null,null,"BU NORTHERN","NETHERLANDS",9902,"NL02 KRASNAPOLSKY HOTEL&REST",9,"Y","NL029902 KRASNAPOLSKY HOTEL&REST"]
[null,null,null,null,null,null,null,null,null,null,null,"BU NORTHERN","NETHERLANDS",9920,"NL03 TREASURY NETHERLANDS",9,"Y","NL039920 TREASURY NETHERLANDS"]
[null,null,null,null,null,null,null,null,null,null,null,"BU NORTHERN","NETHERLANDS",9889,"NL03 NH WORLD NETHERLANDS",9,"Y","NL039889 NH WORLD NETHERLANDS"]
[null,null,null,null,null,null,null,null,null,null,null,"BU NORTHERN","NETHERLANDS",9903,"NL03 CS NETHERLANDS",9,"Y","NL039903 CS NETHERLANDS"]
[null,null,null,null,null,null,null,null,null,null,null,"BU NORTHERN","NETHERLANDS",9909,"NL04 KRASNAPOLKSY INTERNAT. HO",9,"Y","NL049909 KRASNAPOLKSY INTERNAT. HO"]
[null,null,null,null,null,null,null,null,null,null,null,"BU NORTHERN","NETHERLANDS",9910,"NL05 KRASNAPOLKSY BELGIAN SHAR",9,"Y","NL059910 KRASNAPOLKSY BELGIAN SHAR"]
[null,null,null,null,null,null,null,null,null,null,null,"BU NORTHERN","NETHERLANDS","0809","NL06 NH COLLECTION EINDHOVEN",0,"Y","NL060809 NH COLLECTION EINDHOVEN"]
[null,null,null,null,null,null,null,null,null,null,null,"BU NORTHERN","NETHERLANDS",9911,"NL06 HOTELEXPLOITATIEMAATSCHAPPIJ EINDHOVEN B.V.",9,"Y","NL069911 HOTELEXPLOITATIEMAATSCHAPPIJ EINDHOVEN B.V."]
[null,null,null,null,null,null,null,null,null,null,null,"BU NORTHERN","NETHERLANDS",9912,"NL07 KRASNAPOLSKY ICT",9,"Y","NL079912 KRASNAPOLSKY ICT"]
[null,null,null,null,null,null,null,null,null,null,null,"BU NORTHERN","NETHERLANDS",9913,"NL08 KRASNAPOLSKY CARIBBEAN MN",9,"Y","NL089913 KRASNAPOLSKY CARIBBEAN MN"]
[null,null,null,null,null,null,null,null,null,null,null,"BU NORTHERN","NETHERLANDS",9914,"NL09 MARQUETTE BEHEER",9,"Y","NL099914 MARQUETTE BEHEER"]
[null,null,null,null,null,null,null,null,null,null,null,"BU NORTHERN","NETHERLANDS",9916,"NL10 NH PRIVATE EQUITY NL",9,"Y","NL109916 NH PRIVATE EQUITY NL"]
[null,null,null,null,null,null,null,null,null,null,null,"BU NORTHERN","NETHERLANDS","0375","NL11 NH ATLANTIC DEN HAAG",0,"Y","NL110375 NH ATLANTIC DEN HAAG"]
[null,null,null,null,null,null,null,null,null,null,null,"BU NORTHERN","NETHERLANDS",9439,"NL12 NH WILHELMINAKADE HOLDING",9,"Y","NL129439 NH WILHELMINAKADE HOLDING"]
[null,null,null,null,null,null,null,null,null,null,null,"BU NORTHERN","NETHERLANDS","0216","NL13 NH BARBIZON PALACE",0,"Y","NL130216 NH BARBIZON PALACE"]
[null,null,null,null,null,null,null,null,null,null,null,"BU NORTHERN","NETHERLANDS","0247","NL14 NH ARNHEM RIJNHOTEL",0,"Y","NL140247 NH ARNHEM RIJNHOTEL"]
[null,null,null,null,null,null,null,null,null,null,null,"BU NORTHERN","NETHERLANDS","0245","NL15 NH GELDROP",0,"Y","NL150245 NH GELDROP"]
[null,null,null,null,null,null,null,null,null,null,null,"BU NORTHERN","NETHERLANDS",9455,"NL17 JOLLY HOTELS HOLLAND",9,"Y","NL179455 JOLLY HOTELS HOLLAND"]
[null,null,null,null,null,null,null,null,null,null,null,"BU NORTHERN","NETHERLANDS",9456,"NL18 JOLLY HOUDSTERMAATSCHAPPI",9,"Y","NL189456 JOLLY HOUDSTERMAATSCHAPPI"]
[null,null,null,null,null,null,null,null,null,null,null,"BU NORTHERN","NETHERLANDS",9620,"NL20 HOLDING ONROEREND GOED D´",9,"Y","NL209620 HOLDING ONROEREND GOED D´"]
[null,null,null,null,null,null,null,null,null,null,null,"BU NORTHERN","NETHERLANDS","0215","NL22 NH AMSTERDAM CENTRE",0,"Y","NL220215 NH AMSTERDAM CENTRE"]
[null,null,null,null,null,null,null,null,null,null,null,"BU NORTHERN","NETHERLANDS","0243","NL23 NH MAASTRICHT",0,"Y","NL230243 NH MAASTRICHT"]
[null,null,null,null,null,null,null,null,null,null,null,"BU NORTHERN","NETHERLANDS","0217","NL24 NH SCHIPHOL AIRPORT",0,"Y","NL240217 NH SCHIPHOL AIRPORT"]
[null,null,null,null,null,null,null,null,null,null,null,"BU NORTHERN","NETHERLANDS","0244","NL25 NH CAPELLE",0,"Y","NL250244 NH CAPELLE"]
[null,null,null,null,null,null,null,null,null,null,null,"BU NORTHERN","NETHERLANDS","0213","NL26 NH MUSEUM QUARTER",0,"Y","NL260213 NH MUSEUM QUARTER"]
[null,null,null,null,null,null,null,null,null,null,null,"BU NORTHERN","NETHERLANDS","0222","NL27 NH ZANDVOORT",0,"Y","NL270222 NH ZANDVOORT"]
[null,null,null,null,null,null,null,null,null,null,null,"BU NORTHERN","NETHERLANDS","0232","NL28 NH ZOETERMEER",0,"Y","NL280232 NH ZOETERMEER"]
[null,null,null,null,null,null,null,null,null,null,null,"BU NORTHERN","NETHERLANDS","0235","NL29 NH ATLANTA ROTTERDAM",0,"Y","NL290235 NH ATLANTA ROTTERDAM"]
[null,null,null,null,null,null,null,null,null,null,null,"BU NORTHERN","NETHERLANDS","0315","NL30 NH DEN HAAG",0,"Y","NL300315 NH DEN HAAG"]
[null,null,null,null,null,null,null,null,null,null,null,"BU NORTHERN","NETHERLANDS","0372","NL31 NH AMSTERDAM ZUID",0,"Y","NL310372 NH AMSTERDAM ZUID"]
[null,null,null,null,null,null,null,null,null,null,null,"BU NORTHERN","NETHERLANDS","9362","NL32 EXPL. CARANSA",9,"Y","NL329362 EXPL. CARANSA"]
[null,null,null,null,null,null,null,null,null,null,null,"BU NORTHERN","NETHERLANDS","0211","NL33 NH DOELEN",0,"Y","NL330211 NH DOELEN"]
[null,null,null,null,null,null,null,null,null,null,null,"BU NORTHERN","NETHERLANDS","0210","NL34 NH SCHILLER",0,"Y","NL340210 NH SCHILLER"]
[null,null,null,null,null,null,null,null,null,null,null,"BU NORTHERN","NETHERLANDS","0209","NL34 NH CARANSA",0,"Y","NL340209 NH CARANSA"]
[null,null,null,null,null,null,null,null,null,null,null,"BU NORTHERN","NETHERLANDS","0221","NL35 NH UTRECHT",0,"Y","NL350221 NH UTRECHT"]
[null,null,null,null,null,null,null,null,null,null,null,"BU NORTHERN","NETHERLANDS","0208","NL36 NH AMSTERDAM NOORD",0,"Y","NL360208 NH AMSTERDAM NOORD"]
[null,null,null,null,null,null,null,null,null,null,null,"BU NORTHERN","NETHERLANDS","0948","NL37 NH KONINGSHOF",0,"Y","NL370948 NH KONINGSHOF"]
[null,null,null,null,null,null,null,null,null,null,null,"BU NORTHERN","NETHERLANDS","0949","NL38 NH LEEUWENHORST",0,"Y","NL380949 NH LEEUWENHORST"]
[null,null,null,null,null,null,null,null,null,null,null,"BU NORTHERN","NETHERLANDS","0241","NL39 NH MARQUETTE",0,"Y","NL390241 NH MARQUETTE"]
[null,null,null,null,null,null,null,null,null,null,null,"BU NORTHERN","NETHERLANDS","0207","NL40 NH JAN TABAK",0,"Y","NL400207 NH JAN TABAK"]
[null,null,null,null,null,null,null,null,null,null,null,"BU NORTHERN","NETHERLANDS","0214","NL42 NH AMSTERDAM CITY CENTRE",0,"Y","NL420214 NH AMSTERDAM CITY CENTRE"]
[null,null,null,null,null,null,null,null,null,null,null,"BU NORTHERN","NETHERLANDS","0234","NL43 NH CENTRE UTRECHT",0,"Y","NL430234 NH CENTRE UTRECHT"]
[null,null,null,null,null,null,null,null,null,null,null,"BU NORTHERN","NETHERLANDS","0246","NL44 NH BEST",0,"Y","NL440246 NH BEST"]
[null,null,null,null,null,null,null,null,null,null,null,"BU NORTHERN","NETHERLANDS","0219","NL45 NH NAARDEN",0,"Y","NL450219 NH NAARDEN"]
[null,null,null,null,null,null,null,null,null,null,null,"BU NORTHERN","NETHERLANDS","0200","NL46 NH GRONINGEN",0,"Y","NL460200 NH GRONINGEN"]
[null,null,null,null,null,null,null,null,null,null,null,"BU NORTHERN","NETHERLANDS","0250","NL47 NH HOTEL DE VILLE",0,"Y","NL470250 NH HOTEL DE VILLE"]
[null,null,null,null,null,null,null,null,null,null,null,"BU NORTHERN","NETHERLANDS","0660","NL48 NH SPARRENHORST",0,"Y","NL480660 NH SPARRENHORST"]
[null,null,null,null,null,null,null,null,null,null,null,"BU NORTHERN","NETHERLANDS","0218","NL49 NH GRAND HOTEL KRASNAPOLS",0,"Y","NL490218 NH GRAND HOTEL KRASNAPOLS"]
[null,null,null,null,null,null,null,null,null,null,null,"BU NORTHERN","NETHERLANDS",9908,"NL50 KRASNAPOLKSY H&R ONROEREN",9,"Y","NL509908 KRASNAPOLKSY H&R ONROEREN"]
[null,null,null,null,null,null,null,null,null,null,null,"BU NORTHERN","NETHERLANDS","0970","NL51 RESTAURANT D´VIJFF VLIEGH",0,"Y","NL510970 RESTAURANT D´VIJFF VLIEGH"]
[null,null,null,null,null,null,null,null,null,null,null,"BU NORTHERN","NETHERLANDS","0971","NL52NHOW ROTTERDAM",0,"Y","NL520971NHOW ROTTERDAM"]
[null,null,null,null,null,null,null,null,null,null,null,"BU NORTHERN","NETHERLANDS","0491","NL53 NHOW AMSTERDAM B.V",0,"Y","NL530491 NHOW AMSTERDAM B.V"]
[null,null,null,null,null,null,null,null,null,null,null,"BU NORTHERN","NETHERLANDS",9976,"NL55 OLOFSKAPEL MONUMENTEN",9,"Y","NL559976 OLOFSKAPEL MONUMENTEN"]
[null,null,null,null,null,null,null,null,null,null,null,"BU NORTHERN","NETHERLANDS","0340","NL58 NH WAALWIJK",0,"Y","NL580340 NH WAALWIJK"]
[null,null,null,null,null,null,null,null,null,null,null,"BU NORTHERN","NETHERLANDS","0759","NL59 NH CARLTON AMSTERDAM",0,"Y","NL590759 NH CARLTON AMSTERDAM"]
[null,null,null,null,null,null,null,null,null,null,null,"BU NORTHERN","NETHERLANDS","9389","NL60 OGBM MAAS BEST",9,"Y","NL609389 OGBM MAAS BEST"]
[null,null,null,null,null,null,null,null,null,null,null,"BU NORTHERN","NETHERLANDS",9390,"NL61OGBM IJSSELMEERWEG NAARDEN",9,"Y","NL619390OGBM IJSSELMEERWEG NAARDEN"]
[null,null,null,null,null,null,null,null,null,null,null,"BU NORTHERN","NETHERLANDS",9392,"NL63 OGBM ATLANTA ROTTERDAM",9,"Y","NL639392 OGBM ATLANTA ROTTERDAM"]
[null,null,null,null,null,null,null,null,null,null,null,"BU NORTHERN","NETHERLANDS",9393,"NL64 OGBM DANNY KAYELAAN ZOETE",9,"Y","NL649393 OGBM DANNY KAYELAAN ZOETE"]
[null,null,null,null,null,null,null,null,null,null,null,"BU NORTHERN","NETHERLANDS",9394,"NL65 OGBM PRINS HENDRIKKADE AM",9,"Y","NL659394 OGBM PRINS HENDRIKKADE AM"]
[null,null,null,null,null,null,null,null,null,null,null,"BU NORTHERN","NETHERLANDS",9395,"NL66 OGBM KRUISWEG HOOFDDORP",9,"Y",{"$f":"CONCATENATE(LEFT(O521,4),N521,MID(O521,5,999))","v":"NL669395 OGBM KRUISWEG HOOFDDORP"}]
[null,null,null,null,null,null,null,null,null,null,null,"BU NORTHERN","NETHERLANDS",9396,"NL67 OGBM CAPELLE AAN DEN IJSS",9,"Y","NL679396 OGBM CAPELLE AAN DEN IJSS"]
[null,null,null,null,null,null,null,null,null,null,null,"BU NORTHERN","NETHERLANDS",9397,"NL68 OGBM BOGARDEIND GELDROP",9,"Y","NL689397 OGBM BOGARDEIND GELDROP"]
[null,null,null,null,null,null,null,null,null,null,null,"BU NORTHERN","NETHERLANDS",9398,"NL69 OGBM MARQUETTE HEEMSKERK",9,"Y","NL699398 OGBM MARQUETTE HEEMSKERK"]
[null,null,null,null,null,null,null,null,null,null,null,"BU NORTHERN","NETHERLANDS",9399,"NL70 OGBM VAN ALPHENSTRAAT ZAN",9,"Y","NL709399 OGBM VAN ALPHENSTRAAT ZAN"]
[null,null,null,null,null,null,null,null,null,null,null,"BU NORTHERN","NETHERLANDS","0662","NL71 NH AMERSFOORT",0,"Y","NL710662 NH AMERSFOORT"]
[null,null,null,null,null,null,null,null,null,null,null,"BU NORTHERN","NETHERLANDS","0623","NL72 DAM 9 B.V.",0,"Y","NL720623 DAM 9 B.V."]
[null,null,null,null,null,null,null,null,null,null,null,"MEXICO&CARIBBEAN","PANAMA",9368,"PA01 CS PANAMA",9,"Y","PA019368 CS PANAMA"]
[null,null,null,null,null,null,null,null,null,null,null,"BU NORTHERN","POLAND","9348","PL02 CS POLAND",9,"Y","PL029348 CS POLAND"]
[null,null,null,null,null,null,null,null,null,null,null,"BU SOUTHERN","PORTUGAL",9878,"PT01 TREASURY PORTUGAL",9,"Y","PT019878 TREASURY PORTUGAL"]
[null,null,null,null,null,null,null,null,null,null,null,"BU SOUTHERN","PORTUGAL",9880,"PT01 NH WORLD PORTUGAL",9,"Y","PT019880 NH WORLD PORTUGAL"]
[null,null,null,null,null,null,null,null,null,null,null,"BU SOUTHERN","PORTUGAL","0099","PT01 NH LIBERDADE",0,"Y","PT010099 NH LIBERDADE"]
[null,null,null,null,null,null,null,null,null,null,null,"BU SOUTHERN","PORTUGAL","0334","PT01 NH CAMPO GRANDE",0,"Y","PT010334 NH CAMPO GRANDE"]
[null,null,null,null,null,null,null,null,null,null,null,"BU SOUTHERN","PORTUGAL","9601","PT01 CS PORTUGAL",9,"Y","PT019601 CS PORTUGAL"]
[null,null,null,null,null,null,null,null,null,null,null,"BU NORTHERN","ROMANIA",9865,"RO02 TREASURY ROMANIA",9,"Y","RO029865 TREASURY ROMANIA"]
[null,null,null,null,null,null,null,null,null,null,null,"BU NORTHERN","ROMANIA",9845,"RO02 NH WORLD ROMANIA",9,"Y","RO029845 NH WORLD ROMANIA"]
[null,null,null,null,null,null,null,null,null,null,null,"BU NORTHERN","ROMANIA","0330","RO02 NH TIMISOARA",0,"Y","RO020330 NH TIMISOARA"]
[null,null,null,null,null,null,null,null,null,null,null,"BU NORTHERN","ROMANIA",9335,"RO02 CS BLACK SEA",9,"Y","RO029335 CS BLACK SEA"]
[null,null,null,null,null,null,null,null,null,null,null,"BU NORTHERN","UK",9896,"UK02 TREASURY GREAT BRITAIN",9,"Y",{"$f":"CONCATENATE(LEFT(O539,4),N539,MID(O539,5,999))","v":"UK029896 TREASURY GREAT BRITAIN"}]
[null,null,null,null,null,null,null,null,null,null,null,"BU NORTHERN","UK",9893,"UK02 NH WORLD GREAT BRITAIN",9,"Y","UK029893 NH WORLD GREAT BRITAIN"]
[null,null,null,null,null,null,null,null,null,null,null,"BU NORTHERN","UK","0751","UK02 NH KENSINGTON",0,"Y","UK020751 NH KENSINGTON"]
[null,null,null,null,null,null,null,null,null,null,null,"BU NORTHERN","UK",9876,"UK02 CS GREAT BRITAIN",9,"Y","UK029876 CS GREAT BRITAIN"]
[null,null,null,null,null,null,null,null,null,null,null,"ROYAL","US",9695,"US01SERVICIOS CENTRALES USA ROYAL",9,"Y","US019695SERVICIOS CENTRALES USA ROYAL"]
[null,null,null,null,null,null,null,null,null,null,null,"BU SOUTHERN","US","0774","US02NH NY JOLLY MADISON TOWERS",0,"Y","US020774NH NY JOLLY MADISON TOWERS"]
[null,null,null,null,null,null,null,null,null,null,null,"BU SOUTHERN","US","0774","US02NH NY JOLLY MADISON TOWERS",0,"Y","US040629 NH JOLLY MADISON TOWERS "]
[null,null,null,null,null,null,null,null,null,null,null,"BU SOUTHERN","US","9699","ROYAL HOTELS INTERNATIONAL LATIN AMERICAN INC","9","Y","ROYA9699L HOTELS INTERNATIONAL LATIN AMERICAN INC"]
[null,null,null,null,null,null,null,null,null,null,null,"MERCOSUR","URUGUAY",9507,"UY01 CS URUGUAY",9,"Y","UY019507 CS URUGUAY"]
[null,null,null,null,null,null,null,null,null,null,null,"MERCOSUR","URUGUAY",9862,"UY02 TREASURY URUGUAY",9,"Y","UY029862 TREASURY URUGUAY"]
[null,null,null,null,null,null,null,null,null,null,null,"MERCOSUR","URUGUAY","0167","UY02 NH COLUMBIA",0,"Y","UY020167 NH COLUMBIA"]
[null,null,null,null,null,null,null,null,null,null,null,"MERCOSUR","URUGUAY",9842,"UY02 H WORLD URUGUAY",9,"Y","UY029842 H WORLD URUGUAY"]

{"sheet":"Cover","index":1,"n_rows":28,"n_cols":4,"rows_kept":28,"cut":false,"hidden":false,"merged":[[17,0,17,1],[3,0,3,9],[5,0,5,2],[6,0,6,2],[7,0,7,2],[8,0,8,2],[10,0,10,2],[11,0,11,1],[12,0,12,1],[13,0,13,1],[14,0,14,1],[15,0,15,1],[28,0,28,8],[18,0,18,1],[19,0,19,1],[22,0,22,1],[24,0,24,1],[27,0,27,1],[27,2,27,8]]}
[]
[null,null,null,"FIXED ASSETS REQUEST FORM"]
[]
["The requestor must fill in the Cover at the beginning, taking into account which fields are mandatory, optional or if SSC Adm. is in charge of completing them"]
[]
["Mandatory fields"]
["Optional fields"]
["   Fields to complete by SSC"]
["Drop down lists / Non-editable fields"]
[]
["Requestor "]
["Name and Surname"]
["Business Unit",null,"MEXICO",{"$f":"IF(C13=\"BU NORTHERN\",\"BUNORTHERN\",IF(C13=\"BU SOUTHERN\",\"BUSOUTHERN\",IF(C13=\"CORPORATE\",\"BUSOUTHERN\",CONCATENATE(\"BU\",C13))))","v":"BUMEXICO"}]
["Country",null,"MEXICO"]
["Hotel",null,"MX029476 OPERADORA MEXICO"]
["Company Code",null,{"$f":"IFERROR(VLOOKUP($C$15,'MD Companies Centers'!#REF!,3,FALSE),\"\")","v":""}]
["Business Area",null,{"$f":"IFERROR(VLOOKUP($C$15,'MD Companies Centers'!#REF!,2,FALSE),\"\")","v":""}]
["Department"]
["Position"]
["Currency",null,"EUR",{"$f":"CONCATENATE(D13,\"CURRENCY\")","v":"BUMEXICOCURRENCY"}]
[]
[]
["Request Date"]
[]
["Request for"]
[]
[]
["Comments"]

{"sheet":"Creation","index":2,"n_rows":59,"n_cols":32,"rows_kept":59,"cut":false,"hidden":false,"merged":[[2,21,2,27]]}
[]
[null,null,null,null,null,null,"ASSET CREATION"]
[]
["*Note"]
["(1) In case the requestor wants to post an invoice against an asset file already created, the requestor must fill in the field Asset number (marked in green colour) informing about the number of the existing asset file in SAP."]
["(2)  In case of Capitalization, when the final asset receives value from the asset under construcction, these fields are not mandatory. The requestor must inform in Comments field, that the asset will be capitalized through asset under construction."]
["(3)  Only fill PORTUGAL"]
[null,null,null,null,null,null,null,null,null,null,null,null,null,null,null,"Book Depr",null,null,"Fiscal Depr"]
["Asset Class","Number of similar asset","FAMA number (Inventory number)*(3)","Quantity","Unit of measurement","Company Code","Hotel Name","B.A","Center (Plant)","Location","Personnel number","Serial number","Evaluation group 2 (3*)","Buildings (Evaluation group 1*)\n*Building where the asset is located","Capitalization Date* \n* The date when the asset must start its depreciation","UseLife  (Years) * Mandatory if the useful life is diferent from SAP","Period (Months)","Deprn Key","UseLife  (Years)","Period (Months)","Deprn Key","Vendor * (2)","Invoice number *(2)","Original Value * (2)","Currency","Tax code","New Fixed Asset (new/used)","Description ","Asset number* (1)","Lock Asset","Delete Asset","Additional Comments from BU"]
[null,null,null,null,null,{"$f":"IF(H10=\"\",\"\",VLOOKUP(H10,'MD Companies Centers'!$A:$C,3,FALSE))","v":""},{"$f":"IF(H10=\"\",\"\",(VLOOKUP(H10,'MD Companies Centers'!$A:$B,2,FALSE)))","v":""},null,{"$f":"IF(H10=\"\",\"\",(VLOOKUP(H10,'MD Companies Centers'!$A:$B,1,FALSE)))","v":""}]
[null,null,null,null,null,{"$f":"IF(H11=\"\",\"\",VLOOKUP(H11,'MD Companies Centers'!$A:$C,3,FALSE))","v":""},{"$f":"IF(H11=\"\",\"\",(VLOOKUP(H11,'MD Companies Centers'!$A:$B,2,FALSE)))","v":""},null,{"$f":"IF(H11=\"\",\"\",(VLOOKUP(H11,'MD Companies Centers'!$A:$B,1,FALSE)))","v":""}]
[null,null,null,null,null,{"$f":"IF(H12=\"\",\"\",VLOOKUP(H12,'MD Companies Centers'!$A:$C,3,FALSE))","v":""},{"$f":"IF(H12=\"\",\"\",(VLOOKUP(H12,'MD Companies Centers'!$A:$B,2,FALSE)))","v":""},null,{"$f":"IF(H12=\"\",\"\",(VLOOKUP(H12,'MD Companies Centers'!$A:$B,1,FALSE)))","v":""}]
[null,null,null,null,"ST-Piece",{"$f":"IF(H13=\"\",\"\",VLOOKUP(H13,'MD Companies Centers'!$A:$C,3,FALSE))","v":""},{"$f":"IF(H13=\"\",\"\",(VLOOKUP(H13,'MD Companies Centers'!$A:$B,2,FALSE)))","v":""},null,{"$f":"IF(H13=\"\",\"\",(VLOOKUP(H13,'MD Companies Centers'!$A:$B,1,FALSE)))","v":""}]
[null,null,null,null,"ST-Piece",{"$f":"IF(H14=\"\",\"\",VLOOKUP(H14,'MD Companies Centers'!$A:$C,3,FALSE))","v":""},{"$f":"IF(H14=\"\",\"\",(VLOOKUP(H14,'MD Companies Centers'!$A:$B,2,FALSE)))","v":""},null,{"$f":"IF(H14=\"\",\"\",(VLOOKUP(H14,'MD Companies Centers'!$A:$B,1,FALSE)))","v":""}]
[null,null,null,null,"ST-Piece",{"$f":"IF(H15=\"\",\"\",VLOOKUP(H15,'MD Companies Centers'!$A:$C,3,FALSE))","v":""},{"$f":"IF(H15=\"\",\"\",(VLOOKUP(H15,'MD Companies Centers'!$A:$B,2,FALSE)))","v":""},null,{"$f":"IF(H15=\"\",\"\",(VLOOKUP(H15,'MD Companies Centers'!$A:$B,1,FALSE)))","v":""}]
[null,null,null,null,"ST-Piece",{"$f":"IF(H16=\"\",\"\",VLOOKUP(H16,'MD Companies Centers'!$A:$C,3,FALSE))","v":""},{"$f":"IF(H16=\"\",\"\",(VLOOKUP(H16,'MD Companies Centers'!$A:$B,2,FALSE)))","v":""},null,{"$f":"IF(H16=\"\",\"\",(VLOOKUP(H16,'MD Companies Centers'!$A:$B,1,FALSE)))","v":""}]
[null,null,null,null,"ST-Piece",{"$f":"IF(H17=\"\",\"\",VLOOKUP(H17,'MD Companies Centers'!$A:$C,3,FALSE))","v":""},{"$f":"IF(H17=\"\",\"\",(VLOOKUP(H17,'MD Companies Centers'!$A:$B,2,FALSE)))","v":""},null,{"$f":"IF(H17=\"\",\"\",(VLOOKUP(H17,'MD Companies Centers'!$A:$B,1,FALSE)))","v":""}]
[null,null,null,null,"ST-Piece",{"$f":"IF(H18=\"\",\"\",VLOOKUP(H18,'MD Companies Centers'!$A:$C,3,FALSE))","v":""},{"$f":"IF(H18=\"\",\"\",(VLOOKUP(H18,'MD Companies Centers'!$A:$B,2,FALSE)))","v":""},null,{"$f":"IF(H18=\"\",\"\",(VLOOKUP(H18,'MD Companies Centers'!$A:$B,1,FALSE)))","v":""}]
[null,null,null,null,"ST-Piece",{"$f":"IF(H19=\"\",\"\",VLOOKUP(H19,'MD Companies Centers'!$A:$C,3,FALSE))","v":""},{"$f":"IF(H19=\"\",\"\",(VLOOKUP(H19,'MD Companies Centers'!$A:$B,2,FALSE)))","v":""},null,{"$f":"IF(H19=\"\",\"\",(VLOOKUP(H19,'MD Companies Centers'!$A:$B,1,FALSE)))","v":""}]
[null,null,null,null,"ST-Piece",{"$f":"IF(H20=\"\",\"\",VLOOKUP(H20,'MD Companies Centers'!$A:$C,3,FALSE))","v":""},{"$f":"IF(H20=\"\",\"\",(VLOOKUP(H20,'MD Companies Centers'!$A:$B,2,FALSE)))","v":""},null,{"$f":"IF(H20=\"\",\"\",(VLOOKUP(H20,'MD Companies Centers'!$A:$B,1,FALSE)))","v":""}]
[null,null,null,null,"ST-Piece",{"$f":"IF(H21=\"\",\"\",VLOOKUP(H21,'MD Companies Centers'!$A:$C,3,FALSE))","v":""},{"$f":"IF(H21=\"\",\"\",(VLOOKUP(H21,'MD Companies Centers'!$A:$B,2,FALSE)))","v":""},null,{"$f":"IF(H21=\"\",\"\",(VLOOKUP(H21,'MD Companies Centers'!$A:$B,1,FALSE)))","v":""}]
[null,null,null,null,"ST-Piece",{"$f":"IF(H22=\"\",\"\",VLOOKUP(H22,'MD Companies Centers'!$A:$C,3,FALSE))","v":""},{"$f":"IF(H22=\"\",\"\",(VLOOKUP(H22,'MD Companies Centers'!$A:$B,2,FALSE)))","v":""},null,{"$f":"IF(H22=\"\",\"\",(VLOOKUP(H22,'MD Companies Centers'!$A:$B,1,FALSE)))","v":""}]
[null,null,null,null,"ST-Piece",{"$f":"IF(H23=\"\",\"\",VLOOKUP(H23,'MD Companies Centers'!$A:$C,3,FALSE))","v":""},{"$f":"IF(H23=\"\",\"\",(VLOOKUP(H23,'MD Companies Centers'!$A:$B,2,FALSE)))","v":""},null,{"$f":"IF(H23=\"\",\"\",(VLOOKUP(H23,'MD Companies Centers'!$A:$B,1,FALSE)))","v":""}]
[null,null,null,null,"ST-Piece",{"$f":"IF(H24=\"\",\"\",VLOOKUP(H24,'MD Companies Centers'!$A:$C,3,FALSE))","v":""},{"$f":"IF(H24=\"\",\"\",(VLOOKUP(H24,'MD Companies Centers'!$A:$B,2,FALSE)))","v":""},null,{"$f":"IF(H24=\"\",\"\",(VLOOKUP(H24,'MD Companies Centers'!$A:$B,1,FALSE)))","v":""}]
[null,null,null,null,"ST-Piece",{"$f":"IF(H25=\"\",\"\",VLOOKUP(H25,'MD Companies Centers'!$A:$C,3,FALSE))","v":""},{"$f":"IF(H25=\"\",\"\",(VLOOKUP(H25,'MD Companies Centers'!$A:$B,2,FALSE)))","v":""},null,{"$f":"IF(H25=\"\",\"\",(VLOOKUP(H25,'MD Companies Centers'!$A:$B,1,FALSE)))","v":""}]
[null,null,null,null,"ST-Piece",{"$f":"IF(H26=\"\",\"\",VLOOKUP(H26,'MD Companies Centers'!$A:$C,3,FALSE))","v":""},{"$f":"IF(H26=\"\",\"\",(VLOOKUP(H26,'MD Companies Centers'!$A:$B,2,FALSE)))","v":""},null,{"$f":"IF(H26=\"\",\"\",(VLOOKUP(H26,'MD Companies Centers'!$A:$B,1,FALSE)))","v":""}]
[null,null,null,null,"ST-Piece",{"$f":"IF(H27=\"\",\"\",VLOOKUP(H27,'MD Companies Centers'!$A:$C,3,FALSE))","v":""},{"$f":"IF(H27=\"\",\"\",(VLOOKUP(H27,'MD Companies Centers'!$A:$B,2,FALSE)))","v":""},null,{"$f":"IF(H27=\"\",\"\",(VLOOKUP(H27,'MD Companies Centers'!$A:$B,1,FALSE)))","v":""}]
[null,null,null,null,"ST-Piece",{"$f":"IF(H28=\"\",\"\",VLOOKUP(H28,'MD Companies Centers'!$A:$C,3,FALSE))","v":""},{"$f":"IF(H28=\"\",\"\",(VLOOKUP(H28,'MD Companies Centers'!$A:$B,2,FALSE)))","v":""},null,{"$f":"IF(H28=\"\",\"\",(VLOOKUP(H28,'MD Companies Centers'!$A:$B,1,FALSE)))","v":""}]
[null,null,null,null,"ST-Piece",{"$f":"IF(H29=\"\",\"\",VLOOKUP(H29,'MD Companies Centers'!$A:$C,3,FALSE))","v":""},{"$f":"IF(H29=\"\",\"\",(VLOOKUP(H29,'MD Companies Centers'!$A:$B,2,FALSE)))","v":""},null,{"$f":"IF(H29=\"\",\"\",(VLOOKUP(H29,'MD Companies Centers'!$A:$B,1,FALSE)))","v":""}]
[null,null,null,null,"ST-Piece",{"$f":"IF(H30=\"\",\"\",VLOOKUP(H30,'MD Companies Centers'!$A:$C,3,FALSE))","v":""},{"$f":"IF(H30=\"\",\"\",(VLOOKUP(H30,'MD Companies Centers'!$A:$B,2,FALSE)))","v":""},null,{"$f":"IF(H30=\"\",\"\",(VLOOKUP(H30,'MD Companies Centers'!$A:$B,1,FALSE)))","v":""}]
[null,null,null,null,"ST-Piece",{"$f":"IF(H31=\"\",\"\",VLOOKUP(H31,'MD Companies Centers'!$A:$C,3,FALSE))","v":""},{"$f":"IF(H31=\"\",\"\",(VLOOKUP(H31,'MD Companies Centers'!$A:$B,2,FALSE)))","v":""},null,{"$f":"IF(H31=\"\",\"\",(VLOOKUP(H31,'MD Companies Centers'!$A:$B,1,FALSE)))","v":""}]
[null,null,null,null,"ST-Piece",{"$f":"IF(H32=\"\",\"\",VLOOKUP(H32,'MD Companies Centers'!$A:$C,3,FALSE))","v":""},{"$f":"IF(H32=\"\",\"\",(VLOOKUP(H32,'MD Companies Centers'!$A:$B,2,FALSE)))","v":""},null,{"$f":"IF(H32=\"\",\"\",(VLOOKUP(H32,'MD Companies Centers'!$A:$B,1,FALSE)))","v":""}]
[null,null,null,null,"ST-Piece",{"$f":"IF(H33=\"\",\"\",VLOOKUP(H33,'MD Companies Centers'!$A:$C,3,FALSE))","v":""},{"$f":"IF(H33=\"\",\"\",(VLOOKUP(H33,'MD Companies Centers'!$A:$B,2,FALSE)))","v":""},null,{"$f":"IF(H33=\"\",\"\",(VLOOKUP(H33,'MD Companies Centers'!$A:$B,1,FALSE)))","v":""}]
[null,null,null,null,"ST-Piece",{"$f":"IF(H34=\"\",\"\",VLOOKUP(H34,'MD Companies Centers'!$A:$C,3,FALSE))","v":""},{"$f":"IF(H34=\"\",\"\",(VLOOKUP(H34,'MD Companies Centers'!$A:$B,2,FALSE)))","v":""},null,{"$f":"IF(H34=\"\",\"\",(VLOOKUP(H34,'MD Companies Centers'!$A:$B,1,FALSE)))","v":""}]
[null,null,null,null,"ST-Piece",{"$f":"IF(H35=\"\",\"\",VLOOKUP(H35,'MD Companies Centers'!$A:$C,3,FALSE))","v":""},{"$f":"IF(H35=\"\",\"\",(VLOOKUP(H35,'MD Companies Centers'!$A:$B,2,FALSE)))","v":""},null,{"$f":"IF(H35=\"\",\"\",(VLOOKUP(H35,'MD Companies Centers'!$A:$B,1,FALSE)))","v":""}]
[null,null,null,null,"ST-Piece",{"$f":"IF(H36=\"\",\"\",VLOOKUP(H36,'MD Companies Centers'!$A:$C,3,FALSE))","v":""},{"$f":"IF(H36=\"\",\"\",(VLOOKUP(H36,'MD Companies Centers'!$A:$B,2,FALSE)))","v":""},null,{"$f":"IF(H36=\"\",\"\",(VLOOKUP(H36,'MD Companies Centers'!$A:$B,1,FALSE)))","v":""}]
[null,null,null,null,"ST-Piece",{"$f":"IF(H37=\"\",\"\",VLOOKUP(H37,'MD Companies Centers'!$A:$C,3,FALSE))","v":""},{"$f":"IF(H37=\"\",\"\",(VLOOKUP(H37,'MD Companies Centers'!$A:$B,2,FALSE)))","v":""},null,{"$f":"IF(H37=\"\",\"\",(VLOOKUP(H37,'MD Companies Centers'!$A:$B,1,FALSE)))","v":""}]
[null,null,null,null,"ST-Piece",{"$f":"IF(H38=\"\",\"\",VLOOKUP(H38,'MD Companies Centers'!$A:$C,3,FALSE))","v":""},{"$f":"IF(H38=\"\",\"\",(VLOOKUP(H38,'MD Companies Centers'!$A:$B,2,FALSE)))","v":""},null,{"$f":"IF(H38=\"\",\"\",(VLOOKUP(H38,'MD Companies Centers'!$A:$B,1,FALSE)))","v":""}]
[null,null,null,null,"ST-Piece",{"$f":"IF(H39=\"\",\"\",VLOOKUP(H39,'MD Companies Centers'!$A:$C,3,FALSE))","v":""},{"$f":"IF(H39=\"\",\"\",(VLOOKUP(H39,'MD Companies Centers'!$A:$B,2,FALSE)))","v":""},null,{"$f":"IF(H39=\"\",\"\",(VLOOKUP(H39,'MD Companies Centers'!$A:$B,1,FALSE)))","v":""}]
[null,null,null,null,"ST-Piece",{"$f":"IF(H40=\"\",\"\",VLOOKUP(H40,'MD Companies Centers'!$A:$C,3,FALSE))","v":""},{"$f":"IF(H40=\"\",\"\",(VLOOKUP(H40,'MD Companies Centers'!$A:$B,2,FALSE)))","v":""},null,{"$f":"IF(H40=\"\",\"\",(VLOOKUP(H40,'MD Companies Centers'!$A:$B,1,FALSE)))","v":""}]
[null,null,null,null,"ST-Piece",{"$f":"IF(H41=\"\",\"\",VLOOKUP(H41,'MD Companies Centers'!$A:$C,3,FALSE))","v":""},{"$f":"IF(H41=\"\",\"\",(VLOOKUP(H41,'MD Companies Centers'!$A:$B,2,FALSE)))","v":""},null,{"$f":"IF(H41=\"\",\"\",(VLOOKUP(H41,'MD Companies Centers'!$A:$B,1,FALSE)))","v":""}]
[null,null,null,null,"ST-Piece",{"$f":"IF(H42=\"\",\"\",VLOOKUP(H42,'MD Companies Centers'!$A:$C,3,FALSE))","v":""},{"$f":"IF(H42=\"\",\"\",(VLOOKUP(H42,'MD Companies Centers'!$A:$B,2,FALSE)))","v":""},null,{"$f":"IF(H42=\"\",\"\",(VLOOKUP(H42,'MD Companies Centers'!$A:$B,1,FALSE)))","v":""}]
[null,null,null,null,"ST-Piece",{"$f":"IF(H43=\"\",\"\",VLOOKUP(H43,'MD Companies Centers'!$A:$C,3,FALSE))","v":""},{"$f":"IF(H43=\"\",\"\",(VLOOKUP(H43,'MD Companies Centers'!$A:$B,2,FALSE)))","v":""},null,{"$f":"IF(H43=\"\",\"\",(VLOOKUP(H43,'MD Companies Centers'!$A:$B,1,FALSE)))","v":""}]
[null,null,null,null,"ST-Piece",{"$f":"IF(H44=\"\",\"\",VLOOKUP(H44,'MD Companies Centers'!$A:$C,3,FALSE))","v":""},{"$f":"IF(H44=\"\",\"\",(VLOOKUP(H44,'MD Companies Centers'!$A:$B,2,FALSE)))","v":""},null,{"$f":"IF(H44=\"\",\"\",(VLOOKUP(H44,'MD Companies Centers'!$A:$B,1,FALSE)))","v":""}]
[null,null,null,null,"ST-Piece",{"$f":"IF(H45=\"\",\"\",VLOOKUP(H45,'MD Companies Centers'!$A:$C,3,FALSE))","v":""},{"$f":"IF(H45=\"\",\"\",(VLOOKUP(H45,'MD Companies Centers'!$A:$B,2,FALSE)))","v":""},null,{"$f":"IF(H45=\"\",\"\",(VLOOKUP(H45,'MD Companies Centers'!$A:$B,1,FALSE)))","v":""}]
[null,null,null,null,"ST-Piece",{"$f":"IF(H46=\"\",\"\",VLOOKUP(H46,'MD Companies Centers'!$A:$C,3,FALSE))","v":""},{"$f":"IF(H46=\"\",\"\",(VLOOKUP(H46,'MD Companies Centers'!$A:$B,2,FALSE)))","v":""},null,{"$f":"IF(H46=\"\",\"\",(VLOOKUP(H46,'MD Companies Centers'!$A:$B,1,FALSE)))","v":""}]
[null,null,null,null,"ST-Piece",{"$f":"IF(H47=\"\",\"\",VLOOKUP(H47,'MD Companies Centers'!$A:$C,3,FALSE))","v":""},{"$f":"IF(H47=\"\",\"\",(VLOOKUP(H47,'MD Companies Centers'!$A:$B,2,FALSE)))","v":""},null,{"$f":"IF(H47=\"\",\"\",(VLOOKUP(H47,'MD Companies Centers'!$A:$B,1,FALSE)))","v":""}]
[null,null,null,null,"ST-Piece",{"$f":"IF(H48=\"\",\"\",VLOOKUP(H48,'MD Companies Centers'!$A:$C,3,FALSE))","v":""},{"$f":"IF(H48=\"\",\"\",(VLOOKUP(H48,'MD Companies Centers'!$A:$B,2,FALSE)))","v":""},null,{"$f":"IF(H48=\"\",\"\",(VLOOKUP(H48,'MD Companies Centers'!$A:$B,1,FALSE)))","v":""}]
[null,null,null,null,"ST-Piece",{"$f":"IF(H49=\"\",\"\",VLOOKUP(H49,'MD Companies Centers'!$A:$C,3,FALSE))","v":""},{"$f":"IF(H49=\"\",\"\",(VLOOKUP(H49,'MD Companies Centers'!$A:$B,2,FALSE)))","v":""},null,{"$f":"IF(H49=\"\",\"\",(VLOOKUP(H49,'MD Companies Centers'!$A:$B,1,FALSE)))","v":""}]
[null,null,null,null,"ST-Piece",{"$f":"IF(H50=\"\",\"\",VLOOKUP(H50,'MD Companies Centers'!$A:$C,3,FALSE))","v":""},{"$f":"IF(H50=\"\",\"\",(VLOOKUP(H50,'MD Companies Centers'!$A:$B,2,FALSE)))","v":""},null,{"$f":"IF(H50=\"\",\"\",(VLOOKUP(H50,'MD Companies Centers'!$A:$B,1,FALSE)))","v":""}]
[null,null,null,null,"ST-Piece",{"$f":"IF(H51=\"\",\"\",VLOOKUP(H51,'MD Companies Centers'!$A:$C,3,FALSE))","v":""},{"$f":"IF(H51=\"\",\"\",(VLOOKUP(H51,'MD Companies Centers'!$A:$B,2,FALSE)))","v":""},null,{"$f":"IF(H51=\"\",\"\",(VLOOKUP(H51,'MD Companies Centers'!$A:$B,1,FALSE)))","v":""}]
[null,null,null,null,"ST-Piece",{"$f":"IF(H52=\"\",\"\",VLOOKUP(H52,'MD Companies Centers'!$A:$C,3,FALSE))","v":""},{"$f":"IF(H52=\"\",\"\",(VLOOKUP(H52,'MD Companies Centers'!$A:$B,2,FALSE)))","v":""},null,{"$f":"IF(H52=\"\",\"\",(VLOOKUP(H52,'MD Companies Centers'!$A:$B,1,FALSE)))","v":""}]
[null,null,null,null,"ST-Piece",{"$f":"IF(H53=\"\",\"\",VLOOKUP(H53,'MD Companies Centers'!$A:$C,3,FALSE))","v":""},{"$f":"IF(H53=\"\",\"\",(VLOOKUP(H53,'MD Companies Centers'!$A:$B,2,FALSE)))","v":""},null,{"$f":"IF(H53=\"\",\"\",(VLOOKUP(H53,'MD Companies Centers'!$A:$B,1,FALSE)))","v":""}]
[null,null,null,null,"ST-Piece",{"$f":"IF(H54=\"\",\"\",VLOOKUP(H54,'MD Companies Centers'!$A:$C,3,FALSE))","v":""},{"$f":"IF(H54=\"\",\"\",(VLOOKUP(H54,'MD Companies Centers'!$A:$B,2,FALSE)))","v":""},null,{"$f":"IF(H54=\"\",\"\",(VLOOKUP(H54,'MD Companies Centers'!$A:$B,1,FALSE)))","v":""}]
[null,null,null,null,"ST-Piece",{"$f":"IF(H55=\"\",\"\",VLOOKUP(H55,'MD Companies Centers'!$A:$C,3,FALSE))","v":""},{"$f":"IF(H55=\"\",\"\",(VLOOKUP(H55,'MD Companies Centers'!$A:$B,2,FALSE)))","v":""},null,{"$f":"IF(H55=\"\",\"\",(VLOOKUP(H55,'MD Companies Centers'!$A:$B,1,FALSE)))","v":""}]
[null,null,null,null,"ST-Piece",{"$f":"IF(H56=\"\",\"\",VLOOKUP(H56,'MD Companies Centers'!$A:$C,3,FALSE))","v":""},{"$f":"IF(H56=\"\",\"\",(VLOOKUP(H56,'MD Companies Centers'!$A:$B,2,FALSE)))","v":""},null,{"$f":"IF(H56=\"\",\"\",(VLOOKUP(H56,'MD Companies Centers'!$A:$B,1,FALSE)))","v":""}]
[]
[]
["Comments"]

{"sheet":"MD Companies Centers","index":3,"n_rows":573,"n_cols":5,"rows_kept":573,"cut":false,"hidden":true,"merged":[]}
["*Update based on MD Company Centers v132",null,5,2,3]
["Business Area","CURRENT Center Name SAP","Company Code SAP ","BU","Country Name"]
[9827,"CO01 TREASURY  COLOMBIA","CO01","AMERICA_CO_EC","COLOMBIA"]
[9942,"CO20 COPERAMA COLOMBIA-NH","CO20","COPERAMA","COLOMBIA"]
[9943,"CO20 COPERAMA COLOMBIA-ASOCIAD","CO20","COPERAMA","COLOMBIA"]
[9944,"CO20 COPERAMA COLOMBIA-SSCC","CO20","COPERAMA","COLOMBIA"]
[9505,"DE01 TREASURY GERMANY","DE01","BU NORTHERN","GERMANY"]
[9857,"DE17 COPERAMA CENTRAL EUR-NH","DE17","COPERAMA","GERMANY"]
[9858,"DE17 COPERAMA CE-THIRD PARTY","DE17","COPERAMA","GERMANY"]
[9859,"DE17 COPERAMA CENTRAL EUROPE","DE17","COPERAMA","GERMANY"]
[120,"IE01ANANTARA THE MARKER DU GL","IE01","BU NORTHERN","IRELAND"]
[96,"IE02 THE MARKER ANANTARA LTD","IE02","BU NORTHERN","IRELAND"]
[70,"IE03ANANTARA THE MARKER DUBLIN","IE03","BU NORTHERN","IRELAND"]
[9095,"IE03 NH TREASURY IRELAND","IE03","BU NORTHERN","IRELAND"]
[9129,"IE03 NH WORLD IRELAND","IE03","BU NORTHERN","IRELAND"]
[990,"IT01 NH COLLECTION VERONA","IT01","BU SOUTHERN","ITALY"]
[9780,"IT01 TREASURY ITALY","IT01","BU SOUTHERN","ITALY"]
[9799,"IT07 COPERAMA ITALIA","IT07","COPERAMA","ITALY"]
[9855,"IT07 COPERAMA ITALIA-NH","IT07","COPERAMA","ITALY"]
[9856,"IT07 COPERAMA ITALIA-ASOCIADO","IT07","COPERAMA","ITALY"]
[9650,"MX02 TREASURY MEXICO","MX02","AMERICA_ME_CU","MEXICO"]
[9992,"MX32 COPERAMA MEXICO - NH","MX32","COPERAMA","MEXICO"]
[9994,"MX32 COPERAMA MX ASOCIADOS","MX32","COPERAMA","MEXICO"]
[9995,"MX32 COPERAMA MEXICO","MX32","COPERAMA","MEXICO"]
[9920,"NL03 TREASURY NETHERLANDS","NL03","BU NORTHERN","NETHERLANDS"]
[9636,"NL54 COPERAMA BENELUX-NH","NL54","COPERAMA","NETHERLANDS"]
[9637,"NL54 COPERAMA BENELUX-ASSOC.","NL54","COPERAMA","NETHERLANDS"]
[9973,"NL54 COPERAMA BENELUX","NL54","COPERAMA","NETHERLANDS"]
[9015,"ES01 TREASURY CORPORATE","ES01","CORPORATE","SPAIN"]
[9050,"ES10 SSCC TREASURY SPAIN","ES10","BU SOUTHERN","SPAIN"]
[9159,"ES44COPERAMA HOLDING","ES44","COPERAMA","SPAIN"]
[9596,"ES44COPERAMA HOLDING-NH","ES44","COPERAMA","SPAIN"]
[9597,"ES44COPERAMA HOLDING -ASOCIADO","ES44","COPERAMA","SPAIN"]
[9598,"ES88 COPERAMA SPAIN SL","ES88","COPERAMA","SPAIN"]
[9634,"ES88 COPERAMA SPAIN SL","ES88","COPERAMA","SPAIN"]
[9635,"ES88 COPERAMA SPAIN SL","ES88","COPERAMA","SPAIN"]
[160,"AR01 NH FLORIDA","AR01","AMERICA_AR_UY","ARGENTINA"]
[161,"AR01 NH COLLECTION JOUSTEN","AR01","AMERICA_AR_UY","ARGENTINA"]
[162,"AR01 NH LATINO","AR01","AMERICA_AR_UY","ARGENTINA"]
[163,"AR01 NH PANORAMA","AR01","AMERICA_AR_UY","ARGENTINA"]
[164,"AR01 NH URBANO","AR01","AMERICA_AR_UY","ARGENTINA"]
[169,"AR01 NH MENDOZA CORDILLERA","AR01","AMERICA_AR_UY","ARGENTINA"]
[9509,"AR01 CS ARGENTINA","AR01","AMERICA_AR_UY","ARGENTINA"]
[9875,"AR01 TREASURY ARGENTINA","AR01","AMERICA_AR_UY","ARGENTINA"]
[9883,"AR01 NH WORLD ARGENTINA","AR01","AMERICA_AR_UY","ARGENTINA"]
[9945,"AR01 CS ARGENTINA LATAM","AR01","AMERICA_AR_UY","ARGENTINA"]
[430,"AR03 NH CRILLON","AR03","AMERICA_AR_UY","ARGENTINA"]
[432,"AR04 NH COLLECTION LANCASTER","AR04","AMERICA_AR_UY","ARGENTINA"]
[433,"AR05 NH TANGO","AR05","AMERICA_AR_UY","ARGENTINA"]
[435,"AR06 NH 9 DE JULIO","AR06","AMERICA_AR_UY","ARGENTINA"]
[9437,"AR08 BLACOM","AR08","AMERICA_AR_UY","ARGENTINA"]
[410,"AT01 NH COLLECTIO WIEN ZENTRUM","AT01","BU NORTHERN","AUSTRIA"]
[411,"AT01 NH WIEN BELVEDERE","AT01","BU NORTHERN","AUSTRIA"]
[413,"AT01 NH SALZBURG CITY","AT01","BU NORTHERN","AUSTRIA"]
[414,"AT01 NH VIENNA AIRPORT","AT01","BU NORTHERN","AUSTRIA"]
[415,"AT01 NH WIEN CITY ","AT01","BU NORTHERN","AUSTRIA"]
[657,"AT01 NH DANUBE CITY","AT01","BU NORTHERN","AUSTRIA"]
[833,"AT01 NH GRAZ CITY","AT01","BU NORTHERN","AUSTRIA"]
[9296,"AT01 CS AUSTRIA","AT01","BU NORTHERN","AUSTRIA"]
[9428,"AT01 TREASURY AUSTRIA","AT01","BU NORTHERN","AUSTRIA"]
[9882,"AT01 NH WORLD AUSTRIA","AT01","BU NORTHERN","AUSTRIA"]
[9037,"BE01 TREASURY BELGIUM","BE01","BU NORTHERN","BELGIUM"]
[9297,"BE01 CS BELGIUM","BE01","BU NORTHERN","BELGIUM"]
[9891,"BE01 NH WORLD BELGIUM","BE01","BU NORTHERN","BELGIUM"]
[201,"BE02 NH STEPHANIE","BE02","BU NORTHERN","BELGIUM"]
[202,"BE02 NH BRUSSELS LOUISE","BE02","BU NORTHERN","BELGIUM"]
[203,"BE02 NH BRUSSELS AIRPORT","BE02","BU NORTHERN","BELGIUM"]
[204,"BE02 NH GRAND PLACE ARENBERG","BE02","BU NORTHERN","BELGIUM"]
[242,"BE02 NH COLLECTION BRUSSELS CE","BE02","BU NORTHERN","BELGIUM"]
[345,"BE02 NH GENT BELFORT","BE02","BU NORTHERN","BELGIUM"]
[346,"BE02 NH BRUGGE","BE02","BU NORTHERN","BELGIUM"]
[407,"BE02 NH GENT SINT PIETERS","BE02","BU NORTHERN","BELGIUM"]
[408,"BE02 NH MECHELEN","BE02","BU NORTHERN","BELGIUM"]
[627,"BE02NH CARREFOUR BRUSSELS","BE02","BU NORTHERN","BELGIUM"]
[937,"BE02 NH COLLECT ANTWERP CENTRE","BE02","BU NORTHERN","BELGIUM"]
[940,"BE02 NH BRUSSELS EU BERLAYMONT","BE02","BU NORTHERN","BELGIUM"]
[941,"BE02 NH BRUSSELS BLOOM","BE02","BU NORTHERN","BELGIUM"]
[5760,"BE02 NH COLLECT GRAND SABLON","BE02","BU NORTHERN","BELGIUM"]
[9628,"BE03 JOLLY HOTELS BELGIO SA CS","BE03","BU NORTHERN","BELGIUM"]
[9613,"BE04 IMMO HOTEL BCC N.V.","BE04","BU NORTHERN","BELGIUM"]
[9615,"BE05 IMMO HOTEL BELFORT N.V.","BE05","BU NORTHERN","BELGIUM"]
[9617,"BE06 IMMO HOTEL BRUGGE N.V.","BE06","BU NORTHERN","BELGIUM"]
[9619,"BE07 IMMO HOTEL DIEGEM N.V.","BE07","BU NORTHERN","BELGIUM"]
[9614,"BE08 IMMO HOTEL GENT N.V.","BE08","BU NORTHERN","BELGIUM"]
[9616,"BE09 IMMO HOTEL GP N.V.","BE09","BU NORTHERN","BELGIUM"]
[9622,"BE10 IMMO HOTEL STEPHANIE N.V.","BE10","BU NORTHERN","BELGIUM"]
[9618,"BE11 IMMO HOTEL MECHELEN N.V.","BE11","BU NORTHERN","BELGIUM"]
[9802,"BR01 CS BRASIL","BR01","AMERICA_OTHER","BRASIL"]
[810,"BR03 NH CURITIBA THE FIVE","BR03","AMERICA_OTHER","BRASIL"]
[9508,"CL01 CS CHILE","CL01","AMERICA_CL","CHILE"]
[9872,"CL01TREASURY CHILE","CL01","AMERICA_CL","CHILE"]
[9886,"CL01 NH WORLD CHILE","CL01","AMERICA_CL","CHILE"]
[166,"CL02 NH CIUDAD DE SANTIAGO","CL02","AMERICA_CL","CHILE"]
[9936,"CL02 CS CHILE","CL02","AMERICA_CL","CHILE"]
[9938,"CL02 TREASURY CHILE (NEW)","CL02","AMERICA_CL","CHILE"]
[9939,"CL02 NH WORLD CHILE (NEW)","CL02","AMERICA_CL","CHILE"]
[9633,"CL03 INMOB. FINANCIERA CHILE","CL03","AMERICA_CL","CHILE"]
[667,"CL04 NH COLLECTION PLZ SANTIA","CL04","AMERICA_CL","CHILE"]
[669,"CL04 NH IQUIQUE","CL04","AMERICA_CL","CHILE"]
[670,"CL04 NH ANTOFAGASTA","CL04","AMERICA_CL","CHILE"]
[9696,"CL04 SERVICIOS CENTRALES CHILE","CL04","AMERICA_CL","CHILE"]
[9671,"CL05 HOTELERA NORTE SUR S.A.","CL05","AMERICA_CL","CHILE"]
[9672,"CL06 INMOBILIARIA ROYAL S.A.","CL06","AMERICA_CL","CHILE"]
[9673,"CL07 SOCIEDAD INVERSORA EUROTE","CL07","AMERICA_CL","CHILE"]
[9674,"CO01 SERVICIOS CENTRALES ROYAL","CO01","AMERICA_CO_EC","COLOMBIA"]
[9828,"CO01 NH WORLD COLOMBIA","CO01","AMERICA_CO_EC","COLOMBIA"]
[9931,"CO01 SERVICIOS CENTRALES LATAM","CO01","AMERICA_CO_EC","COLOMBIA"]
[676,"CO03 NH ROYAL METROTEL","CO03","AMERICA_CO_EC","COLOMBIA"]
[677,"CO04 NH ROYAL URBAN 26","CO04","AMERICA_CO_EC","COLOMBIA"]
[678,"CO05 NH ROYAL URBAN 93","CO05","AMERICA_CO_EC","COLOMBIA"]
[679,"CO06 NH ROYAL PAVILLON","CO06","AMERICA_CO_EC","COLOMBIA"]
[680,"CO07 NH COLLECT. ROYAL WTC BO","CO07","AMERICA_CO_EC","COLOMBIA"]
[682,"CO09 NH COLLECTION ROYAL TERRA","CO09","AMERICA_CO_EC","COLOMBIA"]
[683,"CO10 NH COLLECT. ROYAL BOGOTA","CO10","AMERICA_CO_EC","COLOMBIA"]
[684,"CO11 NH COLLECT. ROYAL HACIEN","CO11","AMERICA_CO_EC","COLOMBIA"]
[685,"CO12 NH COLLECT. ROYAL ANDINO","CO12","AMERICA_CO_EC","COLOMBIA"]
[686,"CO13 NH ROYAL LA BOHEME","CO13","AMERICA_CO_EC","COLOMBIA"]
[687,"CO14 NH COLLECT. ROYAL MEDELL","CO14","AMERICA_CO_EC","COLOMBIA"]
[688,"CO15 NH COLLECT. ROYAL SMARTS","CO15","AMERICA_CO_EC","COLOMBIA"]
[689,"CO16 NH ROYAL CALI","CO16","AMERICA_CO_EC","COLOMBIA"]
[690,"CO17 NH ROYAL URBAN CARTAGENA","CO17","AMERICA_CO_EC","COLOMBIA"]
[691,"CO17 NH COLLECT. ROYAL LA MER","CO17","AMERICA_CO_EC","COLOMBIA"]
[9692,"CO18 HR QUANTICA S.A.","CO18","AMERICA_CO_EC","COLOMBIA"]
[9932,"CO19 COMPLEJO MEDELLIN ROYAL-P","CO19","AMERICA_CO_EC","COLOMBIA"]
[9452,"CZ01 CS CZECH REPUBLIC","CZ01","BU NORTHERN","CZECH RPC"]
[9361,"DO02 AGUA MARINA","DO02","AMERICA_OTHER","DOMINICAN RPC"]
[693,"EC01 NH COLLECTION ROYAL QUITO","EC01","AMERICA_CO_EC","ECUADOR"]
[9829,"EC01 TREASURY ECUADOR","EC01","AMERICA_CO_EC","ECUADOR"]
[9830,"EC01 NH WORLD ECUADOR","EC01","AMERICA_CO_EC","ECUADOR"]
[9694,"EC02HOTELES ROYAL DEL ECUADOR","EC02","AMERICA_CO_EC","ECUADOR"]
[753,"FR01 NH NICE","FR01","BU SOUTHERN","FRANCE"]
[758,"FR01 NH LYON AIRPORT","FR01","BU SOUTHERN","FRANCE"]
[826,"FR01 NH COLLECION MARSEILLE","FR01","BU SOUTHERN","FRANCE"]
[835,"FR01 NH TOULOUSE AIRPORT","FR01","BU SOUTHERN","FRANCE"]
[9831,"FR01 CS FRANCE","FR01","BU SOUTHERN","FRANCE"]
[9848,"FR01 NH WORLD FRANCE","FR01","BU SOUTHERN","FRANCE"]
[9868,"FR01 TREASURY FRANCE","FR01","BU SOUTHERN","FRANCE"]
[181,"DE01 NH DUESSELDORF CITY","DE01","BU NORTHERN","GERMANY"]
[182,"DE01 NH DORTMUND","DE01","BU NORTHERN","GERMANY"]
[183,"DE01 NH MUENCHEN OST","DE01","BU NORTHERN","GERMANY"]
[184,"DE01 NH OBERHAUSEN","DE01","BU NORTHERN","GERMANY"]
[185,"DE01 NH KOELN ALTSTADT","DE01","BU NORTHERN","GERMANY"]
[186,"DE01 NH FRANKFURT VILLA","DE01","BU NORTHERN","GERMANY"]
[187,"DE01 NH FRANKFURT AIRPORT","DE01","BU NORTHERN","GERMANY"]
[188,"DE01 NH FRANKFURT AIRPORT WEST","DE01","BU NORTHERN","GERMANY"]
[189,"DE01 NH BERLIN ALEXANDERPLATZ","DE01","BU NORTHERN","GERMANY"]
[190,"DE01 NH COLLECTIO BERLIN MITTE","DE01","BU NORTHERN","GERMANY"]
[191,"DE01 NH BERLIN POTSDAM CC","DE01","BU NORTHERN","GERMANY"]
[192,"DE01 NH BERLIN TREPTOW","DE01","BU NORTHERN","GERMANY"]
[193,"DE01 NH BERLIN KREUZBERG","DE01","BU NORTHERN","GERMANY"]
[194,"DE01 NH BINGEN","DE01","BU NORTHERN","GERMANY"]
[195,"DE01 NH DEGGENDORF","DE01","BU NORTHERN","GERMANY"]
[197,"DE01 NH DESSAU","DE01","BU NORTHERN","GERMANY"]
[198,"DE01 NH BERLIN KURFUERSTENDAMM","DE01","BU NORTHERN","GERMANY"]
[237,"DE01 NH DRESDEN NEUSTADT","DE01","BU NORTHERN","GERMANY"]
[239,"DE01 NH DUESSELDORF CITY NORD","DE01","BU NORTHERN","GERMANY"]
[252,"DE01 NH ERLANGEN","DE01","BU NORTHERN","GERMANY"]
[255,"DE01 NH HAMBURG MITTE","DE01","BU NORTHERN","GERMANY"]
[256,"DE01 NH BERLIN CITY OST","DE01","BU NORTHERN","GERMANY"]
[257,"DE01NH FRANKFURT MOERFELDEN CC","DE01","BU NORTHERN","GERMANY"]
[260,"DE01 NH COLLECTIO HAMBURG CITY","DE01","BU NORTHERN","GERMANY"]
[261,"DE01 NH HORNER RENNBAHN","DE01","BU NORTHERN","GERMANY"]
[262,"DE01 NH HAMBURG ALTONA","DE01","BU NORTHERN","GERMANY"]
[263,"DE01 NH HEIDELBERG","DE01","BU NORTHERN","GERMANY"]
[264,"DE01 NH HEIDENHEIM","DE01","BU NORTHERN","GERMANY"]
[265,"DE01 NH HIRSCHBERG HEIDELBERG","DE01","BU NORTHERN","GERMANY"]
[266,"DE01 NH INGOLSTADT","DE01","BU NORTHERN","GERMANY"]
[268,"DE01 NH LEIPZIG MESSE","DE01","BU NORTHERN","GERMANY"]
[269,"DE01 NH MAGDEBURG","DE01","BU NORTHERN","GERMANY"]
[270,"DE01 NH MUENCHEN AIRPORT","DE01","BU NORTHERN","GERMANY"]
[271,"DE01 NH COLLEC MÜNCHEN BAVARIA","DE01","BU NORTHERN","GERMANY"]
[272,"DE01 NH MUENCHEN MESSE","DE01","BU NORTHERN","GERMANY"]
[273,"DE01 NH MUENCHEN UNTERHACHING","DE01","BU NORTHERN","GERMANY"]
[274,"DE01 NH MUENCHEN CITY SUED","DE01","BU NORTHERN","GERMANY"]
[275,"DE01NH  NOERDLINGEN KLOESTERLE","DE01","BU NORTHERN","GERMANY"]
[276,"DE01 NH FUERTH NUERNBERG","DE01","BU NORTHERN","GERMANY"]
[277,"DE01NH FUERTH NUERNB FORSTHAUS","DE01","BU NORTHERN","GERMANY"]
[278,"DE01 NH POTSDAM CITY CENTER","DE01","BU NORTHERN","GERMANY"]
[279,"DE01 NH SCHWERIN","DE01","BU NORTHERN","GERMANY"]
[280,"DE01 NH STUTTGART SINDELFINGEN","DE01","BU NORTHERN","GERMANY"]
[281,"DE01 NH STUTTGART AIRPORT","DE01","BU NORTHERN","GERMANY"]
[282,"DE01 NH MANNHEIM VIERNHEIM","DE01","BU NORTHERN","GERMANY"]
[283,"DE01 NH WEINHEIM","DE01","BU NORTHERN","GERMANY"]
[285,"DE01 NH WIESBADEN","DE01","BU NORTHERN","GERMANY"]
[290,"DE01 NH COLLEC FRANKFURT CITY","DE01","BU NORTHERN","GERMANY"]
[325,"DE01 NH COLLECT NUERNBERG CITY","DE01","BU NORTHERN","GERMANY"]
[337,"DE01 NH BERLIN CITY WEST","DE01","BU NORTHERN","GERMANY"]
[419,"DE01 NH DUESSELDO KOENIGSALLEE","DE01","BU NORTHERN","GERMANY"]
[457,"DE01 NH LUDWIGSBURG","DE01","BU NORTHERN","GERMANY"]
[458,"DE01 NHOW BERLIN","DE01","BU NORTHERN","GERMANY"]
[808,"DE01 NH ESSEN","DE01","BU NORTHERN","GERMANY"]
[818,"DE01 NH LEIPZIG ZENTRUM","DE01","BU NORTHERN","GERMANY"]
[819,"DE01 NH MANNHEIM","DE01","BU NORTHERN","GERMANY"]
[821,"DE01 NH COLLECTION  FRANKFURT","DE01","BU NORTHERN","GERMANY"]
[822,"DE01 NHOW FRANKFURT","DE01","BU NORTHERN","GERMANY"]
[962,"DE01 NH HANNOVER","DE01","BU NORTHERN","GERMANY"]
[9284,"DE01 NH WEINHEIM OTTHEINRICH","DE01","BU NORTHERN","GERMANY"]
[9511,"DE01 CS BOOKING OFFICE BERLIN","DE01","BU NORTHERN","GERMANY"]
[9600,"DE01 CS GERMANY","DE01","BU NORTHERN","GERMANY"]
[9890,"DE01 NH WORLD GERMANY","DE01","BU NORTHERN","GERMANY"]
[443,"DE02 NH COLLE DRESDEN ALTMARKT","DE02","BU NORTHERN","GERMANY"]
[9420,"DE02 CS GERMANY 0420","DE02","BU NORTHERN","GERMANY"]
[442,"DE03 NH BERLIN POTSDAMER PLATZ","DE03","BU NORTHERN","GERMANY"]
[460,"DE03 NH FRANKFURT MESSE","DE03","BU NORTHERN","GERMANY"]
[9238,"DE03 CS GERMANY 0238","DE03","BU NORTHERN","GERMANY"]
[258,"DE04 NH FRANKFURT NIEDERRAD","DE04","BU NORTHERN","GERMANY"]
[9294,"DE04 CS GERMANY 0294","DE04","BU NORTHERN","GERMANY"]
[9295,"DE04 CS GERMANY 0295","DE04","BU NORTHERN","GERMANY"]
[9293,"DE05 CS GERMANY 0293","DE05","BU NORTHERN","GERMANY"]
[9515,"DE06 PLAETTIG HOTEL","DE06","BU NORTHERN","GERMANY"]
[772,"DE07 NH C BER FRIEDRICHSTRASSE","DE07","BU NORTHERN","GERMANY"]
[773,"DE07 NH COLLEC KOELN MEDIAPARK","DE07","BU NORTHERN","GERMANY"]
[9777,"DE07 CS GERMANY 0777","DE07","BU NORTHERN","GERMANY"]
[9604,"DE08 CS ARTOS BETEILIGUNG GMBH","DE08","BU NORTHERN","GERMANY"]
[9605,"DE09 CS ASTRON IMMOBILIEN GMBH","DE09","BU NORTHERN","GERMANY"]
[9606,"DE10 CS HOTEL AUKAMM WIESBADEN","DE10","BU NORTHERN","GERMANY"]
[9607,"DE11 CS HOTELS BINGEN & VIERNH","DE11","BU NORTHERN","GERMANY"]
[9608,"DE12 CS HOTEL LEIPZIG-MESSE  G","DE12","BU NORTHERN","GERMANY"]
[9609,"DE13 CS AIRPORTHOTEL FRANKFURT","DE13","BU NORTHERN","GERMANY"]
[291,"HU01 NH BUDAPEST CITY","HU01","BU NORTHERN","HUNGARY"]
[9854,"HU01 NH WORLD HUNGARY","HU01","BU NORTHERN","HUNGARY"]
[9874,"HU01 TREASURY HUNGARY","HU01","BU NORTHERN","HUNGARY"]
[9894,"HU01 CS HUNGARY","HU01","BU NORTHERN","HUNGARY"]
[425,"IT01 NH COLLEC FORI IMPERIALI","IT01","BU SOUTHERN","ITALY"]
[701,"IT01 NH LAGUNA PALACE","IT01","BU SOUTHERN","ITALY"]
[703,"IT01 NHOW MILANO","IT01","BU SOUTHERN","ITALY"]
[705,"IT01 NH CONCORDIA","IT01","BU SOUTHERN","ITALY"]
[706,"IT01 NH ORIO AL SERIO","IT01","BU SOUTHERN","ITALY"]
[708,"IT01 NH GRAND HOTEL VERDI","IT01","BU SOUTHERN","ITALY"]
[709,"IT01 NH COLLEC PALAZZO BAROCCI","IT01","BU SOUTHERN","ITALY"]
[710,"IT01 NH ANGLO AMERICAN","IT01","BU SOUTHERN","ITALY"]
[713,"IT01 NH VILLA SAN MAURO","IT01","BU SOUTHERN","ITALY"]
[716,"IT01 NH COLLECTION GIUSTINIANO","IT01","BU SOUTHERN","ITALY"]
[717,"IT01 NH PADOVA","IT01","BU SOUTHERN","ITALY"]
[718,"IT01 NH C GRAND H CONVENTO AMA","IT01","BU SOUTHERN","ITALY"]
[720,"IT01 NH PARCO DEGLI ARAGONESI","IT01","BU SOUTHERN","ITALY"]
[729,"IT01 NH ANCONA","IT01","BU SOUTHERN","ITALY"]
[730,"IT01 NH BERGAMO","IT01","BU SOUTHERN","ITALY"]
[731,"IT01 NH BOLOGNA DE LA GARE","IT01","BU SOUTHERN","ITALY"]
[732,"IT01 NH BOLOGNA VILLANOVA","IT01","BU SOUTHERN","ITALY"]
[733,"IT01 NH BRESCIA","IT01","BU SOUTHERN","ITALY"]
[735,"IT01 NH CATANIA CENTRO","IT01","BU SOUTHERN","ITALY"]
[736,"IT01 NH FIRENZE","IT01","BU SOUTHERN","ITALY"]
[737,"IT01 NH COLLECTION MARINA","IT01","BU SOUTHERN","ITALY"]
[738,"IT01 NH GENOVA CENTRO","IT01","BU SOUTHERN","ITALY"]
[740,"IT01 NH LA SPEZIA","IT01","BU SOUTHERN","ITALY"]
[741,"IT01 NH PONTEVECCHIO","IT01","BU SOUTHERN","ITALY"]
[742,"IT01 NH MILANO 2","IT01","BU SOUTHERN","ITALY"]
[743,"IT01 NH MACHIAVELLI","IT01","BU SOUTHERN","ITALY"]
[744,"IT01 NH COLLECTION PRESIDENT","IT01","BU SOUTHERN","ITALY"]
[745,"IT01 NH MILANO TOURING","IT01","BU SOUTHERN","ITALY"]
[746,"IT01 NH MILANO CONGRESS CENTRE","IT01","BU SOUTHERN","ITALY"]
[747,"IT01 NH AMBASSADOR","IT01","BU SOUTHERN","ITALY"]
[748,"IT01 NH PALERMO","IT01","BU SOUTHERN","ITALY"]
[749,"IT01 NH PISA","IT01","BU SOUTHERN","ITALY"]
[757,"IT01 NH FIERA","IT01","BU SOUTHERN","ITALY"]
[761,"IT01 NH RAVENNA","IT01","BU SOUTHERN","ITALY"]
[762,"IT01 NH COLLECTION ROMA CENTRO","IT01","BU SOUTHERN","ITALY"]
[763,"IT01 NH MIDAS","IT01","BU SOUTHERN","ITALY"]
[764,"IT01 NH COLLEC VITTORIO VENETO","IT01","BU SOUTHERN","ITALY"]
[765,"IT01 NH VILLA CARPEGNA","IT01","BU SOUTHERN","ITALY"]
[766,"IT01 NH SIENA","IT01","BU SOUTHERN","ITALY"]
[767,"IT01 NH TORINO CENTRO","IT01","BU SOUTHERN","ITALY"]
[769,"IT01 NH TRIESTE","IT01","BU SOUTHERN","ITALY"]
[771,"IT01 NH MILANO 2 RESIDENCE","IT01","BU SOUTHERN","ITALY"]
[781,"IT01 NH SAVONA DARSENA","IT01","BU SOUTHERN","ITALY"]
[782,"IT01 NH LINATE","IT01","BU SOUTHERN","ITALY"]
[783,"IT01 NH COLLECTION PORTA ROSSA","IT01","BU SOUTHERN","ITALY"]
[786,"IT01 NH GRAND HOTEL PALAZZO","IT01","BU SOUTHERN","ITALY"]
[789,"IT01 NH PARMA","IT01","BU SOUTHERN","ITALY"]
[805,"IT01 NH COLLECTION TAORMINA","IT01","BU SOUTHERN","ITALY"]
[806,"IT01 NH PALAZZO MOSCOVA","IT01","BU SOUTHERN","ITALY"]
[807,"IT01 NH COLLECTION PALAZZO CIN","IT01","BU SOUTHERN","ITALY"]
[813,"IT01 NH RIO NOVO","IT01","BU SOUTHERN","ITALY"]
[823,"IT01 NH MILANO BUENOS AIRES","IT01","BU SOUTHERN","ITALY"]
[5702,"IT01 NH SANTO STEFANO","IT01","BU SOUTHERN","ITALY"]
[9383,"IT01 NH WORLD ITALY","IT01","BU SOUTHERN","ITALY"]
[9700,"IT01 CS ITALY","IT01","BU SOUTHERN","ITALY"]
[9700,"IT01 CS ITALY","IT01","BU SOUTHERN","ITALY"]
[9700,"IT01 CS ITALY","IT01","BU SOUTHERN","ITALY"]
[9707,null,"IT01","BU SOUTHERN","ITALY"]
[339,"LU03 NH LUXEMBOURG","LU03","BU NORTHERN","LUXEMBOURG"]
[9847,"LU03 NH WORLD LUXEMBOURG","LU03","BU NORTHERN","LUXEMBOURG"]
[9867,"LU03 TREASURY LUXEMBOURG","LU03","BU NORTHERN","LUXEMBOURG"]
[9475,"MX01 HOLDING MEXICO","MX01","AMERICA_ME_CU","MEXICO"]
[647,"MX02 NH  VERACRUZ","MX02","AMERICA_ME_CU","MEXICO"]
[652,"MX02 NH CENTRO HISTORICO","MX02","AMERICA_ME_CU","MEXICO"]
[964,"MX02 NH COL MERIDA PASEO 60","MX02","AMERICA_ME_CU","MEXICO"]
[999,"MX02 NH CANCUN","MX02","AMERICA_ME_CU","MEXICO"]
[9476,"MX02 OPERADORA MEXICO","MX02","AMERICA_ME_CU","MEXICO"]
[9881,"MX02 NH WORLD MEXICO","MX02","AMERICA_ME_CU","MEXICO"]
[9477,"MX03 FRANQUICIAS LODGE","MX03","AMERICA_ME_CU","MEXICO"]
[9478,"MX04 SERVICIOS CORP MEXICO","MX04","AMERICA_ME_CU","MEXICO"]
[9946,"MX04  SSCC MEXICO LATAM","MX04","AMERICA_ME_CU","MEXICO"]
[76,"MX05 NH COATZACOALCOS","MX05","AMERICA_ME_CU","MEXICO"]
[423,"MX05 NH  VERACRUZ","MX05","AMERICA_ME_CU","MEXICO"]
[74,"MX08 NH COLLE MEX CITY REFORMA","MX08","AMERICA_ME_CU","MEXICO"]
[9067,"MX09 SERV.NOMINA H. NH MEXICO","MX09","AMERICA_ME_CU","MEXICO"]
[659,"MX10 NH COLLECTION MONTERREY","MX10","AMERICA_ME_CU","MEXICO"]
[817,"MX11 NH MONTERREY LA FE","MX11","AMERICA_ME_CU","MEXICO"]
[9648,"MX11 CHARTWELL DE MEXICO","MX11","AMERICA_ME_CU","MEXICO"]
[56,"MX12 H. HILTON GARDEN INN N.LA","MX12","AMERICA_ME_CU","MEXICO"]
[64,"MX12 HILTON AEROPUERTO","MX12","AMERICA_ME_CU","MEXICO"]
[649,"MX12 NH VALLE DORADO","MX12","AMERICA_ME_CU","MEXICO"]
[9051,"MX13 SERV. NOM. CENT. RESERVAS","MX13","AMERICA_ME_CU","MEXICO"]
[332,"MX15 NH COLLECTION SANTA FE","MX15","AMERICA_ME_CU","MEXICO"]
[9988,"MX15 SANTA FE SSCC","MX15","AMERICA_ME_CU","MEXICO"]
[655,"MX16 NH QUERETARO","MX16","AMERICA_ME_CU","MEXICO"]
[9658,"MX18 SERV.NOMINA HISPANA SANTA","MX18","AMERICA_ME_CU","MEXICO"]
[9055,"MX25 COMPANIA NUEVO LAREDO","MX25","AMERICA_ME_CU","MEXICO"]
[9901,"NL01 NH HOTELES PARTICIPATIES","NL01","BU NORTHERN","NETHERLANDS"]
[9902,"NL02 KRASNAPOLSKY HOTEL&REST","NL02","BU NORTHERN","NETHERLANDS"]
[9889,"NL03 NH WORLD NETHERLANDS","NL03","BU NORTHERN","NETHERLANDS"]
[9903,"NL03 CS NETHERLANDS","NL03","BU NORTHERN","NETHERLANDS"]
[9909,"NL04 KRASNAPOLKSY INTERNAT. HO","NL04","BU NORTHERN","NETHERLANDS"]
[9910,"NL05 KRASNAPOLKSY BELGIAN SHAR","NL05","BU NORTHERN","NETHERLANDS"]
[809,"NL06 NH COLLECTION EINDHOVEN","NL06","BU NORTHERN","NETHERLANDS"]
[9911,"NL06 HOTELEXPLOITATIEMAATSCHAP","NL06","BU NORTHERN","NETHERLANDS"]
[9912,"NL07 KRASNAPOLSKY ICT","NL07","BU NORTHERN","NETHERLANDS"]
[9913,"NL08 KRASNAPOLSKY CARIBBEAN MN","NL08","BU NORTHERN","NETHERLANDS"]
[9914,"NL09 MARQUETTE BEHEER","NL09","BU NORTHERN","NETHERLANDS"]
[9916,"NL10 NH PRIVATE EQUITY NL","NL10","BU NORTHERN","NETHERLANDS"]
[375,"NL11 NH ATLANTIC DEN HAAG","NL11","BU NORTHERN","NETHERLANDS"]
[9439,"NL12 NH WILHELMINAKADE HOLDING","NL12","BU NORTHERN","NETHERLANDS"]
[216,"NL13 NH COLLEC BARBIZON PALACE","NL13","BU NORTHERN","NETHERLANDS"]
[247,"NL14 NH ARNHEM RIJNHOTEL","NL14","BU NORTHERN","NETHERLANDS"]
[245,"NL15 NH GELDROP","NL15","BU NORTHERN","NETHERLANDS"]
[9455,"NL17 JOLLY HOTELS HOLLAND","NL17","BU NORTHERN","NETHERLANDS"]
[9456,"NL18 JOLLY HOUDSTERMAATSCHAPPI","NL18","BU NORTHERN","NETHERLANDS"]
[9620,"NL20 HOLDING ONROEREND GOED D´","NL20","BU NORTHERN","NETHERLANDS"]
[215,"NL22 NH AMSTERDAM CENTRE","NL22","BU NORTHERN","NETHERLANDS"]
[243,"NL23 NH MAASTRICHT","NL23","BU NORTHERN","NETHERLANDS"]
[217,"NL24 NH SCHIPHOL AIRPORT","NL24","BU NORTHERN","NETHERLANDS"]
[244,"NL25 NH CAPELLE","NL25","BU NORTHERN","NETHERLANDS"]
[213,"NL26 NH MUSEUM QUARTER","NL26","BU NORTHERN","NETHERLANDS"]
[222,"NL27 NH ZANDVOORT","NL27","BU NORTHERN","NETHERLANDS"]
[232,"NL28 NH ZOETERMEER","NL28","BU NORTHERN","NETHERLANDS"]
[235,"NL29 NH ATLANTA ROTTERDAM","NL29","BU NORTHERN","NETHERLANDS"]
[315,"NL30 NH DEN HAAG","NL30","BU NORTHERN","NETHERLANDS"]
[372,"NL31 NH AMSTERDAM ZUID","NL31","BU NORTHERN","NETHERLANDS"]
[9362,"NL32 EXPL. CARANSA","NL32","BU NORTHERN","NETHERLANDS"]
[211,"NL33 NH COLLECTION DOELEN","NL33","BU NORTHERN","NETHERLANDS"]
[209,"NL34 NH CARANSA","NL34","BU NORTHERN","NETHERLANDS"]
[210,"NL34 NH SCHILLER","NL34","BU NORTHERN","NETHERLANDS"]
[221,"NL35 NH UTRECHT","NL35","BU NORTHERN","NETHERLANDS"]
[208,"NL36 NH AMSTERDAM NOORD","NL36","BU NORTHERN","NETHERLANDS"]
[948,"NL37 NH CONF CENTRE KONINGSHOF","NL37","BU NORTHERN","NETHERLANDS"]
[949,"NL38 NH CONF CENT LEEUWENHORST","NL38","BU NORTHERN","NETHERLANDS"]
[241,"NL39 NH MARQUETTE","NL39","BU NORTHERN","NETHERLANDS"]
[207,"NL40 NH JAN TABAK","NL40","BU NORTHERN","NETHERLANDS"]
[214,"NL42 NH CITY CENTRE","NL42","BU NORTHERN","NETHERLANDS"]
[234,"NL43 NH CENTRE UTRECHT","NL43","BU NORTHERN","NETHERLANDS"]
[246,"NL44 NH BEST","NL44","BU NORTHERN","NETHERLANDS"]
[219,"NL45 NH NAARDEN","NL45","BU NORTHERN","NETHERLANDS"]
[200,"NL46 NH GRONINGEN","NL46","BU NORTHERN","NETHERLANDS"]
[250,"NL47 NH HOTEL DE VILLE","NL47","BU NORTHERN","NETHERLANDS"]
[660,"NL48 NH SPARRENHORST","NL48","BU NORTHERN","NETHERLANDS"]
[218,"NL49 NH C GRAN HO KRASNAPOLSKY","NL49","BU NORTHERN","NETHERLANDS"]
[9908,"NL50 KRASNAPOLKSY H&R ONROEREN","NL50","BU NORTHERN","NETHERLANDS"]
[970,"NL51 RESTAURANT D´VIJFF VLIEGH","NL51","BU NORTHERN","NETHERLANDS"]
[971,"NL52 NHOW ROTTERDAM","NL52","BU NORTHERN","NETHERLANDS"]
[491,"NL53 NHOW AMSTERDAM B.V.","NL53","BU NORTHERN","NETHERLANDS"]
[9976,"NL55 OLOFSKAPEL MONUMENTEN","NL55","BU NORTHERN","NETHERLANDS"]
[340,"NL58 NH WAALWIJK","NL58","BU NORTHERN","NETHERLANDS"]
[759,"NL59 NH COLL AMS FLOWER MARKET","NL59","BU NORTHERN","NETHERLANDS"]
[9389,"NL60 OGBM MAAS BEST","NL60","BU NORTHERN","NETHERLANDS"]
[9390,"NL61OGBM IJSSELMEERWEG NAARDEN","NL61","BU NORTHERN","NETHERLANDS"]
[9392,"NL63 OGBM ATLANTA ROTTERDAM","NL63","BU NORTHERN","NETHERLANDS"]
[9393,"NL64 OGBM DANNY KAYELAAN ZOETE","NL64","BU NORTHERN","NETHERLANDS"]
[9394,"NL65 OGBM PRINS HENDRIKKADE AM","NL65","BU NORTHERN","NETHERLANDS"]
[9395,"NL66 OGBM KRUISWEG HOOFDDORP","NL66","BU NORTHERN","NETHERLANDS"]
[9396,"NL67 OGBM CAPELLE AAN DEN IJSS","NL67","BU NORTHERN","NETHERLANDS"]
[9397,"NL68 OGBM BOGARDEIND GELDROP","NL68","BU NORTHERN","NETHERLANDS"]
[9398,"NL69 OGBM MARQUETTE HEEMSKERK","NL69","BU NORTHERN","NETHERLANDS"]
[9399,"NL70 OGBM VAN ALPHENSTRAAT ZAN","NL70","BU NORTHERN","NETHERLANDS"]
[662,"NL71 NH AMERSFOORT","NL71","BU NORTHERN","NETHERLANDS"]
[623,"NL72 DAM 9 B.V.","NL72","BU NORTHERN","NETHERLANDS"]
[9348,"PL02 CS POLAND","PL02","BU NORTHERN","POLAND"]
[99,"PT01 NH COLLECTION LIBERDADE","PT01","BU SOUTHERN","PORTUGAL"]
[334,"PT01 NH CAMPO GRANDE","PT01","BU SOUTHERN","PORTUGAL"]
[877,"PT01 AVANI AVENIDA LIBERDADE","PT01","BU SOUTHERN","PORTUGAL"]
[887,"PT01 TIVOLI AVENIDA LIBERDADE","PT01","BU SOUTHERN","PORTUGAL"]
[947,"PT01 TIVOLI ORIENTE ","PT01","BU SOUTHERN","PORTUGAL"]
[9601,"PT01 CS PORTUGAL","PT01","BU SOUTHERN","PORTUGAL"]
[9878,"PT01 TREASURY PORTUGAL","PT01","BU SOUTHERN","PORTUGAL"]
[9880,"PT01 NH WORLD PORTUGAL","PT01","BU SOUTHERN","PORTUGAL"]
[570,"PT03 TIVOLI COIMBRA","PT03","BU SOUTHERN","PORTUGAL"]
[574,"PT04 TIV MARINA PORTIMAO ALG R","PT04","BU SOUTHERN","PORTUGAL"]
[580,"PT04 TIVOLI LAGOS ALGARVE RESO","PT04","BU SOUTHERN","PORTUGAL"]
[651,"PT05 ANANTARA VILAMOURA ALG R","PT05","BU SOUTHERN","PORTUGAL"]
[663,"PT05 TIV MARINA VILAMOURA AL R","PT05","BU SOUTHERN","PORTUGAL"]
[665,"PT05 RESIDENCE VICTORIA C GOLF","PT05","BU SOUTHERN","PORTUGAL"]
[9401,"PT05 CENTRAL SERVICES ALGARVE","PT05","BU SOUTHERN","PORTUGAL"]
[853,"PT07 TIV CARVOEIRO ALGARVE RES","PT07","BU SOUTHERN","PORTUGAL"]
[5795,"PT08 TIVOLI PALACIO DE SETEAIS","PT08","BU SOUTHERN","PORTUGAL"]
[5832,"PT08  TIVOLI SINTRA","PT08","BU SOUTHERN","PORTUGAL"]
[9403,"PT08 CENTRAL SERVICE TIVOLI","PT08","BU SOUTHERN","PORTUGAL"]
[9404,"PT08 TREASURY CENTER TIVOLI","PT08","BU SOUTHERN","PORTUGAL"]
[9405,"PT08  NH  WORLD TIVOLI","PT08","BU SOUTHERN","PORTUGAL"]
[330,"RO02 NH TIMISOARA","RO02","BU NORTHERN","ROMANIA"]
[9335,"RO02 CS BLACK SEA","RO02","BU NORTHERN","ROMANIA"]
[9845,"RO02 NH WORLD ROMANIA","RO02","BU NORTHERN","ROMANIA"]
[9865,"RO02 TREASURY ROMANIA","RO02","BU NORTHERN","ROMANIA"]
[9,"ES01 NH INGLATERRA","ES01","CORPORATE","SPAIN"]
[14,"ES01 NH PLAZA DE ARMAS","ES01","CORPORATE","SPAIN"]
[19,"ES01 NH NACIONAL","ES01","CORPORATE","SPAIN"]
[31,"ES01 NH CIUDAD DE ALMERIA","ES01","CORPORATE","SPAIN"]
[5045,"ES01 NH MALAGA","ES01","CORPORATE","SPAIN"]
[9039,"ES01 CS CORPORATE","ES01","CORPORATE","SPAIN"]
[9825,"ES01 PROPCO CORPORATE","ES01","CORPORATE","SPAIN"]
[9924,"ES01 HQ LOYALTY & REWARDS","ES01","CORPORATE","SPAIN"]
[121,"ES02 NH COLLECTION PODIUM","ES02","BU SOUTHERN","SPAIN"]
[165,"ES02 NH DIAGONAL CENTER","ES02","BU SOUTHERN","SPAIN"]
[9100,"ES03 NH EUROPA SL","ES03","CORPORATE","SPAIN"]
[117,"ES04 NH IMPERIAL PLAYA","ES04","BU SOUTHERN","SPAIN"]
[118,"ES04 NH PLAYA LAS CANTERAS","ES04","BU SOUTHERN","SPAIN"]
[5170,"ES04 NH TENERIFE","ES04","BU SOUTHERN","SPAIN"]
[122,"ES07 NH LAGASCA","ES07","BU SOUTHERN","SPAIN"]
[124,"ES08 NH HERENCIA RIOJA OLD","ES08","BU SOUTHERN","SPAIN"]
[146,"ES08 NH LOGROÑO OLD","ES08","BU SOUTHERN","SPAIN"]
[142,"ES09 NH CIUTAT DE REUS","ES09","BU SOUTHERN","SPAIN"]
[2,"ES10 NH CIUDAD DE ZARAGOZA","ES10","BU SOUTHERN","SPAIN"]
[4,"ES10 NH COLLECTION GRAN HOTEL","ES10","BU SOUTHERN","SPAIN"]
[5,"ES10NH CANCILLER AYALA VITORIA","ES10","BU SOUTHERN","SPAIN"]
[7,"ES10 NH RAMBLA DE ALICANTE","ES10","BU SOUTHERN","SPAIN"]
[8,"ES10 NH ABASHIRI","ES10","BU SOUTHERN","SPAIN"]
[10,"ES10 NH ALONSO MARTINEZ","ES10","BU SOUTHERN","SPAIN"]
[11,"ES10 NH SUITES PRISMA","ES10","BU SOUTHERN","SPAIN"]
[12,"ES10 NH VENTAS","ES10","BU SOUTHERN","SPAIN"]
[13,"ES10 NH ARGUELLES","ES10","BU SOUTHERN","SPAIN"]
[16,"ES10 NH PRACTICO","ES10","BU SOUTHERN","SPAIN"]
[17,"ES10 NH CENTER","ES10","BU SOUTHERN","SPAIN"]
[18,"ES10 NH COLLECTION ABASCAL","ES10","BU SOUTHERN","SPAIN"]
[20,"ES10 NH ATLANTICO","ES10","BU SOUTHERN","SPAIN"]
[21,"ES10 NH TURCOSA","ES10","BU SOUTHERN","SPAIN"]
[22,"ES10 NH ALBERTO AGUILERA","ES10","BU SOUTHERN","SPAIN"]
[23,"ES10 NH VIAPOL","ES10","BU SOUTHERN","SPAIN"]
[24,"ES10 NH VILLA DE COSLADA","ES10","BU SOUTHERN","SPAIN"]
[25,"ES10 NH BARCELONA CENTRO","ES10","BU SOUTHERN","SPAIN"]
[27,"ES10 NH LAS ARTES","ES10","BU SOUTHERN","SPAIN"]
[28,"ES10 NH LAS CIENCIAS","ES10","BU SOUTHERN","SPAIN"]
[29,"ES10 NH SANTANDER PARAYAS","ES10","BU SOUTHERN","SPAIN"]
[30,"ES10 NH CORNELLA","ES10","BU SOUTHERN","SPAIN"]
[35,"ES10 NH COLLECTION SEVILLA","ES10","BU SOUTHERN","SPAIN"]
[38,"ES10 MARKETING CENTRE SPAIN","ES10","BU SOUTHERN","SPAIN"]
[41,"ES10 NH EIXAMPLE","ES10","BU SOUTHERN","SPAIN"]
[42,"ES10 NH BALBOA","ES10","BU SOUTHERN","SPAIN"]
[43,"ES10 NH PRINCIPE DE VERGARA","ES10","BU SOUTHERN","SPAIN"]
[45,"ES10 NH MALAGA OLD","ES10","BU SOUTHERN","SPAIN"]
[46,"ES10 HOTEL ALMENARA (OLD)","ES10","BU SOUTHERN","SPAIN"]
[53,"ES10 NH SPORT","ES10","BU SOUTHERN","SPAIN"]
[71,"ES10 NH COLLECTION COLON MADRI","ES10","BU SOUTHERN","SPAIN"]
[73,"ES10 NH PASEO DE LA HABANA","ES10","BU SOUTHERN","SPAIN"]
[81,"ES10 NH C GRAN HOTEL CALDERON","ES10","BU SOUTHERN","SPAIN"]
[82,"ES10 NH CIUDAD DE VALENCIA","ES10","BU SOUTHERN","SPAIN"]
[83,"ES10 NH LUZ HUELVA","ES10","BU SOUTHERN","SPAIN"]
[86,"ES10 NH PALACIO DE ORIOL","ES10","BU SOUTHERN","SPAIN"]
[87,"ES10 NH FUENLABRADA","ES10","BU SOUTHERN","SPAIN"]
[88,"ES10 NH LA MAQUINISTA","ES10","BU SOUTHERN","SPAIN"]
[91,"ES10 NH ZURBANO","ES10","BU SOUTHERN","SPAIN"]
[92,"ES10 NH LA PERDIZ","ES10","BU SOUTHERN","SPAIN"]
[93,"ES10 NH MINDORO","ES10","BU SOUTHERN","SPAIN"]
[94,"ES10NH COLLECTION EUROBUILDING","ES10","BU SOUTHERN","SPAIN"]
[97,"ES10 NH MONTEROZAS","ES10","BU SOUTHERN","SPAIN"]
[101,"ES10 NH CONDOR","ES10","BU SOUTHERN","SPAIN"]
[104,"ES10 NH LES CORTS","ES10","BU SOUTHERN","SPAIN"]
[105,"ES10 NH SANTS BARCELONA","ES10","BU SOUTHERN","SPAIN"]
[106,"ES10 NH BARCELONA STADIUM","ES10","BU SOUTHERN","SPAIN"]
[107,"ES10 NH ENTENZA","ES10","BU SOUTHERN","SPAIN"]
[110,"ES10 NH COLLECTION ARANZAZU","ES10","BU SOUTHERN","SPAIN"]
[112,"ES10 NH EL TORO","ES10","BU SOUTHERN","SPAIN"]
[113,"ES10 NH CIUDAD DE SANTANDER","ES10","BU SOUTHERN","SPAIN"]
[114,"ES10 NH COLLECTION PALACIO CAS","ES10","BU SOUTHERN","SPAIN"]
[115,"ES10 NH ATOCHA","ES10","BU SOUTHERN","SPAIN"]
[116,"ES10 NH BALUARTE","ES10","BU SOUTHERN","SPAIN"]
[119,"ES10 NH CIUDAD DE VALLADOLID","ES10","BU SOUTHERN","SPAIN"]
[123,"ES10 NH IRUÑA PARK","ES10","BU SOUTHERN","SPAIN"]
[127,"ES10 NH CIUDAD REAL","ES10","BU SOUTHERN","SPAIN"]
[128,"ES10 NH AMISTAD MURCIA","ES10","BU SOUTHERN","SPAIN"]
[132,"ES10 NH PIRINEOS","ES10","BU SOUTHERN","SPAIN"]
[133,"ES10 NH AVENIDA JEREZ","ES10","BU SOUTHERN","SPAIN"]
[134,"ES10 NH ALBAR","ES10","BU SOUTHERN","SPAIN"]
[138,"ES10 NH CIUDAD DE CUENCA","ES10","BU SOUTHERN","SPAIN"]
[140,"ES10NH COLLECTION VILLA BILBAO","ES10","BU SOUTHERN","SPAIN"]
[141,"ES10NH PUERTA DE ALCALA","ES10","BU SOUTHERN","SPAIN"]
[145,"ES10 NH LEGANES","ES10","BU SOUTHERN","SPAIN"]
[151,"ES10 NH CIUDAD DE LA IMAGEN","ES10","BU SOUTHERN","SPAIN"]
[152,"ES10 NH BARAJAS AIRPORT","ES10","BU SOUTHERN","SPAIN"]
[157,"ES10 NH PUERTA DE LA CATEDRAL","ES10","BU SOUTHERN","SPAIN"]
[220,"ES10 NH CIUTAT DE VIC","ES10","BU SOUTHERN","SPAIN"]
[226,"ES10NH COLLECT AMISTAD CORDOBA","ES10","BU SOUTHERN","SPAIN"]
[229,"ES10 NH PORTA BARCELONA","ES10","BU SOUTHERN","SPAIN"]
[251,"ES10 NH BELAGUA","ES10","BU SOUTHERN","SPAIN"]
[253,"ES10 NH ORUS","ES10","BU SOUTHERN","SPAIN"]
[287,"ES10 NH VICTORIA PALACE","ES10","BU SOUTHERN","SPAIN"]
[300,"ES10 NH CAMPO DE GIBRALTAR","ES10","BU SOUTHERN","SPAIN"]
[302,"ES10 NH COLLECT PALACIO AVILES","ES10","BU SOUTHERN","SPAIN"]
[303,"ES10 NH CARTAGENA","ES10","BU SOUTHERN","SPAIN"]
[305,"ES10 NH SOTOGRANDE (OLD)","ES10","BU SOUTHERN","SPAIN"]
[308,"ES10 NH CAMPUS","ES10","BU SOUTHERN","SPAIN"]
[309,"ES10 NH MADRID SUR","ES10","BU SOUTHERN","SPAIN"]
[310,"ES10 NH S.SEBASTIAN D.L REYES","ES10","BU SOUTHERN","SPAIN"]
[311,"ES10 NH ALCORCON","ES10","BU SOUTHERN","SPAIN"]
[316,"ES10 NH COLLECTION VICTORIA","ES10","BU SOUTHERN","SPAIN"]
[317,"ES10 NH SANT BOI","ES10","BU SOUTHERN","SPAIN"]
[318,"ES10 NH MERCADER","ES10","BU SOUTHERN","SPAIN"]
[319,"ES10NH COLLECTION SANTIAGO","ES10","BU SOUTHERN","SPAIN"]
[321,"ES10 NH COLLECTION PLAZA MAYOR","ES10","BU SOUTHERN","SPAIN"]
[322,"ES10 NH ALICANTE","ES10","BU SOUTHERN","SPAIN"]
[323,"ES10 NH PARLA","ES10","BU SOUTHERN","SPAIN"]
[327,"ES10NH COLLECTION CONSTANZA","ES10","BU SOUTHERN","SPAIN"]
[333,"ES10 NH BALAGO","ES10","BU SOUTHERN","SPAIN"]
[342,"ES10 NH PUERTO DE SAGUNTO","ES10","BU SOUTHERN","SPAIN"]
[371,"ES10 NH RIBERA DEL MANZANARES","ES10","BU SOUTHERN","SPAIN"]
[376,"ES10 NH COLLEC PALACIO OQUENDO","ES10","BU SOUTHERN","SPAIN"]
[378,"ES10 NH LAS TABLAS","ES10","BU SOUTHERN","SPAIN"]
[385,"ES10 NH VILLA MADRID(MLEQU)","ES10","BU SOUTHERN","SPAIN"]
[386,"ES10NH COLLECTION PALACIO TEPA","ES10","BU SOUTHERN","SPAIN"]
[429,"ES10 ANANTARA VILLA PADIERNA ","ES10","BU SOUTHERN","SPAIN"]
[489,"ES10 NH CAMPUS LA MORALEJA","ES10","BU SOUTHERN","SPAIN"]
[490,"ES10 NH COLLECTION SUECIA","ES10","BU SOUTHERN","SPAIN"]
[495,"ES10 NH COLLECTION GRAN VIA","ES10","BU SOUTHERN","SPAIN"]
[517,"ES10 NH COLLECTION FINISTERRE","ES10","BU SOUTHERN","SPAIN"]
[581,"ES10 NH CAMPO CARTAGENA","ES10","BU SOUTHERN","SPAIN"]
[582,"ES10 NH GIRONA","ES10","BU SOUTHERN","SPAIN"]
[591,"ES10 NH CLUB NAUTICO SALINAS","ES10","BU SOUTHERN","SPAIN"]
[661,"ES10NH COLLECTION PASEO PRADO","ES10","BU SOUTHERN","SPAIN"]
[967,"ES10 NH CALIFA (ANTIGUO)","ES10","BU SOUTHERN","SPAIN"]
[5124,"ES10 NH HERENCIA RIOJA","ES10","BU SOUTHERN","SPAIN"]
[5146,"ES10 NH LOGROÑO","ES10","BU SOUTHERN","SPAIN"]
[5313,"ES10 SPA EUROBUILDING","ES10","BU SOUTHERN","SPAIN"]
[9040,"ES10 TREASURY SPAIN ZBAL","ES10","BU SOUTHERN","SPAIN"]
[9103,"ES10 CS SPAIN MADRID","ES10","BU SOUTHERN","SPAIN"]
[9304,"ES10 NH DOMO","ES10","BU SOUTHERN","SPAIN"]
[9824,"ES10 PROPCO Spain","ES10","BU SOUTHERN","SPAIN"]
[9888,"ES10 NH WORLD SPAIN","ES10","BU SOUTHERN","SPAIN"]
[149,"ES11NH COLLECT. PALACIO BURGOS","ES11","BU SOUTHERN","SPAIN"]
[9336,"ES15 CENTRAL DE RESERVAS (CRO)","ES15","CORPORATE","SPAIN"]
[248,"ES16 CASINO DE MADRID","ES16","BU SOUTHERN","SPAIN"]
[301,"ES17 NH COLLE PALACIO ARANJUEZ","ES17","BU SOUTHERN","SPAIN"]
[130,"ES32 NH MARBELLA","ES32","BU SOUTHERN","SPAIN"]
[9240,"ES35 LATINOAMERICANA","ES35","CORPORATE","SPAIN"]
[9111,"ES39 ATARDECER CARIBEÑO","ES39","CORPORATE","SPAIN"]
[9355,"ES41 FAST GOOD ISLAS CANARIAS","ES41","BU SOUTHERN","SPAIN"]
[174,"ES47 NH ALANDA","ES47","BU SOUTHERN","SPAIN"]
[9516,"ES50 SC CENTRALES BARCELONA","ES50","BU SOUTHERN","SPAIN"]
[9474,"ES51 SOTOCARIBE","ES51","CORPORATE","SPAIN"]
[9933,"ES96 WILAN ANDER, S.L.","ES96","BU SOUTHERN","SPAIN"]
[9934,"ES97 WILAN HUEL, S.L.","ES97","BU SOUTHERN","SPAIN"]
[176,"CH01 NH FRIBOURG","CH01","BU NORTHERN","SWITZERLAND"]
[178,"CH01 NH GENEVA AIRPORT","CH01","BU NORTHERN","SWITZERLAND"]
[180,"CH01 NH ZURICH AIRPORT","CH01","BU NORTHERN","SWITZERLAND"]
[254,"CH01 NH GENEVA","CH01","BU NORTHERN","SWITZERLAND"]
[9510,"CH01 CENTRAL SERVICES SWITZERL","CH01","BU NORTHERN","SWITZERLAND"]
[9879,"CH01 TREASURY SWITZERLAND","CH01","BU NORTHERN","SWITZERLAND"]
[9892,"CH01 NH WORLD SWITZERLAND","CH01","BU NORTHERN","SWITZERLAND"]
[751,"UK02 NH KENSINGTON","UK02","BU NORTHERN","UK"]
[9876,"UK02 CS GREAT BRITAIN","UK02","BU NORTHERN","UK"]
[9893,"UK02 NH WORLD GREAT BRITAIN","UK02","BU NORTHERN","UK"]
[9896,"UK02 TREASURY GREAT BRITAIN","UK02","BU NORTHERN","UK"]
[969,"UK03 NHOW LONDON","UK03","BU NORTHERN","UK"]
[409,"UK04 NHOW LON STAFF","UK04","BU NORTHERN","UK"]
[9507,"UY01 CS URUGUAY","UY01","AMERICA_AR_UY","URUGUAY"]
[167,"UY02 NH COLUMBIA","UY02","AMERICA_AR_UY","URUGUAY"]
[9842,"UY02 H WORLD URUGUAY","UY02","AMERICA_AR_UY","URUGUAY"]
[9862,"UY02 TREASURY URUGUAY","UY02","AMERICA_AR_UY","URUGUAY"]
[9695,"US01SERVICIOS CENTRALES USA RO","US01","AMERICA_CO_EC","US"]
[629,"US04 NH JOLLY MADISON TOWERS ","US04","BU SOUTHERN","US"]
[9843,"US04 NH WORLD US","US04","BU SOUTHERN","US"]
[9863,"US04 TREASURY US","US04","BU SOUTHERN","US"]
[9699,"ROYAL HOTELS INTERNATIONAL LAT","US05","AMERICA_CO_EC","US"]
[61,"DE01 NHOW HAMBURG","DE01","BU NORTHERN","GERMANY"]
[9044,"ESA1 NH CASH LINK","ESA1","CORPORATE","SPAIN"]

{"sheet":"Transfer AUC - PO","index":4,"n_rows":123,"n_cols":39,"rows_kept":123,"cut":false,"hidden":false,"merged":[[8,12,9,12],[8,13,9,13],[8,23,9,23],[8,24,9,24],[8,16,8,18],[8,19,8,21],[8,22,9,22],[2,22,2,28],[8,0,9,0],[8,1,9,1],[8,2,9,2],[8,3,9,3],[8,4,9,4],[8,5,9,5],[8,6,9,6],[8,7,9,7],[8,8,9,8],[8,27,9,27],[8,9,9,9],[8,10,9,10],[8,14,9,14],[8,15,9,15],[8,11,9,11],[8,38,9,38],[8,25,9,25],[8,28,9,28],[8,29,9,29],[8,36,9,36],[8,37,9,37],[8,32,9,32],[8,33,9,33],[8,34,9,34],[8,35,9,35],[8,30,9,30],[8,26,9,26]]}
[" "]
[null,null,null,null,null,null,"ASSET TRANSFER PO"]
[]
["*Note"]
["(1) In case the requestor wants to post an invoice against an asset file already created, the requestor must fill in the field Asset number (marked in green colour) informing about the number of the existing asset file in SAP."]
["(2)  In case of Capitalization, when the final asset receives value from the asset under construcction, these fields are mandatory. "]
["(3)  Only fill PORTUGAL"]
[]
["Asset Class","Number of similar asset","Investment Order * (2)","Quantity * (2)","Unit of measurement","Company Code","Hotel Name","B.A","Center (Plant)","Location","Personnel number","Serial number","Evaluation group 2 (3*)","Buildings (Evaluation group 1*)\n*Building where the asset is located","Good Receipt date* (2)\n* The date when the Goods arrived to the hotel","Capitalization Date* \n* The date when the asset must start its depreciation","Book Depr",null,null,"Fiscal Depr",null,null,"Vendor * (2)","Invoice number *(2)","Original Value * (2)","Currency","Tax code","New Fixed Asset (new/used)","Description ","Asset number* (1)","AUC Number - PO","Transfer - Capitalization","Document Date*\n*The day when the document is issued","Posting Date","Asset value date     * depreciation Start","Document number retirement","Lock Asset","Delete Asset","Additional Comments from BU"]
[null,null,null,null,null,null,null,null,null,null,null,null,null,null,null,null,"UseLife  (Years) * Mandatory if the useful life is diferent from SAP","Period (Months)","Deprn Key","UseLife  (Years)","Period (Months)","Deprn Key",null,null,"Amount eur",null,"Amount eur",null,null,null,null,"Amount"]
[null,null,null,null,"ST-Piece",{"$f":"IF(H11=\"\",\"\",VLOOKUP(H11,'MD Companies Centers'!$A:$C,3,FALSE))","v":""},{"$f":"IF(H11=\"\",\"\",(VLOOKUP(H11,'MD Companies Centers'!$A:$B,2,FALSE)))","v":""},null,{"$f":"IF(H11=\"\",\"\",(VLOOKUP(H11,'MD Companies Centers'!$A:$B,1,FALSE)))","v":""}]
[null,null,null,null,"ST-Piece",{"$f":"IF(H12=\"\",\"\",VLOOKUP(H12,'MD Companies Centers'!$A:$C,3,FALSE))","v":""},{"$f":"IF(H12=\"\",\"\",(VLOOKUP(H12,'MD Companies Centers'!$A:$B,2,FALSE)))","v":""},null,{"$f":"IF(H12=\"\",\"\",(VLOOKUP(H12,'MD Companies Centers'!$A:$B,1,FALSE)))","v":""}]
[null,null,null,null,null,{"$f":"IF(H13=\"\",\"\",VLOOKUP(H13,'MD Companies Centers'!$A:$C,3,FALSE))","v":""},{"$f":"IF(H13=\"\",\"\",(VLOOKUP(H13,'MD Companies Centers'!$A:$B,2,FALSE)))","v":""},null,{"$f":"IF(H13=\"\",\"\",(VLOOKUP(H13,'MD Companies Centers'!$A:$B,1,FALSE)))","v":""}]
[null,null,null,null,null,{"$f":"IF(H14=\"\",\"\",VLOOKUP(H14,'MD Companies Centers'!$A:$C,3,FALSE))","v":""},{"$f":"IF(H14=\"\",\"\",(VLOOKUP(H14,'MD Companies Centers'!$A:$B,2,FALSE)))","v":""},null,{"$f":"IF(H14=\"\",\"\",(VLOOKUP(H14,'MD Companies Centers'!$A:$B,1,FALSE)))","v":""}]
[null,null,null,null,null,{"$f":"IF(H15=\"\",\"\",VLOOKUP(H15,'MD Companies Centers'!$A:$C,3,FALSE))","v":""},{"$f":"IF(H15=\"\",\"\",(VLOOKUP(H15,'MD Companies Centers'!$A:$B,2,FALSE)))","v":""},null,{"$f":"IF(H15=\"\",\"\",(VLOOKUP(H15,'MD Companies Centers'!$A:$B,1,FALSE)))","v":""}]
[null,null,null,null,null,{"$f":"IF(H16=\"\",\"\",VLOOKUP(H16,'MD Companies Centers'!$A:$C,3,FALSE))","v":""},{"$f":"IF(H16=\"\",\"\",(VLOOKUP(H16,'MD Companies Centers'!$A:$B,2,FALSE)))","v":""},null,{"$f":"IF(H16=\"\",\"\",(VLOOKUP(H16,'MD Companies Centers'!$A:$B,1,FALSE)))","v":""}]
[null,null,null,null,"ST-Piece",{"$f":"IF(H17=\"\",\"\",VLOOKUP(H17,'MD Companies Centers'!$A:$C,3,FALSE))","v":""},{"$f":"IF(H17=\"\",\"\",(VLOOKUP(H17,'MD Companies Centers'!$A:$B,2,FALSE)))","v":""},null,{"$f":"IF(H17=\"\",\"\",(VLOOKUP(H17,'MD Companies Centers'!$A:$B,1,FALSE)))","v":""}]
[null,null,null,null,"ST-Piece",{"$f":"IF(H18=\"\",\"\",VLOOKUP(H18,'MD Companies Centers'!$A:$C,3,FALSE))","v":""},{"$f":"IF(H18=\"\",\"\",(VLOOKUP(H18,'MD Companies Centers'!$A:$B,2,FALSE)))","v":""},null,{"$f":"IF(H18=\"\",\"\",(VLOOKUP(H18,'MD Companies Centers'!$A:$B,1,FALSE)))","v":""}]
[null,null,null,null,"ST-Piece",{"$f":"IF(H19=\"\",\"\",VLOOKUP(H19,'MD Companies Centers'!$A:$C,3,FALSE))","v":""},{"$f":"IF(H19=\"\",\"\",(VLOOKUP(H19,'MD Companies Centers'!$A:$B,2,FALSE)))","v":""},null,{"$f":"IF(H19=\"\",\"\",(VLOOKUP(H19,'MD Companies Centers'!$A:$B,1,FALSE)))","v":""}]
[null,null,null,null,"ST-Piece",{"$f":"IF(H20=\"\",\"\",VLOOKUP(H20,'MD Companies Centers'!$A:$C,3,FALSE))","v":""},{"$f":"IF(H20=\"\",\"\",(VLOOKUP(H20,'MD Companies Centers'!$A:$B,2,FALSE)))","v":""},null,{"$f":"IF(H20=\"\",\"\",(VLOOKUP(H20,'MD Companies Centers'!$A:$B,1,FALSE)))","v":""}]
[null,null,null,null,"ST-Piece",{"$f":"IF(H21=\"\",\"\",VLOOKUP(H21,'MD Companies Centers'!$A:$C,3,FALSE))","v":""},{"$f":"IF(H21=\"\",\"\",(VLOOKUP(H21,'MD Companies Centers'!$A:$B,2,FALSE)))","v":""},null,{"$f":"IF(H21=\"\",\"\",(VLOOKUP(H21,'MD Companies Centers'!$A:$B,1,FALSE)))","v":""}]
[]
[null,null,null,null,"ST-Piece",{"$f":"IF(H23=\"\",\"\",VLOOKUP(H23,'MD Companies Centers'!$A:$C,3,FALSE))","v":""},{"$f":"IF(H23=\"\",\"\",(VLOOKUP(H23,'MD Companies Centers'!$A:$B,2,FALSE)))","v":""},null,{"$f":"IF(H23=\"\",\"\",(VLOOKUP(H23,'MD Companies Centers'!$A:$B,1,FALSE)))","v":""}]
[null,null,null,null,"ST-Piece",{"$f":"IF(H24=\"\",\"\",VLOOKUP(H24,'MD Companies Centers'!$A:$C,3,FALSE))","v":""},{"$f":"IF(H24=\"\",\"\",(VLOOKUP(H24,'MD Companies Centers'!$A:$B,2,FALSE)))","v":""},null,{"$f":"IF(H24=\"\",\"\",(VLOOKUP(H24,'MD Companies Centers'!$A:$B,1,FALSE)))","v":""}]
[null,null,null,null,"ST-Piece",{"$f":"IF(H25=\"\",\"\",VLOOKUP(H25,'MD Companies Centers'!$A:$C,3,FALSE))","v":""},{"$f":"IF(H25=\"\",\"\",(VLOOKUP(H25,'MD Companies Centers'!$A:$B,2,FALSE)))","v":""},null,{"$f":"IF(H25=\"\",\"\",(VLOOKUP(H25,'MD Companies Centers'!$A:$B,1,FALSE)))","v":""}]
[null,null,null,null,null,{"$f":"IF(H26=\"\",\"\",VLOOKUP(H26,'MD Companies Centers'!$A:$C,3,FALSE))","v":""},{"$f":"IF(H26=\"\",\"\",(VLOOKUP(H26,'MD Companies Centers'!$A:$B,2,FALSE)))","v":""},null,{"$f":"IF(H26=\"\",\"\",(VLOOKUP(H26,'MD Companies Centers'!$A:$B,1,FALSE)))","v":""}]
[null,null,null,null,"ST-Piece",{"$f":"IF(H27=\"\",\"\",VLOOKUP(H27,'MD Companies Centers'!$A:$C,3,FALSE))","v":""},{"$f":"IF(H27=\"\",\"\",(VLOOKUP(H27,'MD Companies Centers'!$A:$B,2,FALSE)))","v":""},null,{"$f":"IF(H27=\"\",\"\",(VLOOKUP(H27,'MD Companies Centers'!$A:$B,1,FALSE)))","v":""}]
[null,null,null,null,"ST-Piece",{"$f":"IF(H28=\"\",\"\",VLOOKUP(H28,'MD Companies Centers'!$A:$C,3,FALSE))","v":""},{"$f":"IF(H28=\"\",\"\",(VLOOKUP(H28,'MD Companies Centers'!$A:$B,2,FALSE)))","v":""},null,{"$f":"IF(H28=\"\",\"\",(VLOOKUP(H28,'MD Companies Centers'!$A:$B,1,FALSE)))","v":""}]
[null,null,null,null,"ST-Piece",{"$f":"IF(H29=\"\",\"\",VLOOKUP(H29,'MD Companies Centers'!$A:$C,3,FALSE))","v":""},{"$f":"IF(H29=\"\",\"\",(VLOOKUP(H29,'MD Companies Centers'!$A:$B,2,FALSE)))","v":""},null,{"$f":"IF(H29=\"\",\"\",(VLOOKUP(H29,'MD Companies Centers'!$A:$B,1,FALSE)))","v":""}]
[null,null,null,null,"ST-Piece",{"$f":"IF(H30=\"\",\"\",VLOOKUP(H30,'MD Companies Centers'!$A:$C,3,FALSE))","v":""},{"$f":"IF(H30=\"\",\"\",(VLOOKUP(H30,'MD Companies Centers'!$A:$B,2,FALSE)))","v":""},null,{"$f":"IF(H30=\"\",\"\",(VLOOKUP(H30,'MD Companies Centers'!$A:$B,1,FALSE)))","v":""}]
[null,null,null,null,"ST-Piece",{"$f":"IF(H31=\"\",\"\",VLOOKUP(H31,'MD Companies Centers'!$A:$C,3,FALSE))","v":""},{"$f":"IF(H31=\"\",\"\",(VLOOKUP(H31,'MD Companies Centers'!$A:$B,2,FALSE)))","v":""},null,{"$f":"IF(H31=\"\",\"\",(VLOOKUP(H31,'MD Companies Centers'!$A:$B,1,FALSE)))","v":""}]
[null,null,null,null,"ST-Piece",{"$f":"IF(H32=\"\",\"\",VLOOKUP(H32,'MD Companies Centers'!$A:$C,3,FALSE))","v":""},{"$f":"IF(H32=\"\",\"\",(VLOOKUP(H32,'MD Companies Centers'!$A:$B,2,FALSE)))","v":""},null,{"$f":"IF(H32=\"\",\"\",(VLOOKUP(H32,'MD Companies Centers'!$A:$B,1,FALSE)))","v":""}]
[null,null,null,null,"ST-Piece",{"$f":"IF(H33=\"\",\"\",VLOOKUP(H33,'MD Companies Centers'!$A:$C,3,FALSE))","v":""},{"$f":"IF(H33=\"\",\"\",(VLOOKUP(H33,'MD Companies Centers'!$A:$B,2,FALSE)))","v":""},null,{"$f":"IF(H33=\"\",\"\",(VLOOKUP(H33,'MD Companies Centers'!$A:$B,1,FALSE)))","v":""}]
[null,null,null,null,"ST-Piece",{"$f":"IF(H34=\"\",\"\",VLOOKUP(H34,'MD Companies Centers'!$A:$C,3,FALSE))","v":""},{"$f":"IF(H34=\"\",\"\",(VLOOKUP(H34,'MD Companies Centers'!$A:$B,2,FALSE)))","v":""},null,{"$f":"IF(H34=\"\",\"\",(VLOOKUP(H34,'MD Companies Centers'!$A:$B,1,FALSE)))","v":""}]
[null,null,null,null,"ST-Piece",{"$f":"IF(H35=\"\",\"\",VLOOKUP(H35,'MD Companies Centers'!$A:$C,3,FALSE))","v":""},{"$f":"IF(H35=\"\",\"\",(VLOOKUP(H35,'MD Companies Centers'!$A:$B,2,FALSE)))","v":""},null,{"$f":"IF(H35=\"\",\"\",(VLOOKUP(H35,'MD Companies Centers'!$A:$B,1,FALSE)))","v":""}]
[null,null,null,null,"ST-Piece",{"$f":"IF(H36=\"\",\"\",VLOOKUP(H36,'MD Companies Centers'!$A:$C,3,FALSE))","v":""},{"$f":"IF(H36=\"\",\"\",(VLOOKUP(H36,'MD Companies Centers'!$A:$B,2,FALSE)))","v":""},null,{"$f":"IF(H36=\"\",\"\",(VLOOKUP(H36,'MD Companies Centers'!$A:$B,1,FALSE)))","v":""}]
[null,null,null,null,"ST-Piece",{"$f":"IF(H37=\"\",\"\",VLOOKUP(H37,'MD Companies Centers'!$A:$C,3,FALSE))","v":""},{"$f":"IF(H37=\"\",\"\",(VLOOKUP(H37,'MD Companies Centers'!$A:$B,2,FALSE)))","v":""},null,{"$f":"IF(H37=\"\",\"\",(VLOOKUP(H37,'MD Companies Centers'!$A:$B,1,FALSE)))","v":""}]
[null,null,null,null,"ST-Piece",{"$f":"IF(H38=\"\",\"\",VLOOKUP(H38,'MD Companies Centers'!$A:$C,3,FALSE))","v":""},{"$f":"IF(H38=\"\",\"\",(VLOOKUP(H38,'MD Companies Centers'!$A:$B,2,FALSE)))","v":""},null,{"$f":"IF(H38=\"\",\"\",(VLOOKUP(H38,'MD Companies Centers'!$A:$B,1,FALSE)))","v":""}]
[null,null,null,null,"ST-Piece",{"$f":"IF(H39=\"\",\"\",VLOOKUP(H39,'MD Companies Centers'!$A:$C,3,FALSE))","v":""},{"$f":"IF(H39=\"\",\"\",(VLOOKUP(H39,'MD Companies Centers'!$A:$B,2,FALSE)))","v":""},null,{"$f":"IF(H39=\"\",\"\",(VLOOKUP(H39,'MD Companies Centers'!$A:$B,1,FALSE)))","v":""}]
[null,null,null,null,"ST-Piece",{"$f":"IF(H40=\"\",\"\",VLOOKUP(H40,'MD Companies Centers'!$A:$C,3,FALSE))","v":""},{"$f":"IF(H40=\"\",\"\",(VLOOKUP(H40,'MD Companies Centers'!$A:$B,2,FALSE)))","v":""},null,{"$f":"IF(H40=\"\",\"\",(VLOOKUP(H40,'MD Companies Centers'!$A:$B,1,FALSE)))","v":""}]
[null,null,null,null,"ST-Piece",{"$f":"IF(H41=\"\",\"\",VLOOKUP(H41,'MD Companies Centers'!$A:$C,3,FALSE))","v":""},{"$f":"IF(H41=\"\",\"\",(VLOOKUP(H41,'MD Companies Centers'!$A:$B,2,FALSE)))","v":""},null,{"$f":"IF(H41=\"\",\"\",(VLOOKUP(H41,'MD Companies Centers'!$A:$B,1,FALSE)))","v":""}]
[null,null,null,null,"ST-Piece",{"$f":"IF(H42=\"\",\"\",VLOOKUP(H42,'MD Companies Centers'!$A:$C,3,FALSE))","v":""},{"$f":"IF(H42=\"\",\"\",(VLOOKUP(H42,'MD Companies Centers'!$A:$B,2,FALSE)))","v":""},null,{"$f":"IF(H42=\"\",\"\",(VLOOKUP(H42,'MD Companies Centers'!$A:$B,1,FALSE)))","v":""}]
[null,null,null,null,"ST-Piece",{"$f":"IF(H43=\"\",\"\",VLOOKUP(H43,'MD Companies Centers'!$A:$C,3,FALSE))","v":""},{"$f":"IF(H43=\"\",\"\",(VLOOKUP(H43,'MD Companies Centers'!$A:$B,2,FALSE)))","v":""},null,{"$f":"IF(H43=\"\",\"\",(VLOOKUP(H43,'MD Companies Centers'!$A:$B,1,FALSE)))","v":""}]
[null,null,null,null,"ST-Piece",{"$f":"IF(H44=\"\",\"\",VLOOKUP(H44,'MD Companies Centers'!$A:$C,3,FALSE))","v":""},{"$f":"IF(H44=\"\",\"\",(VLOOKUP(H44,'MD Companies Centers'!$A:$B,2,FALSE)))","v":""},null,{"$f":"IF(H44=\"\",\"\",(VLOOKUP(H44,'MD Companies Centers'!$A:$B,1,FALSE)))","v":""}]
[null,null,null,null,"ST-Piece",{"$f":"IF(H45=\"\",\"\",VLOOKUP(H45,'MD Companies Centers'!$A:$C,3,FALSE))","v":""},{"$f":"IF(H45=\"\",\"\",(VLOOKUP(H45,'MD Companies Centers'!$A:$B,2,FALSE)))","v":""},null,{"$f":"IF(H45=\"\",\"\",(VLOOKUP(H45,'MD Companies Centers'!$A:$B,1,FALSE)))","v":""}]
[null,null,null,null,"ST-Piece",{"$f":"IF(H46=\"\",\"\",VLOOKUP(H46,'MD Companies Centers'!$A:$C,3,FALSE))","v":""},{"$f":"IF(H46=\"\",\"\",(VLOOKUP(H46,'MD Companies Centers'!$A:$B,2,FALSE)))","v":""},null,{"$f":"IF(H46=\"\",\"\",(VLOOKUP(H46,'MD Companies Centers'!$A:$B,1,FALSE)))","v":""}]
[null,null,null,null,"ST-Piece",{"$f":"IF(H47=\"\",\"\",VLOOKUP(H47,'MD Companies Centers'!$A:$C,3,FALSE))","v":""},{"$f":"IF(H47=\"\",\"\",(VLOOKUP(H47,'MD Companies Centers'!$A:$B,2,FALSE)))","v":""},null,{"$f":"IF(H47=\"\",\"\",(VLOOKUP(H47,'MD Companies Centers'!$A:$B,1,FALSE)))","v":""}]
[null,null,null,null,"ST-Piece",{"$f":"IF(H48=\"\",\"\",VLOOKUP(H48,'MD Companies Centers'!$A:$C,3,FALSE))","v":""},{"$f":"IF(H48=\"\",\"\",(VLOOKUP(H48,'MD Companies Centers'!$A:$B,2,FALSE)))","v":""},null,{"$f":"IF(H48=\"\",\"\",(VLOOKUP(H48,'MD Companies Centers'!$A:$B,1,FALSE)))","v":""}]
[null,null,null,null,"ST-Piece",{"$f":"IF(H49=\"\",\"\",VLOOKUP(H49,'MD Companies Centers'!$A:$C,3,FALSE))","v":""},{"$f":"IF(H49=\"\",\"\",(VLOOKUP(H49,'MD Companies Centers'!$A:$B,2,FALSE)))","v":""},null,{"$f":"IF(H49=\"\",\"\",(VLOOKUP(H49,'MD Companies Centers'!$A:$B,1,FALSE)))","v":""}]
[null,null,null,null,"ST-Piece",{"$f":"IF(H50=\"\",\"\",VLOOKUP(H50,'MD Companies Centers'!$A:$C,3,FALSE))","v":""},{"$f":"IF(H50=\"\",\"\",(VLOOKUP(H50,'MD Companies Centers'!$A:$B,2,FALSE)))","v":""},null,{"$f":"IF(H50=\"\",\"\",(VLOOKUP(H50,'MD Companies Centers'!$A:$B,1,FALSE)))","v":""}]
[null,null,null,null,"ST-Piece",{"$f":"IF(H51=\"\",\"\",VLOOKUP(H51,'MD Companies Centers'!$A:$C,3,FALSE))","v":""},{"$f":"IF(H51=\"\",\"\",(VLOOKUP(H51,'MD Companies Centers'!$A:$B,2,FALSE)))","v":""},null,{"$f":"IF(H51=\"\",\"\",(VLOOKUP(H51,'MD Companies Centers'!$A:$B,1,FALSE)))","v":""}]
[null,null,null,null,"ST-Piece",{"$f":"IF(H52=\"\",\"\",VLOOKUP(H52,'MD Companies Centers'!$A:$C,3,FALSE))","v":""},{"$f":"IF(H52=\"\",\"\",(VLOOKUP(H52,'MD Companies Centers'!$A:$B,2,FALSE)))","v":""},null,{"$f":"IF(H52=\"\",\"\",(VLOOKUP(H52,'MD Companies Centers'!$A:$B,1,FALSE)))","v":""}]
[null,null,null,null,"ST-Piece",{"$f":"IF(H53=\"\",\"\",VLOOKUP(H53,'MD Companies Centers'!$A:$C,3,FALSE))","v":""},{"$f":"IF(H53=\"\",\"\",(VLOOKUP(H53,'MD Companies Centers'!$A:$B,2,FALSE)))","v":""},null,{"$f":"IF(H53=\"\",\"\",(VLOOKUP(H53,'MD Companies Centers'!$A:$B,1,FALSE)))","v":""}]
[null,null,null,null,"ST-Piece",{"$f":"IF(H54=\"\",\"\",VLOOKUP(H54,'MD Companies Centers'!$A:$C,3,FALSE))","v":""},{"$f":"IF(H54=\"\",\"\",(VLOOKUP(H54,'MD Companies Centers'!$A:$B,2,FALSE)))","v":""},null,{"$f":"IF(H54=\"\",\"\",(VLOOKUP(H54,'MD Companies Centers'!$A:$B,1,FALSE)))","v":""}]
[null,null,null,null,"ST-Piece",{"$f":"IF(H55=\"\",\"\",VLOOKUP(H55,'MD Companies Centers'!$A:$C,3,FALSE))","v":""},{"$f":"IF(H55=\"\",\"\",(VLOOKUP(H55,'MD Companies Centers'!$A:$B,2,FALSE)))","v":""},null,{"$f":"IF(H55=\"\",\"\",(VLOOKUP(H55,'MD Companies Centers'!$A:$B,1,FALSE)))","v":""}]
[null,null,null,null,"ST-Piece",{"$f":"IF(H56=\"\",\"\",VLOOKUP(H56,'MD Companies Centers'!$A:$C,3,FALSE))","v":""},{"$f":"IF(H56=\"\",\"\",(VLOOKUP(H56,'MD Companies Centers'!$A:$B,2,FALSE)))","v":""},null,{"$f":"IF(H56=\"\",\"\",(VLOOKUP(H56,'MD Companies Centers'!$A:$B,1,FALSE)))","v":""}]
[null,null,null,null,"ST-Piece",{"$f":"IF(H57=\"\",\"\",VLOOKUP(H57,'MD Companies Centers'!$A:$C,3,FALSE))","v":""},{"$f":"IF(H57=\"\",\"\",(VLOOKUP(H57,'MD Companies Centers'!$A:$B,2,FALSE)))","v":""},null,{"$f":"IF(H57=\"\",\"\",(VLOOKUP(H57,'MD Companies Centers'!$A:$B,1,FALSE)))","v":""}]
[null,null,null,null,"ST-Piece",{"$f":"IF(H58=\"\",\"\",VLOOKUP(H58,'MD Companies Centers'!$A:$C,3,FALSE))","v":""},{"$f":"IF(H58=\"\",\"\",(VLOOKUP(H58,'MD Companies Centers'!$A:$B,2,FALSE)))","v":""},null,{"$f":"IF(H58=\"\",\"\",(VLOOKUP(H58,'MD Companies Centers'!$A:$B,1,FALSE)))","v":""}]
[null,null,null,null,"ST-Piece",{"$f":"IF(H59=\"\",\"\",VLOOKUP(H59,'MD Companies Centers'!$A:$C,3,FALSE))","v":""},{"$f":"IF(H59=\"\",\"\",(VLOOKUP(H59,'MD Companies Centers'!$A:$B,2,FALSE)))","v":""},null,{"$f":"IF(H59=\"\",\"\",(VLOOKUP(H59,'MD Companies Centers'!$A:$B,1,FALSE)))","v":""}]
[null,null,null,null,"ST-Piece",{"$f":"IF(H60=\"\",\"\",VLOOKUP(H60,'MD Companies Centers'!$A:$C,3,FALSE))","v":""},{"$f":"IF(H60=\"\",\"\",(VLOOKUP(H60,'MD Companies Centers'!$A:$B,2,FALSE)))","v":""},null,{"$f":"IF(H60=\"\",\"\",(VLOOKUP(H60,'MD Companies Centers'!$A:$B,1,FALSE)))","v":""}]
[null,null,null,null,"ST-Piece",{"$f":"IF(H61=\"\",\"\",VLOOKUP(H61,'MD Companies Centers'!$A:$C,3,FALSE))","v":""},{"$f":"IF(H61=\"\",\"\",(VLOOKUP(H61,'MD Companies Centers'!$A:$B,2,FALSE)))","v":""},null,{"$f":"IF(H61=\"\",\"\",(VLOOKUP(H61,'MD Companies Centers'!$A:$B,1,FALSE)))","v":""}]
[null,null,null,null,"ST-Piece",{"$f":"IF(H62=\"\",\"\",VLOOKUP(H62,'MD Companies Centers'!$A:$C,3,FALSE))","v":""},{"$f":"IF(H62=\"\",\"\",(VLOOKUP(H62,'MD Companies Centers'!$A:$B,2,FALSE)))","v":""},null,{"$f":"IF(H62=\"\",\"\",(VLOOKUP(H62,'MD Companies Centers'!$A:$B,1,FALSE)))","v":""}]
[null,null,null,null,"ST-Piece",{"$f":"IF(H63=\"\",\"\",VLOOKUP(H63,'MD Companies Centers'!$A:$C,3,FALSE))","v":""},{"$f":"IF(H63=\"\",\"\",(VLOOKUP(H63,'MD Companies Centers'!$A:$B,2,FALSE)))","v":""},null,{"$f":"IF(H63=\"\",\"\",(VLOOKUP(H63,'MD Companies Centers'!$A:$B,1,FALSE)))","v":""}]
[null,null,null,null,"ST-Piece",{"$f":"IF(H64=\"\",\"\",VLOOKUP(H64,'MD Companies Centers'!$A:$C,3,FALSE))","v":""},{"$f":"IF(H64=\"\",\"\",(VLOOKUP(H64,'MD Companies Centers'!$A:$B,2,FALSE)))","v":""},null,{"$f":"IF(H64=\"\",\"\",(VLOOKUP(H64,'MD Companies Centers'!$A:$B,1,FALSE)))","v":""}]
[null,null,null,null,"ST-Piece",{"$f":"IF(H65=\"\",\"\",VLOOKUP(H65,'MD Companies Centers'!$A:$C,3,FALSE))","v":""},{"$f":"IF(H65=\"\",\"\",(VLOOKUP(H65,'MD Companies Centers'!$A:$B,2,FALSE)))","v":""},null,{"$f":"IF(H65=\"\",\"\",(VLOOKUP(H65,'MD Companies Centers'!$A:$B,1,FALSE)))","v":""}]
[null,null,null,null,"ST-Piece",{"$f":"IF(H66=\"\",\"\",VLOOKUP(H66,'MD Companies Centers'!$A:$C,3,FALSE))","v":""},{"$f":"IF(H66=\"\",\"\",(VLOOKUP(H66,'MD Companies Centers'!$A:$B,2,FALSE)))","v":""},null,{"$f":"IF(H66=\"\",\"\",(VLOOKUP(H66,'MD Companies Centers'!$A:$B,1,FALSE)))","v":""}]
[null,null,null,null,"ST-Piece",{"$f":"IF(H67=\"\",\"\",VLOOKUP(H67,'MD Companies Centers'!$A:$C,3,FALSE))","v":""},{"$f":"IF(H67=\"\",\"\",(VLOOKUP(H67,'MD Companies Centers'!$A:$B,2,FALSE)))","v":""},null,{"$f":"IF(H67=\"\",\"\",(VLOOKUP(H67,'MD Companies Centers'!$A:$B,1,FALSE)))","v":""}]
[null,null,null,null,"ST-Piece",{"$f":"IF(H68=\"\",\"\",VLOOKUP(H68,'MD Companies Centers'!$A:$C,3,FALSE))","v":""},{"$f":"IF(H68=\"\",\"\",(VLOOKUP(H68,'MD Companies Centers'!$A:$B,2,FALSE)))","v":""},null,{"$f":"IF(H68=\"\",\"\",(VLOOKUP(H68,'MD Companies Centers'!$A:$B,1,FALSE)))","v":""}]
[null,null,null,null,"ST-Piece",{"$f":"IF(H69=\"\",\"\",VLOOKUP(H69,'MD Companies Centers'!$A:$C,3,FALSE))","v":""},{"$f":"IF(H69=\"\",\"\",(VLOOKUP(H69,'MD Companies Centers'!$A:$B,2,FALSE)))","v":""},null,{"$f":"IF(H69=\"\",\"\",(VLOOKUP(H69,'MD Companies Centers'!$A:$B,1,FALSE)))","v":""}]
[null,null,null,null,"ST-Piece",{"$f":"IF(H70=\"\",\"\",VLOOKUP(H70,'MD Companies Centers'!$A:$C,3,FALSE))","v":""},{"$f":"IF(H70=\"\",\"\",(VLOOKUP(H70,'MD Companies Centers'!$A:$B,2,FALSE)))","v":""},null,{"$f":"IF(H70=\"\",\"\",(VLOOKUP(H70,'MD Companies Centers'!$A:$B,1,FALSE)))","v":""}]
[null,null,null,null,"ST-Piece",{"$f":"IF(H71=\"\",\"\",VLOOKUP(H71,'MD Companies Centers'!$A:$C,3,FALSE))","v":""},{"$f":"IF(H71=\"\",\"\",(VLOOKUP(H71,'MD Companies Centers'!$A:$B,2,FALSE)))","v":""},null,{"$f":"IF(H71=\"\",\"\",(VLOOKUP(H71,'MD Companies Centers'!$A:$B,1,FALSE)))","v":""}]
[null,null,null,null,"ST-Piece",{"$f":"IF(H72=\"\",\"\",VLOOKUP(H72,'MD Companies Centers'!$A:$C,3,FALSE))","v":""},{"$f":"IF(H72=\"\",\"\",(VLOOKUP(H72,'MD Companies Centers'!$A:$B,2,FALSE)))","v":""},null,{"$f":"IF(H72=\"\",\"\",(VLOOKUP(H72,'MD Companies Centers'!$A:$B,1,FALSE)))","v":""}]
[null,null,null,null,"ST-Piece",{"$f":"IF(H73=\"\",\"\",VLOOKUP(H73,'MD Companies Centers'!$A:$C,3,FALSE))","v":""},{"$f":"IF(H73=\"\",\"\",(VLOOKUP(H73,'MD Companies Centers'!$A:$B,2,FALSE)))","v":""},null,{"$f":"IF(H73=\"\",\"\",(VLOOKUP(H73,'MD Companies Centers'!$A:$B,1,FALSE)))","v":""}]
[null,null,null,null,"ST-Piece",{"$f":"IF(H74=\"\",\"\",VLOOKUP(H74,'MD Companies Centers'!$A:$C,3,FALSE))","v":""},{"$f":"IF(H74=\"\",\"\",(VLOOKUP(H74,'MD Companies Centers'!$A:$B,2,FALSE)))","v":""},null,{"$f":"IF(H74=\"\",\"\",(VLOOKUP(H74,'MD Companies Centers'!$A:$B,1,FALSE)))","v":""}]
[null,null,null,null,"ST-Piece",{"$f":"IF(H75=\"\",\"\",VLOOKUP(H75,'MD Companies Centers'!$A:$C,3,FALSE))","v":""},{"$f":"IF(H75=\"\",\"\",(VLOOKUP(H75,'MD Companies Centers'!$A:$B,2,FALSE)))","v":""},null,{"$f":"IF(H75=\"\",\"\",(VLOOKUP(H75,'MD Companies Centers'!$A:$B,1,FALSE)))","v":""}]
[null,null,null,null,"ST-Piece",{"$f":"IF(H76=\"\",\"\",VLOOKUP(H76,'MD Companies Centers'!$A:$C,3,FALSE))","v":""},{"$f":"IF(H76=\"\",\"\",(VLOOKUP(H76,'MD Companies Centers'!$A:$B,2,FALSE)))","v":""},null,{"$f":"IF(H76=\"\",\"\",(VLOOKUP(H76,'MD Companies Centers'!$A:$B,1,FALSE)))","v":""}]
[null,null,null,null,"ST-Piece",{"$f":"IF(H77=\"\",\"\",VLOOKUP(H77,'MD Companies Centers'!$A:$C,3,FALSE))","v":""},{"$f":"IF(H77=\"\",\"\",(VLOOKUP(H77,'MD Companies Centers'!$A:$B,2,FALSE)))","v":""},null,{"$f":"IF(H77=\"\",\"\",(VLOOKUP(H77,'MD Companies Centers'!$A:$B,1,FALSE)))","v":""}]
[null,null,null,null,"ST-Piece",{"$f":"IF(H78=\"\",\"\",VLOOKUP(H78,'MD Companies Centers'!$A:$C,3,FALSE))","v":""},{"$f":"IF(H78=\"\",\"\",(VLOOKUP(H78,'MD Companies Centers'!$A:$B,2,FALSE)))","v":""},null,{"$f":"IF(H78=\"\",\"\",(VLOOKUP(H78,'MD Companies Centers'!$A:$B,1,FALSE)))","v":""}]
[null,null,null,null,"ST-Piece",{"$f":"IF(H79=\"\",\"\",VLOOKUP(H79,'MD Companies Centers'!$A:$C,3,FALSE))","v":""},{"$f":"IF(H79=\"\",\"\",(VLOOKUP(H79,'MD Companies Centers'!$A:$B,2,FALSE)))","v":""},null,{"$f":"IF(H79=\"\",\"\",(VLOOKUP(H79,'MD Companies Centers'!$A:$B,1,FALSE)))","v":""}]
[null,null,null,null,"ST-Piece",{"$f":"IF(H80=\"\",\"\",VLOOKUP(H80,'MD Companies Centers'!$A:$C,3,FALSE))","v":""},{"$f":"IF(H80=\"\",\"\",(VLOOKUP(H80,'MD Companies Centers'!$A:$B,2,FALSE)))","v":""},null,{"$f":"IF(H80=\"\",\"\",(VLOOKUP(H80,'MD Companies Centers'!$A:$B,1,FALSE)))","v":""}]
[null,null,null,null,"ST-Piece",{"$f":"IF(H81=\"\",\"\",VLOOKUP(H81,'MD Companies Centers'!$A:$C,3,FALSE))","v":""},{"$f":"IF(H81=\"\",\"\",(VLOOKUP(H81,'MD Companies Centers'!$A:$B,2,FALSE)))","v":""},null,{"$f":"IF(H81=\"\",\"\",(VLOOKUP(H81,'MD Companies Centers'!$A:$B,1,FALSE)))","v":""}]
[null,null,null,null,"ST-Piece",{"$f":"IF(H82=\"\",\"\",VLOOKUP(H82,'MD Companies Centers'!$A:$C,3,FALSE))","v":""},{"$f":"IF(H82=\"\",\"\",(VLOOKUP(H82,'MD Companies Centers'!$A:$B,2,FALSE)))","v":""},null,{"$f":"IF(H82=\"\",\"\",(VLOOKUP(H82,'MD Companies Centers'!$A:$B,1,FALSE)))","v":""}]
[null,null,null,null,"ST-Piece",{"$f":"IF(H83=\"\",\"\",VLOOKUP(H83,'MD Companies Centers'!$A:$C,3,FALSE))","v":""},{"$f":"IF(H83=\"\",\"\",(VLOOKUP(H83,'MD Companies Centers'!$A:$B,2,FALSE)))","v":""},null,{"$f":"IF(H83=\"\",\"\",(VLOOKUP(H83,'MD Companies Centers'!$A:$B,1,FALSE)))","v":""}]
[null,null,null,null,"ST-Piece",{"$f":"IF(H84=\"\",\"\",VLOOKUP(H84,'MD Companies Centers'!$A:$C,3,FALSE))","v":""},{"$f":"IF(H84=\"\",\"\",(VLOOKUP(H84,'MD Companies Centers'!$A:$B,2,FALSE)))","v":""},null,{"$f":"IF(H84=\"\",\"\",(VLOOKUP(H84,'MD Companies Centers'!$A:$B,1,FALSE)))","v":""}]
[null,null,null,null,"ST-Piece",{"$f":"IF(H85=\"\",\"\",VLOOKUP(H85,'MD Companies Centers'!$A:$C,3,FALSE))","v":""},{"$f":"IF(H85=\"\",\"\",(VLOOKUP(H85,'MD Companies Centers'!$A:$B,2,FALSE)))","v":""},null,{"$f":"IF(H85=\"\",\"\",(VLOOKUP(H85,'MD Companies Centers'!$A:$B,1,FALSE)))","v":""}]
[null,null,null,null,"ST-Piece",{"$f":"IF(H86=\"\",\"\",VLOOKUP(H86,'MD Companies Centers'!$A:$C,3,FALSE))","v":""},{"$f":"IF(H86=\"\",\"\",(VLOOKUP(H86,'MD Companies Centers'!$A:$B,2,FALSE)))","v":""},null,{"$f":"IF(H86=\"\",\"\",(VLOOKUP(H86,'MD Companies Centers'!$A:$B,1,FALSE)))","v":""}]
[null,null,null,null,"ST-Piece",{"$f":"IF(H87=\"\",\"\",VLOOKUP(H87,'MD Companies Centers'!$A:$C,3,FALSE))","v":""},{"$f":"IF(H87=\"\",\"\",(VLOOKUP(H87,'MD Companies Centers'!$A:$B,2,FALSE)))","v":""},null,{"$f":"IF(H87=\"\",\"\",(VLOOKUP(H87,'MD Companies Centers'!$A:$B,1,FALSE)))","v":""}]
[null,null,null,null,"ST-Piece",{"$f":"IF(H88=\"\",\"\",VLOOKUP(H88,'MD Companies Centers'!$A:$C,3,FALSE))","v":""},{"$f":"IF(H88=\"\",\"\",(VLOOKUP(H88,'MD Companies Centers'!$A:$B,2,FALSE)))","v":""},null,{"$f":"IF(H88=\"\",\"\",(VLOOKUP(H88,'MD Companies Centers'!$A:$B,1,FALSE)))","v":""}]
[null,null,null,null,"ST-Piece",{"$f":"IF(H89=\"\",\"\",VLOOKUP(H89,'MD Companies Centers'!$A:$C,3,FALSE))","v":""},{"$f":"IF(H89=\"\",\"\",(VLOOKUP(H89,'MD Companies Centers'!$A:$B,2,FALSE)))","v":""},null,{"$f":"IF(H89=\"\",\"\",(VLOOKUP(H89,'MD Companies Centers'!$A:$B,1,FALSE)))","v":""}]
[null,null,null,null,"ST-Piece",{"$f":"IF(H90=\"\",\"\",VLOOKUP(H90,'MD Companies Centers'!$A:$C,3,FALSE))","v":""},{"$f":"IF(H90=\"\",\"\",(VLOOKUP(H90,'MD Companies Centers'!$A:$B,2,FALSE)))","v":""},null,{"$f":"IF(H90=\"\",\"\",(VLOOKUP(H90,'MD Companies Centers'!$A:$B,1,FALSE)))","v":""}]
[null,null,null,null,"ST-Piece",{"$f":"IF(H91=\"\",\"\",VLOOKUP(H91,'MD Companies Centers'!$A:$C,3,FALSE))","v":""},{"$f":"IF(H91=\"\",\"\",(VLOOKUP(H91,'MD Companies Centers'!$A:$B,2,FALSE)))","v":""},null,{"$f":"IF(H91=\"\",\"\",(VLOOKUP(H91,'MD Companies Centers'!$A:$B,1,FALSE)))","v":""}]
[null,null,null,null,"ST-Piece",{"$f":"IF(H92=\"\",\"\",VLOOKUP(H92,'MD Companies Centers'!$A:$C,3,FALSE))","v":""},{"$f":"IF(H92=\"\",\"\",(VLOOKUP(H92,'MD Companies Centers'!$A:$B,2,FALSE)))","v":""},null,{"$f":"IF(H92=\"\",\"\",(VLOOKUP(H92,'MD Companies Centers'!$A:$B,1,FALSE)))","v":""}]
[null,null,null,null,"ST-Piece",{"$f":"IF(H93=\"\",\"\",VLOOKUP(H93,'MD Companies Centers'!$A:$C,3,FALSE))","v":""},{"$f":"IF(H93=\"\",\"\",(VLOOKUP(H93,'MD Companies Centers'!$A:$B,2,FALSE)))","v":""},null,{"$f":"IF(H93=\"\",\"\",(VLOOKUP(H93,'MD Companies Centers'!$A:$B,1,FALSE)))","v":""}]
[null,null,null,null,"ST-Piece",{"$f":"IF(H94=\"\",\"\",VLOOKUP(H94,'MD Companies Centers'!$A:$C,3,FALSE))","v":""},{"$f":"IF(H94=\"\",\"\",(VLOOKUP(H94,'MD Companies Centers'!$A:$B,2,FALSE)))","v":""},null,{"$f":"IF(H94=\"\",\"\",(VLOOKUP(H94,'MD Companies Centers'!$A:$B,1,FALSE)))","v":""}]
[null,null,null,null,"ST-Piece",{"$f":"IF(H95=\"\",\"\",VLOOKUP(H95,'MD Companies Centers'!$A:$C,3,FALSE))","v":""},{"$f":"IF(H95=\"\",\"\",(VLOOKUP(H95,'MD Companies Centers'!$A:$B,2,FALSE)))","v":""},null,{"$f":"IF(H95=\"\",\"\",(VLOOKUP(H95,'MD Companies Centers'!$A:$B,1,FALSE)))","v":""}]
[null,null,null,null,"ST-Piece",{"$f":"IF(H96=\"\",\"\",VLOOKUP(H96,'MD Companies Centers'!$A:$C,3,FALSE))","v":""},{"$f":"IF(H96=\"\",\"\",(VLOOKUP(H96,'MD Companies Centers'!$A:$B,2,FALSE)))","v":""},null,{"$f":"IF(H96=\"\",\"\",(VLOOKUP(H96,'MD Companies Centers'!$A:$B,1,FALSE)))","v":""}]
[null,null,null,null,"ST-Piece",{"$f":"IF(H97=\"\",\"\",VLOOKUP(H97,'MD Companies Centers'!$A:$C,3,FALSE))","v":""},{"$f":"IF(H97=\"\",\"\",(VLOOKUP(H97,'MD Companies Centers'!$A:$B,2,FALSE)))","v":""},null,{"$f":"IF(H97=\"\",\"\",(VLOOKUP(H97,'MD Companies Centers'!$A:$B,1,FALSE)))","v":""}]
[null,null,null,null,"ST-Piece",{"$f":"IF(H98=\"\",\"\",VLOOKUP(H98,'MD Companies Centers'!$A:$C,3,FALSE))","v":""},{"$f":"IF(H98=\"\",\"\",(VLOOKUP(H98,'MD Companies Centers'!$A:$B,2,FALSE)))","v":""},null,{"$f":"IF(H98=\"\",\"\",(VLOOKUP(H98,'MD Companies Centers'!$A:$B,1,FALSE)))","v":""}]
[null,null,null,null,"ST-Piece",{"$f":"IF(H99=\"\",\"\",VLOOKUP(H99,'MD Companies Centers'!$A:$C,3,FALSE))","v":""},{"$f":"IF(H99=\"\",\"\",(VLOOKUP(H99,'MD Companies Centers'!$A:$B,2,FALSE)))","v":""},null,{"$f":"IF(H99=\"\",\"\",(VLOOKUP(H99,'MD Companies Centers'!$A:$B,1,FALSE)))","v":""}]
[null,null,null,null,"ST-Piece",{"$f":"IF(H100=\"\",\"\",VLOOKUP(H100,'MD Companies Centers'!$A:$C,3,FALSE))","v":""},{"$f":"IF(H100=\"\",\"\",(VLOOKUP(H100,'MD Companies Centers'!$A:$B,2,FALSE)))","v":""},null,{"$f":"IF(H100=\"\",\"\",(VLOOKUP(H100,'MD Companies Centers'!$A:$B,1,FALSE)))","v":""}]
[null,null,null,null,"ST-Piece",{"$f":"IF(H101=\"\",\"\",VLOOKUP(H101,'MD Companies Centers'!$A:$C,3,FALSE))","v":""},{"$f":"IF(H101=\"\",\"\",(VLOOKUP(H101,'MD Companies Centers'!$A:$B,2,FALSE)))","v":""},null,{"$f":"IF(H101=\"\",\"\",(VLOOKUP(H101,'MD Companies Centers'!$A:$B,1,FALSE)))","v":""}]
[null,null,null,null,"ST-Piece",{"$f":"IF(H102=\"\",\"\",VLOOKUP(H102,'MD Companies Centers'!$A:$C,3,FALSE))","v":""},{"$f":"IF(H102=\"\",\"\",(VLOOKUP(H102,'MD Companies Centers'!$A:$B,2,FALSE)))","v":""},null,{"$f":"IF(H102=\"\",\"\",(VLOOKUP(H102,'MD Companies Centers'!$A:$B,1,FALSE)))","v":""}]
[null,null,null,null,"ST-Piece",{"$f":"IF(H103=\"\",\"\",VLOOKUP(H103,'MD Companies Centers'!$A:$C,3,FALSE))","v":""},{"$f":"IF(H103=\"\",\"\",(VLOOKUP(H103,'MD Companies Centers'!$A:$B,2,FALSE)))","v":""},null,{"$f":"IF(H103=\"\",\"\",(VLOOKUP(H103,'MD Companies Centers'!$A:$B,1,FALSE)))","v":""}]
[null,null,null,null,"ST-Piece",{"$f":"IF(H104=\"\",\"\",VLOOKUP(H104,'MD Companies Centers'!$A:$C,3,FALSE))","v":""},{"$f":"IF(H104=\"\",\"\",(VLOOKUP(H104,'MD Companies Centers'!$A:$B,2,FALSE)))","v":""},null,{"$f":"IF(H104=\"\",\"\",(VLOOKUP(H104,'MD Companies Centers'!$A:$B,1,FALSE)))","v":""}]
[null,null,null,null,"ST-Piece",{"$f":"IF(H105=\"\",\"\",VLOOKUP(H105,'MD Companies Centers'!$A:$C,3,FALSE))","v":""},{"$f":"IF(H105=\"\",\"\",(VLOOKUP(H105,'MD Companies Centers'!$A:$B,2,FALSE)))","v":""},null,{"$f":"IF(H105=\"\",\"\",(VLOOKUP(H105,'MD Companies Centers'!$A:$B,1,FALSE)))","v":""}]
[null,null,null,null,"ST-Piece",{"$f":"IF(H106=\"\",\"\",VLOOKUP(H106,'MD Companies Centers'!$A:$C,3,FALSE))","v":""},{"$f":"IF(H106=\"\",\"\",(VLOOKUP(H106,'MD Companies Centers'!$A:$B,2,FALSE)))","v":""},null,{"$f":"IF(H106=\"\",\"\",(VLOOKUP(H106,'MD Companies Centers'!$A:$B,1,FALSE)))","v":""}]
[null,null,null,null,"ST-Piece",{"$f":"IF(H107=\"\",\"\",VLOOKUP(H107,'MD Companies Centers'!$A:$C,3,FALSE))","v":""},{"$f":"IF(H107=\"\",\"\",(VLOOKUP(H107,'MD Companies Centers'!$A:$B,2,FALSE)))","v":""},null,{"$f":"IF(H107=\"\",\"\",(VLOOKUP(H107,'MD Companies Centers'!$A:$B,1,FALSE)))","v":""}]
[null,null,null,null,"ST-Piece",{"$f":"IF(H108=\"\",\"\",VLOOKUP(H108,'MD Companies Centers'!$A:$C,3,FALSE))","v":""},{"$f":"IF(H108=\"\",\"\",(VLOOKUP(H108,'MD Companies Centers'!$A:$B,2,FALSE)))","v":""},null,{"$f":"IF(H108=\"\",\"\",(VLOOKUP(H108,'MD Companies Centers'!$A:$B,1,FALSE)))","v":""}]
[null,null,null,null,"ST-Piece",{"$f":"IF(H109=\"\",\"\",VLOOKUP(H109,'MD Companies Centers'!$A:$C,3,FALSE))","v":""},{"$f":"IF(H109=\"\",\"\",(VLOOKUP(H109,'MD Companies Centers'!$A:$B,2,FALSE)))","v":""},null,{"$f":"IF(H109=\"\",\"\",(VLOOKUP(H109,'MD Companies Centers'!$A:$B,1,FALSE)))","v":""}]
[null,null,null,null,"ST-Piece",{"$f":"IF(H110=\"\",\"\",VLOOKUP(H110,'MD Companies Centers'!$A:$C,3,FALSE))","v":""},{"$f":"IF(H110=\"\",\"\",(VLOOKUP(H110,'MD Companies Centers'!$A:$B,2,FALSE)))","v":""},null,{"$f":"IF(H110=\"\",\"\",(VLOOKUP(H110,'MD Companies Centers'!$A:$B,1,FALSE)))","v":""}]
[null,null,null,null,"ST-Piece",{"$f":"IF(H111=\"\",\"\",VLOOKUP(H111,'MD Companies Centers'!$A:$C,3,FALSE))","v":""},{"$f":"IF(H111=\"\",\"\",(VLOOKUP(H111,'MD Companies Centers'!$A:$B,2,FALSE)))","v":""},null,{"$f":"IF(H111=\"\",\"\",(VLOOKUP(H111,'MD Companies Centers'!$A:$B,1,FALSE)))","v":""}]
[null,null,null,null,"ST-Piece",{"$f":"IF(H112=\"\",\"\",VLOOKUP(H112,'MD Companies Centers'!$A:$C,3,FALSE))","v":""},{"$f":"IF(H112=\"\",\"\",(VLOOKUP(H112,'MD Companies Centers'!$A:$B,2,FALSE)))","v":""},null,{"$f":"IF(H112=\"\",\"\",(VLOOKUP(H112,'MD Companies Centers'!$A:$B,1,FALSE)))","v":""}]
[null,null,null,null,"ST-Piece",{"$f":"IF(H113=\"\",\"\",VLOOKUP(H113,'MD Companies Centers'!$A:$C,3,FALSE))","v":""},{"$f":"IF(H113=\"\",\"\",(VLOOKUP(H113,'MD Companies Centers'!$A:$B,2,FALSE)))","v":""},null,{"$f":"IF(H113=\"\",\"\",(VLOOKUP(H113,'MD Companies Centers'!$A:$B,1,FALSE)))","v":""}]
[null,null,null,null,"ST-Piece",{"$f":"IF(H114=\"\",\"\",VLOOKUP(H114,'MD Companies Centers'!$A:$C,3,FALSE))","v":""},{"$f":"IF(H114=\"\",\"\",(VLOOKUP(H114,'MD Companies Centers'!$A:$B,2,FALSE)))","v":""},null,{"$f":"IF(H114=\"\",\"\",(VLOOKUP(H114,'MD Companies Centers'!$A:$B,1,FALSE)))","v":""}]
[null,null,null,null,"ST-Piece",{"$f":"IF(H115=\"\",\"\",VLOOKUP(H115,'MD Companies Centers'!$A:$C,3,FALSE))","v":""},{"$f":"IF(H115=\"\",\"\",(VLOOKUP(H115,'MD Companies Centers'!$A:$B,2,FALSE)))","v":""},null,{"$f":"IF(H115=\"\",\"\",(VLOOKUP(H115,'MD Companies Centers'!$A:$B,1,FALSE)))","v":""}]
[null,null,null,null,"ST-Piece",{"$f":"IF(H116=\"\",\"\",VLOOKUP(H116,'MD Companies Centers'!$A:$C,3,FALSE))","v":""},{"$f":"IF(H116=\"\",\"\",(VLOOKUP(H116,'MD Companies Centers'!$A:$B,2,FALSE)))","v":""},null,{"$f":"IF(H116=\"\",\"\",(VLOOKUP(H116,'MD Companies Centers'!$A:$B,1,FALSE)))","v":""}]
[null,null,null,null,"ST-Piece",{"$f":"IF(H117=\"\",\"\",VLOOKUP(H117,'MD Companies Centers'!$A:$C,3,FALSE))","v":""},{"$f":"IF(H117=\"\",\"\",(VLOOKUP(H117,'MD Companies Centers'!$A:$B,2,FALSE)))","v":""},null,{"$f":"IF(H117=\"\",\"\",(VLOOKUP(H117,'MD Companies Centers'!$A:$B,1,FALSE)))","v":""}]
[null,null,null,null,"ST-Piece",{"$f":"IF(H118=\"\",\"\",VLOOKUP(H118,'MD Companies Centers'!$A:$C,3,FALSE))","v":""},{"$f":"IF(H118=\"\",\"\",(VLOOKUP(H118,'MD Companies Centers'!$A:$B,2,FALSE)))","v":""},null,{"$f":"IF(H118=\"\",\"\",(VLOOKUP(H118,'MD Companies Centers'!$A:$B,1,FALSE)))","v":""}]
[null,null,null,null,"ST-Piece",{"$f":"IF(H119=\"\",\"\",VLOOKUP(H119,'MD Companies Centers'!$A:$C,3,FALSE))","v":""},{"$f":"IF(H119=\"\",\"\",(VLOOKUP(H119,'MD Companies Centers'!$A:$B,2,FALSE)))","v":""},null,{"$f":"IF(H119=\"\",\"\",(VLOOKUP(H119,'MD Companies Centers'!$A:$B,1,FALSE)))","v":""}]
[null,null,null,null,"ST-Piece",{"$f":"IF(H120=\"\",\"\",VLOOKUP(H120,'MD Companies Centers'!$A:$C,3,FALSE))","v":""},{"$f":"IF(H120=\"\",\"\",(VLOOKUP(H120,'MD Companies Centers'!$A:$B,2,FALSE)))","v":""},null,{"$f":"IF(H120=\"\",\"\",(VLOOKUP(H120,'MD Companies Centers'!$A:$B,1,FALSE)))","v":""}]
[]
[]
["Comments"]

{"sheet":"Capitalization","index":5,"n_rows":65,"n_cols":20,"rows_kept":65,"cut":false,"hidden":false,"merged":[[7,19,8,19],[7,4,8,4],[7,18,8,18],[7,6,8,6],[7,7,7,15],[7,17,8,17],[64,0,64,1],[7,3,8,3],[7,5,8,5],[7,0,8,0],[7,16,8,16],[7,2,8,2]]}
[]
[null,null,null,null,null,null,null,"ASSET CAPITALIZATION"]
[]
[]
[]
[]
[]
["AuC Number","Partial capitalization AUC","Currency","Asset Number Receiver","Company Code","Hotel Name","B.A","Replacement Expenses*\n*Fixed Asset responsible must specify the expenses that can be activated",null,null,null,null,null,null,null,null,"Document Date*\n*The day when the document is issued","Posting Date","Capitalization date","Capitalization number"]
[null,"Amount",null,null,null,null,null,"GL Account","Amount","Pst.Key","Currency","CECO","Ref Key 2","Company. Code","Hotel Name","B.A"]
[null,null,null,null,{"$f":"IF(G10=\"\",\"\",VLOOKUP(G10,'MD Companies Centers'!$A:$C,3,FALSE))","v":""},{"$f":"IF(G10=\"\",\"\",(VLOOKUP(G10,'MD Companies Centers'!$A:$B,2,FALSE)))","v":""},null,null,null,null,null,null,null,{"$f":"IF(P10=\"\",\"\",VLOOKUP(P10,'MD Companies Centers'!$A:$C,3,FALSE))","v":""},{"$f":"IF(P10=\"\",\"\",(VLOOKUP(P10,'MD Companies Centers'!$A:$B,2,FALSE)))","v":""}]
[null,null,null,null,{"$f":"IF(G11=\"\",\"\",VLOOKUP(G11,'MD Companies Centers'!$A:$C,3,FALSE))","v":""},{"$f":"IF(G11=\"\",\"\",(VLOOKUP(G11,'MD Companies Centers'!$A:$B,2,FALSE)))","v":""},null,null,null,null,null,null,null,{"$f":"IF(P11=\"\",\"\",VLOOKUP(P11,'MD Companies Centers'!$A:$C,3,FALSE))","v":""},{"$f":"IF(P11=\"\",\"\",(VLOOKUP(P11,'MD Companies Centers'!$A:$B,2,FALSE)))","v":""}]
[null,null,null,null,{"$f":"IF(G12=\"\",\"\",VLOOKUP(G12,'MD Companies Centers'!$A:$C,3,FALSE))","v":""},{"$f":"IF(G12=\"\",\"\",(VLOOKUP(G12,'MD Companies Centers'!$A:$B,2,FALSE)))","v":""},null,null,null,null,null,null,null,{"$f":"IF(P12=\"\",\"\",VLOOKUP(P12,'MD Companies Centers'!$A:$C,3,FALSE))","v":""},{"$f":"IF(P12=\"\",\"\",(VLOOKUP(P12,'MD Companies Centers'!$A:$B,2,FALSE)))","v":""}]
[null,null,null,null,{"$f":"IF(G13=\"\",\"\",VLOOKUP(G13,'MD Companies Centers'!$A:$C,3,FALSE))","v":""},{"$f":"IF(G13=\"\",\"\",(VLOOKUP(G13,'MD Companies Centers'!$A:$B,2,FALSE)))","v":""},null,null,null,null,null,null,null,{"$f":"IF(P13=\"\",\"\",VLOOKUP(P13,'MD Companies Centers'!$A:$C,3,FALSE))","v":""},{"$f":"IF(P13=\"\",\"\",(VLOOKUP(P13,'MD Companies Centers'!$A:$B,2,FALSE)))","v":""}]
[null,null,null,null,{"$f":"IF(G14=\"\",\"\",VLOOKUP(G14,'MD Companies Centers'!$A:$C,3,FALSE))","v":""},{"$f":"IF(G14=\"\",\"\",(VLOOKUP(G14,'MD Companies Centers'!$A:$B,2,FALSE)))","v":""},null,null,null,null,null,null,null,{"$f":"IF(P14=\"\",\"\",VLOOKUP(P14,'MD Companies Centers'!$A:$C,3,FALSE))","v":""},{"$f":"IF(P14=\"\",\"\",(VLOOKUP(P14,'MD Companies Centers'!$A:$B,2,FALSE)))","v":""}]
[null,null,null,null,{"$f":"IF(G15=\"\",\"\",VLOOKUP(G15,'MD Companies Centers'!$A:$C,3,FALSE))","v":""},{"$f":"IF(G15=\"\",\"\",(VLOOKUP(G15,'MD Companies Centers'!$A:$B,2,FALSE)))","v":""},null,null,null,null,null,null,null,{"$f":"IF(P15=\"\",\"\",VLOOKUP(P15,'MD Companies Centers'!$A:$C,3,FALSE))","v":""},{"$f":"IF(P15=\"\",\"\",(VLOOKUP(P15,'MD Companies Centers'!$A:$B,2,FALSE)))","v":""}]
[null,null,null,null,{"$f":"IF(G16=\"\",\"\",VLOOKUP(G16,'MD Companies Centers'!$A:$C,3,FALSE))","v":""},{"$f":"IF(G16=\"\",\"\",(VLOOKUP(G16,'MD Companies Centers'!$A:$B,2,FALSE)))","v":""},null,null,null,null,null,null,null,{"$f":"IF(P16=\"\",\"\",VLOOKUP(P16,'MD Companies Centers'!$A:$C,3,FALSE))","v":""},{"$f":"IF(P16=\"\",\"\",(VLOOKUP(P16,'MD Companies Centers'!$A:$B,2,FALSE)))","v":""}]
[null,null,null,null,{"$f":"IF(G17=\"\",\"\",VLOOKUP(G17,'MD Companies Centers'!$A:$C,3,FALSE))","v":""},{"$f":"IF(G17=\"\",\"\",(VLOOKUP(G17,'MD Companies Centers'!$A:$B,2,FALSE)))","v":""},null,null,null,null,null,null,null,{"$f":"IF(P17=\"\",\"\",VLOOKUP(P17,'MD Companies Centers'!$A:$C,3,FALSE))","v":""},{"$f":"IF(P17=\"\",\"\",(VLOOKUP(P17,'MD Companies Centers'!$A:$B,2,FALSE)))","v":""}]
[null,null,null,null,{"$f":"IF(G18=\"\",\"\",VLOOKUP(G18,'MD Companies Centers'!$A:$C,3,FALSE))","v":""},{"$f":"IF(G18=\"\",\"\",(VLOOKUP(G18,'MD Companies Centers'!$A:$B,2,FALSE)))","v":""},null,null,null,null,null,null,null,{"$f":"IF(P18=\"\",\"\",VLOOKUP(P18,'MD Companies Centers'!$A:$C,3,FALSE))","v":""},{"$f":"IF(P18=\"\",\"\",(VLOOKUP(P18,'MD Companies Centers'!$A:$B,2,FALSE)))","v":""}]
[null,null,null,null,{"$f":"IF(G19=\"\",\"\",VLOOKUP(G19,'MD Companies Centers'!$A:$C,3,FALSE))","v":""},{"$f":"IF(G19=\"\",\"\",(VLOOKUP(G19,'MD Companies Centers'!$A:$B,2,FALSE)))","v":""},null,null,null,null,null,null,null,{"$f":"IF(P19=\"\",\"\",VLOOKUP(P19,'MD Companies Centers'!$A:$C,3,FALSE))","v":""},{"$f":"IF(P19=\"\",\"\",(VLOOKUP(P19,'MD Companies Centers'!$A:$B,2,FALSE)))","v":""}]
[null,null,null,null,{"$f":"IF(G20=\"\",\"\",VLOOKUP(G20,'MD Companies Centers'!$A:$C,3,FALSE))","v":""},{"$f":"IF(G20=\"\",\"\",(VLOOKUP(G20,'MD Companies Centers'!$A:$B,2,FALSE)))","v":""},null,null,null,null,null,null,null,{"$f":"IF(P20=\"\",\"\",VLOOKUP(P20,'MD Companies Centers'!$A:$C,3,FALSE))","v":""},{"$f":"IF(P20=\"\",\"\",(VLOOKUP(P20,'MD Companies Centers'!$A:$B,2,FALSE)))","v":""}]
[null,null,null,null,{"$f":"IF(G21=\"\",\"\",VLOOKUP(G21,'MD Companies Centers'!$A:$C,3,FALSE))","v":""},{"$f":"IF(G21=\"\",\"\",(VLOOKUP(G21,'MD Companies Centers'!$A:$B,2,FALSE)))","v":""},null,null,null,null,null,null,null,{"$f":"IF(P21=\"\",\"\",VLOOKUP(P21,'MD Companies Centers'!$A:$C,3,FALSE))","v":""},{"$f":"IF(P21=\"\",\"\",(VLOOKUP(P21,'MD Companies Centers'!$A:$B,2,FALSE)))","v":""}]
[null,null,null,null,{"$f":"IF(G22=\"\",\"\",VLOOKUP(G22,'MD Companies Centers'!$A:$C,3,FALSE))","v":""},{"$f":"IF(G22=\"\",\"\",(VLOOKUP(G22,'MD Companies Centers'!$A:$B,2,FALSE)))","v":""},null,null,null,null,null,null,null,{"$f":"IF(P22=\"\",\"\",VLOOKUP(P22,'MD Companies Centers'!$A:$C,3,FALSE))","v":""},{"$f":"IF(P22=\"\",\"\",(VLOOKUP(P22,'MD Companies Centers'!$A:$B,2,FALSE)))","v":""}]
[null,null,null,null,{"$f":"IF(G23=\"\",\"\",VLOOKUP(G23,'MD Companies Centers'!$A:$C,3,FALSE))","v":""},{"$f":"IF(G23=\"\",\"\",(VLOOKUP(G23,'MD Companies Centers'!$A:$B,2,FALSE)))","v":""},null,null,null,null,null,null,null,{"$f":"IF(P23=\"\",\"\",VLOOKUP(P23,'MD Companies Centers'!$A:$C,3,FALSE))","v":""},{"$f":"IF(P23=\"\",\"\",(VLOOKUP(P23,'MD Companies Centers'!$A:$B,2,FALSE)))","v":""}]
[null,null,null,null,{"$f":"IF(G24=\"\",\"\",VLOOKUP(G24,'MD Companies Centers'!$A:$C,3,FALSE))","v":""},{"$f":"IF(G24=\"\",\"\",(VLOOKUP(G24,'MD Companies Centers'!$A:$B,2,FALSE)))","v":""},null,null,null,null,null,null,null,{"$f":"IF(P24=\"\",\"\",VLOOKUP(P24,'MD Companies Centers'!$A:$C,3,FALSE))","v":""},{"$f":"IF(P24=\"\",\"\",(VLOOKUP(P24,'MD Companies Centers'!$A:$B,2,FALSE)))","v":""}]
[null,null,null,null,{"$f":"IF(G25=\"\",\"\",VLOOKUP(G25,'MD Companies Centers'!$A:$C,3,FALSE))","v":""},{"$f":"IF(G25=\"\",\"\",(VLOOKUP(G25,'MD Companies Centers'!$A:$B,2,FALSE)))","v":""},null,null,null,null,null,null,null,{"$f":"IF(P25=\"\",\"\",VLOOKUP(P25,'MD Companies Centers'!$A:$C,3,FALSE))","v":""},{"$f":"IF(P25=\"\",\"\",(VLOOKUP(P25,'MD Companies Centers'!$A:$B,2,FALSE)))","v":""}]
[null,null,null,null,{"$f":"IF(G26=\"\",\"\",VLOOKUP(G26,'MD Companies Centers'!$A:$C,3,FALSE))","v":""},{"$f":"IF(G26=\"\",\"\",(VLOOKUP(G26,'MD Companies Centers'!$A:$B,2,FALSE)))","v":""},null,null,null,null,null,null,null,{"$f":"IF(P26=\"\",\"\",VLOOKUP(P26,'MD Companies Centers'!$A:$C,3,FALSE))","v":""},{"$f":"IF(P26=\"\",\"\",(VLOOKUP(P26,'MD Companies Centers'!$A:$B,2,FALSE)))","v":""}]
[null,null,null,null,{"$f":"IF(G27=\"\",\"\",VLOOKUP(G27,'MD Companies Centers'!$A:$C,3,FALSE))","v":""},{"$f":"IF(G27=\"\",\"\",(VLOOKUP(G27,'MD Companies Centers'!$A:$B,2,FALSE)))","v":""},null,null,null,null,null,null,null,{"$f":"IF(P27=\"\",\"\",VLOOKUP(P27,'MD Companies Centers'!$A:$C,3,FALSE))","v":""},{"$f":"IF(P27=\"\",\"\",(VLOOKUP(P27,'MD Companies Centers'!$A:$B,2,FALSE)))","v":""}]
[null,null,null,null,{"$f":"IF(G28=\"\",\"\",VLOOKUP(G28,'MD Companies Centers'!$A:$C,3,FALSE))","v":""},{"$f":"IF(G28=\"\",\"\",(VLOOKUP(G28,'MD Companies Centers'!$A:$B,2,FALSE)))","v":""},null,null,null,null,null,null,null,{"$f":"IF(P28=\"\",\"\",VLOOKUP(P28,'MD Companies Centers'!$A:$C,3,FALSE))","v":""},{"$f":"IF(P28=\"\",\"\",(VLOOKUP(P28,'MD Companies Centers'!$A:$B,2,FALSE)))","v":""}]
[null,null,null,null,{"$f":"IF(G29=\"\",\"\",VLOOKUP(G29,'MD Companies Centers'!$A:$C,3,FALSE))","v":""},{"$f":"IF(G29=\"\",\"\",(VLOOKUP(G29,'MD Companies Centers'!$A:$B,2,FALSE)))","v":""},null,null,null,null,null,null,null,{"$f":"IF(P29=\"\",\"\",VLOOKUP(P29,'MD Companies Centers'!$A:$C,3,FALSE))","v":""},{"$f":"IF(P29=\"\",\"\",(VLOOKUP(P29,'MD Companies Centers'!$A:$B,2,FALSE)))","v":""}]
[null,null,null,null,{"$f":"IF(G30=\"\",\"\",VLOOKUP(G30,'MD Companies Centers'!$A:$C,3,FALSE))","v":""},{"$f":"IF(G30=\"\",\"\",(VLOOKUP(G30,'MD Companies Centers'!$A:$B,2,FALSE)))","v":""},null,null,null,null,null,null,null,{"$f":"IF(P30=\"\",\"\",VLOOKUP(P30,'MD Companies Centers'!$A:$C,3,FALSE))","v":""},{"$f":"IF(P30=\"\",\"\",(VLOOKUP(P30,'MD Companies Centers'!$A:$B,2,FALSE)))","v":""}]
[null,null,null,null,{"$f":"IF(G31=\"\",\"\",VLOOKUP(G31,'MD Companies Centers'!$A:$C,3,FALSE))","v":""},{"$f":"IF(G31=\"\",\"\",(VLOOKUP(G31,'MD Companies Centers'!$A:$B,2,FALSE)))","v":""},null,null,null,null,null,null,null,{"$f":"IF(P31=\"\",\"\",VLOOKUP(P31,'MD Companies Centers'!$A:$C,3,FALSE))","v":""},{"$f":"IF(P31=\"\",\"\",(VLOOKUP(P31,'MD Companies Centers'!$A:$B,2,FALSE)))","v":""}]
[null,null,null,null,{"$f":"IF(G32=\"\",\"\",VLOOKUP(G32,'MD Companies Centers'!$A:$C,3,FALSE))","v":""},{"$f":"IF(G32=\"\",\"\",(VLOOKUP(G32,'MD Companies Centers'!$A:$B,2,FALSE)))","v":""},null,null,null,null,null,null,null,{"$f":"IF(P32=\"\",\"\",VLOOKUP(P32,'MD Companies Centers'!$A:$C,3,FALSE))","v":""},{"$f":"IF(P32=\"\",\"\",(VLOOKUP(P32,'MD Companies Centers'!$A:$B,2,FALSE)))","v":""}]
[null,null,null,null,{"$f":"IF(G33=\"\",\"\",VLOOKUP(G33,'MD Companies Centers'!$A:$C,3,FALSE))","v":""},{"$f":"IF(G33=\"\",\"\",(VLOOKUP(G33,'MD Companies Centers'!$A:$B,2,FALSE)))","v":""},null,null,null,null,null,null,null,{"$f":"IF(P33=\"\",\"\",VLOOKUP(P33,'MD Companies Centers'!$A:$C,3,FALSE))","v":""},{"$f":"IF(P33=\"\",\"\",(VLOOKUP(P33,'MD Companies Centers'!$A:$B,2,FALSE)))","v":""}]
[null,null,null,null,{"$f":"IF(G34=\"\",\"\",VLOOKUP(G34,'MD Companies Centers'!$A:$C,3,FALSE))","v":""},{"$f":"IF(G34=\"\",\"\",(VLOOKUP(G34,'MD Companies Centers'!$A:$B,2,FALSE)))","v":""},null,null,null,null,null,null,null,{"$f":"IF(P34=\"\",\"\",VLOOKUP(P34,'MD Companies Centers'!$A:$C,3,FALSE))","v":""},{"$f":"IF(P34=\"\",\"\",(VLOOKUP(P34,'MD Companies Centers'!$A:$B,2,FALSE)))","v":""}]
[null,null,null,null,{"$f":"IF(G35=\"\",\"\",VLOOKUP(G35,'MD Companies Centers'!$A:$C,3,FALSE))","v":""},{"$f":"IF(G35=\"\",\"\",(VLOOKUP(G35,'MD Companies Centers'!$A:$B,2,FALSE)))","v":""},null,null,null,null,null,null,null,{"$f":"IF(P35=\"\",\"\",VLOOKUP(P35,'MD Companies Centers'!$A:$C,3,FALSE))","v":""},{"$f":"IF(P35=\"\",\"\",(VLOOKUP(P35,'MD Companies Centers'!$A:$B,2,FALSE)))","v":""}]
[null,null,null,null,{"$f":"IF(G36=\"\",\"\",VLOOKUP(G36,'MD Companies Centers'!$A:$C,3,FALSE))","v":""},{"$f":"IF(G36=\"\",\"\",(VLOOKUP(G36,'MD Companies Centers'!$A:$B,2,FALSE)))","v":""},null,null,null,null,null,null,null,{"$f":"IF(P36=\"\",\"\",VLOOKUP(P36,'MD Companies Centers'!$A:$C,3,FALSE))","v":""},{"$f":"IF(P36=\"\",\"\",(VLOOKUP(P36,'MD Companies Centers'!$A:$B,2,FALSE)))","v":""}]
[null,null,null,null,{"$f":"IF(G37=\"\",\"\",VLOOKUP(G37,'MD Companies Centers'!$A:$C,3,FALSE))","v":""},{"$f":"IF(G37=\"\",\"\",(VLOOKUP(G37,'MD Companies Centers'!$A:$B,2,FALSE)))","v":""},null,null,null,null,null,null,null,{"$f":"IF(P37=\"\",\"\",VLOOKUP(P37,'MD Companies Centers'!$A:$C,3,FALSE))","v":""},{"$f":"IF(P37=\"\",\"\",(VLOOKUP(P37,'MD Companies Centers'!$A:$B,2,FALSE)))","v":""}]
[null,null,null,null,{"$f":"IF(G38=\"\",\"\",VLOOKUP(G38,'MD Companies Centers'!$A:$C,3,FALSE))","v":""},{"$f":"IF(G38=\"\",\"\",(VLOOKUP(G38,'MD Companies Centers'!$A:$B,2,FALSE)))","v":""},null,null,null,null,null,null,null,{"$f":"IF(P38=\"\",\"\",VLOOKUP(P38,'MD Companies Centers'!$A:$C,3,FALSE))","v":""},{"$f":"IF(P38=\"\",\"\",(VLOOKUP(P38,'MD Companies Centers'!$A:$B,2,FALSE)))","v":""}]
[null,null,null,null,{"$f":"IF(G39=\"\",\"\",VLOOKUP(G39,'MD Companies Centers'!$A:$C,3,FALSE))","v":""},{"$f":"IF(G39=\"\",\"\",(VLOOKUP(G39,'MD Companies Centers'!$A:$B,2,FALSE)))","v":""},null,null,null,null,null,null,null,{"$f":"IF(P39=\"\",\"\",VLOOKUP(P39,'MD Companies Centers'!$A:$C,3,FALSE))","v":""},{"$f":"IF(P39=\"\",\"\",(VLOOKUP(P39,'MD Companies Centers'!$A:$B,2,FALSE)))","v":""}]
[null,null,null,null,{"$f":"IF(G40=\"\",\"\",VLOOKUP(G40,'MD Companies Centers'!$A:$C,3,FALSE))","v":""},{"$f":"IF(G40=\"\",\"\",(VLOOKUP(G40,'MD Companies Centers'!$A:$B,2,FALSE)))","v":""},null,null,null,null,null,null,null,{"$f":"IF(P40=\"\",\"\",VLOOKUP(P40,'MD Companies Centers'!$A:$C,3,FALSE))","v":""},{"$f":"IF(P40=\"\",\"\",(VLOOKUP(P40,'MD Companies Centers'!$A:$B,2,FALSE)))","v":""}]
[null,null,null,null,{"$f":"IF(G41=\"\",\"\",VLOOKUP(G41,'MD Companies Centers'!$A:$C,3,FALSE))","v":""},{"$f":"IF(G41=\"\",\"\",(VLOOKUP(G41,'MD Companies Centers'!$A:$B,2,FALSE)))","v":""},null,null,null,null,null,null,null,{"$f":"IF(P41=\"\",\"\",VLOOKUP(P41,'MD Companies Centers'!$A:$C,3,FALSE))","v":""},{"$f":"IF(P41=\"\",\"\",(VLOOKUP(P41,'MD Companies Centers'!$A:$B,2,FALSE)))","v":""}]
[null,null,null,null,{"$f":"IF(G42=\"\",\"\",VLOOKUP(G42,'MD Companies Centers'!$A:$C,3,FALSE))","v":""},{"$f":"IF(G42=\"\",\"\",(VLOOKUP(G42,'MD Companies Centers'!$A:$B,2,FALSE)))","v":""},null,null,null,null,null,null,null,{"$f":"IF(P42=\"\",\"\",VLOOKUP(P42,'MD Companies Centers'!$A:$C,3,FALSE))","v":""},{"$f":"IF(P42=\"\",\"\",(VLOOKUP(P42,'MD Companies Centers'!$A:$B,2,FALSE)))","v":""}]
[null,null,null,null,{"$f":"IF(G43=\"\",\"\",VLOOKUP(G43,'MD Companies Centers'!$A:$C,3,FALSE))","v":""},{"$f":"IF(G43=\"\",\"\",(VLOOKUP(G43,'MD Companies Centers'!$A:$B,2,FALSE)))","v":""},null,null,null,null,null,null,null,{"$f":"IF(P43=\"\",\"\",VLOOKUP(P43,'MD Companies Centers'!$A:$C,3,FALSE))","v":""},{"$f":"IF(P43=\"\",\"\",(VLOOKUP(P43,'MD Companies Centers'!$A:$B,2,FALSE)))","v":""}]
[null,null,null,null,{"$f":"IF(G44=\"\",\"\",VLOOKUP(G44,'MD Companies Centers'!$A:$C,3,FALSE))","v":""},{"$f":"IF(G44=\"\",\"\",(VLOOKUP(G44,'MD Companies Centers'!$A:$B,2,FALSE)))","v":""},null,null,null,null,null,null,null,{"$f":"IF(P44=\"\",\"\",VLOOKUP(P44,'MD Companies Centers'!$A:$C,3,FALSE))","v":""},{"$f":"IF(P44=\"\",\"\",(VLOOKUP(P44,'MD Companies Centers'!$A:$B,2,FALSE)))","v":""}]
[null,null,null,null,{"$f":"IF(G45=\"\",\"\",VLOOKUP(G45,'MD Companies Centers'!$A:$C,3,FALSE))","v":""},{"$f":"IF(G45=\"\",\"\",(VLOOKUP(G45,'MD Companies Centers'!$A:$B,2,FALSE)))","v":""},null,null,null,null,null,null,null,{"$f":"IF(P45=\"\",\"\",VLOOKUP(P45,'MD Companies Centers'!$A:$C,3,FALSE))","v":""},{"$f":"IF(P45=\"\",\"\",(VLOOKUP(P45,'MD Companies Centers'!$A:$B,2,FALSE)))","v":""}]
[null,null,null,null,{"$f":"IF(G46=\"\",\"\",VLOOKUP(G46,'MD Companies Centers'!$A:$C,3,FALSE))","v":""},{"$f":"IF(G46=\"\",\"\",(VLOOKUP(G46,'MD Companies Centers'!$A:$B,2,FALSE)))","v":""},null,null,null,null,null,null,null,{"$f":"IF(P46=\"\",\"\",VLOOKUP(P46,'MD Companies Centers'!$A:$C,3,FALSE))","v":""},{"$f":"IF(P46=\"\",\"\",(VLOOKUP(P46,'MD Companies Centers'!$A:$B,2,FALSE)))","v":""}]
[null,null,null,null,{"$f":"IF(G47=\"\",\"\",VLOOKUP(G47,'MD Companies Centers'!$A:$C,3,FALSE))","v":""},{"$f":"IF(G47=\"\",\"\",(VLOOKUP(G47,'MD Companies Centers'!$A:$B,2,FALSE)))","v":""},null,null,null,null,null,null,null,{"$f":"IF(P47=\"\",\"\",VLOOKUP(P47,'MD Companies Centers'!$A:$C,3,FALSE))","v":""},{"$f":"IF(P47=\"\",\"\",(VLOOKUP(P47,'MD Companies Centers'!$A:$B,2,FALSE)))","v":""}]
[null,null,null,null,{"$f":"IF(G48=\"\",\"\",VLOOKUP(G48,'MD Companies Centers'!$A:$C,3,FALSE))","v":""},{"$f":"IF(G48=\"\",\"\",(VLOOKUP(G48,'MD Companies Centers'!$A:$B,2,FALSE)))","v":""},null,null,null,null,null,null,null,{"$f":"IF(P48=\"\",\"\",VLOOKUP(P48,'MD Companies Centers'!$A:$C,3,FALSE))","v":""},{"$f":"IF(P48=\"\",\"\",(VLOOKUP(P48,'MD Companies Centers'!$A:$B,2,FALSE)))","v":""}]
[null,null,null,null,{"$f":"IF(G49=\"\",\"\",VLOOKUP(G49,'MD Companies Centers'!$A:$C,3,FALSE))","v":""},{"$f":"IF(G49=\"\",\"\",(VLOOKUP(G49,'MD Companies Centers'!$A:$B,2,FALSE)))","v":""},null,null,null,null,null,null,null,{"$f":"IF(P49=\"\",\"\",VLOOKUP(P49,'MD Companies Centers'!$A:$C,3,FALSE))","v":""},{"$f":"IF(P49=\"\",\"\",(VLOOKUP(P49,'MD Companies Centers'!$A:$B,2,FALSE)))","v":""}]
[null,null,null,null,{"$f":"IF(G50=\"\",\"\",VLOOKUP(G50,'MD Companies Centers'!$A:$C,3,FALSE))","v":""},{"$f":"IF(G50=\"\",\"\",(VLOOKUP(G50,'MD Companies Centers'!$A:$B,2,FALSE)))","v":""},null,null,null,null,null,null,null,{"$f":"IF(P50=\"\",\"\",VLOOKUP(P50,'MD Companies Centers'!$A:$C,3,FALSE))","v":""},{"$f":"IF(P50=\"\",\"\",(VLOOKUP(P50,'MD Companies Centers'!$A:$B,2,FALSE)))","v":""}]
[null,null,null,null,{"$f":"IF(G51=\"\",\"\",VLOOKUP(G51,'MD Companies Centers'!$A:$C,3,FALSE))","v":""},{"$f":"IF(G51=\"\",\"\",(VLOOKUP(G51,'MD Companies Centers'!$A:$B,2,FALSE)))","v":""},null,null,null,null,null,null,null,{"$f":"IF(P51=\"\",\"\",VLOOKUP(P51,'MD Companies Centers'!$A:$C,3,FALSE))","v":""},{"$f":"IF(P51=\"\",\"\",(VLOOKUP(P51,'MD Companies Centers'!$A:$B,2,FALSE)))","v":""}]
[null,null,null,null,{"$f":"IF(G52=\"\",\"\",VLOOKUP(G52,'MD Companies Centers'!$A:$C,3,FALSE))","v":""},{"$f":"IF(G52=\"\",\"\",(VLOOKUP(G52,'MD Companies Centers'!$A:$B,2,FALSE)))","v":""},null,null,null,null,null,null,null,{"$f":"IF(P52=\"\",\"\",VLOOKUP(P52,'MD Companies Centers'!$A:$C,3,FALSE))","v":""},{"$f":"IF(P52=\"\",\"\",(VLOOKUP(P52,'MD Companies Centers'!$A:$B,2,FALSE)))","v":""}]
[null,null,null,null,{"$f":"IF(G53=\"\",\"\",VLOOKUP(G53,'MD Companies Centers'!$A:$C,3,FALSE))","v":""},{"$f":"IF(G53=\"\",\"\",(VLOOKUP(G53,'MD Companies Centers'!$A:$B,2,FALSE)))","v":""},null,null,null,null,null,null,null,{"$f":"IF(P53=\"\",\"\",VLOOKUP(P53,'MD Companies Centers'!$A:$C,3,FALSE))","v":""},{"$f":"IF(P53=\"\",\"\",(VLOOKUP(P53,'MD Companies Centers'!$A:$B,2,FALSE)))","v":""}]
[null,null,null,null,{"$f":"IF(G54=\"\",\"\",VLOOKUP(G54,'MD Companies Centers'!$A:$C,3,FALSE))","v":""},{"$f":"IF(G54=\"\",\"\",(VLOOKUP(G54,'MD Companies Centers'!$A:$B,2,FALSE)))","v":""},null,null,null,null,null,null,null,{"$f":"IF(P54=\"\",\"\",VLOOKUP(P54,'MD Companies Centers'!$A:$C,3,FALSE))","v":""},{"$f":"IF(P54=\"\",\"\",(VLOOKUP(P54,'MD Companies Centers'!$A:$B,2,FALSE)))","v":""}]
[null,null,null,null,{"$f":"IF(G55=\"\",\"\",VLOOKUP(G55,'MD Companies Centers'!$A:$C,3,FALSE))","v":""},{"$f":"IF(G55=\"\",\"\",(VLOOKUP(G55,'MD Companies Centers'!$A:$B,2,FALSE)))","v":""},null,null,null,null,null,null,null,{"$f":"IF(P55=\"\",\"\",VLOOKUP(P55,'MD Companies Centers'!$A:$C,3,FALSE))","v":""},{"$f":"IF(P55=\"\",\"\",(VLOOKUP(P55,'MD Companies Centers'!$A:$B,2,FALSE)))","v":""}]
[null,null,null,null,{"$f":"IF(G56=\"\",\"\",VLOOKUP(G56,'MD Companies Centers'!$A:$C,3,FALSE))","v":""},{"$f":"IF(G56=\"\",\"\",(VLOOKUP(G56,'MD Companies Centers'!$A:$B,2,FALSE)))","v":""},null,null,null,null,null,null,null,{"$f":"IF(P56=\"\",\"\",VLOOKUP(P56,'MD Companies Centers'!$A:$C,3,FALSE))","v":""},{"$f":"IF(P56=\"\",\"\",(VLOOKUP(P56,'MD Companies Centers'!$A:$B,2,FALSE)))","v":""}]
[null,null,null,null,{"$f":"IF(G57=\"\",\"\",VLOOKUP(G57,'MD Companies Centers'!$A:$C,3,FALSE))","v":""},{"$f":"IF(G57=\"\",\"\",(VLOOKUP(G57,'MD Companies Centers'!$A:$B,2,FALSE)))","v":""},null,null,null,null,null,null,null,{"$f":"IF(P57=\"\",\"\",VLOOKUP(P57,'MD Companies Centers'!$A:$C,3,FALSE))","v":""},{"$f":"IF(P57=\"\",\"\",(VLOOKUP(P57,'MD Companies Centers'!$A:$B,2,FALSE)))","v":""}]
[null,null,null,null,{"$f":"IF(G58=\"\",\"\",VLOOKUP(G58,'MD Companies Centers'!$A:$C,3,FALSE))","v":""},{"$f":"IF(G58=\"\",\"\",(VLOOKUP(G58,'MD Companies Centers'!$A:$B,2,FALSE)))","v":""},null,null,null,null,null,null,null,{"$f":"IF(P58=\"\",\"\",VLOOKUP(P58,'MD Companies Centers'!$A:$C,3,FALSE))","v":""},{"$f":"IF(P58=\"\",\"\",(VLOOKUP(P58,'MD Companies Centers'!$A:$B,2,FALSE)))","v":""}]
[null,null,null,null,{"$f":"IF(G59=\"\",\"\",VLOOKUP(G59,'MD Companies Centers'!$A:$C,3,FALSE))","v":""},{"$f":"IF(G59=\"\",\"\",(VLOOKUP(G59,'MD Companies Centers'!$A:$B,2,FALSE)))","v":""},null,null,null,null,null,null,null,{"$f":"IF(P59=\"\",\"\",VLOOKUP(P59,'MD Companies Centers'!$A:$C,3,FALSE))","v":""},{"$f":"IF(P59=\"\",\"\",(VLOOKUP(P59,'MD Companies Centers'!$A:$B,2,FALSE)))","v":""}]
[null,null,null,null,{"$f":"IF(G60=\"\",\"\",VLOOKUP(G60,'MD Companies Centers'!$A:$C,3,FALSE))","v":""},{"$f":"IF(G60=\"\",\"\",(VLOOKUP(G60,'MD Companies Centers'!$A:$B,2,FALSE)))","v":""},null,null,null,null,null,null,null,{"$f":"IF(P60=\"\",\"\",VLOOKUP(P60,'MD Companies Centers'!$A:$C,3,FALSE))","v":""},{"$f":"IF(P60=\"\",\"\",(VLOOKUP(P60,'MD Companies Centers'!$A:$B,2,FALSE)))","v":""}]
[null,null,null,null,{"$f":"IF(G61=\"\",\"\",VLOOKUP(G61,'MD Companies Centers'!$A:$C,3,FALSE))","v":""},{"$f":"IF(G61=\"\",\"\",(VLOOKUP(G61,'MD Companies Centers'!$A:$B,2,FALSE)))","v":""},null,null,null,null,null,null,null,{"$f":"IF(P61=\"\",\"\",VLOOKUP(P61,'MD Companies Centers'!$A:$C,3,FALSE))","v":""},{"$f":"IF(P61=\"\",\"\",(VLOOKUP(P61,'MD Companies Centers'!$A:$B,2,FALSE)))","v":""}]
[null,null,null,null,{"$f":"IF(G62=\"\",\"\",VLOOKUP(G62,'MD Companies Centers'!$A:$C,3,FALSE))","v":""},{"$f":"IF(G62=\"\",\"\",(VLOOKUP(G62,'MD Companies Centers'!$A:$B,2,FALSE)))","v":""},null,null,null,null,null,null,null,{"$f":"IF(P62=\"\",\"\",VLOOKUP(P62,'MD Companies Centers'!$A:$C,3,FALSE))","v":""},{"$f":"IF(P62=\"\",\"\",(VLOOKUP(P62,'MD Companies Centers'!$A:$B,2,FALSE)))","v":""}]
[]
[]
["Comments"]

{"sheet":" Scrapping","index":6,"n_rows":118,"n_cols":25,"rows_kept":118,"cut":false,"hidden":false,"merged":[[8,2,9,2],[8,4,9,4],[8,13,9,13],[8,1,9,1],[8,8,9,8],[8,24,9,24],[102,24,103,24],[8,3,9,3],[102,3,103,3],[8,21,9,21],[8,22,9,22],[8,23,9,23],[8,5,9,5],[8,6,9,6],[8,7,9,7],[2,21,5,23],[102,22,103,22],[102,23,103,23],[102,21,103,21],[102,15,102,19],[102,20,103,20],[2,15,5,19],[6,0,6,1],[8,0,9,0],[102,9,102,11],[102,13,103,13],[8,14,9,14],[102,14,103,14],[102,5,103,5],[102,8,103,8],[102,1,103,1],[102,2,103,2],[102,4,103,4],[8,9,9,9],[8,10,9,10],[8,11,9,11],[8,12,9,12],[102,0,103,0]]}
[]
[null,null,null,null,null,null,null,null,"ASSET RETIREMENT BY SCRAPPING"]
[]
["*Note"]
["(1) and (2) This field is only mandatory for BU Italy for TAX purposes. "]
[]
["0 € ≤  NBV ≤ 5.000 €",null,null,"Authorizations","Hotel/CS Deparment Director",null,"Date:_________","Fixed Assets Responsible",null,"Date:_________"]
[]
["Asset number","Asset Description","Company Code","Hotel Name","B.A","Quantity","Date of Acquisition","Original Cost","NBV \n(Net book value)","Partial retirement*\n* Fill in only one of the fields (% and quantity or amount and quantity)","Quantity","Amount","Currency","Waste Certificate (Formulario Rifiuti) *(1)","Document of Transport number (DDT) *(2)","Sap Manual Journal",null,null,null,null,"Transaction Type","Document Date*\n*The day when the document is issued","Posting Date","Asset value date*\n*Deadline of depreciation before the scrapping","Asset scrapping number"]
[null,null,null,null,null,null,null,null,null,null,null,null,null,null,null,"Cost of disposal","Cost Center","Sap Account Number","DR","CR"]
[null,null,{"$f":"IF(E11=\"\",\"\",VLOOKUP(E11,'MD Companies Centers'!$A:$C,3,FALSE))","v":""},{"$f":"IF(E11=\"\",\"\",(VLOOKUP(E11,'MD Companies Centers'!$A:$B,2,FALSE)))","v":""}]
[null,null,{"$f":"IF(E12=\"\",\"\",VLOOKUP(E12,'MD Companies Centers'!$A:$C,3,FALSE))","v":""},{"$f":"IF(E12=\"\",\"\",(VLOOKUP(E12,'MD Companies Centers'!$A:$B,2,FALSE)))","v":""}]
[null,null,{"$f":"IF(E13=\"\",\"\",VLOOKUP(E13,'MD Companies Centers'!$A:$C,3,FALSE))","v":""},{"$f":"IF(E13=\"\",\"\",(VLOOKUP(E13,'MD Companies Centers'!$A:$B,2,FALSE)))","v":""}]
[null,null,{"$f":"IF(E14=\"\",\"\",VLOOKUP(E14,'MD Companies Centers'!$A:$C,3,FALSE))","v":""},{"$f":"IF(E14=\"\",\"\",(VLOOKUP(E14,'MD Companies Centers'!$A:$B,2,FALSE)))","v":""}]
[null,null,{"$f":"IF(E15=\"\",\"\",VLOOKUP(E15,'MD Companies Centers'!$A:$C,3,FALSE))","v":""},{"$f":"IF(E15=\"\",\"\",(VLOOKUP(E15,'MD Companies Centers'!$A:$B,2,FALSE)))","v":""}]
[null,null,{"$f":"IF(E16=\"\",\"\",VLOOKUP(E16,'MD Companies Centers'!$A:$C,3,FALSE))","v":""},{"$f":"IF(E16=\"\",\"\",(VLOOKUP(E16,'MD Companies Centers'!$A:$B,2,FALSE)))","v":""}]
[null,null,{"$f":"IF(E17=\"\",\"\",VLOOKUP(E17,'MD Companies Centers'!$A:$C,3,FALSE))","v":""},{"$f":"IF(E17=\"\",\"\",(VLOOKUP(E17,'MD Companies Centers'!$A:$B,2,FALSE)))","v":""}]
[null,null,{"$f":"IF(E18=\"\",\"\",VLOOKUP(E18,'MD Companies Centers'!$A:$C,3,FALSE))","v":""},{"$f":"IF(E18=\"\",\"\",(VLOOKUP(E18,'MD Companies Centers'!$A:$B,2,FALSE)))","v":""}]
[null,null,{"$f":"IF(E19=\"\",\"\",VLOOKUP(E19,'MD Companies Centers'!$A:$C,3,FALSE))","v":""},{"$f":"IF(E19=\"\",\"\",(VLOOKUP(E19,'MD Companies Centers'!$A:$B,2,FALSE)))","v":""}]
[null,null,{"$f":"IF(E20=\"\",\"\",VLOOKUP(E20,'MD Companies Centers'!$A:$C,3,FALSE))","v":""},{"$f":"IF(E20=\"\",\"\",(VLOOKUP(E20,'MD Companies Centers'!$A:$B,2,FALSE)))","v":""}]
[null,null,{"$f":"IF(E21=\"\",\"\",VLOOKUP(E21,'MD Companies Centers'!$A:$C,3,FALSE))","v":""},{"$f":"IF(E21=\"\",\"\",(VLOOKUP(E21,'MD Companies Centers'!$A:$B,2,FALSE)))","v":""}]
[null,null,{"$f":"IF(E22=\"\",\"\",VLOOKUP(E22,'MD Companies Centers'!$A:$C,3,FALSE))","v":""},{"$f":"IF(E22=\"\",\"\",(VLOOKUP(E22,'MD Companies Centers'!$A:$B,2,FALSE)))","v":""}]
[null,null,{"$f":"IF(E23=\"\",\"\",VLOOKUP(E23,'MD Companies Centers'!$A:$C,3,FALSE))","v":""},{"$f":"IF(E23=\"\",\"\",(VLOOKUP(E23,'MD Companies Centers'!$A:$B,2,FALSE)))","v":""}]
[null,null,{"$f":"IF(E24=\"\",\"\",VLOOKUP(E24,'MD Companies Centers'!$A:$C,3,FALSE))","v":""},{"$f":"IF(E24=\"\",\"\",(VLOOKUP(E24,'MD Companies Centers'!$A:$B,2,FALSE)))","v":""}]
[null,null,{"$f":"IF(E25=\"\",\"\",VLOOKUP(E25,'MD Companies Centers'!$A:$C,3,FALSE))","v":""},{"$f":"IF(E25=\"\",\"\",(VLOOKUP(E25,'MD Companies Centers'!$A:$B,2,FALSE)))","v":""}]
[null,null,{"$f":"IF(E26=\"\",\"\",VLOOKUP(E26,'MD Companies Centers'!$A:$C,3,FALSE))","v":""},{"$f":"IF(E26=\"\",\"\",(VLOOKUP(E26,'MD Companies Centers'!$A:$B,2,FALSE)))","v":""}]
[null,null,{"$f":"IF(E27=\"\",\"\",VLOOKUP(E27,'MD Companies Centers'!$A:$C,3,FALSE))","v":""},{"$f":"IF(E27=\"\",\"\",(VLOOKUP(E27,'MD Companies Centers'!$A:$B,2,FALSE)))","v":""}]
[null,null,{"$f":"IF(E28=\"\",\"\",VLOOKUP(E28,'MD Companies Centers'!$A:$C,3,FALSE))","v":""},{"$f":"IF(E28=\"\",\"\",(VLOOKUP(E28,'MD Companies Centers'!$A:$B,2,FALSE)))","v":""}]
[null,null,{"$f":"IF(E29=\"\",\"\",VLOOKUP(E29,'MD Companies Centers'!$A:$C,3,FALSE))","v":""},{"$f":"IF(E29=\"\",\"\",(VLOOKUP(E29,'MD Companies Centers'!$A:$B,2,FALSE)))","v":""}]
[null,null,{"$f":"IF(E30=\"\",\"\",VLOOKUP(E30,'MD Companies Centers'!$A:$C,3,FALSE))","v":""},{"$f":"IF(E30=\"\",\"\",(VLOOKUP(E30,'MD Companies Centers'!$A:$B,2,FALSE)))","v":""}]
[null,null,{"$f":"IF(E31=\"\",\"\",VLOOKUP(E31,'MD Companies Centers'!$A:$C,3,FALSE))","v":""},{"$f":"IF(E31=\"\",\"\",(VLOOKUP(E31,'MD Companies Centers'!$A:$B,2,FALSE)))","v":""}]
[null,null,{"$f":"IF(E32=\"\",\"\",VLOOKUP(E32,'MD Companies Centers'!$A:$C,3,FALSE))","v":""},{"$f":"IF(E32=\"\",\"\",(VLOOKUP(E32,'MD Companies Centers'!$A:$B,2,FALSE)))","v":""}]
[null,null,{"$f":"IF(E33=\"\",\"\",VLOOKUP(E33,'MD Companies Centers'!$A:$C,3,FALSE))","v":""},{"$f":"IF(E33=\"\",\"\",(VLOOKUP(E33,'MD Companies Centers'!$A:$B,2,FALSE)))","v":""}]
[null,null,{"$f":"IF(E34=\"\",\"\",VLOOKUP(E34,'MD Companies Centers'!$A:$C,3,FALSE))","v":""},{"$f":"IF(E34=\"\",\"\",(VLOOKUP(E34,'MD Companies Centers'!$A:$B,2,FALSE)))","v":""}]
[null,null,{"$f":"IF(E35=\"\",\"\",VLOOKUP(E35,'MD Companies Centers'!$A:$C,3,FALSE))","v":""},{"$f":"IF(E35=\"\",\"\",(VLOOKUP(E35,'MD Companies Centers'!$A:$B,2,FALSE)))","v":""}]
[null,null,{"$f":"IF(E36=\"\",\"\",VLOOKUP(E36,'MD Companies Centers'!$A:$C,3,FALSE))","v":""},{"$f":"IF(E36=\"\",\"\",(VLOOKUP(E36,'MD Companies Centers'!$A:$B,2,FALSE)))","v":""}]
[null,null,{"$f":"IF(E37=\"\",\"\",VLOOKUP(E37,'MD Companies Centers'!$A:$C,3,FALSE))","v":""},{"$f":"IF(E37=\"\",\"\",(VLOOKUP(E37,'MD Companies Centers'!$A:$B,2,FALSE)))","v":""}]
[null,null,{"$f":"IF(E38=\"\",\"\",VLOOKUP(E38,'MD Companies Centers'!$A:$C,3,FALSE))","v":""},{"$f":"IF(E38=\"\",\"\",(VLOOKUP(E38,'MD Companies Centers'!$A:$B,2,FALSE)))","v":""}]
[null,null,{"$f":"IF(E39=\"\",\"\",VLOOKUP(E39,'MD Companies Centers'!$A:$C,3,FALSE))","v":""},{"$f":"IF(E39=\"\",\"\",(VLOOKUP(E39,'MD Companies Centers'!$A:$B,2,FALSE)))","v":""}]
[null,null,{"$f":"IF(E40=\"\",\"\",VLOOKUP(E40,'MD Companies Centers'!$A:$C,3,FALSE))","v":""},{"$f":"IF(E40=\"\",\"\",(VLOOKUP(E40,'MD Companies Centers'!$A:$B,2,FALSE)))","v":""}]
[null,null,{"$f":"IF(E41=\"\",\"\",VLOOKUP(E41,'MD Companies Centers'!$A:$C,3,FALSE))","v":""},{"$f":"IF(E41=\"\",\"\",(VLOOKUP(E41,'MD Companies Centers'!$A:$B,2,FALSE)))","v":""}]
[null,null,{"$f":"IF(E42=\"\",\"\",VLOOKUP(E42,'MD Companies Centers'!$A:$C,3,FALSE))","v":""},{"$f":"IF(E42=\"\",\"\",(VLOOKUP(E42,'MD Companies Centers'!$A:$B,2,FALSE)))","v":""}]
[null,null,{"$f":"IF(E43=\"\",\"\",VLOOKUP(E43,'MD Companies Centers'!$A:$C,3,FALSE))","v":""},{"$f":"IF(E43=\"\",\"\",(VLOOKUP(E43,'MD Companies Centers'!$A:$B,2,FALSE)))","v":""}]
[null,null,{"$f":"IF(E44=\"\",\"\",VLOOKUP(E44,'MD Companies Centers'!$A:$C,3,FALSE))","v":""},{"$f":"IF(E44=\"\",\"\",(VLOOKUP(E44,'MD Companies Centers'!$A:$B,2,FALSE)))","v":""}]
[null,null,{"$f":"IF(E45=\"\",\"\",VLOOKUP(E45,'MD Companies Centers'!$A:$C,3,FALSE))","v":""},{"$f":"IF(E45=\"\",\"\",(VLOOKUP(E45,'MD Companies Centers'!$A:$B,2,FALSE)))","v":""}]
[null,null,{"$f":"IF(E46=\"\",\"\",VLOOKUP(E46,'MD Companies Centers'!$A:$C,3,FALSE))","v":""},{"$f":"IF(E46=\"\",\"\",(VLOOKUP(E46,'MD Companies Centers'!$A:$B,2,FALSE)))","v":""}]
[null,null,{"$f":"IF(E47=\"\",\"\",VLOOKUP(E47,'MD Companies Centers'!$A:$C,3,FALSE))","v":""},{"$f":"IF(E47=\"\",\"\",(VLOOKUP(E47,'MD Companies Centers'!$A:$B,2,FALSE)))","v":""}]
[null,null,{"$f":"IF(E48=\"\",\"\",VLOOKUP(E48,'MD Companies Centers'!$A:$C,3,FALSE))","v":""},{"$f":"IF(E48=\"\",\"\",(VLOOKUP(E48,'MD Companies Centers'!$A:$B,2,FALSE)))","v":""}]
[null,null,{"$f":"IF(E49=\"\",\"\",VLOOKUP(E49,'MD Companies Centers'!$A:$C,3,FALSE))","v":""},{"$f":"IF(E49=\"\",\"\",(VLOOKUP(E49,'MD Companies Centers'!$A:$B,2,FALSE)))","v":""}]
[null,null,{"$f":"IF(E50=\"\",\"\",VLOOKUP(E50,'MD Companies Centers'!$A:$C,3,FALSE))","v":""},{"$f":"IF(E50=\"\",\"\",(VLOOKUP(E50,'MD Companies Centers'!$A:$B,2,FALSE)))","v":""}]
[null,null,{"$f":"IF(E51=\"\",\"\",VLOOKUP(E51,'MD Companies Centers'!$A:$C,3,FALSE))","v":""},{"$f":"IF(E51=\"\",\"\",(VLOOKUP(E51,'MD Companies Centers'!$A:$B,2,FALSE)))","v":""}]
[null,null,{"$f":"IF(E52=\"\",\"\",VLOOKUP(E52,'MD Companies Centers'!$A:$C,3,FALSE))","v":""},{"$f":"IF(E52=\"\",\"\",(VLOOKUP(E52,'MD Companies Centers'!$A:$B,2,FALSE)))","v":""}]
[null,null,{"$f":"IF(E53=\"\",\"\",VLOOKUP(E53,'MD Companies Centers'!$A:$C,3,FALSE))","v":""},{"$f":"IF(E53=\"\",\"\",(VLOOKUP(E53,'MD Companies Centers'!$A:$B,2,FALSE)))","v":""}]
[null,null,{"$f":"IF(E54=\"\",\"\",VLOOKUP(E54,'MD Companies Centers'!$A:$C,3,FALSE))","v":""},{"$f":"IF(E54=\"\",\"\",(VLOOKUP(E54,'MD Companies Centers'!$A:$B,2,FALSE)))","v":""}]
[null,null,{"$f":"IF(E55=\"\",\"\",VLOOKUP(E55,'MD Companies Centers'!$A:$C,3,FALSE))","v":""},{"$f":"IF(E55=\"\",\"\",(VLOOKUP(E55,'MD Companies Centers'!$A:$B,2,FALSE)))","v":""}]
[null,null,{"$f":"IF(E56=\"\",\"\",VLOOKUP(E56,'MD Companies Centers'!$A:$C,3,FALSE))","v":""},{"$f":"IF(E56=\"\",\"\",(VLOOKUP(E56,'MD Companies Centers'!$A:$B,2,FALSE)))","v":""}]
[null,null,{"$f":"IF(E57=\"\",\"\",VLOOKUP(E57,'MD Companies Centers'!$A:$C,3,FALSE))","v":""},{"$f":"IF(E57=\"\",\"\",(VLOOKUP(E57,'MD Companies Centers'!$A:$B,2,FALSE)))","v":""}]
[null,null,{"$f":"IF(E58=\"\",\"\",VLOOKUP(E58,'MD Companies Centers'!$A:$C,3,FALSE))","v":""},{"$f":"IF(E58=\"\",\"\",(VLOOKUP(E58,'MD Companies Centers'!$A:$B,2,FALSE)))","v":""}]
[null,null,{"$f":"IF(E59=\"\",\"\",VLOOKUP(E59,'MD Companies Centers'!$A:$C,3,FALSE))","v":""},{"$f":"IF(E59=\"\",\"\",(VLOOKUP(E59,'MD Companies Centers'!$A:$B,2,FALSE)))","v":""}]
[null,null,{"$f":"IF(E60=\"\",\"\",VLOOKUP(E60,'MD Companies Centers'!$A:$C,3,FALSE))","v":""},{"$f":"IF(E60=\"\",\"\",(VLOOKUP(E60,'MD Companies Centers'!$A:$B,2,FALSE)))","v":""}]
[null,null,{"$f":"IF(E61=\"\",\"\",VLOOKUP(E61,'MD Companies Centers'!$A:$C,3,FALSE))","v":""},{"$f":"IF(E61=\"\",\"\",(VLOOKUP(E61,'MD Companies Centers'!$A:$B,2,FALSE)))","v":""}]
[null,null,{"$f":"IF(E62=\"\",\"\",VLOOKUP(E62,'MD Companies Centers'!$A:$C,3,FALSE))","v":""},{"$f":"IF(E62=\"\",\"\",(VLOOKUP(E62,'MD Companies Centers'!$A:$B,2,FALSE)))","v":""}]
[null,null,{"$f":"IF(E63=\"\",\"\",VLOOKUP(E63,'MD Companies Centers'!$A:$C,3,FALSE))","v":""},{"$f":"IF(E63=\"\",\"\",(VLOOKUP(E63,'MD Companies Centers'!$A:$B,2,FALSE)))","v":""}]
[null,null,{"$f":"IF(E64=\"\",\"\",VLOOKUP(E64,'MD Companies Centers'!$A:$C,3,FALSE))","v":""},{"$f":"IF(E64=\"\",\"\",(VLOOKUP(E64,'MD Companies Centers'!$A:$B,2,FALSE)))","v":""}]
[null,null,{"$f":"IF(E65=\"\",\"\",VLOOKUP(E65,'MD Companies Centers'!$A:$C,3,FALSE))","v":""},{"$f":"IF(E65=\"\",\"\",(VLOOKUP(E65,'MD Companies Centers'!$A:$B,2,FALSE)))","v":""}]
[null,null,{"$f":"IF(E66=\"\",\"\",VLOOKUP(E66,'MD Companies Centers'!$A:$C,3,FALSE))","v":""},{"$f":"IF(E66=\"\",\"\",(VLOOKUP(E66,'MD Companies Centers'!$A:$B,2,FALSE)))","v":""}]
[null,null,{"$f":"IF(E67=\"\",\"\",VLOOKUP(E67,'MD Companies Centers'!$A:$C,3,FALSE))","v":""},{"$f":"IF(E67=\"\",\"\",(VLOOKUP(E67,'MD Companies Centers'!$A:$B,2,FALSE)))","v":""}]
[null,null,{"$f":"IF(E68=\"\",\"\",VLOOKUP(E68,'MD Companies Centers'!$A:$C,3,FALSE))","v":""},{"$f":"IF(E68=\"\",\"\",(VLOOKUP(E68,'MD Companies Centers'!$A:$B,2,FALSE)))","v":""}]
[null,null,{"$f":"IF(E69=\"\",\"\",VLOOKUP(E69,'MD Companies Centers'!$A:$C,3,FALSE))","v":""},{"$f":"IF(E69=\"\",\"\",(VLOOKUP(E69,'MD Companies Centers'!$A:$B,2,FALSE)))","v":""}]
[null,null,{"$f":"IF(E70=\"\",\"\",VLOOKUP(E70,'MD Companies Centers'!$A:$C,3,FALSE))","v":""},{"$f":"IF(E70=\"\",\"\",(VLOOKUP(E70,'MD Companies Centers'!$A:$B,2,FALSE)))","v":""}]
[null,null,{"$f":"IF(E71=\"\",\"\",VLOOKUP(E71,'MD Companies Centers'!$A:$C,3,FALSE))","v":""},{"$f":"IF(E71=\"\",\"\",(VLOOKUP(E71,'MD Companies Centers'!$A:$B,2,FALSE)))","v":""}]
[null,null,{"$f":"IF(E72=\"\",\"\",VLOOKUP(E72,'MD Companies Centers'!$A:$C,3,FALSE))","v":""},{"$f":"IF(E72=\"\",\"\",(VLOOKUP(E72,'MD Companies Centers'!$A:$B,2,FALSE)))","v":""}]
[null,null,{"$f":"IF(E73=\"\",\"\",VLOOKUP(E73,'MD Companies Centers'!$A:$C,3,FALSE))","v":""},{"$f":"IF(E73=\"\",\"\",(VLOOKUP(E73,'MD Companies Centers'!$A:$B,2,FALSE)))","v":""}]
[null,null,{"$f":"IF(E74=\"\",\"\",VLOOKUP(E74,'MD Companies Centers'!$A:$C,3,FALSE))","v":""},{"$f":"IF(E74=\"\",\"\",(VLOOKUP(E74,'MD Companies Centers'!$A:$B,2,FALSE)))","v":""}]
[null,null,{"$f":"IF(E75=\"\",\"\",VLOOKUP(E75,'MD Companies Centers'!$A:$C,3,FALSE))","v":""},{"$f":"IF(E75=\"\",\"\",(VLOOKUP(E75,'MD Companies Centers'!$A:$B,2,FALSE)))","v":""}]
[null,null,{"$f":"IF(E76=\"\",\"\",VLOOKUP(E76,'MD Companies Centers'!$A:$C,3,FALSE))","v":""},{"$f":"IF(E76=\"\",\"\",(VLOOKUP(E76,'MD Companies Centers'!$A:$B,2,FALSE)))","v":""}]
[null,null,{"$f":"IF(E77=\"\",\"\",VLOOKUP(E77,'MD Companies Centers'!$A:$C,3,FALSE))","v":""},{"$f":"IF(E77=\"\",\"\",(VLOOKUP(E77,'MD Companies Centers'!$A:$B,2,FALSE)))","v":""}]
[null,null,{"$f":"IF(E78=\"\",\"\",VLOOKUP(E78,'MD Companies Centers'!$A:$C,3,FALSE))","v":""},{"$f":"IF(E78=\"\",\"\",(VLOOKUP(E78,'MD Companies Centers'!$A:$B,2,FALSE)))","v":""}]
[null,null,{"$f":"IF(E79=\"\",\"\",VLOOKUP(E79,'MD Companies Centers'!$A:$C,3,FALSE))","v":""},{"$f":"IF(E79=\"\",\"\",(VLOOKUP(E79,'MD Companies Centers'!$A:$B,2,FALSE)))","v":""}]
[null,null,{"$f":"IF(E80=\"\",\"\",VLOOKUP(E80,'MD Companies Centers'!$A:$C,3,FALSE))","v":""},{"$f":"IF(E80=\"\",\"\",(VLOOKUP(E80,'MD Companies Centers'!$A:$B,2,FALSE)))","v":""}]
[null,null,{"$f":"IF(E81=\"\",\"\",VLOOKUP(E81,'MD Companies Centers'!$A:$C,3,FALSE))","v":""},{"$f":"IF(E81=\"\",\"\",(VLOOKUP(E81,'MD Companies Centers'!$A:$B,2,FALSE)))","v":""}]
[null,null,{"$f":"IF(E82=\"\",\"\",VLOOKUP(E82,'MD Companies Centers'!$A:$C,3,FALSE))","v":""},{"$f":"IF(E82=\"\",\"\",(VLOOKUP(E82,'MD Companies Centers'!$A:$B,2,FALSE)))","v":""}]
[null,null,{"$f":"IF(E83=\"\",\"\",VLOOKUP(E83,'MD Companies Centers'!$A:$C,3,FALSE))","v":""},{"$f":"IF(E83=\"\",\"\",(VLOOKUP(E83,'MD Companies Centers'!$A:$B,2,FALSE)))","v":""}]
[null,null,{"$f":"IF(E84=\"\",\"\",VLOOKUP(E84,'MD Companies Centers'!$A:$C,3,FALSE))","v":""},{"$f":"IF(E84=\"\",\"\",(VLOOKUP(E84,'MD Companies Centers'!$A:$B,2,FALSE)))","v":""}]
[null,null,{"$f":"IF(E85=\"\",\"\",VLOOKUP(E85,'MD Companies Centers'!$A:$C,3,FALSE))","v":""},{"$f":"IF(E85=\"\",\"\",(VLOOKUP(E85,'MD Companies Centers'!$A:$B,2,FALSE)))","v":""}]
[null,null,{"$f":"IF(E86=\"\",\"\",VLOOKUP(E86,'MD Companies Centers'!$A:$C,3,FALSE))","v":""},{"$f":"IF(E86=\"\",\"\",(VLOOKUP(E86,'MD Companies Centers'!$A:$B,2,FALSE)))","v":""}]
[null,null,{"$f":"IF(E87=\"\",\"\",VLOOKUP(E87,'MD Companies Centers'!$A:$C,3,FALSE))","v":""},{"$f":"IF(E87=\"\",\"\",(VLOOKUP(E87,'MD Companies Centers'!$A:$B,2,FALSE)))","v":""}]
[null,null,{"$f":"IF(E88=\"\",\"\",VLOOKUP(E88,'MD Companies Centers'!$A:$C,3,FALSE))","v":""},{"$f":"IF(E88=\"\",\"\",(VLOOKUP(E88,'MD Companies Centers'!$A:$B,2,FALSE)))","v":""}]
[null,null,{"$f":"IF(E89=\"\",\"\",VLOOKUP(E89,'MD Companies Centers'!$A:$C,3,FALSE))","v":""},{"$f":"IF(E89=\"\",\"\",(VLOOKUP(E89,'MD Companies Centers'!$A:$B,2,FALSE)))","v":""}]
[null,null,{"$f":"IF(E90=\"\",\"\",VLOOKUP(E90,'MD Companies Centers'!$A:$C,3,FALSE))","v":""},{"$f":"IF(E90=\"\",\"\",(VLOOKUP(E90,'MD Companies Centers'!$A:$B,2,FALSE)))","v":""}]
[null,null,{"$f":"IF(E91=\"\",\"\",VLOOKUP(E91,'MD Companies Centers'!$A:$C,3,FALSE))","v":""},{"$f":"IF(E91=\"\",\"\",(VLOOKUP(E91,'MD Companies Centers'!$A:$B,2,FALSE)))","v":""}]
[null,null,{"$f":"IF(E92=\"\",\"\",VLOOKUP(E92,'MD Companies Centers'!$A:$C,3,FALSE))","v":""},{"$f":"IF(E92=\"\",\"\",(VLOOKUP(E92,'MD Companies Centers'!$A:$B,2,FALSE)))","v":""}]
[null,null,{"$f":"IF(E93=\"\",\"\",VLOOKUP(E93,'MD Companies Centers'!$A:$C,3,FALSE))","v":""},{"$f":"IF(E93=\"\",\"\",(VLOOKUP(E93,'MD Companies Centers'!$A:$B,2,FALSE)))","v":""}]
[null,null,{"$f":"IF(E94=\"\",\"\",VLOOKUP(E94,'MD Companies Centers'!$A:$C,3,FALSE))","v":""},{"$f":"IF(E94=\"\",\"\",(VLOOKUP(E94,'MD Companies Centers'!$A:$B,2,FALSE)))","v":""}]
[null,null,{"$f":"IF(E95=\"\",\"\",VLOOKUP(E95,'MD Companies Centers'!$A:$C,3,FALSE))","v":""},{"$f":"IF(E95=\"\",\"\",(VLOOKUP(E95,'MD Companies Centers'!$A:$B,2,FALSE)))","v":""}]
[null,null,{"$f":"IF(E96=\"\",\"\",VLOOKUP(E96,'MD Companies Centers'!$A:$C,3,FALSE))","v":""},{"$f":"IF(E96=\"\",\"\",(VLOOKUP(E96,'MD Companies Centers'!$A:$B,2,FALSE)))","v":""}]
[null,null,{"$f":"IF(E97=\"\",\"\",VLOOKUP(E97,'MD Companies Centers'!$A:$C,3,FALSE))","v":""},{"$f":"IF(E97=\"\",\"\",(VLOOKUP(E97,'MD Companies Centers'!$A:$B,2,FALSE)))","v":""}]
[null,null,{"$f":"IF(E98=\"\",\"\",VLOOKUP(E98,'MD Companies Centers'!$A:$C,3,FALSE))","v":""},{"$f":"IF(E98=\"\",\"\",(VLOOKUP(E98,'MD Companies Centers'!$A:$B,2,FALSE)))","v":""}]
[null,null,{"$f":"IF(E99=\"\",\"\",VLOOKUP(E99,'MD Companies Centers'!$A:$C,3,FALSE))","v":""},{"$f":"IF(E99=\"\",\"\",(VLOOKUP(E99,'MD Companies Centers'!$A:$B,2,FALSE)))","v":""}]
[]
["NBV ≥ 5.000 €",null,null,"Authorizations","Operations Director",null,null,null,null,"Date:_________"]
[null,null,null,null,null,null,"Date:_________","F&A Director"]
["Asset number","Asset Description","Company Code","Hotel Name","B.A","Quantity","Date of Acquisition","Original Cost","NBV \n(Net book value)","Partial retirement*\n* Fill in only one of the fields (%, quantity or amount)",null,null,null,"Waste Certificate (Formulario Rifiuti) *(1)","Document of Transport number (DDT) *(2)","Sap Manual Journal",null,null,null,null,"Transaction Type","Document Date*\n*The day when the document is issued","Posting Date","Asset value date*\n*Deadline of depreciation before the scrapping","Asset scrapping number"]
[null,null,null,null,null,null,null,null,null,"%","Quantity","Amount","Currency",null,null,"Cost of disposal","Cost Center","Sap Account Number","DR","CR"]
[null,null,{"$f":"IF(E105=\"\",\"\",VLOOKUP(E105,'MD Companies Centers'!$A:$C,3,FALSE))","v":""},{"$f":"IF(E105=\"\",\"\",(VLOOKUP(E105,'MD Companies Centers'!$A:$B,2,FALSE)))","v":""}]
[null,null,{"$f":"IF(E106=\"\",\"\",VLOOKUP(E106,'MD Companies Centers'!$A:$C,3,FALSE))","v":""},{"$f":"IF(E106=\"\",\"\",(VLOOKUP(E106,'MD Companies Centers'!$A:$B,2,FALSE)))","v":""}]
[null,null,{"$f":"IF(E107=\"\",\"\",VLOOKUP(E107,'MD Companies Centers'!$A:$C,3,FALSE))","v":""},{"$f":"IF(E107=\"\",\"\",(VLOOKUP(E107,'MD Companies Centers'!$A:$B,2,FALSE)))","v":""}]
[null,null,{"$f":"IF(E108=\"\",\"\",VLOOKUP(E108,'MD Companies Centers'!$A:$C,3,FALSE))","v":""},{"$f":"IF(E108=\"\",\"\",(VLOOKUP(E108,'MD Companies Centers'!$A:$B,2,FALSE)))","v":""}]
[null,null,{"$f":"IF(E109=\"\",\"\",VLOOKUP(E109,'MD Companies Centers'!$A:$C,3,FALSE))","v":""},{"$f":"IF(E109=\"\",\"\",(VLOOKUP(E109,'MD Companies Centers'!$A:$B,2,FALSE)))","v":""}]
[null,null,{"$f":"IF(E110=\"\",\"\",VLOOKUP(E110,'MD Companies Centers'!$A:$C,3,FALSE))","v":""},{"$f":"IF(E110=\"\",\"\",(VLOOKUP(E110,'MD Companies Centers'!$A:$B,2,FALSE)))","v":""}]
[null,null,{"$f":"IF(E111=\"\",\"\",VLOOKUP(E111,'MD Companies Centers'!$A:$C,3,FALSE))","v":""},{"$f":"IF(E111=\"\",\"\",(VLOOKUP(E111,'MD Companies Centers'!$A:$B,2,FALSE)))","v":""}]
[null,null,{"$f":"IF(E112=\"\",\"\",VLOOKUP(E112,'MD Companies Centers'!$A:$C,3,FALSE))","v":""},{"$f":"IF(E112=\"\",\"\",(VLOOKUP(E112,'MD Companies Centers'!$A:$B,2,FALSE)))","v":""}]
[null,null,{"$f":"IF(E113=\"\",\"\",VLOOKUP(E113,'MD Companies Centers'!$A:$C,3,FALSE))","v":""},{"$f":"IF(E113=\"\",\"\",(VLOOKUP(E113,'MD Companies Centers'!$A:$B,2,FALSE)))","v":""}]
[null,null,{"$f":"IF(E114=\"\",\"\",VLOOKUP(E114,'MD Companies Centers'!$A:$C,3,FALSE))","v":""},{"$f":"IF(E114=\"\",\"\",(VLOOKUP(E114,'MD Companies Centers'!$A:$B,2,FALSE)))","v":""}]
[null,null,{"$f":"IF(E115=\"\",\"\",VLOOKUP(E115,'MD Companies Centers'!$A:$C,3,FALSE))","v":""},{"$f":"IF(E115=\"\",\"\",(VLOOKUP(E115,'MD Companies Centers'!$A:$B,2,FALSE)))","v":""}]
[null,null,{"$f":"IF(E116=\"\",\"\",VLOOKUP(E116,'MD Companies Centers'!$A:$C,3,FALSE))","v":""},{"$f":"IF(E116=\"\",\"\",(VLOOKUP(E116,'MD Companies Centers'!$A:$B,2,FALSE)))","v":""}]
[]
["Comments"]

{"sheet":" Sale","index":7,"n_rows":124,"n_cols":27,"rows_kept":124,"cut":false,"hidden":false,"merged":[[9,18,9,21],[90,22,91,22],[44,0,44,1],[46,0,47,0],[46,1,47,1],[79,0,79,1],[80,0,80,1],[90,19,90,21],[90,16,90,18],[46,6,47,6],[46,22,47,22],[46,18,46,21],[9,3,10,3],[9,4,10,4],[9,5,10,5],[123,2,123,12],[124,0,124,12],[79,2,79,10],[46,2,47,2],[123,0,123,1],[81,0,81,1],[81,2,81,10],[87,0,87,1],[80,2,80,10],[46,3,47,3],[46,4,47,4],[46,5,47,5],[46,24,47,24],[46,25,47,25],[46,23,47,23],[46,7,47,7],[46,8,47,8],[90,23,91,24],[2,28,3,33],[7,0,7,1],[9,1,10,1],[9,2,10,2],[9,0,10,0],[9,6,10,6],[9,23,10,23],[9,24,10,24],[9,25,10,25],[9,26,10,26],[9,7,10,7],[9,8,10,8],[9,9,9,17],[9,22,10,22],[46,26,47,26]]}
[]
[null,null,null,null,null,null,null,null,"ASSET RETIREMENT BY SALE"]
[]
["*Note"]
["(1) This field is only mandatory for BU Italy for TAX purposes. This number must be included in the invoice created for the asset sale"]
["(2) This field is only applicable for BU COLOMBIA"]
[]
["0 € ≤  NBV ≤ 5.000 €",null,null,"Authorizations","Hotel/CS Deparment Director",null,"Date:_________","Fixed Assets Responsible",null,"Date:_________"]
[]
["Asset number","Asset Description","Quantity","Company Code","Hotel Name","B.A","Date of Acquisition","Original Cost","NBV \n(Net book value)","Customer/ Company Group Destination",null,null,null,null,null,null,null,null,"Partial retirement*\n* Fill in only one of the fields (% and quantity or amount and quantity)",null,null,null,"Document of Transport number (DDT) *(1)","Document Date*\n*The day when the document is issued","Posting Date","Asset value date*\n*Deadline of depreciation before the sale","Document number retirement"]
[null,null,null,null,null,null,null,null,null,"Name","Code SAP*\n*Customer code in SAP","VAT number","Sale amount (net amount)","Tax","W. Tax code indicator\n(only COLOMBIA)(2)","Account for Income/Expense","Hotel Name","B.A","%","Quantity","Amount","Currency"]
[null,null,null,{"$f":"IF(F12=\"\",\"\",VLOOKUP(F12,'MD Companies Centers'!$A:$C,3,FALSE))","v":""},{"$f":"IF(F12=\"\",\"\",(VLOOKUP(F12,'MD Companies Centers'!$A:$B,2,FALSE)))","v":""},null,null,null,null,null,null,null,null,null,null,77830000,{"$f":"IF(R12=\"\",\"\",(VLOOKUP(R12,'MD Companies Centers'!$A:$B,2,FALSE)))","v":""}]
[null,null,null,{"$f":"IF(F13=\"\",\"\",VLOOKUP(F13,'MD Companies Centers'!$A:$C,3,FALSE))","v":""},{"$f":"IF(F13=\"\",\"\",(VLOOKUP(F13,'MD Companies Centers'!$A:$B,2,FALSE)))","v":""},null,null,null,null,null,null,null,null,null,null,77830000,{"$f":"IF(R13=\"\",\"\",(VLOOKUP(R13,'MD Companies Centers'!$A:$B,2,FALSE)))","v":""}]
[null,null,null,{"$f":"IF(F14=\"\",\"\",VLOOKUP(F14,'MD Companies Centers'!$A:$C,3,FALSE))","v":""},{"$f":"IF(F14=\"\",\"\",(VLOOKUP(F14,'MD Companies Centers'!$A:$B,2,FALSE)))","v":""},null,null,null,null,null,null,null,null,null,null,77830000,{"$f":"IF(R14=\"\",\"\",(VLOOKUP(R14,'MD Companies Centers'!$A:$B,2,FALSE)))","v":""}]
[null,null,null,{"$f":"IF(F15=\"\",\"\",VLOOKUP(F15,'MD Companies Centers'!$A:$C,3,FALSE))","v":""},{"$f":"IF(F15=\"\",\"\",(VLOOKUP(F15,'MD Companies Centers'!$A:$B,2,FALSE)))","v":""},null,null,null,null,null,null,null,null,null,null,77830000,{"$f":"IF(R15=\"\",\"\",(VLOOKUP(R15,'MD Companies Centers'!$A:$B,2,FALSE)))","v":""}]
[null,null,null,{"$f":"IF(F16=\"\",\"\",VLOOKUP(F16,'MD Companies Centers'!$A:$C,3,FALSE))","v":""},{"$f":"IF(F16=\"\",\"\",(VLOOKUP(F16,'MD Companies Centers'!$A:$B,2,FALSE)))","v":""},null,null,null,null,null,null,null,null,null,null,77830000,{"$f":"IF(R16=\"\",\"\",(VLOOKUP(R16,'MD Companies Centers'!$A:$B,2,FALSE)))","v":""}]
[null,null,null,{"$f":"IF(F17=\"\",\"\",VLOOKUP(F17,'MD Companies Centers'!$A:$C,3,FALSE))","v":""},{"$f":"IF(F17=\"\",\"\",(VLOOKUP(F17,'MD Companies Centers'!$A:$B,2,FALSE)))","v":""},null,null,null,null,null,null,null,null,null,null,77830000,{"$f":"IF(R17=\"\",\"\",(VLOOKUP(R17,'MD Companies Centers'!$A:$B,2,FALSE)))","v":""}]
[null,null,null,{"$f":"IF(F18=\"\",\"\",VLOOKUP(F18,'MD Companies Centers'!$A:$C,3,FALSE))","v":""},{"$f":"IF(F18=\"\",\"\",(VLOOKUP(F18,'MD Companies Centers'!$A:$B,2,FALSE)))","v":""},null,null,null,null,null,null,null,null,null,null,77830000,{"$f":"IF(R18=\"\",\"\",(VLOOKUP(R18,'MD Companies Centers'!$A:$B,2,FALSE)))","v":""}]
[null,null,null,{"$f":"IF(F19=\"\",\"\",VLOOKUP(F19,'MD Companies Centers'!$A:$C,3,FALSE))","v":""},{"$f":"IF(F19=\"\",\"\",(VLOOKUP(F19,'MD Companies Centers'!$A:$B,2,FALSE)))","v":""},null,null,null,null,null,null,null,null,null,null,77830000,{"$f":"IF(R19=\"\",\"\",(VLOOKUP(R19,'MD Companies Centers'!$A:$B,2,FALSE)))","v":""}]
[null,null,null,{"$f":"IF(F20=\"\",\"\",VLOOKUP(F20,'MD Companies Centers'!$A:$C,3,FALSE))","v":""},{"$f":"IF(F20=\"\",\"\",(VLOOKUP(F20,'MD Companies Centers'!$A:$B,2,FALSE)))","v":""},null,null,null,null,null,null,null,null,null,null,77830000,{"$f":"IF(R20=\"\",\"\",(VLOOKUP(R20,'MD Companies Centers'!$A:$B,2,FALSE)))","v":""}]
[null,null,null,{"$f":"IF(F21=\"\",\"\",VLOOKUP(F21,'MD Companies Centers'!$A:$C,3,FALSE))","v":""},{"$f":"IF(F21=\"\",\"\",(VLOOKUP(F21,'MD Companies Centers'!$A:$B,2,FALSE)))","v":""},null,null,null,null,null,null,null,null,null,null,77830000,{"$f":"IF(R21=\"\",\"\",(VLOOKUP(R21,'MD Companies Centers'!$A:$B,2,FALSE)))","v":""}]
[null,null,null,{"$f":"IF(F22=\"\",\"\",VLOOKUP(F22,'MD Companies Centers'!$A:$C,3,FALSE))","v":""},{"$f":"IF(F22=\"\",\"\",(VLOOKUP(F22,'MD Companies Centers'!$A:$B,2,FALSE)))","v":""},null,null,null,null,null,null,null,null,null,null,77830000,{"$f":"IF(R22=\"\",\"\",(VLOOKUP(R22,'MD Companies Centers'!$A:$B,2,FALSE)))","v":""}]
[null,null,null,{"$f":"IF(F23=\"\",\"\",VLOOKUP(F23,'MD Companies Centers'!$A:$C,3,FALSE))","v":""},{"$f":"IF(F23=\"\",\"\",(VLOOKUP(F23,'MD Companies Centers'!$A:$B,2,FALSE)))","v":""},null,null,null,null,null,null,null,null,null,null,77830000,{"$f":"IF(R23=\"\",\"\",(VLOOKUP(R23,'MD Companies Centers'!$A:$B,2,FALSE)))","v":""}]
[null,null,null,{"$f":"IF(F24=\"\",\"\",VLOOKUP(F24,'MD Companies Centers'!$A:$C,3,FALSE))","v":""},{"$f":"IF(F24=\"\",\"\",(VLOOKUP(F24,'MD Companies Centers'!$A:$B,2,FALSE)))","v":""},null,null,null,null,null,null,null,null,null,null,77830000,{"$f":"IF(R24=\"\",\"\",(VLOOKUP(R24,'MD Companies Centers'!$A:$B,2,FALSE)))","v":""}]
[null,null,null,{"$f":"IF(F25=\"\",\"\",VLOOKUP(F25,'MD Companies Centers'!$A:$C,3,FALSE))","v":""},{"$f":"IF(F25=\"\",\"\",(VLOOKUP(F25,'MD Companies Centers'!$A:$B,2,FALSE)))","v":""},null,null,null,null,null,null,null,null,null,null,77830000,{"$f":"IF(R25=\"\",\"\",(VLOOKUP(R25,'MD Companies Centers'!$A:$B,2,FALSE)))","v":""}]
[null,null,null,{"$f":"IF(F26=\"\",\"\",VLOOKUP(F26,'MD Companies Centers'!$A:$C,3,FALSE))","v":""},{"$f":"IF(F26=\"\",\"\",(VLOOKUP(F26,'MD Companies Centers'!$A:$B,2,FALSE)))","v":""},null,null,null,null,null,null,null,null,null,null,77830000,{"$f":"IF(R26=\"\",\"\",(VLOOKUP(R26,'MD Companies Centers'!$A:$B,2,FALSE)))","v":""}]
[null,null,null,{"$f":"IF(F27=\"\",\"\",VLOOKUP(F27,'MD Companies Centers'!$A:$C,3,FALSE))","v":""},{"$f":"IF(F27=\"\",\"\",(VLOOKUP(F27,'MD Companies Centers'!$A:$B,2,FALSE)))","v":""},null,null,null,null,null,null,null,null,null,null,77830000,{"$f":"IF(R27=\"\",\"\",(VLOOKUP(R27,'MD Companies Centers'!$A:$B,2,FALSE)))","v":""}]
[null,null,null,{"$f":"IF(F28=\"\",\"\",VLOOKUP(F28,'MD Companies Centers'!$A:$C,3,FALSE))","v":""},{"$f":"IF(F28=\"\",\"\",(VLOOKUP(F28,'MD Companies Centers'!$A:$B,2,FALSE)))","v":""},null,null,null,null,null,null,null,null,null,null,77830000,{"$f":"IF(R28=\"\",\"\",(VLOOKUP(R28,'MD Companies Centers'!$A:$B,2,FALSE)))","v":""}]
[null,null,null,{"$f":"IF(F29=\"\",\"\",VLOOKUP(F29,'MD Companies Centers'!$A:$C,3,FALSE))","v":""},{"$f":"IF(F29=\"\",\"\",(VLOOKUP(F29,'MD Companies Centers'!$A:$B,2,FALSE)))","v":""},null,null,null,null,null,null,null,null,null,null,77830000,{"$f":"IF(R29=\"\",\"\",(VLOOKUP(R29,'MD Companies Centers'!$A:$B,2,FALSE)))","v":""}]
[null,null,null,{"$f":"IF(F30=\"\",\"\",VLOOKUP(F30,'MD Companies Centers'!$A:$C,3,FALSE))","v":""},{"$f":"IF(F30=\"\",\"\",(VLOOKUP(F30,'MD Companies Centers'!$A:$B,2,FALSE)))","v":""},null,null,null,null,null,null,null,null,null,null,77830000,{"$f":"IF(R30=\"\",\"\",(VLOOKUP(R30,'MD Companies Centers'!$A:$B,2,FALSE)))","v":""}]
[null,null,null,{"$f":"IF(F31=\"\",\"\",VLOOKUP(F31,'MD Companies Centers'!$A:$C,3,FALSE))","v":""},{"$f":"IF(F31=\"\",\"\",(VLOOKUP(F31,'MD Companies Centers'!$A:$B,2,FALSE)))","v":""},null,null,null,null,null,null,null,null,null,null,77830000,{"$f":"IF(R31=\"\",\"\",(VLOOKUP(R31,'MD Companies Centers'!$A:$B,2,FALSE)))","v":""}]
[null,null,null,{"$f":"IF(F32=\"\",\"\",VLOOKUP(F32,'MD Companies Centers'!$A:$C,3,FALSE))","v":""},{"$f":"IF(F32=\"\",\"\",(VLOOKUP(F32,'MD Companies Centers'!$A:$B,2,FALSE)))","v":""},null,null,null,null,null,null,null,null,null,null,77830000,{"$f":"IF(R32=\"\",\"\",(VLOOKUP(R32,'MD Companies Centers'!$A:$B,2,FALSE)))","v":""}]
[null,null,null,{"$f":"IF(F33=\"\",\"\",VLOOKUP(F33,'MD Companies Centers'!$A:$C,3,FALSE))","v":""},{"$f":"IF(F33=\"\",\"\",(VLOOKUP(F33,'MD Companies Centers'!$A:$B,2,FALSE)))","v":""},null,null,null,null,null,null,null,null,null,null,77830000,{"$f":"IF(R33=\"\",\"\",(VLOOKUP(R33,'MD Companies Centers'!$A:$B,2,FALSE)))","v":""}]
[null,null,null,{"$f":"IF(F34=\"\",\"\",VLOOKUP(F34,'MD Companies Centers'!$A:$C,3,FALSE))","v":""},{"$f":"IF(F34=\"\",\"\",(VLOOKUP(F34,'MD Companies Centers'!$A:$B,2,FALSE)))","v":""},null,null,null,null,null,null,null,null,null,null,77830000,{"$f":"IF(R34=\"\",\"\",(VLOOKUP(R34,'MD Companies Centers'!$A:$B,2,FALSE)))","v":""}]
[null,null,null,{"$f":"IF(F35=\"\",\"\",VLOOKUP(F35,'MD Companies Centers'!$A:$C,3,FALSE))","v":""},{"$f":"IF(F35=\"\",\"\",(VLOOKUP(F35,'MD Companies Centers'!$A:$B,2,FALSE)))","v":""},null,null,null,null,null,null,null,null,null,null,77830000,{"$f":"IF(R35=\"\",\"\",(VLOOKUP(R35,'MD Companies Centers'!$A:$B,2,FALSE)))","v":""}]
[null,null,null,{"$f":"IF(F36=\"\",\"\",VLOOKUP(F36,'MD Companies Centers'!$A:$C,3,FALSE))","v":""},{"$f":"IF(F36=\"\",\"\",(VLOOKUP(F36,'MD Companies Centers'!$A:$B,2,FALSE)))","v":""},null,null,null,null,null,null,null,null,null,null,77830000,{"$f":"IF(R36=\"\",\"\",(VLOOKUP(R36,'MD Companies Centers'!$A:$B,2,FALSE)))","v":""}]
[null,null,null,{"$f":"IF(F37=\"\",\"\",VLOOKUP(F37,'MD Companies Centers'!$A:$C,3,FALSE))","v":""},{"$f":"IF(F37=\"\",\"\",(VLOOKUP(F37,'MD Companies Centers'!$A:$B,2,FALSE)))","v":""},null,null,null,null,null,null,null,null,null,null,77830000,{"$f":"IF(R37=\"\",\"\",(VLOOKUP(R37,'MD Companies Centers'!$A:$B,2,FALSE)))","v":""}]
[null,null,null,{"$f":"IF(F38=\"\",\"\",VLOOKUP(F38,'MD Companies Centers'!$A:$C,3,FALSE))","v":""},{"$f":"IF(F38=\"\",\"\",(VLOOKUP(F38,'MD Companies Centers'!$A:$B,2,FALSE)))","v":""},null,null,null,null,null,null,null,null,null,null,77830000,{"$f":"IF(R38=\"\",\"\",(VLOOKUP(R38,'MD Companies Centers'!$A:$B,2,FALSE)))","v":""}]
[null,null,null,{"$f":"IF(F39=\"\",\"\",VLOOKUP(F39,'MD Companies Centers'!$A:$C,3,FALSE))","v":""},{"$f":"IF(F39=\"\",\"\",(VLOOKUP(F39,'MD Companies Centers'!$A:$B,2,FALSE)))","v":""},null,null,null,null,null,null,null,null,null,null,77830000,{"$f":"IF(R39=\"\",\"\",(VLOOKUP(R39,'MD Companies Centers'!$A:$B,2,FALSE)))","v":""}]
[null,null,null,{"$f":"IF(F40=\"\",\"\",VLOOKUP(F40,'MD Companies Centers'!$A:$C,3,FALSE))","v":""},{"$f":"IF(F40=\"\",\"\",(VLOOKUP(F40,'MD Companies Centers'!$A:$B,2,FALSE)))","v":""},null,null,null,null,null,null,null,null,null,null,77830000,{"$f":"IF(R40=\"\",\"\",(VLOOKUP(R40,'MD Companies Centers'!$A:$B,2,FALSE)))","v":""}]
[null,null,null,{"$f":"IF(F41=\"\",\"\",VLOOKUP(F41,'MD Companies Centers'!$A:$C,3,FALSE))","v":""},{"$f":"IF(F41=\"\",\"\",(VLOOKUP(F41,'MD Companies Centers'!$A:$B,2,FALSE)))","v":""},null,null,null,null,null,null,null,null,null,null,77830000,{"$f":"IF(R41=\"\",\"\",(VLOOKUP(R41,'MD Companies Centers'!$A:$B,2,FALSE)))","v":""}]
[null,null,null,{"$f":"IF(F42=\"\",\"\",VLOOKUP(F42,'MD Companies Centers'!$A:$C,3,FALSE))","v":""},{"$f":"IF(F42=\"\",\"\",(VLOOKUP(F42,'MD Companies Centers'!$A:$B,2,FALSE)))","v":""},null,null,null,null,null,null,null,null,null,null,77830000,{"$f":"IF(R42=\"\",\"\",(VLOOKUP(R42,'MD Companies Centers'!$A:$B,2,FALSE)))","v":""}]
[]
[]
["NBV ≥ 5.000 €",null,null,"Authorizations","Operations Director",null,"Date:_________","F&A Director",null,"Date:_________"]
[]
["Asset number","Asset Description","Quantity","Company Code","Hotel Name","B.A","Date of Acquisition","Cost","NBV \n(Net book value)","Customer/ Company Group Destination",null,null,null,null,null,null,null,null,"Partial retirement*\n* Fill in only one of the fields (%, quantity or amount)",null,null,null,"Document of Transport number (DDT) *(1)","Document Date*\n*The day when the document is issued","Posting Date","Asset value date*\n*Deadline of depreciation before the sale","Document number retirement"]
[null,null,null,null,null,null,null,null,null,"Name","Code SAP*\n*Customer code in SAP","VAT number","Sale amount (net amount)","Tax",null,"Account for Income/Expense","Hotel Name","B.A","%","Quantity","Amount","Currency"]
[null,null,null,{"$f":"IF(F49=\"\",\"\",VLOOKUP(F49,'MD Companies Centers'!$A:$C,3,FALSE))","v":""},{"$f":"IF(F49=\"\",\"\",(VLOOKUP(F49,'MD Companies Centers'!$A:$B,2,FALSE)))","v":""},null,null,null,null,null,null,null,null,null,null,77830000,{"$f":"IF(R49=\"\",\"\",(VLOOKUP(R49,'MD Companies Centers'!$A:$B,2,FALSE)))","v":""}]
[null,null,null,{"$f":"IF(F50=\"\",\"\",VLOOKUP(F50,'MD Companies Centers'!$A:$C,3,FALSE))","v":""},{"$f":"IF(F50=\"\",\"\",(VLOOKUP(F50,'MD Companies Centers'!$A:$B,2,FALSE)))","v":""},null,null,null,null,null,null,null,null,null,null,77830000,{"$f":"IF(R50=\"\",\"\",(VLOOKUP(R50,'MD Companies Centers'!$A:$B,2,FALSE)))","v":""}]
[null,null,null,{"$f":"IF(F51=\"\",\"\",VLOOKUP(F51,'MD Companies Centers'!$A:$C,3,FALSE))","v":""},{"$f":"IF(F51=\"\",\"\",(VLOOKUP(F51,'MD Companies Centers'!$A:$B,2,FALSE)))","v":""},null,null,null,null,null,null,null,null,null,null,77830000,{"$f":"IF(R51=\"\",\"\",(VLOOKUP(R51,'MD Companies Centers'!$A:$B,2,FALSE)))","v":""}]
[null,null,null,{"$f":"IF(F52=\"\",\"\",VLOOKUP(F52,'MD Companies Centers'!$A:$C,3,FALSE))","v":""},{"$f":"IF(F52=\"\",\"\",(VLOOKUP(F52,'MD Companies Centers'!$A:$B,2,FALSE)))","v":""},null,null,null,null,null,null,null,null,null,null,77830000,{"$f":"IF(R52=\"\",\"\",(VLOOKUP(R52,'MD Companies Centers'!$A:$B,2,FALSE)))","v":""}]
[null,null,null,{"$f":"IF(F53=\"\",\"\",VLOOKUP(F53,'MD Companies Centers'!$A:$C,3,FALSE))","v":""},{"$f":"IF(F53=\"\",\"\",(VLOOKUP(F53,'MD Companies Centers'!$A:$B,2,FALSE)))","v":""},null,null,null,null,null,null,null,null,null,null,77830000,{"$f":"IF(R53=\"\",\"\",(VLOOKUP(R53,'MD Companies Centers'!$A:$B,2,FALSE)))","v":""}]
[null,null,null,{"$f":"IF(F54=\"\",\"\",VLOOKUP(F54,'MD Companies Centers'!$A:$C,3,FALSE))","v":""},{"$f":"IF(F54=\"\",\"\",(VLOOKUP(F54,'MD Companies Centers'!$A:$B,2,FALSE)))","v":""},null,null,null,null,null,null,null,null,null,null,77830000,{"$f":"IF(R54=\"\",\"\",(VLOOKUP(R54,'MD Companies Centers'!$A:$B,2,FALSE)))","v":""}]
[null,null,null,{"$f":"IF(F55=\"\",\"\",VLOOKUP(F55,'MD Companies Centers'!$A:$C,3,FALSE))","v":""},{"$f":"IF(F55=\"\",\"\",(VLOOKUP(F55,'MD Companies Centers'!$A:$B,2,FALSE)))","v":""},null,null,null,null,null,null,null,null,null,null,77830000,{"$f":"IF(R55=\"\",\"\",(VLOOKUP(R55,'MD Companies Centers'!$A:$B,2,FALSE)))","v":""}]
[null,null,null,{"$f":"IF(F56=\"\",\"\",VLOOKUP(F56,'MD Companies Centers'!$A:$C,3,FALSE))","v":""},{"$f":"IF(F56=\"\",\"\",(VLOOKUP(F56,'MD Companies Centers'!$A:$B,2,FALSE)))","v":""},null,null,null,null,null,null,null,null,null,null,77830000,{"$f":"IF(R56=\"\",\"\",(VLOOKUP(R56,'MD Companies Centers'!$A:$B,2,FALSE)))","v":""}]
[null,null,null,{"$f":"IF(F57=\"\",\"\",VLOOKUP(F57,'MD Companies Centers'!$A:$C,3,FALSE))","v":""},{"$f":"IF(F57=\"\",\"\",(VLOOKUP(F57,'MD Companies Centers'!$A:$B,2,FALSE)))","v":""},null,null,null,null,null,null,null,null,null,null,77830000,{"$f":"IF(R57=\"\",\"\",(VLOOKUP(R57,'MD Companies Centers'!$A:$B,2,FALSE)))","v":""}]
[null,null,null,{"$f":"IF(F58=\"\",\"\",VLOOKUP(F58,'MD Companies Centers'!$A:$C,3,FALSE))","v":""},{"$f":"IF(F58=\"\",\"\",(VLOOKUP(F58,'MD Companies Centers'!$A:$B,2,FALSE)))","v":""},null,null,null,null,null,null,null,null,null,null,77830000,{"$f":"IF(R58=\"\",\"\",(VLOOKUP(R58,'MD Companies Centers'!$A:$B,2,FALSE)))","v":""}]
[null,null,null,{"$f":"IF(F59=\"\",\"\",VLOOKUP(F59,'MD Companies Centers'!$A:$C,3,FALSE))","v":""},{"$f":"IF(F59=\"\",\"\",(VLOOKUP(F59,'MD Companies Centers'!$A:$B,2,FALSE)))","v":""},null,null,null,null,null,null,null,null,null,null,77830000,{"$f":"IF(R59=\"\",\"\",(VLOOKUP(R59,'MD Companies Centers'!$A:$B,2,FALSE)))","v":""}]
[null,null,null,{"$f":"IF(F60=\"\",\"\",VLOOKUP(F60,'MD Companies Centers'!$A:$C,3,FALSE))","v":""},{"$f":"IF(F60=\"\",\"\",(VLOOKUP(F60,'MD Companies Centers'!$A:$B,2,FALSE)))","v":""},null,null,null,null,null,null,null,null,null,null,77830000,{"$f":"IF(R60=\"\",\"\",(VLOOKUP(R60,'MD Companies Centers'!$A:$B,2,FALSE)))","v":""}]
[null,null,null,{"$f":"IF(F61=\"\",\"\",VLOOKUP(F61,'MD Companies Centers'!$A:$C,3,FALSE))","v":""},{"$f":"IF(F61=\"\",\"\",(VLOOKUP(F61,'MD Companies Centers'!$A:$B,2,FALSE)))","v":""},null,null,null,null,null,null,null,null,null,null,77830000,{"$f":"IF(R61=\"\",\"\",(VLOOKUP(R61,'MD Companies Centers'!$A:$B,2,FALSE)))","v":""}]
[null,null,null,{"$f":"IF(F62=\"\",\"\",VLOOKUP(F62,'MD Companies Centers'!$A:$C,3,FALSE))","v":""},{"$f":"IF(F62=\"\",\"\",(VLOOKUP(F62,'MD Companies Centers'!$A:$B,2,FALSE)))","v":""},null,null,null,null,null,null,null,null,null,null,77830000,{"$f":"IF(R62=\"\",\"\",(VLOOKUP(R62,'MD Companies Centers'!$A:$B,2,FALSE)))","v":""}]
[null,null,null,{"$f":"IF(F63=\"\",\"\",VLOOKUP(F63,'MD Companies Centers'!$A:$C,3,FALSE))","v":""},{"$f":"IF(F63=\"\",\"\",(VLOOKUP(F63,'MD Companies Centers'!$A:$B,2,FALSE)))","v":""},null,null,null,null,null,null,null,null,null,null,77830000,{"$f":"IF(R63=\"\",\"\",(VLOOKUP(R63,'MD Companies Centers'!$A:$B,2,FALSE)))","v":""}]
[null,null,null,{"$f":"IF(F64=\"\",\"\",VLOOKUP(F64,'MD Companies Centers'!$A:$C,3,FALSE))","v":""},{"$f":"IF(F64=\"\",\"\",(VLOOKUP(F64,'MD Companies Centers'!$A:$B,2,FALSE)))","v":""},null,null,null,null,null,null,null,null,null,null,77830000,{"$f":"IF(R64=\"\",\"\",(VLOOKUP(R64,'MD Companies Centers'!$A:$B,2,FALSE)))","v":""}]
[null,null,null,{"$f":"IF(F65=\"\",\"\",VLOOKUP(F65,'MD Companies Centers'!$A:$C,3,FALSE))","v":""},{"$f":"IF(F65=\"\",\"\",(VLOOKUP(F65,'MD Companies Centers'!$A:$B,2,FALSE)))","v":""},null,null,null,null,null,null,null,null,null,null,77830000,{"$f":"IF(R65=\"\",\"\",(VLOOKUP(R65,'MD Companies Centers'!$A:$B,2,FALSE)))","v":""}]
[null,null,null,{"$f":"IF(F66=\"\",\"\",VLOOKUP(F66,'MD Companies Centers'!$A:$C,3,FALSE))","v":""},{"$f":"IF(F66=\"\",\"\",(VLOOKUP(F66,'MD Companies Centers'!$A:$B,2,FALSE)))","v":""},null,null,null,null,null,null,null,null,null,null,77830000,{"$f":"IF(R66=\"\",\"\",(VLOOKUP(R66,'MD Companies Centers'!$A:$B,2,FALSE)))","v":""}]
[null,null,null,{"$f":"IF(F67=\"\",\"\",VLOOKUP(F67,'MD Companies Centers'!$A:$C,3,FALSE))","v":""},{"$f":"IF(F67=\"\",\"\",(VLOOKUP(F67,'MD Companies Centers'!$A:$B,2,FALSE)))","v":""},null,null,null,null,null,null,null,null,null,null,77830000,{"$f":"IF(R67=\"\",\"\",(VLOOKUP(R67,'MD Companies Centers'!$A:$B,2,FALSE)))","v":""}]
[null,null,null,{"$f":"IF(F68=\"\",\"\",VLOOKUP(F68,'MD Companies Centers'!$A:$C,3,FALSE))","v":""},{"$f":"IF(F68=\"\",\"\",(VLOOKUP(F68,'MD Companies Centers'!$A:$B,2,FALSE)))","v":""},null,null,null,null,null,null,null,null,null,null,77830000,{"$f":"IF(R68=\"\",\"\",(VLOOKUP(R68,'MD Companies Centers'!$A:$B,2,FALSE)))","v":""}]
[null,null,null,{"$f":"IF(F69=\"\",\"\",VLOOKUP(F69,'MD Companies Centers'!$A:$C,3,FALSE))","v":""},{"$f":"IF(F69=\"\",\"\",(VLOOKUP(F69,'MD Companies Centers'!$A:$B,2,FALSE)))","v":""},null,null,null,null,null,null,null,null,null,null,77830000,{"$f":"IF(R69=\"\",\"\",(VLOOKUP(R69,'MD Companies Centers'!$A:$B,2,FALSE)))","v":""}]
[null,null,null,{"$f":"IF(F70=\"\",\"\",VLOOKUP(F70,'MD Companies Centers'!$A:$C,3,FALSE))","v":""},{"$f":"IF(F70=\"\",\"\",(VLOOKUP(F70,'MD Companies Centers'!$A:$B,2,FALSE)))","v":""},null,null,null,null,null,null,null,null,null,null,77830000,{"$f":"IF(R70=\"\",\"\",(VLOOKUP(R70,'MD Companies Centers'!$A:$B,2,FALSE)))","v":""}]
[null,null,null,{"$f":"IF(F71=\"\",\"\",VLOOKUP(F71,'MD Companies Centers'!$A:$C,3,FALSE))","v":""},{"$f":"IF(F71=\"\",\"\",(VLOOKUP(F71,'MD Companies Centers'!$A:$B,2,FALSE)))","v":""},null,null,null,null,null,null,null,null,null,null,77830000,{"$f":"IF(R71=\"\",\"\",(VLOOKUP(R71,'MD Companies Centers'!$A:$B,2,FALSE)))","v":""}]
[null,null,null,{"$f":"IF(F72=\"\",\"\",VLOOKUP(F72,'MD Companies Centers'!$A:$C,3,FALSE))","v":""},{"$f":"IF(F72=\"\",\"\",(VLOOKUP(F72,'MD Companies Centers'!$A:$B,2,FALSE)))","v":""},null,null,null,null,null,null,null,null,null,null,77830000,{"$f":"IF(R72=\"\",\"\",(VLOOKUP(R72,'MD Companies Centers'!$A:$B,2,FALSE)))","v":""}]
[null,null,null,{"$f":"IF(F73=\"\",\"\",VLOOKUP(F73,'MD Companies Centers'!$A:$C,3,FALSE))","v":""},{"$f":"IF(F73=\"\",\"\",(VLOOKUP(F73,'MD Companies Centers'!$A:$B,2,FALSE)))","v":""},null,null,null,null,null,null,null,null,null,null,77830000,{"$f":"IF(R73=\"\",\"\",(VLOOKUP(R73,'MD Companies Centers'!$A:$B,2,FALSE)))","v":""}]
[null,null,null,{"$f":"IF(F74=\"\",\"\",VLOOKUP(F74,'MD Companies Centers'!$A:$C,3,FALSE))","v":""},{"$f":"IF(F74=\"\",\"\",(VLOOKUP(F74,'MD Companies Centers'!$A:$B,2,FALSE)))","v":""},null,null,null,null,null,null,null,null,null,null,77830000,{"$f":"IF(R74=\"\",\"\",(VLOOKUP(R74,'MD Companies Centers'!$A:$B,2,FALSE)))","v":""}]
[null,null,null,{"$f":"IF(F75=\"\",\"\",VLOOKUP(F75,'MD Companies Centers'!$A:$C,3,FALSE))","v":""},{"$f":"IF(F75=\"\",\"\",(VLOOKUP(F75,'MD Companies Centers'!$A:$B,2,FALSE)))","v":""},null,null,null,null,null,null,null,null,null,null,77830000,{"$f":"IF(R75=\"\",\"\",(VLOOKUP(R75,'MD Companies Centers'!$A:$B,2,FALSE)))","v":""}]
[null,null,null,{"$f":"IF(F76=\"\",\"\",VLOOKUP(F76,'MD Companies Centers'!$A:$C,3,FALSE))","v":""},{"$f":"IF(F76=\"\",\"\",(VLOOKUP(F76,'MD Companies Centers'!$A:$B,2,FALSE)))","v":""},null,null,null,null,null,null,null,null,null,null,77830000,{"$f":"IF(R76=\"\",\"\",(VLOOKUP(R76,'MD Companies Centers'!$A:$B,2,FALSE)))","v":""}]
[null,null,null,{"$f":"IF(F77=\"\",\"\",VLOOKUP(F77,'MD Companies Centers'!$A:$C,3,FALSE))","v":""},{"$f":"IF(F77=\"\",\"\",(VLOOKUP(F77,'MD Companies Centers'!$A:$B,2,FALSE)))","v":""},null,null,null,null,null,null,null,null,null,null,77830000,{"$f":"IF(R77=\"\",\"\",(VLOOKUP(R77,'MD Companies Centers'!$A:$B,2,FALSE)))","v":""}]
[null,null,null,{"$f":"IF(F78=\"\",\"\",VLOOKUP(F78,'MD Companies Centers'!$A:$C,3,FALSE))","v":""},{"$f":"IF(F78=\"\",\"\",(VLOOKUP(F78,'MD Companies Centers'!$A:$B,2,FALSE)))","v":""},null,null,null,null,null,null,null,null,null,null,77830000,{"$f":"IF(R78=\"\",\"\",(VLOOKUP(R78,'MD Companies Centers'!$A:$B,2,FALSE)))","v":""}]
[]
["Invoice Observations"]
[]
["Invoice Line description"]
[]
[]
["Asset receiver (only for NH Group)"]
[]
["* (2) New Asset for sale"]
["Existing Asset "]
[]
["In case of new assets, please fill in the following fields:"]
["(1) This field is optional for the following BUs: Benelux, CE, Italy and GIHSA.",null,null,null,null,null,null,null,null,null,null,null,null,null,null,null,"Book Depr",null,null,"Fiscal Depr",null,null,"New Asset number* (2)","Comments"]
["Existing Asset Number Receiver","New Asset Class Receiver","FAMA number (Inventory number)*(1)","Quantity","Unit of measurement","Company Code","Hotel Name","B.A","Center (Plant)","Location","Personnel number","UseLife (Years)","Prd (Months)","Evaluation group 1*\n*Building where the asset is located",null,"Capitalization Date*                     *The date when the asset must start its depreciation","UseLife  (Years) * Mandatory if the useful life is diferent from SAP","Period (Months)","Deprn Key","UseLife  (Years)","Period (Months)","Deprn Key"]
[null,null,null,null,"ST-Piece",{"$f":"IF(H93=\"\",\"\",VLOOKUP(H93,'MD Companies Centers'!$A:$C,3,FALSE))","v":""},{"$f":"IF(H93=\"\",\"\",(VLOOKUP(H93,'MD Companies Centers'!$A:$B,2,FALSE)))","v":""},null,{"$f":"IF(H93=\"\",\"\",(VLOOKUP(H93,'MD Companies Centers'!$A:$B,1,FALSE)))","v":""}]
[null,null,null,null,"ST-Piece",{"$f":"IF(H94=\"\",\"\",VLOOKUP(H94,'MD Companies Centers'!$A:$C,3,FALSE))","v":""},{"$f":"IF(H94=\"\",\"\",(VLOOKUP(H94,'MD Companies Centers'!$A:$B,2,FALSE)))","v":""},null,{"$f":"IF(H94=\"\",\"\",(VLOOKUP(H94,'MD Companies Centers'!$A:$B,1,FALSE)))","v":""}]
[null,null,null,null,"ST-Piece",{"$f":"IF(H95=\"\",\"\",VLOOKUP(H95,'MD Companies Centers'!$A:$C,3,FALSE))","v":""},{"$f":"IF(H95=\"\",\"\",(VLOOKUP(H95,'MD Companies Centers'!$A:$B,2,FALSE)))","v":""},null,{"$f":"IF(H95=\"\",\"\",(VLOOKUP(H95,'MD Companies Centers'!$A:$B,1,FALSE)))","v":""}]
[null,null,null,null,"ST-Piece",{"$f":"IF(H96=\"\",\"\",VLOOKUP(H96,'MD Companies Centers'!$A:$C,3,FALSE))","v":""},{"$f":"IF(H96=\"\",\"\",(VLOOKUP(H96,'MD Companies Centers'!$A:$B,2,FALSE)))","v":""},null,{"$f":"IF(H96=\"\",\"\",(VLOOKUP(H96,'MD Companies Centers'!$A:$B,1,FALSE)))","v":""}]
[null,null,null,null,"ST-Piece",{"$f":"IF(H97=\"\",\"\",VLOOKUP(H97,'MD Companies Centers'!$A:$C,3,FALSE))","v":""},{"$f":"IF(H97=\"\",\"\",(VLOOKUP(H97,'MD Companies Centers'!$A:$B,2,FALSE)))","v":""},null,{"$f":"IF(H97=\"\",\"\",(VLOOKUP(H97,'MD Companies Centers'!$A:$B,1,FALSE)))","v":""}]
[null,null,null,null,"ST-Piece",{"$f":"IF(H98=\"\",\"\",VLOOKUP(H98,'MD Companies Centers'!$A:$C,3,FALSE))","v":""},{"$f":"IF(H98=\"\",\"\",(VLOOKUP(H98,'MD Companies Centers'!$A:$B,2,FALSE)))","v":""},null,{"$f":"IF(H98=\"\",\"\",(VLOOKUP(H98,'MD Companies Centers'!$A:$B,1,FALSE)))","v":""}]
[null,null,null,null,"ST-Piece",{"$f":"IF(H99=\"\",\"\",VLOOKUP(H99,'MD Companies Centers'!$A:$C,3,FALSE))","v":""},{"$f":"IF(H99=\"\",\"\",(VLOOKUP(H99,'MD Companies Centers'!$A:$B,2,FALSE)))","v":""},null,{"$f":"IF(H99=\"\",\"\",(VLOOKUP(H99,'MD Companies Centers'!$A:$B,1,FALSE)))","v":""}]
[null,null,null,null,"ST-Piece",{"$f":"IF(H100=\"\",\"\",VLOOKUP(H100,'MD Companies Centers'!$A:$C,3,FALSE))","v":""},{"$f":"IF(H100=\"\",\"\",(VLOOKUP(H100,'MD Companies Centers'!$A:$B,2,FALSE)))","v":""},null,{"$f":"IF(H100=\"\",\"\",(VLOOKUP(H100,'MD Companies Centers'!$A:$B,1,FALSE)))","v":""}]
[null,null,null,null,"ST-Piece",{"$f":"IF(H101=\"\",\"\",VLOOKUP(H101,'MD Companies Centers'!$A:$C,3,FALSE))","v":""},{"$f":"IF(H101=\"\",\"\",(VLOOKUP(H101,'MD Companies Centers'!$A:$B,2,FALSE)))","v":""},null,{"$f":"IF(H101=\"\",\"\",(VLOOKUP(H101,'MD Companies Centers'!$A:$B,1,FALSE)))","v":""}]
[null,null,null,null,"ST-Piece",{"$f":"IF(H102=\"\",\"\",VLOOKUP(H102,'MD Companies Centers'!$A:$C,3,FALSE))","v":""},{"$f":"IF(H102=\"\",\"\",(VLOOKUP(H102,'MD Companies Centers'!$A:$B,2,FALSE)))","v":""},null,{"$f":"IF(H102=\"\",\"\",(VLOOKUP(H102,'MD Companies Centers'!$A:$B,1,FALSE)))","v":""}]
[null,null,null,null,"ST-Piece",{"$f":"IF(H103=\"\",\"\",VLOOKUP(H103,'MD Companies Centers'!$A:$C,3,FALSE))","v":""},{"$f":"IF(H103=\"\",\"\",(VLOOKUP(H103,'MD Companies Centers'!$A:$B,2,FALSE)))","v":""},null,{"$f":"IF(H103=\"\",\"\",(VLOOKUP(H103,'MD Companies Centers'!$A:$B,1,FALSE)))","v":""}]
[null,null,null,null,"ST-Piece",{"$f":"IF(H104=\"\",\"\",VLOOKUP(H104,'MD Companies Centers'!$A:$C,3,FALSE))","v":""},{"$f":"IF(H104=\"\",\"\",(VLOOKUP(H104,'MD Companies Centers'!$A:$B,2,FALSE)))","v":""},null,{"$f":"IF(H104=\"\",\"\",(VLOOKUP(H104,'MD Companies Centers'!$A:$B,1,FALSE)))","v":""}]
[null,null,null,null,"ST-Piece",{"$f":"IF(H105=\"\",\"\",VLOOKUP(H105,'MD Companies Centers'!$A:$C,3,FALSE))","v":""},{"$f":"IF(H105=\"\",\"\",(VLOOKUP(H105,'MD Companies Centers'!$A:$B,2,FALSE)))","v":""},null,{"$f":"IF(H105=\"\",\"\",(VLOOKUP(H105,'MD Companies Centers'!$A:$B,1,FALSE)))","v":""}]
[null,null,null,null,"ST-Piece",{"$f":"IF(H106=\"\",\"\",VLOOKUP(H106,'MD Companies Centers'!$A:$C,3,FALSE))","v":""},{"$f":"IF(H106=\"\",\"\",(VLOOKUP(H106,'MD Companies Centers'!$A:$B,2,FALSE)))","v":""},null,{"$f":"IF(H106=\"\",\"\",(VLOOKUP(H106,'MD Companies Centers'!$A:$B,1,FALSE)))","v":""}]
[null,null,null,null,"ST-Piece",{"$f":"IF(H107=\"\",\"\",VLOOKUP(H107,'MD Companies Centers'!$A:$C,3,FALSE))","v":""},{"$f":"IF(H107=\"\",\"\",(VLOOKUP(H107,'MD Companies Centers'!$A:$B,2,FALSE)))","v":""},null,{"$f":"IF(H107=\"\",\"\",(VLOOKUP(H107,'MD Companies Centers'!$A:$B,1,FALSE)))","v":""}]
[null,null,null,null,"ST-Piece",{"$f":"IF(H108=\"\",\"\",VLOOKUP(H108,'MD Companies Centers'!$A:$C,3,FALSE))","v":""},{"$f":"IF(H108=\"\",\"\",(VLOOKUP(H108,'MD Companies Centers'!$A:$B,2,FALSE)))","v":""},null,{"$f":"IF(H108=\"\",\"\",(VLOOKUP(H108,'MD Companies Centers'!$A:$B,1,FALSE)))","v":""}]
[null,null,null,null,"ST-Piece",{"$f":"IF(H109=\"\",\"\",VLOOKUP(H109,'MD Companies Centers'!$A:$C,3,FALSE))","v":""},{"$f":"IF(H109=\"\",\"\",(VLOOKUP(H109,'MD Companies Centers'!$A:$B,2,FALSE)))","v":""},null,{"$f":"IF(H109=\"\",\"\",(VLOOKUP(H109,'MD Companies Centers'!$A:$B,1,FALSE)))","v":""}]
[null,null,null,null,"ST-Piece",{"$f":"IF(H110=\"\",\"\",VLOOKUP(H110,'MD Companies Centers'!$A:$C,3,FALSE))","v":""},{"$f":"IF(H110=\"\",\"\",(VLOOKUP(H110,'MD Companies Centers'!$A:$B,2,FALSE)))","v":""},null,{"$f":"IF(H110=\"\",\"\",(VLOOKUP(H110,'MD Companies Centers'!$A:$B,1,FALSE)))","v":""}]
[null,null,null,null,"ST-Piece",{"$f":"IF(H111=\"\",\"\",VLOOKUP(H111,'MD Companies Centers'!$A:$C,3,FALSE))","v":""},{"$f":"IF(H111=\"\",\"\",(VLOOKUP(H111,'MD Companies Centers'!$A:$B,2,FALSE)))","v":""},null,{"$f":"IF(H111=\"\",\"\",(VLOOKUP(H111,'MD Companies Centers'!$A:$B,1,FALSE)))","v":""}]
[null,null,null,null,"ST-Piece",{"$f":"IF(H112=\"\",\"\",VLOOKUP(H112,'MD Companies Centers'!$A:$C,3,FALSE))","v":""},{"$f":"IF(H112=\"\",\"\",(VLOOKUP(H112,'MD Companies Centers'!$A:$B,2,FALSE)))","v":""},null,{"$f":"IF(H112=\"\",\"\",(VLOOKUP(H112,'MD Companies Centers'!$A:$B,1,FALSE)))","v":""}]
[null,null,null,null,"ST-Piece",{"$f":"IF(H113=\"\",\"\",VLOOKUP(H113,'MD Companies Centers'!$A:$C,3,FALSE))","v":""},{"$f":"IF(H113=\"\",\"\",(VLOOKUP(H113,'MD Companies Centers'!$A:$B,2,FALSE)))","v":""},null,{"$f":"IF(H113=\"\",\"\",(VLOOKUP(H113,'MD Companies Centers'!$A:$B,1,FALSE)))","v":""}]
[null,null,null,null,"ST-Piece",{"$f":"IF(H114=\"\",\"\",VLOOKUP(H114,'MD Companies Centers'!$A:$C,3,FALSE))","v":""},{"$f":"IF(H114=\"\",\"\",(VLOOKUP(H114,'MD Companies Centers'!$A:$B,2,FALSE)))","v":""},null,{"$f":"IF(H114=\"\",\"\",(VLOOKUP(H114,'MD Companies Centers'!$A:$B,1,FALSE)))","v":""}]
[null,null,null,null,"ST-Piece",{"$f":"IF(H115=\"\",\"\",VLOOKUP(H115,'MD Companies Centers'!$A:$C,3,FALSE))","v":""},{"$f":"IF(H115=\"\",\"\",(VLOOKUP(H115,'MD Companies Centers'!$A:$B,2,FALSE)))","v":""},null,{"$f":"IF(H115=\"\",\"\",(VLOOKUP(H115,'MD Companies Centers'!$A:$B,1,FALSE)))","v":""}]
[null,null,null,null,"ST-Piece",{"$f":"IF(H116=\"\",\"\",VLOOKUP(H116,'MD Companies Centers'!$A:$C,3,FALSE))","v":""},{"$f":"IF(H116=\"\",\"\",(VLOOKUP(H116,'MD Companies Centers'!$A:$B,2,FALSE)))","v":""},null,{"$f":"IF(H116=\"\",\"\",(VLOOKUP(H116,'MD Companies Centers'!$A:$B,1,FALSE)))","v":""}]
[null,null,null,null,"ST-Piece",{"$f":"IF(H117=\"\",\"\",VLOOKUP(H117,'MD Companies Centers'!$A:$C,3,FALSE))","v":""},{"$f":"IF(H117=\"\",\"\",(VLOOKUP(H117,'MD Companies Centers'!$A:$B,2,FALSE)))","v":""},null,{"$f":"IF(H117=\"\",\"\",(VLOOKUP(H117,'MD Companies Centers'!$A:$B,1,FALSE)))","v":""}]
[null,null,null,null,"ST-Piece",{"$f":"IF(H118=\"\",\"\",VLOOKUP(H118,'MD Companies Centers'!$A:$C,3,FALSE))","v":""},{"$f":"IF(H118=\"\",\"\",(VLOOKUP(H118,'MD Companies Centers'!$A:$B,2,FALSE)))","v":""},null,{"$f":"IF(H118=\"\",\"\",(VLOOKUP(H118,'MD Companies Centers'!$A:$B,1,FALSE)))","v":""}]
[null,null,null,null,"ST-Piece",{"$f":"IF(H119=\"\",\"\",VLOOKUP(H119,'MD Companies Centers'!$A:$C,3,FALSE))","v":""},{"$f":"IF(H119=\"\",\"\",(VLOOKUP(H119,'MD Companies Centers'!$A:$B,2,FALSE)))","v":""},null,{"$f":"IF(H119=\"\",\"\",(VLOOKUP(H119,'MD Companies Centers'!$A:$B,1,FALSE)))","v":""}]
[null,null,null,null,"ST-Piece",{"$f":"IF(H120=\"\",\"\",VLOOKUP(H120,'MD Companies Centers'!$A:$C,3,FALSE))","v":""},{"$f":"IF(H120=\"\",\"\",(VLOOKUP(H120,'MD Companies Centers'!$A:$B,2,FALSE)))","v":""},null,{"$f":"IF(H120=\"\",\"\",(VLOOKUP(H120,'MD Companies Centers'!$A:$B,1,FALSE)))","v":""}]
[null,null,null,null,"ST-Piece",{"$f":"IF(H121=\"\",\"\",VLOOKUP(H121,'MD Companies Centers'!$A:$C,3,FALSE))","v":""},{"$f":"IF(H121=\"\",\"\",(VLOOKUP(H121,'MD Companies Centers'!$A:$B,2,FALSE)))","v":""},null,{"$f":"IF(H121=\"\",\"\",(VLOOKUP(H121,'MD Companies Centers'!$A:$B,1,FALSE)))","v":""}]
[null,null,null,null,"ST-Piece",{"$f":"IF(H122=\"\",\"\",VLOOKUP(H122,'MD Companies Centers'!$A:$C,3,FALSE))","v":""},{"$f":"IF(H122=\"\",\"\",(VLOOKUP(H122,'MD Companies Centers'!$A:$B,2,FALSE)))","v":""},null,{"$f":"IF(H122=\"\",\"\",(VLOOKUP(H122,'MD Companies Centers'!$A:$B,1,FALSE)))","v":""}]
[]
["Comments"]

{"sheet":"Transfer","index":8,"n_rows":121,"n_cols":23,"rows_kept":121,"cut":false,"hidden":false,"merged":[[121,0,121,15],[77,2,77,11],[8,16,9,16],[44,16,45,16],[8,3,9,3],[8,4,9,4],[8,5,9,5],[44,3,45,3],[44,4,45,4],[44,5,45,5],[44,13,45,13],[44,14,45,14],[44,15,45,15],[8,13,9,13],[44,9,44,11],[42,0,42,1],[2,22,3,27],[6,0,6,1],[8,1,9,1],[8,14,9,14],[8,2,9,2],[8,0,9,0],[8,6,9,6],[8,7,9,7],[8,8,9,8],[8,15,9,15],[8,9,8,12],[44,7,45,7],[44,8,45,8],[77,0,77,1],[120,0,120,1],[120,2,120,15],[44,1,45,1],[44,2,45,2],[44,0,45,0],[44,6,45,6],[86,15,86,17],[86,18,86,20],[86,21,87,21],[86,22,87,23],[78,0,78,1],[78,2,78,10],[84,0,84,1]]}
[]
[null,null,null,null,null,null,null,null,"ASSET RETIREMENT BY TRANSFER"]
[]
[]
[]
[]
["0 € ≤  NBV ≤ 5.000 €",null,null,"Authorizations","Hotel/CS Deparment Director",null,"Date:_________","Fixed Assets Responsible",null,"Date:_________"]
[]
["Asset number","Asset Description","Quantity","Company Code","Hotel Name","B.A","Date of Acquisition","Cost","NBV \n(Net book value)","Partial retirement*\n* Fill in only one of the fields (%, and quantity or amount and quantity)",null,null,null,"Document Date*\n*The day when the document is issued","Posting Date","Asset value date*\n*Deadline of depreciation before the sale","Document number retirement"]
[null,null,null,null,null,null,null,null,null,"%","Quantity","Amount","Currency"]
[null,null,null,{"$f":"IF(F11=\"\",\"\",VLOOKUP(F11,'MD Companies Centers'!$A:$C,3,FALSE))","v":""},{"$f":"IF(F11=\"\",\"\",(VLOOKUP(F11,'MD Companies Centers'!$A:$B,2,FALSE)))","v":""}]
[null,null,null,{"$f":"IF(F12=\"\",\"\",VLOOKUP(F12,'MD Companies Centers'!$A:$C,3,FALSE))","v":""},{"$f":"IF(F12=\"\",\"\",(VLOOKUP(F12,'MD Companies Centers'!$A:$B,2,FALSE)))","v":""}]
[null,null,null,{"$f":"IF(F13=\"\",\"\",VLOOKUP(F13,'MD Companies Centers'!$A:$C,3,FALSE))","v":""},{"$f":"IF(F13=\"\",\"\",(VLOOKUP(F13,'MD Companies Centers'!$A:$B,2,FALSE)))","v":""}]
[null,null,null,{"$f":"IF(F14=\"\",\"\",VLOOKUP(F14,'MD Companies Centers'!$A:$C,3,FALSE))","v":""},{"$f":"IF(F14=\"\",\"\",(VLOOKUP(F14,'MD Companies Centers'!$A:$B,2,FALSE)))","v":""}]
[null,null,null,{"$f":"IF(F15=\"\",\"\",VLOOKUP(F15,'MD Companies Centers'!$A:$C,3,FALSE))","v":""},{"$f":"IF(F15=\"\",\"\",(VLOOKUP(F15,'MD Companies Centers'!$A:$B,2,FALSE)))","v":""}]
[null,null,null,{"$f":"IF(F16=\"\",\"\",VLOOKUP(F16,'MD Companies Centers'!$A:$C,3,FALSE))","v":""},{"$f":"IF(F16=\"\",\"\",(VLOOKUP(F16,'MD Companies Centers'!$A:$B,2,FALSE)))","v":""}]
[null,null,null,{"$f":"IF(F17=\"\",\"\",VLOOKUP(F17,'MD Companies Centers'!$A:$C,3,FALSE))","v":""},{"$f":"IF(F17=\"\",\"\",(VLOOKUP(F17,'MD Companies Centers'!$A:$B,2,FALSE)))","v":""}]
[null,null,null,{"$f":"IF(F18=\"\",\"\",VLOOKUP(F18,'MD Companies Centers'!$A:$C,3,FALSE))","v":""},{"$f":"IF(F18=\"\",\"\",(VLOOKUP(F18,'MD Companies Centers'!$A:$B,2,FALSE)))","v":""}]
[null,null,null,{"$f":"IF(F19=\"\",\"\",VLOOKUP(F19,'MD Companies Centers'!$A:$C,3,FALSE))","v":""},{"$f":"IF(F19=\"\",\"\",(VLOOKUP(F19,'MD Companies Centers'!$A:$B,2,FALSE)))","v":""}]
[null,null,null,{"$f":"IF(F20=\"\",\"\",VLOOKUP(F20,'MD Companies Centers'!$A:$C,3,FALSE))","v":""},{"$f":"IF(F20=\"\",\"\",(VLOOKUP(F20,'MD Companies Centers'!$A:$B,2,FALSE)))","v":""}]
[null,null,null,{"$f":"IF(F21=\"\",\"\",VLOOKUP(F21,'MD Companies Centers'!$A:$C,3,FALSE))","v":""},{"$f":"IF(F21=\"\",\"\",(VLOOKUP(F21,'MD Companies Centers'!$A:$B,2,FALSE)))","v":""}]
[null,null,null,{"$f":"IF(F22=\"\",\"\",VLOOKUP(F22,'MD Companies Centers'!$A:$C,3,FALSE))","v":""},{"$f":"IF(F22=\"\",\"\",(VLOOKUP(F22,'MD Companies Centers'!$A:$B,2,FALSE)))","v":""}]
[null,null,null,{"$f":"IF(F23=\"\",\"\",VLOOKUP(F23,'MD Companies Centers'!$A:$C,3,FALSE))","v":""},{"$f":"IF(F23=\"\",\"\",(VLOOKUP(F23,'MD Companies Centers'!$A:$B,2,FALSE)))","v":""}]
[null,null,null,{"$f":"IF(F24=\"\",\"\",VLOOKUP(F24,'MD Companies Centers'!$A:$C,3,FALSE))","v":""},{"$f":"IF(F24=\"\",\"\",(VLOOKUP(F24,'MD Companies Centers'!$A:$B,2,FALSE)))","v":""}]
[null,null,null,{"$f":"IF(F25=\"\",\"\",VLOOKUP(F25,'MD Companies Centers'!$A:$C,3,FALSE))","v":""},{"$f":"IF(F25=\"\",\"\",(VLOOKUP(F25,'MD Companies Centers'!$A:$B,2,FALSE)))","v":""}]
[null,null,null,{"$f":"IF(F26=\"\",\"\",VLOOKUP(F26,'MD Companies Centers'!$A:$C,3,FALSE))","v":""},{"$f":"IF(F26=\"\",\"\",(VLOOKUP(F26,'MD Companies Centers'!$A:$B,2,FALSE)))","v":""}]
[null,null,null,{"$f":"IF(F27=\"\",\"\",VLOOKUP(F27,'MD Companies Centers'!$A:$C,3,FALSE))","v":""},{"$f":"IF(F27=\"\",\"\",(VLOOKUP(F27,'MD Companies Centers'!$A:$B,2,FALSE)))","v":""}]
[null,null,null,{"$f":"IF(F28=\"\",\"\",VLOOKUP(F28,'MD Companies Centers'!$A:$C,3,FALSE))","v":""},{"$f":"IF(F28=\"\",\"\",(VLOOKUP(F28,'MD Companies Centers'!$A:$B,2,FALSE)))","v":""}]
[null,null,null,{"$f":"IF(F29=\"\",\"\",VLOOKUP(F29,'MD Companies Centers'!$A:$C,3,FALSE))","v":""},{"$f":"IF(F29=\"\",\"\",(VLOOKUP(F29,'MD Companies Centers'!$A:$B,2,FALSE)))","v":""}]
[null,null,null,{"$f":"IF(F30=\"\",\"\",VLOOKUP(F30,'MD Companies Centers'!$A:$C,3,FALSE))","v":""},{"$f":"IF(F30=\"\",\"\",(VLOOKUP(F30,'MD Companies Centers'!$A:$B,2,FALSE)))","v":""}]
[null,null,null,{"$f":"IF(F31=\"\",\"\",VLOOKUP(F31,'MD Companies Centers'!$A:$C,3,FALSE))","v":""},{"$f":"IF(F31=\"\",\"\",(VLOOKUP(F31,'MD Companies Centers'!$A:$B,2,FALSE)))","v":""}]
[null,null,null,{"$f":"IF(F32=\"\",\"\",VLOOKUP(F32,'MD Companies Centers'!$A:$C,3,FALSE))","v":""},{"$f":"IF(F32=\"\",\"\",(VLOOKUP(F32,'MD Companies Centers'!$A:$B,2,FALSE)))","v":""}]
[null,null,null,{"$f":"IF(F33=\"\",\"\",VLOOKUP(F33,'MD Companies Centers'!$A:$C,3,FALSE))","v":""},{"$f":"IF(F33=\"\",\"\",(VLOOKUP(F33,'MD Companies Centers'!$A:$B,2,FALSE)))","v":""}]
[null,null,null,{"$f":"IF(F34=\"\",\"\",VLOOKUP(F34,'MD Companies Centers'!$A:$C,3,FALSE))","v":""},{"$f":"IF(F34=\"\",\"\",(VLOOKUP(F34,'MD Companies Centers'!$A:$B,2,FALSE)))","v":""}]
[null,null,null,{"$f":"IF(F35=\"\",\"\",VLOOKUP(F35,'MD Companies Centers'!$A:$C,3,FALSE))","v":""},{"$f":"IF(F35=\"\",\"\",(VLOOKUP(F35,'MD Companies Centers'!$A:$B,2,FALSE)))","v":""}]
[null,null,null,{"$f":"IF(F36=\"\",\"\",VLOOKUP(F36,'MD Companies Centers'!$A:$C,3,FALSE))","v":""},{"$f":"IF(F36=\"\",\"\",(VLOOKUP(F36,'MD Companies Centers'!$A:$B,2,FALSE)))","v":""}]
[null,null,null,{"$f":"IF(F37=\"\",\"\",VLOOKUP(F37,'MD Companies Centers'!$A:$C,3,FALSE))","v":""},{"$f":"IF(F37=\"\",\"\",(VLOOKUP(F37,'MD Companies Centers'!$A:$B,2,FALSE)))","v":""}]
[null,null,null,{"$f":"IF(F38=\"\",\"\",VLOOKUP(F38,'MD Companies Centers'!$A:$C,3,FALSE))","v":""},{"$f":"IF(F38=\"\",\"\",(VLOOKUP(F38,'MD Companies Centers'!$A:$B,2,FALSE)))","v":""}]
[null,null,null,{"$f":"IF(F39=\"\",\"\",VLOOKUP(F39,'MD Companies Centers'!$A:$C,3,FALSE))","v":""},{"$f":"IF(F39=\"\",\"\",(VLOOKUP(F39,'MD Companies Centers'!$A:$B,2,FALSE)))","v":""}]
[null,null,null,{"$f":"IF(F40=\"\",\"\",VLOOKUP(F40,'MD Companies Centers'!$A:$C,3,FALSE))","v":""},{"$f":"IF(F40=\"\",\"\",(VLOOKUP(F40,'MD Companies Centers'!$A:$B,2,FALSE)))","v":""}]
[]
[]
["NBV ≥ 5.000 €",null,null,"Authorizations","Operations Director",null,"Date:_________","F&A Director",null,"Date:_________"]
[]
["Asset number","Asset Description","Quantity","Company Code","Hotel Name","B.A","Date of Acquisition","Cost","NBV \n(Net book value)","Partial retirement*\n* Fill in only one of the fields (%, quantity or amount)",null,null,null,"Document Date*\n*The day when the document is issued","Posting Date","Asset value date*\n*Deadline of depreciation before the sale","Document number retirement"]
[null,null,null,null,null,null,null,null,null,"%","Quantity","Amount","Currency"]
[null,null,null,{"$f":"IF(F47=\"\",\"\",VLOOKUP(F47,'MD Companies Centers'!$A:$C,3,FALSE))","v":""},{"$f":"IF(F47=\"\",\"\",(VLOOKUP(F47,'MD Companies Centers'!$A:$B,2,FALSE)))","v":""}]
[null,null,null,{"$f":"IF(F48=\"\",\"\",VLOOKUP(F48,'MD Companies Centers'!$A:$C,3,FALSE))","v":""},{"$f":"IF(F48=\"\",\"\",(VLOOKUP(F48,'MD Companies Centers'!$A:$B,2,FALSE)))","v":""}]
[null,null,null,{"$f":"IF(F49=\"\",\"\",VLOOKUP(F49,'MD Companies Centers'!$A:$C,3,FALSE))","v":""},{"$f":"IF(F49=\"\",\"\",(VLOOKUP(F49,'MD Companies Centers'!$A:$B,2,FALSE)))","v":""}]
[null,null,null,{"$f":"IF(F50=\"\",\"\",VLOOKUP(F50,'MD Companies Centers'!$A:$C,3,FALSE))","v":""},{"$f":"IF(F50=\"\",\"\",(VLOOKUP(F50,'MD Companies Centers'!$A:$B,2,FALSE)))","v":""}]
[null,null,null,{"$f":"IF(F51=\"\",\"\",VLOOKUP(F51,'MD Companies Centers'!$A:$C,3,FALSE))","v":""},{"$f":"IF(F51=\"\",\"\",(VLOOKUP(F51,'MD Companies Centers'!$A:$B,2,FALSE)))","v":""}]
[null,null,null,{"$f":"IF(F52=\"\",\"\",VLOOKUP(F52,'MD Companies Centers'!$A:$C,3,FALSE))","v":""},{"$f":"IF(F52=\"\",\"\",(VLOOKUP(F52,'MD Companies Centers'!$A:$B,2,FALSE)))","v":""}]
[null,null,null,{"$f":"IF(F53=\"\",\"\",VLOOKUP(F53,'MD Companies Centers'!$A:$C,3,FALSE))","v":""},{"$f":"IF(F53=\"\",\"\",(VLOOKUP(F53,'MD Companies Centers'!$A:$B,2,FALSE)))","v":""}]
[null,null,null,{"$f":"IF(F54=\"\",\"\",VLOOKUP(F54,'MD Companies Centers'!$A:$C,3,FALSE))","v":""},{"$f":"IF(F54=\"\",\"\",(VLOOKUP(F54,'MD Companies Centers'!$A:$B,2,FALSE)))","v":""}]
[null,null,null,{"$f":"IF(F55=\"\",\"\",VLOOKUP(F55,'MD Companies Centers'!$A:$C,3,FALSE))","v":""},{"$f":"IF(F55=\"\",\"\",(VLOOKUP(F55,'MD Companies Centers'!$A:$B,2,FALSE)))","v":""}]
[null,null,null,{"$f":"IF(F56=\"\",\"\",VLOOKUP(F56,'MD Companies Centers'!$A:$C,3,FALSE))","v":""},{"$f":"IF(F56=\"\",\"\",(VLOOKUP(F56,'MD Companies Centers'!$A:$B,2,FALSE)))","v":""}]
[null,null,null,{"$f":"IF(F57=\"\",\"\",VLOOKUP(F57,'MD Companies Centers'!$A:$C,3,FALSE))","v":""},{"$f":"IF(F57=\"\",\"\",(VLOOKUP(F57,'MD Companies Centers'!$A:$B,2,FALSE)))","v":""}]
[null,null,null,{"$f":"IF(F58=\"\",\"\",VLOOKUP(F58,'MD Companies Centers'!$A:$C,3,FALSE))","v":""},{"$f":"IF(F58=\"\",\"\",(VLOOKUP(F58,'MD Companies Centers'!$A:$B,2,FALSE)))","v":""}]
[null,null,null,{"$f":"IF(F59=\"\",\"\",VLOOKUP(F59,'MD Companies Centers'!$A:$C,3,FALSE))","v":""},{"$f":"IF(F59=\"\",\"\",(VLOOKUP(F59,'MD Companies Centers'!$A:$B,2,FALSE)))","v":""}]
[null,null,null,{"$f":"IF(F60=\"\",\"\",VLOOKUP(F60,'MD Companies Centers'!$A:$C,3,FALSE))","v":""},{"$f":"IF(F60=\"\",\"\",(VLOOKUP(F60,'MD Companies Centers'!$A:$B,2,FALSE)))","v":""}]
[null,null,null,{"$f":"IF(F61=\"\",\"\",VLOOKUP(F61,'MD Companies Centers'!$A:$C,3,FALSE))","v":""},{"$f":"IF(F61=\"\",\"\",(VLOOKUP(F61,'MD Companies Centers'!$A:$B,2,FALSE)))","v":""}]
[null,null,null,{"$f":"IF(F62=\"\",\"\",VLOOKUP(F62,'MD Companies Centers'!$A:$C,3,FALSE))","v":""},{"$f":"IF(F62=\"\",\"\",(VLOOKUP(F62,'MD Companies Centers'!$A:$B,2,FALSE)))","v":""}]
[null,null,null,{"$f":"IF(F63=\"\",\"\",VLOOKUP(F63,'MD Companies Centers'!$A:$C,3,FALSE))","v":""},{"$f":"IF(F63=\"\",\"\",(VLOOKUP(F63,'MD Companies Centers'!$A:$B,2,FALSE)))","v":""}]
[null,null,null,{"$f":"IF(F64=\"\",\"\",VLOOKUP(F64,'MD Companies Centers'!$A:$C,3,FALSE))","v":""},{"$f":"IF(F64=\"\",\"\",(VLOOKUP(F64,'MD Companies Centers'!$A:$B,2,FALSE)))","v":""}]
[null,null,null,{"$f":"IF(F65=\"\",\"\",VLOOKUP(F65,'MD Companies Centers'!$A:$C,3,FALSE))","v":""},{"$f":"IF(F65=\"\",\"\",(VLOOKUP(F65,'MD Companies Centers'!$A:$B,2,FALSE)))","v":""}]
[null,null,null,{"$f":"IF(F66=\"\",\"\",VLOOKUP(F66,'MD Companies Centers'!$A:$C,3,FALSE))","v":""},{"$f":"IF(F66=\"\",\"\",(VLOOKUP(F66,'MD Companies Centers'!$A:$B,2,FALSE)))","v":""}]
[null,null,null,{"$f":"IF(F67=\"\",\"\",VLOOKUP(F67,'MD Companies Centers'!$A:$C,3,FALSE))","v":""},{"$f":"IF(F67=\"\",\"\",(VLOOKUP(F67,'MD Companies Centers'!$A:$B,2,FALSE)))","v":""}]
[null,null,null,{"$f":"IF(F68=\"\",\"\",VLOOKUP(F68,'MD Companies Centers'!$A:$C,3,FALSE))","v":""},{"$f":"IF(F68=\"\",\"\",(VLOOKUP(F68,'MD Companies Centers'!$A:$B,2,FALSE)))","v":""}]
[null,null,null,{"$f":"IF(F69=\"\",\"\",VLOOKUP(F69,'MD Companies Centers'!$A:$C,3,FALSE))","v":""},{"$f":"IF(F69=\"\",\"\",(VLOOKUP(F69,'MD Companies Centers'!$A:$B,2,FALSE)))","v":""}]
[null,null,null,{"$f":"IF(F70=\"\",\"\",VLOOKUP(F70,'MD Companies Centers'!$A:$C,3,FALSE))","v":""},{"$f":"IF(F70=\"\",\"\",(VLOOKUP(F70,'MD Companies Centers'!$A:$B,2,FALSE)))","v":""}]
[null,null,null,{"$f":"IF(F71=\"\",\"\",VLOOKUP(F71,'MD Companies Centers'!$A:$C,3,FALSE))","v":""},{"$f":"IF(F71=\"\",\"\",(VLOOKUP(F71,'MD Companies Centers'!$A:$B,2,FALSE)))","v":""}]
[null,null,null,{"$f":"IF(F72=\"\",\"\",VLOOKUP(F72,'MD Companies Centers'!$A:$C,3,FALSE))","v":""},{"$f":"IF(F72=\"\",\"\",(VLOOKUP(F72,'MD Companies Centers'!$A:$B,2,FALSE)))","v":""}]
[null,null,null,{"$f":"IF(F73=\"\",\"\",VLOOKUP(F73,'MD Companies Centers'!$A:$C,3,FALSE))","v":""},{"$f":"IF(F73=\"\",\"\",(VLOOKUP(F73,'MD Companies Centers'!$A:$B,2,FALSE)))","v":""}]
[null,null,null,{"$f":"IF(F74=\"\",\"\",VLOOKUP(F74,'MD Companies Centers'!$A:$C,3,FALSE))","v":""},{"$f":"IF(F74=\"\",\"\",(VLOOKUP(F74,'MD Companies Centers'!$A:$B,2,FALSE)))","v":""}]
[null,null,null,{"$f":"IF(F75=\"\",\"\",VLOOKUP(F75,'MD Companies Centers'!$A:$C,3,FALSE))","v":""},{"$f":"IF(F75=\"\",\"\",(VLOOKUP(F75,'MD Companies Centers'!$A:$B,2,FALSE)))","v":""}]
[null,null,null,{"$f":"IF(F76=\"\",\"\",VLOOKUP(F76,'MD Companies Centers'!$A:$C,3,FALSE))","v":""},{"$f":"IF(F76=\"\",\"\",(VLOOKUP(F76,'MD Companies Centers'!$A:$B,2,FALSE)))","v":""}]
[]
["Comments"]
[]
[]
[]
["Transfer to"]
[]
["* (2) New Asset for transfer"]
["Existing Asset "]
[]
["In case of new assets, please fill in the following fields:",null,null,null,null,null,null,null,null,null,null,null,null,null,null,"Book Depr",null,null,"Fiscal Depr",null,null,"New Asset number* (2)","Comments"]
["Existing Asset Number Receiver","New Asset Class Receiver","FAMA number (Inventory number)","Quantity","Unit of measurement","Company Code","Hotel Name","B.A","Center (Plant)","Location","Personnel number","UseLife (Years)","Prd (Months)","Evaluation group 1*\n*Building where the asset is located","Capitalization Date*                             *The date when the asset must start its depreciation","UseLife  (Years) * Mandatory if the useful life is diferent from SAP","Period (Months)","Deprn Key","UseLife  (Years)","Period (Months)","Deprn Key"]
[null,null,null,null,"ST-Piece",{"$f":"IF(H89=\"\",\"\",VLOOKUP(H89,'MD Companies Centers'!$A:$C,3,FALSE))","v":""},{"$f":"IF(H89=\"\",\"\",(VLOOKUP(H89,'MD Companies Centers'!$A:$B,2,FALSE)))","v":""}]
[null,null,null,null,"ST-Piece",{"$f":"IF(H90=\"\",\"\",VLOOKUP(H90,'MD Companies Centers'!$A:$C,3,FALSE))","v":""},{"$f":"IF(H90=\"\",\"\",(VLOOKUP(H90,'MD Companies Centers'!$A:$B,2,FALSE)))","v":""},null,{"$f":"IF(H90=\"\",\"\",(VLOOKUP(H90,'MD Companies Centers'!$A:$B,1,FALSE)))","v":""}]
[null,null,null,null,"ST-Piece",{"$f":"IF(H91=\"\",\"\",VLOOKUP(H91,'MD Companies Centers'!$A:$C,3,FALSE))","v":""},{"$f":"IF(H91=\"\",\"\",(VLOOKUP(H91,'MD Companies Centers'!$A:$B,2,FALSE)))","v":""},null,{"$f":"IF(H91=\"\",\"\",(VLOOKUP(H91,'MD Companies Centers'!$A:$B,1,FALSE)))","v":""}]
[null,null,null,null,"ST-Piece",{"$f":"IF(H92=\"\",\"\",VLOOKUP(H92,'MD Companies Centers'!$A:$C,3,FALSE))","v":""},{"$f":"IF(H92=\"\",\"\",(VLOOKUP(H92,'MD Companies Centers'!$A:$B,2,FALSE)))","v":""},null,{"$f":"IF(H92=\"\",\"\",(VLOOKUP(H92,'MD Companies Centers'!$A:$B,1,FALSE)))","v":""}]
[null,null,null,null,"ST-Piece",{"$f":"IF(H93=\"\",\"\",VLOOKUP(H93,'MD Companies Centers'!$A:$C,3,FALSE))","v":""},{"$f":"IF(H93=\"\",\"\",(VLOOKUP(H93,'MD Companies Centers'!$A:$B,2,FALSE)))","v":""},null,{"$f":"IF(H93=\"\",\"\",(VLOOKUP(H93,'MD Companies Centers'!$A:$B,1,FALSE)))","v":""}]
[null,null,null,null,"ST-Piece",{"$f":"IF(H94=\"\",\"\",VLOOKUP(H94,'MD Companies Centers'!$A:$C,3,FALSE))","v":""},{"$f":"IF(H94=\"\",\"\",(VLOOKUP(H94,'MD Companies Centers'!$A:$B,2,FALSE)))","v":""},null,{"$f":"IF(H94=\"\",\"\",(VLOOKUP(H94,'MD Companies Centers'!$A:$B,1,FALSE)))","v":""}]
[null,null,null,null,"ST-Piece",{"$f":"IF(H95=\"\",\"\",VLOOKUP(H95,'MD Companies Centers'!$A:$C,3,FALSE))","v":""},{"$f":"IF(H95=\"\",\"\",(VLOOKUP(H95,'MD Companies Centers'!$A:$B,2,FALSE)))","v":""},null,{"$f":"IF(H95=\"\",\"\",(VLOOKUP(H95,'MD Companies Centers'!$A:$B,1,FALSE)))","v":""}]
[null,null,null,null,"ST-Piece",{"$f":"IF(H96=\"\",\"\",VLOOKUP(H96,'MD Companies Centers'!$A:$C,3,FALSE))","v":""},{"$f":"IF(H96=\"\",\"\",(VLOOKUP(H96,'MD Companies Centers'!$A:$B,2,FALSE)))","v":""},null,{"$f":"IF(H96=\"\",\"\",(VLOOKUP(H96,'MD Companies Centers'!$A:$B,1,FALSE)))","v":""}]
[null,null,null,null,"ST-Piece",{"$f":"IF(H97=\"\",\"\",VLOOKUP(H97,'MD Companies Centers'!$A:$C,3,FALSE))","v":""},{"$f":"IF(H97=\"\",\"\",(VLOOKUP(H97,'MD Companies Centers'!$A:$B,2,FALSE)))","v":""},null,{"$f":"IF(H97=\"\",\"\",(VLOOKUP(H97,'MD Companies Centers'!$A:$B,1,FALSE)))","v":""}]
[null,null,null,null,"ST-Piece",{"$f":"IF(H98=\"\",\"\",VLOOKUP(H98,'MD Companies Centers'!$A:$C,3,FALSE))","v":""},{"$f":"IF(H98=\"\",\"\",(VLOOKUP(H98,'MD Companies Centers'!$A:$B,2,FALSE)))","v":""},null,{"$f":"IF(H98=\"\",\"\",(VLOOKUP(H98,'MD Companies Centers'!$A:$B,1,FALSE)))","v":""}]
[null,null,null,null,"ST-Piece",{"$f":"IF(H99=\"\",\"\",VLOOKUP(H99,'MD Companies Centers'!$A:$C,3,FALSE))","v":""},{"$f":"IF(H99=\"\",\"\",(VLOOKUP(H99,'MD Companies Centers'!$A:$B,2,FALSE)))","v":""},null,{"$f":"IF(H99=\"\",\"\",(VLOOKUP(H99,'MD Companies Centers'!$A:$B,1,FALSE)))","v":""}]
[null,null,null,null,"ST-Piece",{"$f":"IF(H100=\"\",\"\",VLOOKUP(H100,'MD Companies Centers'!$A:$C,3,FALSE))","v":""},{"$f":"IF(H100=\"\",\"\",(VLOOKUP(H100,'MD Companies Centers'!$A:$B,2,FALSE)))","v":""},null,{"$f":"IF(H100=\"\",\"\",(VLOOKUP(H100,'MD Companies Centers'!$A:$B,1,FALSE)))","v":""}]
[null,null,null,null,"ST-Piece",{"$f":"IF(H101=\"\",\"\",VLOOKUP(H101,'MD Companies Centers'!$A:$C,3,FALSE))","v":""},{"$f":"IF(H101=\"\",\"\",(VLOOKUP(H101,'MD Companies Centers'!$A:$B,2,FALSE)))","v":""},null,{"$f":"IF(H101=\"\",\"\",(VLOOKUP(H101,'MD Companies Centers'!$A:$B,1,FALSE)))","v":""}]
[null,null,null,null,"ST-Piece",{"$f":"IF(H102=\"\",\"\",VLOOKUP(H102,'MD Companies Centers'!$A:$C,3,FALSE))","v":""},{"$f":"IF(H102=\"\",\"\",(VLOOKUP(H102,'MD Companies Centers'!$A:$B,2,FALSE)))","v":""},null,{"$f":"IF(H102=\"\",\"\",(VLOOKUP(H102,'MD Companies Centers'!$A:$B,1,FALSE)))","v":""}]
[null,null,null,null,"ST-Piece",{"$f":"IF(H103=\"\",\"\",VLOOKUP(H103,'MD Companies Centers'!$A:$C,3,FALSE))","v":""},{"$f":"IF(H103=\"\",\"\",(VLOOKUP(H103,'MD Companies Centers'!$A:$B,2,FALSE)))","v":""},null,{"$f":"IF(H103=\"\",\"\",(VLOOKUP(H103,'MD Companies Centers'!$A:$B,1,FALSE)))","v":""}]
[null,null,null,null,"ST-Piece",{"$f":"IF(H104=\"\",\"\",VLOOKUP(H104,'MD Companies Centers'!$A:$C,3,FALSE))","v":""},{"$f":"IF(H104=\"\",\"\",(VLOOKUP(H104,'MD Companies Centers'!$A:$B,2,FALSE)))","v":""},null,{"$f":"IF(H104=\"\",\"\",(VLOOKUP(H104,'MD Companies Centers'!$A:$B,1,FALSE)))","v":""}]
[null,null,null,null,"ST-Piece",{"$f":"IF(H105=\"\",\"\",VLOOKUP(H105,'MD Companies Centers'!$A:$C,3,FALSE))","v":""},{"$f":"IF(H105=\"\",\"\",(VLOOKUP(H105,'MD Companies Centers'!$A:$B,2,FALSE)))","v":""},null,{"$f":"IF(H105=\"\",\"\",(VLOOKUP(H105,'MD Companies Centers'!$A:$B,1,FALSE)))","v":""}]
[null,null,null,null,"ST-Piece",{"$f":"IF(H106=\"\",\"\",VLOOKUP(H106,'MD Companies Centers'!$A:$C,3,FALSE))","v":""},{"$f":"IF(H106=\"\",\"\",(VLOOKUP(H106,'MD Companies Centers'!$A:$B,2,FALSE)))","v":""},null,{"$f":"IF(H106=\"\",\"\",(VLOOKUP(H106,'MD Companies Centers'!$A:$B,1,FALSE)))","v":""}]
[null,null,null,null,"ST-Piece",{"$f":"IF(H107=\"\",\"\",VLOOKUP(H107,'MD Companies Centers'!$A:$C,3,FALSE))","v":""},{"$f":"IF(H107=\"\",\"\",(VLOOKUP(H107,'MD Companies Centers'!$A:$B,2,FALSE)))","v":""},null,{"$f":"IF(H107=\"\",\"\",(VLOOKUP(H107,'MD Companies Centers'!$A:$B,1,FALSE)))","v":""}]
[null,null,null,null,"ST-Piece",{"$f":"IF(H108=\"\",\"\",VLOOKUP(H108,'MD Companies Centers'!$A:$C,3,FALSE))","v":""},{"$f":"IF(H108=\"\",\"\",(VLOOKUP(H108,'MD Companies Centers'!$A:$B,2,FALSE)))","v":""},null,{"$f":"IF(H108=\"\",\"\",(VLOOKUP(H108,'MD Companies Centers'!$A:$B,1,FALSE)))","v":""}]
[null,null,null,null,"ST-Piece",{"$f":"IF(H109=\"\",\"\",VLOOKUP(H109,'MD Companies Centers'!$A:$C,3,FALSE))","v":""},{"$f":"IF(H109=\"\",\"\",(VLOOKUP(H109,'MD Companies Centers'!$A:$B,2,FALSE)))","v":""},null,{"$f":"IF(H109=\"\",\"\",(VLOOKUP(H109,'MD Companies Centers'!$A:$B,1,FALSE)))","v":""}]
[null,null,null,null,"ST-Piece",{"$f":"IF(H110=\"\",\"\",VLOOKUP(H110,'MD Companies Centers'!$A:$C,3,FALSE))","v":""},{"$f":"IF(H110=\"\",\"\",(VLOOKUP(H110,'MD Companies Centers'!$A:$B,2,FALSE)))","v":""},null,{"$f":"IF(H110=\"\",\"\",(VLOOKUP(H110,'MD Companies Centers'!$A:$B,1,FALSE)))","v":""}]
[null,null,null,null,"ST-Piece",{"$f":"IF(H111=\"\",\"\",VLOOKUP(H111,'MD Companies Centers'!$A:$C,3,FALSE))","v":""},{"$f":"IF(H111=\"\",\"\",(VLOOKUP(H111,'MD Companies Centers'!$A:$B,2,FALSE)))","v":""},null,{"$f":"IF(H111=\"\",\"\",(VLOOKUP(H111,'MD Companies Centers'!$A:$B,1,FALSE)))","v":""}]
[null,null,null,null,"ST-Piece",{"$f":"IF(H112=\"\",\"\",VLOOKUP(H112,'MD Companies Centers'!$A:$C,3,FALSE))","v":""},{"$f":"IF(H112=\"\",\"\",(VLOOKUP(H112,'MD Companies Centers'!$A:$B,2,FALSE)))","v":""},null,{"$f":"IF(H112=\"\",\"\",(VLOOKUP(H112,'MD Companies Centers'!$A:$B,1,FALSE)))","v":""}]
[null,null,null,null,"ST-Piece",{"$f":"IF(H113=\"\",\"\",VLOOKUP(H113,'MD Companies Centers'!$A:$C,3,FALSE))","v":""},{"$f":"IF(H113=\"\",\"\",(VLOOKUP(H113,'MD Companies Centers'!$A:$B,2,FALSE)))","v":""},null,{"$f":"IF(H113=\"\",\"\",(VLOOKUP(H113,'MD Companies Centers'!$A:$B,1,FALSE)))","v":""}]
[null,null,null,null,"ST-Piece",{"$f":"IF(H114=\"\",\"\",VLOOKUP(H114,'MD Companies Centers'!$A:$C,3,FALSE))","v":""},{"$f":"IF(H114=\"\",\"\",(VLOOKUP(H114,'MD Companies Centers'!$A:$B,2,FALSE)))","v":""},null,{"$f":"IF(H114=\"\",\"\",(VLOOKUP(H114,'MD Companies Centers'!$A:$B,1,FALSE)))","v":""}]
[null,null,null,null,"ST-Piece",{"$f":"IF(H115=\"\",\"\",VLOOKUP(H115,'MD Companies Centers'!$A:$C,3,FALSE))","v":""},{"$f":"IF(H115=\"\",\"\",(VLOOKUP(H115,'MD Companies Centers'!$A:$B,2,FALSE)))","v":""},null,{"$f":"IF(H115=\"\",\"\",(VLOOKUP(H115,'MD Companies Centers'!$A:$B,1,FALSE)))","v":""}]
[null,null,null,null,"ST-Piece",{"$f":"IF(H116=\"\",\"\",VLOOKUP(H116,'MD Companies Centers'!$A:$C,3,FALSE))","v":""},{"$f":"IF(H116=\"\",\"\",(VLOOKUP(H116,'MD Companies Centers'!$A:$B,2,FALSE)))","v":""},null,{"$f":"IF(H116=\"\",\"\",(VLOOKUP(H116,'MD Companies Centers'!$A:$B,1,FALSE)))","v":""}]
[null,null,null,null,"ST-Piece",{"$f":"IF(H117=\"\",\"\",VLOOKUP(H117,'MD Companies Centers'!$A:$C,3,FALSE))","v":""},{"$f":"IF(H117=\"\",\"\",(VLOOKUP(H117,'MD Companies Centers'!$A:$B,2,FALSE)))","v":""},null,{"$f":"IF(H117=\"\",\"\",(VLOOKUP(H117,'MD Companies Centers'!$A:$B,1,FALSE)))","v":""}]
[null,null,null,null,"ST-Piece",{"$f":"IF(H118=\"\",\"\",VLOOKUP(H118,'MD Companies Centers'!$A:$C,3,FALSE))","v":""},{"$f":"IF(H118=\"\",\"\",(VLOOKUP(H118,'MD Companies Centers'!$A:$B,2,FALSE)))","v":""},null,{"$f":"IF(H118=\"\",\"\",(VLOOKUP(H118,'MD Companies Centers'!$A:$B,1,FALSE)))","v":""}]
[]
[]
["Comments"]

{"sheet":"Unplanned Depreciation","index":9,"n_rows":46,"n_cols":17,"rows_kept":46,"cut":false,"hidden":false,"merged":[[3,20,4,27],[7,0,8,0],[7,12,8,12],[7,13,8,13],[7,14,8,14],[7,15,8,15],[7,16,8,16],[7,1,8,1],[7,2,8,2],[7,3,8,3],[7,4,7,6],[7,11,8,11],[7,9,8,9],[7,8,8,8],[7,10,8,10],[45,2,45,13],[45,0,45,1]]}
[]
[null,null,null,null,null,null,null,null,null,null,null,null,"UNPLANNED DEPRECIATION"]
[]
[]
[]
[]
[]
["Asset Number","Company Code","Hotel Name","B.A","Partial impairment*\n* Fill in only one of the fields (%, quantity or amount)",null,null,null,"PstKey","Unplanned book depraciation Value","PstKey","Unplanned Fiscal Depreciation Value","Description","Sap Doc. Number","Document Date*\n*The day when the document is issued","Posting Date","Asset value date*\n*Deadline of depreciation before the sale"]
[null,null,null,null,"%","Quantity","Amount","Currency"]
[null,null,null,null,null,null,null,null,null,null,"Please select"]
[]
[]
[]
[null,{"$f":"IF(D14=\"\",\"\",VLOOKUP(D14,'MD Companies Centers'!$A:$C,3,FALSE))","v":""},{"$f":"IF(D14=\"\",\"\",(VLOOKUP(D14,'MD Companies Centers'!$A:$B,2,FALSE)))","v":""}]
[null,{"$f":"IF(D15=\"\",\"\",VLOOKUP(D15,'MD Companies Centers'!$A:$C,3,FALSE))","v":""},{"$f":"IF(D15=\"\",\"\",(VLOOKUP(D15,'MD Companies Centers'!$A:$B,2,FALSE)))","v":""}]
[null,{"$f":"IF(D16=\"\",\"\",VLOOKUP(D16,'MD Companies Centers'!$A:$C,3,FALSE))","v":""},{"$f":"IF(D16=\"\",\"\",(VLOOKUP(D16,'MD Companies Centers'!$A:$B,2,FALSE)))","v":""}]
[null,{"$f":"IF(D17=\"\",\"\",VLOOKUP(D17,'MD Companies Centers'!$A:$C,3,FALSE))","v":""},{"$f":"IF(D17=\"\",\"\",(VLOOKUP(D17,'MD Companies Centers'!$A:$B,2,FALSE)))","v":""}]
[null,{"$f":"IF(D18=\"\",\"\",VLOOKUP(D18,'MD Companies Centers'!$A:$C,3,FALSE))","v":""},{"$f":"IF(D18=\"\",\"\",(VLOOKUP(D18,'MD Companies Centers'!$A:$B,2,FALSE)))","v":""}]
[null,{"$f":"IF(D19=\"\",\"\",VLOOKUP(D19,'MD Companies Centers'!$A:$C,3,FALSE))","v":""},{"$f":"IF(D19=\"\",\"\",(VLOOKUP(D19,'MD Companies Centers'!$A:$B,2,FALSE)))","v":""}]
[null,{"$f":"IF(D20=\"\",\"\",VLOOKUP(D20,'MD Companies Centers'!$A:$C,3,FALSE))","v":""},{"$f":"IF(D20=\"\",\"\",(VLOOKUP(D20,'MD Companies Centers'!$A:$B,2,FALSE)))","v":""}]
[null,{"$f":"IF(D21=\"\",\"\",VLOOKUP(D21,'MD Companies Centers'!$A:$C,3,FALSE))","v":""},{"$f":"IF(D21=\"\",\"\",(VLOOKUP(D21,'MD Companies Centers'!$A:$B,2,FALSE)))","v":""}]
[null,{"$f":"IF(D22=\"\",\"\",VLOOKUP(D22,'MD Companies Centers'!$A:$C,3,FALSE))","v":""},{"$f":"IF(D22=\"\",\"\",(VLOOKUP(D22,'MD Companies Centers'!$A:$B,2,FALSE)))","v":""}]
[null,{"$f":"IF(D23=\"\",\"\",VLOOKUP(D23,'MD Companies Centers'!$A:$C,3,FALSE))","v":""},{"$f":"IF(D23=\"\",\"\",(VLOOKUP(D23,'MD Companies Centers'!$A:$B,2,FALSE)))","v":""}]
[null,{"$f":"IF(D24=\"\",\"\",VLOOKUP(D24,'MD Companies Centers'!$A:$C,3,FALSE))","v":""},{"$f":"IF(D24=\"\",\"\",(VLOOKUP(D24,'MD Companies Centers'!$A:$B,2,FALSE)))","v":""}]
[null,{"$f":"IF(D25=\"\",\"\",VLOOKUP(D25,'MD Companies Centers'!$A:$C,3,FALSE))","v":""},{"$f":"IF(D25=\"\",\"\",(VLOOKUP(D25,'MD Companies Centers'!$A:$B,2,FALSE)))","v":""}]
[null,{"$f":"IF(D26=\"\",\"\",VLOOKUP(D26,'MD Companies Centers'!$A:$C,3,FALSE))","v":""},{"$f":"IF(D26=\"\",\"\",(VLOOKUP(D26,'MD Companies Centers'!$A:$B,2,FALSE)))","v":""}]
[null,{"$f":"IF(D27=\"\",\"\",VLOOKUP(D27,'MD Companies Centers'!$A:$C,3,FALSE))","v":""},{"$f":"IF(D27=\"\",\"\",(VLOOKUP(D27,'MD Companies Centers'!$A:$B,2,FALSE)))","v":""}]
[null,{"$f":"IF(D28=\"\",\"\",VLOOKUP(D28,'MD Companies Centers'!$A:$C,3,FALSE))","v":""},{"$f":"IF(D28=\"\",\"\",(VLOOKUP(D28,'MD Companies Centers'!$A:$B,2,FALSE)))","v":""}]
[null,{"$f":"IF(D29=\"\",\"\",VLOOKUP(D29,'MD Companies Centers'!$A:$C,3,FALSE))","v":""},{"$f":"IF(D29=\"\",\"\",(VLOOKUP(D29,'MD Companies Centers'!$A:$B,2,FALSE)))","v":""}]
[null,{"$f":"IF(D30=\"\",\"\",VLOOKUP(D30,'MD Companies Centers'!$A:$C,3,FALSE))","v":""},{"$f":"IF(D30=\"\",\"\",(VLOOKUP(D30,'MD Companies Centers'!$A:$B,2,FALSE)))","v":""}]
[null,{"$f":"IF(D31=\"\",\"\",VLOOKUP(D31,'MD Companies Centers'!$A:$C,3,FALSE))","v":""},{"$f":"IF(D31=\"\",\"\",(VLOOKUP(D31,'MD Companies Centers'!$A:$B,2,FALSE)))","v":""}]
[null,{"$f":"IF(D32=\"\",\"\",VLOOKUP(D32,'MD Companies Centers'!$A:$C,3,FALSE))","v":""},{"$f":"IF(D32=\"\",\"\",(VLOOKUP(D32,'MD Companies Centers'!$A:$B,2,FALSE)))","v":""}]
[null,{"$f":"IF(D33=\"\",\"\",VLOOKUP(D33,'MD Companies Centers'!$A:$C,3,FALSE))","v":""},{"$f":"IF(D33=\"\",\"\",(VLOOKUP(D33,'MD Companies Centers'!$A:$B,2,FALSE)))","v":""}]
[null,{"$f":"IF(D34=\"\",\"\",VLOOKUP(D34,'MD Companies Centers'!$A:$C,3,FALSE))","v":""},{"$f":"IF(D34=\"\",\"\",(VLOOKUP(D34,'MD Companies Centers'!$A:$B,2,FALSE)))","v":""}]
[null,{"$f":"IF(D35=\"\",\"\",VLOOKUP(D35,'MD Companies Centers'!$A:$C,3,FALSE))","v":""},{"$f":"IF(D35=\"\",\"\",(VLOOKUP(D35,'MD Companies Centers'!$A:$B,2,FALSE)))","v":""}]
[null,{"$f":"IF(D36=\"\",\"\",VLOOKUP(D36,'MD Companies Centers'!$A:$C,3,FALSE))","v":""},{"$f":"IF(D36=\"\",\"\",(VLOOKUP(D36,'MD Companies Centers'!$A:$B,2,FALSE)))","v":""}]
[null,{"$f":"IF(D37=\"\",\"\",VLOOKUP(D37,'MD Companies Centers'!$A:$C,3,FALSE))","v":""},{"$f":"IF(D37=\"\",\"\",(VLOOKUP(D37,'MD Companies Centers'!$A:$B,2,FALSE)))","v":""}]
[]
[]
[]
[]
[null,{"$f":"IF(D42=\"\",\"\",VLOOKUP(D42,'MD Companies Centers'!$A:$C,3,FALSE))","v":""},{"$f":"IF(D42=\"\",\"\",(VLOOKUP(D42,'MD Companies Centers'!$A:$B,2,FALSE)))","v":""}]
[null,{"$f":"IF(D43=\"\",\"\",VLOOKUP(D43,'MD Companies Centers'!$A:$C,3,FALSE))","v":""},{"$f":"IF(D43=\"\",\"\",(VLOOKUP(D43,'MD Companies Centers'!$A:$B,2,FALSE)))","v":""}]
[null,{"$f":"IF(D44=\"\",\"\",VLOOKUP(D44,'MD Companies Centers'!$A:$C,3,FALSE))","v":""},{"$f":"IF(D44=\"\",\"\",(VLOOKUP(D44,'MD Companies Centers'!$A:$B,2,FALSE)))","v":""}]
[]
["Comments"]

{"sheet":"Validation","index":10,"n_rows":8,"n_cols":4,"rows_kept":8,"cut":false,"hidden":false,"merged":[[2,0,4,0]]}
[]
["Validation Type","Validation Description","Colour error code","Error Message"]
["Capitalization date","It is mandatory to fill","RED","N/A"]
[null,"It should be the last day of the month","Warning","It is mandatory to insert a valid End of month date"]
[null,"It should be indicated following dd/mm/yyyy format","Warning","It is mandatory to insert a valid End of month date"]
["Posting date","Change automatically","N/A","N/A"]
["Document date","Change automatically","N/A","N/A"]
["AUC number-PO","Ordered automatically by capitalization date","N/A","N/A"]

{"sheet":"Correction to previuos years ","index":11,"n_rows":48,"n_cols":17,"rows_kept":48,"cut":false,"hidden":false,"merged":[[3,20,4,27],[7,0,8,0],[7,9,8,9],[7,13,8,13],[7,14,8,14],[7,15,8,15],[7,16,8,16],[7,1,8,1],[7,2,8,2],[7,3,8,3],[7,4,7,6],[7,10,8,10],[7,11,8,11],[7,12,8,12],[7,8,8,8],[47,0,47,1],[47,2,47,13]]}
[]
[null,null,null,null,null,null,null,null," CORRECTION DUE TO AN EXCESS DEPRECIATION IN PREVIOUS YEARS"]
[]
[]
[]
[]
[]
["Asset Number","Company Code","Hotel Name","B.A","Partial impairment*\n* Fill in only one of the fields (%, quantity or amount)",null,null,null,"PstKey","Unplanned book depraciation Value","PstKey","Unplanned Fiscal Depreciation Value","Description","Sap Doc. Number","Document Date*\n*The day when the document is issued","Posting Date","Asset value date*\n*Deadline of depreciation before the correction"]
[null,null,null,null,"%","Quantity","Amount","Currency"]
[null,{"$f":"IF(D10=\"\",\"\",VLOOKUP(D10,'MD Companies Centers'!$A:$C,3,FALSE))","v":""},{"$f":"IF(D10=\"\",\"\",(VLOOKUP(D10,'MD Companies Centers'!$A:$B,2,FALSE)))","v":""}]
[null,{"$f":"IF(D11=\"\",\"\",VLOOKUP(D11,'MD Companies Centers'!$A:$C,3,FALSE))","v":""},{"$f":"IF(D11=\"\",\"\",(VLOOKUP(D11,'MD Companies Centers'!$A:$B,2,FALSE)))","v":""}]
[null,{"$f":"IF(D12=\"\",\"\",VLOOKUP(D12,'MD Companies Centers'!$A:$C,3,FALSE))","v":""},{"$f":"IF(D12=\"\",\"\",(VLOOKUP(D12,'MD Companies Centers'!$A:$B,2,FALSE)))","v":""}]
[null,{"$f":"IF(D13=\"\",\"\",VLOOKUP(D13,'MD Companies Centers'!$A:$C,3,FALSE))","v":""},{"$f":"IF(D13=\"\",\"\",(VLOOKUP(D13,'MD Companies Centers'!$A:$B,2,FALSE)))","v":""}]
[null,{"$f":"IF(D14=\"\",\"\",VLOOKUP(D14,'MD Companies Centers'!$A:$C,3,FALSE))","v":""},{"$f":"IF(D14=\"\",\"\",(VLOOKUP(D14,'MD Companies Centers'!$A:$B,2,FALSE)))","v":""}]
[null,{"$f":"IF(D15=\"\",\"\",VLOOKUP(D15,'MD Companies Centers'!$A:$C,3,FALSE))","v":""},{"$f":"IF(D15=\"\",\"\",(VLOOKUP(D15,'MD Companies Centers'!$A:$B,2,FALSE)))","v":""}]
[null,{"$f":"IF(D16=\"\",\"\",VLOOKUP(D16,'MD Companies Centers'!$A:$C,3,FALSE))","v":""},{"$f":"IF(D16=\"\",\"\",(VLOOKUP(D16,'MD Companies Centers'!$A:$B,2,FALSE)))","v":""}]
[null,{"$f":"IF(D17=\"\",\"\",VLOOKUP(D17,'MD Companies Centers'!$A:$C,3,FALSE))","v":""},{"$f":"IF(D17=\"\",\"\",(VLOOKUP(D17,'MD Companies Centers'!$A:$B,2,FALSE)))","v":""}]
[null,{"$f":"IF(D18=\"\",\"\",VLOOKUP(D18,'MD Companies Centers'!$A:$C,3,FALSE))","v":""},{"$f":"IF(D18=\"\",\"\",(VLOOKUP(D18,'MD Companies Centers'!$A:$B,2,FALSE)))","v":""}]
[null,{"$f":"IF(D19=\"\",\"\",VLOOKUP(D19,'MD Companies Centers'!$A:$C,3,FALSE))","v":""},{"$f":"IF(D19=\"\",\"\",(VLOOKUP(D19,'MD Companies Centers'!$A:$B,2,FALSE)))","v":""}]
[null,{"$f":"IF(D20=\"\",\"\",VLOOKUP(D20,'MD Companies Centers'!$A:$C,3,FALSE))","v":""},{"$f":"IF(D20=\"\",\"\",(VLOOKUP(D20,'MD Companies Centers'!$A:$B,2,FALSE)))","v":""}]
[null,{"$f":"IF(D21=\"\",\"\",VLOOKUP(D21,'MD Companies Centers'!$A:$C,3,FALSE))","v":""},{"$f":"IF(D21=\"\",\"\",(VLOOKUP(D21,'MD Companies Centers'!$A:$B,2,FALSE)))","v":""}]
[null,{"$f":"IF(D22=\"\",\"\",VLOOKUP(D22,'MD Companies Centers'!$A:$C,3,FALSE))","v":""},{"$f":"IF(D22=\"\",\"\",(VLOOKUP(D22,'MD Companies Centers'!$A:$B,2,FALSE)))","v":""}]
[null,{"$f":"IF(D23=\"\",\"\",VLOOKUP(D23,'MD Companies Centers'!$A:$C,3,FALSE))","v":""},{"$f":"IF(D23=\"\",\"\",(VLOOKUP(D23,'MD Companies Centers'!$A:$B,2,FALSE)))","v":""}]
[null,{"$f":"IF(D24=\"\",\"\",VLOOKUP(D24,'MD Companies Centers'!$A:$C,3,FALSE))","v":""},{"$f":"IF(D24=\"\",\"\",(VLOOKUP(D24,'MD Companies Centers'!$A:$B,2,FALSE)))","v":""}]
[null,{"$f":"IF(D25=\"\",\"\",VLOOKUP(D25,'MD Companies Centers'!$A:$C,3,FALSE))","v":""},{"$f":"IF(D25=\"\",\"\",(VLOOKUP(D25,'MD Companies Centers'!$A:$B,2,FALSE)))","v":""}]
[null,{"$f":"IF(D26=\"\",\"\",VLOOKUP(D26,'MD Companies Centers'!$A:$C,3,FALSE))","v":""},{"$f":"IF(D26=\"\",\"\",(VLOOKUP(D26,'MD Companies Centers'!$A:$B,2,FALSE)))","v":""}]
[null,{"$f":"IF(D27=\"\",\"\",VLOOKUP(D27,'MD Companies Centers'!$A:$C,3,FALSE))","v":""},{"$f":"IF(D27=\"\",\"\",(VLOOKUP(D27,'MD Companies Centers'!$A:$B,2,FALSE)))","v":""}]
[null,{"$f":"IF(D28=\"\",\"\",VLOOKUP(D28,'MD Companies Centers'!$A:$C,3,FALSE))","v":""},{"$f":"IF(D28=\"\",\"\",(VLOOKUP(D28,'MD Companies Centers'!$A:$B,2,FALSE)))","v":""}]
[null,{"$f":"IF(D29=\"\",\"\",VLOOKUP(D29,'MD Companies Centers'!$A:$C,3,FALSE))","v":""},{"$f":"IF(D29=\"\",\"\",(VLOOKUP(D29,'MD Companies Centers'!$A:$B,2,FALSE)))","v":""}]
[null,{"$f":"IF(D30=\"\",\"\",VLOOKUP(D30,'MD Companies Centers'!$A:$C,3,FALSE))","v":""},{"$f":"IF(D30=\"\",\"\",(VLOOKUP(D30,'MD Companies Centers'!$A:$B,2,FALSE)))","v":""}]
[null,{"$f":"IF(D31=\"\",\"\",VLOOKUP(D31,'MD Companies Centers'!$A:$C,3,FALSE))","v":""},{"$f":"IF(D31=\"\",\"\",(VLOOKUP(D31,'MD Companies Centers'!$A:$B,2,FALSE)))","v":""}]
[null,{"$f":"IF(D32=\"\",\"\",VLOOKUP(D32,'MD Companies Centers'!$A:$C,3,FALSE))","v":""},{"$f":"IF(D32=\"\",\"\",(VLOOKUP(D32,'MD Companies Centers'!$A:$B,2,FALSE)))","v":""}]
[null,{"$f":"IF(D33=\"\",\"\",VLOOKUP(D33,'MD Companies Centers'!$A:$C,3,FALSE))","v":""},{"$f":"IF(D33=\"\",\"\",(VLOOKUP(D33,'MD Companies Centers'!$A:$B,2,FALSE)))","v":""}]
[null,{"$f":"IF(D34=\"\",\"\",VLOOKUP(D34,'MD Companies Centers'!$A:$C,3,FALSE))","v":""},{"$f":"IF(D34=\"\",\"\",(VLOOKUP(D34,'MD Companies Centers'!$A:$B,2,FALSE)))","v":""}]
[null,{"$f":"IF(D35=\"\",\"\",VLOOKUP(D35,'MD Companies Centers'!$A:$C,3,FALSE))","v":""},{"$f":"IF(D35=\"\",\"\",(VLOOKUP(D35,'MD Companies Centers'!$A:$B,2,FALSE)))","v":""}]
[null,{"$f":"IF(D36=\"\",\"\",VLOOKUP(D36,'MD Companies Centers'!$A:$C,3,FALSE))","v":""},{"$f":"IF(D36=\"\",\"\",(VLOOKUP(D36,'MD Companies Centers'!$A:$B,2,FALSE)))","v":""}]
[null,{"$f":"IF(D37=\"\",\"\",VLOOKUP(D37,'MD Companies Centers'!$A:$C,3,FALSE))","v":""},{"$f":"IF(D37=\"\",\"\",(VLOOKUP(D37,'MD Companies Centers'!$A:$B,2,FALSE)))","v":""}]
[null,{"$f":"IF(D38=\"\",\"\",VLOOKUP(D38,'MD Companies Centers'!$A:$C,3,FALSE))","v":""},{"$f":"IF(D38=\"\",\"\",(VLOOKUP(D38,'MD Companies Centers'!$A:$B,2,FALSE)))","v":""}]
[null,{"$f":"IF(D39=\"\",\"\",VLOOKUP(D39,'MD Companies Centers'!$A:$C,3,FALSE))","v":""},{"$f":"IF(D39=\"\",\"\",(VLOOKUP(D39,'MD Companies Centers'!$A:$B,2,FALSE)))","v":""}]
[null,{"$f":"IF(D40=\"\",\"\",VLOOKUP(D40,'MD Companies Centers'!$A:$C,3,FALSE))","v":""},{"$f":"IF(D40=\"\",\"\",(VLOOKUP(D40,'MD Companies Centers'!$A:$B,2,FALSE)))","v":""}]
[null,{"$f":"IF(D41=\"\",\"\",VLOOKUP(D41,'MD Companies Centers'!$A:$C,3,FALSE))","v":""},{"$f":"IF(D41=\"\",\"\",(VLOOKUP(D41,'MD Companies Centers'!$A:$B,2,FALSE)))","v":""}]
[null,{"$f":"IF(D42=\"\",\"\",VLOOKUP(D42,'MD Companies Centers'!$A:$C,3,FALSE))","v":""},{"$f":"IF(D42=\"\",\"\",(VLOOKUP(D42,'MD Companies Centers'!$A:$B,2,FALSE)))","v":""}]
[null,{"$f":"IF(D43=\"\",\"\",VLOOKUP(D43,'MD Companies Centers'!$A:$C,3,FALSE))","v":""},{"$f":"IF(D43=\"\",\"\",(VLOOKUP(D43,'MD Companies Centers'!$A:$B,2,FALSE)))","v":""}]
[null,{"$f":"IF(D44=\"\",\"\",VLOOKUP(D44,'MD Companies Centers'!$A:$C,3,FALSE))","v":""},{"$f":"IF(D44=\"\",\"\",(VLOOKUP(D44,'MD Companies Centers'!$A:$B,2,FALSE)))","v":""}]
[null,{"$f":"IF(D45=\"\",\"\",VLOOKUP(D45,'MD Companies Centers'!$A:$C,3,FALSE))","v":""},{"$f":"IF(D45=\"\",\"\",(VLOOKUP(D45,'MD Companies Centers'!$A:$B,2,FALSE)))","v":""}]
[null,{"$f":"IF(D46=\"\",\"\",VLOOKUP(D46,'MD Companies Centers'!$A:$C,3,FALSE))","v":""},{"$f":"IF(D46=\"\",\"\",(VLOOKUP(D46,'MD Companies Centers'!$A:$B,2,FALSE)))","v":""}]
[]
["Comments"]

{"sheet":"Leasing","index":12,"n_rows":62,"n_cols":27,"rows_kept":62,"cut":false,"hidden":false,"merged":[[7,25,8,25],[7,26,8,26],[7,22,8,22],[7,24,8,24],[7,4,8,4],[7,6,8,6],[7,8,8,8],[7,14,8,14],[7,9,8,9],[7,16,8,16],[7,20,8,20],[7,5,8,5],[7,10,8,10],[7,21,8,21],[7,11,8,11],[7,12,8,12],[61,0,61,1],[7,7,8,7],[6,0,6,2],[7,0,8,0],[7,1,8,1],[7,2,8,2],[7,3,8,3],[61,2,61,21],[7,13,8,13],[7,23,8,23],[2,13,3,18],[7,15,8,15],[7,18,8,18],[7,19,8,19]]}
[]
[null,null,null,null,null,null,null,"LEASING"]
[]
[]
[]
["(1) FAMA number is not mandatory for requests belonging to GIHSA and BU Benelux"]
[]
["Asset Class","Number of similar asset","FAMA number (Inventory number)*(1)","Quantity","Unit of measurement","Company Code","Hotel Name","B.A.","Center (Plant)","Location","Personnel number","Serial number","License plate","Buildings (Evaluation group 1*)\n*Building where the asset is located","Vendor","Invoice number","Original Value",null,"New Fixed Asset (new/used)","Description ","Initial quote Amount","Agreement time period","Asset number","Leasing company","Agreement number","Agreement date","Lease start date"]
[null,null,null,null,null,null,null,null,null,null,null,null,null,null,null,null,null,"Currency"]
[null,null,null,null,"ST-Piece",{"$f":"IF(H10=\"\",\"\",VLOOKUP(H10,'MD Companies Centers'!$A:$C,3,FALSE))","v":""},{"$f":"IF(H10=\"\",\"\",(VLOOKUP(H10,'MD Companies Centers'!$A:$B,2,FALSE)))","v":""},null,{"$f":"G10","v":""}]
[null,null,null,null,"ST-Piece",{"$f":"IF(H11=\"\",\"\",VLOOKUP(H11,'MD Companies Centers'!$A:$C,3,FALSE))","v":""},{"$f":"IF(H11=\"\",\"\",(VLOOKUP(H11,'MD Companies Centers'!$A:$B,2,FALSE)))","v":""},null,{"$f":"G11","v":""}]
[null,null,null,null,"ST-Piece",{"$f":"IF(H12=\"\",\"\",VLOOKUP(H12,'MD Companies Centers'!$A:$C,3,FALSE))","v":""},{"$f":"IF(H12=\"\",\"\",(VLOOKUP(H12,'MD Companies Centers'!$A:$B,2,FALSE)))","v":""},null,""]
[null,null,null,null,"ST-Piece",{"$f":"IF(H13=\"\",\"\",VLOOKUP(H13,'MD Companies Centers'!$A:$C,3,FALSE))","v":""},{"$f":"IF(H13=\"\",\"\",(VLOOKUP(H13,'MD Companies Centers'!$A:$B,2,FALSE)))","v":""},null,""]
[null,null,null,null,"ST-Piece",{"$f":"IF(H14=\"\",\"\",VLOOKUP(H14,'MD Companies Centers'!$A:$C,3,FALSE))","v":""},{"$f":"IF(H14=\"\",\"\",(VLOOKUP(H14,'MD Companies Centers'!$A:$B,2,FALSE)))","v":""},null,""]
[null,null,null,null,"ST-Piece",{"$f":"IF(H15=\"\",\"\",VLOOKUP(H15,'MD Companies Centers'!$A:$C,3,FALSE))","v":""},{"$f":"IF(H15=\"\",\"\",(VLOOKUP(H15,'MD Companies Centers'!$A:$B,2,FALSE)))","v":""},null,""]
[null,null,null,null,"ST-Piece",{"$f":"IF(H16=\"\",\"\",VLOOKUP(H16,'MD Companies Centers'!$A:$C,3,FALSE))","v":""},{"$f":"IF(H16=\"\",\"\",(VLOOKUP(H16,'MD Companies Centers'!$A:$B,2,FALSE)))","v":""},null,""]
[null,null,null,null,"ST-Piece",{"$f":"IF(H17=\"\",\"\",VLOOKUP(H17,'MD Companies Centers'!$A:$C,3,FALSE))","v":""},{"$f":"IF(H17=\"\",\"\",(VLOOKUP(H17,'MD Companies Centers'!$A:$B,2,FALSE)))","v":""},null,{"$f":"G17","v":""}]
[null,null,null,null,"ST-Piece",{"$f":"IF(H18=\"\",\"\",VLOOKUP(H18,'MD Companies Centers'!$A:$C,3,FALSE))","v":""},{"$f":"IF(H18=\"\",\"\",(VLOOKUP(H18,'MD Companies Centers'!$A:$B,2,FALSE)))","v":""},null,""]
[null,null,null,null,"ST-Piece",{"$f":"IF(H19=\"\",\"\",VLOOKUP(H19,'MD Companies Centers'!$A:$C,3,FALSE))","v":""},{"$f":"IF(H19=\"\",\"\",(VLOOKUP(H19,'MD Companies Centers'!$A:$B,2,FALSE)))","v":""},null,""]
[null,null,null,null,"ST-Piece",{"$f":"IF(H20=\"\",\"\",VLOOKUP(H20,'MD Companies Centers'!$A:$C,3,FALSE))","v":""},{"$f":"IF(H20=\"\",\"\",(VLOOKUP(H20,'MD Companies Centers'!$A:$B,2,FALSE)))","v":""},null,""]
[null,null,null,null,"ST-Piece",{"$f":"IF(H21=\"\",\"\",VLOOKUP(H21,'MD Companies Centers'!$A:$C,3,FALSE))","v":""},{"$f":"IF(H21=\"\",\"\",(VLOOKUP(H21,'MD Companies Centers'!$A:$B,2,FALSE)))","v":""},null,""]
[null,null,null,null,"ST-Piece",{"$f":"IF(H22=\"\",\"\",VLOOKUP(H22,'MD Companies Centers'!$A:$C,3,FALSE))","v":""},{"$f":"IF(H22=\"\",\"\",(VLOOKUP(H22,'MD Companies Centers'!$A:$B,2,FALSE)))","v":""},null,""]
[null,null,null,null,"ST-Piece",{"$f":"IF(H23=\"\",\"\",VLOOKUP(H23,'MD Companies Centers'!$A:$C,3,FALSE))","v":""},{"$f":"IF(H23=\"\",\"\",(VLOOKUP(H23,'MD Companies Centers'!$A:$B,2,FALSE)))","v":""},null,""]
[null,null,null,null,"ST-Piece",{"$f":"IF(H24=\"\",\"\",VLOOKUP(H24,'MD Companies Centers'!$A:$C,3,FALSE))","v":""},{"$f":"IF(H24=\"\",\"\",(VLOOKUP(H24,'MD Companies Centers'!$A:$B,2,FALSE)))","v":""},null,""]
[null,null,null,null,"ST-Piece",{"$f":"IF(H25=\"\",\"\",VLOOKUP(H25,'MD Companies Centers'!$A:$C,3,FALSE))","v":""},{"$f":"IF(H25=\"\",\"\",(VLOOKUP(H25,'MD Companies Centers'!$A:$B,2,FALSE)))","v":""},null,""]
[null,null,null,null,"ST-Piece",{"$f":"IF(H26=\"\",\"\",VLOOKUP(H26,'MD Companies Centers'!$A:$C,3,FALSE))","v":""},{"$f":"IF(H26=\"\",\"\",(VLOOKUP(H26,'MD Companies Centers'!$A:$B,2,FALSE)))","v":""},null,""]
[null,null,null,null,"ST-Piece",{"$f":"IF(H27=\"\",\"\",VLOOKUP(H27,'MD Companies Centers'!$A:$C,3,FALSE))","v":""},{"$f":"IF(H27=\"\",\"\",(VLOOKUP(H27,'MD Companies Centers'!$A:$B,2,FALSE)))","v":""},null,""]
[null,null,null,null,"ST-Piece",{"$f":"IF(H28=\"\",\"\",VLOOKUP(H28,'MD Companies Centers'!$A:$C,3,FALSE))","v":""},{"$f":"IF(H28=\"\",\"\",(VLOOKUP(H28,'MD Companies Centers'!$A:$B,2,FALSE)))","v":""},null,""]
[null,null,null,null,"ST-Piece",{"$f":"IF(H29=\"\",\"\",VLOOKUP(H29,'MD Companies Centers'!$A:$C,3,FALSE))","v":""},{"$f":"IF(H29=\"\",\"\",(VLOOKUP(H29,'MD Companies Centers'!$A:$B,2,FALSE)))","v":""},null,""]
[null,null,null,null,"ST-Piece",{"$f":"IF(H30=\"\",\"\",VLOOKUP(H30,'MD Companies Centers'!$A:$C,3,FALSE))","v":""},{"$f":"IF(H30=\"\",\"\",(VLOOKUP(H30,'MD Companies Centers'!$A:$B,2,FALSE)))","v":""},null,""]
[null,null,null,null,"ST-Piece",{"$f":"IF(H31=\"\",\"\",VLOOKUP(H31,'MD Companies Centers'!$A:$C,3,FALSE))","v":""},{"$f":"IF(H31=\"\",\"\",(VLOOKUP(H31,'MD Companies Centers'!$A:$B,2,FALSE)))","v":""},null,""]
[null,null,null,null,"ST-Piece",{"$f":"IF(H32=\"\",\"\",VLOOKUP(H32,'MD Companies Centers'!$A:$C,3,FALSE))","v":""},{"$f":"IF(H32=\"\",\"\",(VLOOKUP(H32,'MD Companies Centers'!$A:$B,2,FALSE)))","v":""},null,""]
[null,null,null,null,"ST-Piece",{"$f":"IF(H33=\"\",\"\",VLOOKUP(H33,'MD Companies Centers'!$A:$C,3,FALSE))","v":""},{"$f":"IF(H33=\"\",\"\",(VLOOKUP(H33,'MD Companies Centers'!$A:$B,2,FALSE)))","v":""},null,""]
[null,null,null,null,"ST-Piece",{"$f":"IF(H34=\"\",\"\",VLOOKUP(H34,'MD Companies Centers'!$A:$C,3,FALSE))","v":""},{"$f":"IF(H34=\"\",\"\",(VLOOKUP(H34,'MD Companies Centers'!$A:$B,2,FALSE)))","v":""},null,""]
[null,null,null,null,"ST-Piece",{"$f":"IF(H35=\"\",\"\",VLOOKUP(H35,'MD Companies Centers'!$A:$C,3,FALSE))","v":""},{"$f":"IF(H35=\"\",\"\",(VLOOKUP(H35,'MD Companies Centers'!$A:$B,2,FALSE)))","v":""},null,""]
[null,null,null,null,"ST-Piece",{"$f":"IF(H36=\"\",\"\",VLOOKUP(H36,'MD Companies Centers'!$A:$C,3,FALSE))","v":""},{"$f":"IF(H36=\"\",\"\",(VLOOKUP(H36,'MD Companies Centers'!$A:$B,2,FALSE)))","v":""},null,""]
[null,null,null,null,"ST-Piece",{"$f":"IF(H37=\"\",\"\",VLOOKUP(H37,'MD Companies Centers'!$A:$C,3,FALSE))","v":""},{"$f":"IF(H37=\"\",\"\",(VLOOKUP(H37,'MD Companies Centers'!$A:$B,2,FALSE)))","v":""},null,""]
[null,null,null,null,"ST-Piece",{"$f":"IF(H38=\"\",\"\",VLOOKUP(H38,'MD Companies Centers'!$A:$C,3,FALSE))","v":""},{"$f":"IF(H38=\"\",\"\",(VLOOKUP(H38,'MD Companies Centers'!$A:$B,2,FALSE)))","v":""},null,""]
[null,null,null,null,"ST-Piece",{"$f":"IF(H39=\"\",\"\",VLOOKUP(H39,'MD Companies Centers'!$A:$C,3,FALSE))","v":""},{"$f":"IF(H39=\"\",\"\",(VLOOKUP(H39,'MD Companies Centers'!$A:$B,2,FALSE)))","v":""},null,""]
[null,null,null,null,"ST-Piece",{"$f":"IF(H40=\"\",\"\",VLOOKUP(H40,'MD Companies Centers'!$A:$C,3,FALSE))","v":""},{"$f":"IF(H40=\"\",\"\",(VLOOKUP(H40,'MD Companies Centers'!$A:$B,2,FALSE)))","v":""},null,""]
[null,null,null,null,"ST-Piece",{"$f":"IF(H41=\"\",\"\",VLOOKUP(H41,'MD Companies Centers'!$A:$C,3,FALSE))","v":""},{"$f":"IF(H41=\"\",\"\",(VLOOKUP(H41,'MD Companies Centers'!$A:$B,2,FALSE)))","v":""},null,""]
[null,null,null,null,"ST-Piece",{"$f":"IF(H42=\"\",\"\",VLOOKUP(H42,'MD Companies Centers'!$A:$C,3,FALSE))","v":""},{"$f":"IF(H42=\"\",\"\",(VLOOKUP(H42,'MD Companies Centers'!$A:$B,2,FALSE)))","v":""},null,""]
[null,null,null,null,"ST-Piece",{"$f":"IF(H43=\"\",\"\",VLOOKUP(H43,'MD Companies Centers'!$A:$C,3,FALSE))","v":""},{"$f":"IF(H43=\"\",\"\",(VLOOKUP(H43,'MD Companies Centers'!$A:$B,2,FALSE)))","v":""},null,""]
[null,null,null,null,"ST-Piece",{"$f":"IF(H44=\"\",\"\",VLOOKUP(H44,'MD Companies Centers'!$A:$C,3,FALSE))","v":""},{"$f":"IF(H44=\"\",\"\",(VLOOKUP(H44,'MD Companies Centers'!$A:$B,2,FALSE)))","v":""},null,""]
[null,null,null,null,"ST-Piece",{"$f":"IF(H45=\"\",\"\",VLOOKUP(H45,'MD Companies Centers'!$A:$C,3,FALSE))","v":""},{"$f":"IF(H45=\"\",\"\",(VLOOKUP(H45,'MD Companies Centers'!$A:$B,2,FALSE)))","v":""},null,""]
[null,null,null,null,"ST-Piece",{"$f":"IF(H46=\"\",\"\",VLOOKUP(H46,'MD Companies Centers'!$A:$C,3,FALSE))","v":""},{"$f":"IF(H46=\"\",\"\",(VLOOKUP(H46,'MD Companies Centers'!$A:$B,2,FALSE)))","v":""},null,""]
[null,null,null,null,"ST-Piece",{"$f":"IF(H47=\"\",\"\",VLOOKUP(H47,'MD Companies Centers'!$A:$C,3,FALSE))","v":""},{"$f":"IF(H47=\"\",\"\",(VLOOKUP(H47,'MD Companies Centers'!$A:$B,2,FALSE)))","v":""},null,""]
[null,null,null,null,"ST-Piece",{"$f":"IF(H48=\"\",\"\",VLOOKUP(H48,'MD Companies Centers'!$A:$C,3,FALSE))","v":""},{"$f":"IF(H48=\"\",\"\",(VLOOKUP(H48,'MD Companies Centers'!$A:$B,2,FALSE)))","v":""},null,""]
[null,null,null,null,"ST-Piece",{"$f":"IF(H49=\"\",\"\",VLOOKUP(H49,'MD Companies Centers'!$A:$C,3,FALSE))","v":""},{"$f":"IF(H49=\"\",\"\",(VLOOKUP(H49,'MD Companies Centers'!$A:$B,2,FALSE)))","v":""},null,""]
[null,null,null,null,"ST-Piece",{"$f":"IF(H50=\"\",\"\",VLOOKUP(H50,'MD Companies Centers'!$A:$C,3,FALSE))","v":""},{"$f":"IF(H50=\"\",\"\",(VLOOKUP(H50,'MD Companies Centers'!$A:$B,2,FALSE)))","v":""},null,""]
[null,null,null,null,"ST-Piece",{"$f":"IF(H51=\"\",\"\",VLOOKUP(H51,'MD Companies Centers'!$A:$C,3,FALSE))","v":""},{"$f":"IF(H51=\"\",\"\",(VLOOKUP(H51,'MD Companies Centers'!$A:$B,2,FALSE)))","v":""},null,""]
[null,null,null,null,"ST-Piece",{"$f":"IF(H52=\"\",\"\",VLOOKUP(H52,'MD Companies Centers'!$A:$C,3,FALSE))","v":""},{"$f":"IF(H52=\"\",\"\",(VLOOKUP(H52,'MD Companies Centers'!$A:$B,2,FALSE)))","v":""},null,""]
[null,null,null,null,"ST-Piece",{"$f":"IF(H53=\"\",\"\",VLOOKUP(H53,'MD Companies Centers'!$A:$C,3,FALSE))","v":""},{"$f":"IF(H53=\"\",\"\",(VLOOKUP(H53,'MD Companies Centers'!$A:$B,2,FALSE)))","v":""},null,""]
[null,null,null,null,"ST-Piece",{"$f":"IF(H54=\"\",\"\",VLOOKUP(H54,'MD Companies Centers'!$A:$C,3,FALSE))","v":""},{"$f":"IF(H54=\"\",\"\",(VLOOKUP(H54,'MD Companies Centers'!$A:$B,2,FALSE)))","v":""},null,""]
[null,null,null,null,"ST-Piece",{"$f":"IF(H55=\"\",\"\",VLOOKUP(H55,'MD Companies Centers'!$A:$C,3,FALSE))","v":""},{"$f":"IF(H55=\"\",\"\",(VLOOKUP(H55,'MD Companies Centers'!$A:$B,2,FALSE)))","v":""},null,""]
[null,null,null,null,"ST-Piece",{"$f":"IF(H56=\"\",\"\",VLOOKUP(H56,'MD Companies Centers'!$A:$C,3,FALSE))","v":""},{"$f":"IF(H56=\"\",\"\",(VLOOKUP(H56,'MD Companies Centers'!$A:$B,2,FALSE)))","v":""},null,""]
[null,null,null,null,"ST-Piece",{"$f":"IF(H57=\"\",\"\",VLOOKUP(H57,'MD Companies Centers'!$A:$C,3,FALSE))","v":""},{"$f":"IF(H57=\"\",\"\",(VLOOKUP(H57,'MD Companies Centers'!$A:$B,2,FALSE)))","v":""},null,""]
[null,null,null,null,"ST-Piece",{"$f":"IF(H58=\"\",\"\",VLOOKUP(H58,'MD Companies Centers'!$A:$C,3,FALSE))","v":""},{"$f":"IF(H58=\"\",\"\",(VLOOKUP(H58,'MD Companies Centers'!$A:$B,2,FALSE)))","v":""},null,""]
[null,null,null,null,"ST-Piece",{"$f":"IF(H59=\"\",\"\",VLOOKUP(H59,'MD Companies Centers'!$A:$C,3,FALSE))","v":""},{"$f":"IF(H59=\"\",\"\",(VLOOKUP(H59,'MD Companies Centers'!$A:$B,2,FALSE)))","v":""},null,""]
[]
[]
["Comments"]

{"sheet":"MD","index":13,"n_rows":87,"n_cols":13,"rows_kept":87,"cut":false,"hidden":false,"merged":[]}
["Please select",null,"Please select",null,null,"Please select",null,"Book Depreciation","Fiscal depreciation",null,"Please select",null,"Please select"]
["2110001 CONCESSIONS AND LICENCES",null,"AIRCONDITION",null,null,"BU01",null,"Please select","Please select",null,"KI-Crate",null,"new "]
["2120001 PATENTS, TRADEMARKS AND KNOW HOW",null,"BACK OFFICE",null,null,"BU02",null,"ZNH0-MONTH + 1","ZNH0-MONTH + 1",null,"CS-Case",null,"used"]
["2130001 GOODWILL OF MERGER",null,"BANQUETING",null,null,"BU03",null,"ZNH1-NO DEPRECIATION","ZNH1-NO DEPRECIATION",null,"TAG-Days"]
["2140001 RIGHTS OF BENEFICIAL USE",null,"BAR",null,null,"BU04",null,null,"ZNH3-MONTH",null,"STD-Hours"]
["2150001 SOFTWARE",null,"BASEMENT",null,null,"BU05",null,null,"ZNHI-JULY CONVENTION (ITALY)",null,"KG-Kilogram"]
["2160001 LEASE AGREEMENTS CAPITALISATION RENTS PREMIUM",null,"BREAKFAST ROOM",null,null,"BU06",null,null,null,null,"L-Liter"]
["2200001 LAND",null,"BUFFET",null,null,"BU07",null,null,null,null,"M2-Square meter"]
["2210001 BUILDINGS DEMOLITION AND EXCAVATION",null,"BUSINESS CENTER",null,null,"BU08",null,null,null,null,"MON-Months"]
["2210002 BUILDINGS FOUNDATION AND STRUCTURE",null,"CENTRAL SERVICES",null,null,"BU09",null,null,null,null,"ST-Piece"]
["2210003 BUILDINGS GARAGE",null,"CHANGING ROOM",null,null,"BU10",null,null,null,null,"WCH-Weeks"]
["2210004 BUILDINGS OFFICES",null,"COFFEE ROOM",null,null,null,null,null,null,null,"JHR-Years"]
["2210005 BUILDINGS FLAT",null,"COMMON AREA"]
["2210101 BUILDINGS IMPROVEMENTS",null,"CORRIDOR"]
["2210205 BUILDINGS RIGHT OF USE ",null,"ELEVATORS "]
["2220001 TECH INSTAL&MACHIN WIRING",null,"EXTERNAL "]
["2220002 TECH INSTAL&MACHIN PLUMBING",null,"FACADE",null,null,null,"Pstkey"]
["2220003 TECH INSTAL&MACHIN AIR CONDITIONING SYSTEM",null,"FITNESS"]
["2220004 TECH INSTAL&MACHIN TELEPHONY",null,"FLOORS",null,null,null,"Please select"]
["2220005 TECH INSTAL&MACHIN FIRE PREVENTION & ALARM",null,"GARAGE",null,null,null,"Db"]
["2220006 TECH INSTAL&MACHIN PUBLIC ADDRESS (PA) SYSTEM",null,"GARDEN",null,null,null,"Cr"]
["2220007 TECH INSTAL&MACHIN ELEVATORS",null,"GOLF"]
["2220008 TECH INSTAL&MACHIN FLOORING",null,"KITCHEN"]
["2220009 TECH INSTAL&MACHIN PAINTING",null,"LAUNDRY ROOM"]
["2220010 TECH INSTAL&MACHIN MATERIAL CONSTRUCTION & MASONRY",null,"LOADING BAY"]
["2220011 TECH INSTAL&MACHIN MARBLE",null,"MEETING ROOM"]
["2220012 TECH INSTAL&MACHIN CARPENTRY WOOD",null,"OFFICES"]
["2220013 TECH INSTAL&MACHIN CARPENTRY METAL",null,"RECEPTION"]
["2220014 TECH INSTAL&MACHIN LOCKSMITH ITEMS",null,"RESTAURANT"]
["2220015 TECH INSTAL&MACHIN CATERING BUSINESS",null,"ROOMS"]
["2220016 TECH INSTAL&MACHIN MIRRORS AND GLASSES",null,"SIGNAGE"]
["2220017 TECH INSTAL&MACHIN DECORATION",null,"SPA"]
["2220018 TECH INSTAL&MACHIN FIXED LAMPS",null,"STORES"]
["2220019 TECH INSTAL&MACHIN STRUCTURES, PROJECTS & IMPROVE ",null,"SWIMMING POOL"]
["2220020 TECH INSTAL&MACHIN FITTED CARPET (FIXED CARPETS)",null,"TERRACE"]
["2220021 TECH INSTAL&MACHIN EXTERNAL",null,"GLOBAL EMPLOYEE"]
["2220022 TECH INSTAL&MACHIN GARAGE",null,"GLOBAL EMPLOYEE"]
["2220023 TECH INSTAL&MACHIN OTHER "]
["2220024 TECH INSTAL&MACHIN GAS INSTALLATION"]
["222L025 TECH INSTAL&MACHIN FINANCIAL LEASE"]
["2220028 TECHNICAL INSTALLATIONS SPORTS FACILITIES"]
["2230001 OTHER INSTALLATIONS"]
["223L002 OTHER INSTALLATIONS FINANCIAL LEASE"]
["2240001 HOUSEHOLD EQUIPMENT CHINA & GLASSWARE"]
["224L002 HOUSEHOLD EQUIPMENT FINANCIAL LEASE"]
["2250001 FITTINGS CARPETS"]
["2250002 FITTINGS CURTAINS AND RAILS (ROOMS)"]
["2250003 FITTINGS CURTAINS AND RAILS (TOILETS)"]
["2250004 FITTINGS BLANKETS, QUILTS AND PILLOWS"]
["2250005 FITTINGS VASES AND WINDOW BOXES"]
["2250006 FITTINGS CATERING SMALL BUSINESS"]
["2250007 FITTINGS BOX SPRINGS, MATTRESSES, COUCHES"]
["2250008 FITTINGS OTHER "]
["2250009 FITTINGS CARRIAGE"]
["2250010 FITTINGS BATHROOM FITTINGS"]
["225L011 FITTINGS FINANCIAL LEASE"]
["2250101 FURNITURE PICTURES AND FRAMES"]
["2250102 FURNITURE MINI BAR"]
["2250103 FURNITURE TVS"]
["2250104 FURNITURE LAMPS"]
["2250105 FURNITURE FURNITURE AND TABLES"]
["2250106 FURNITURE MUSIC EQUIPMENT"]
["2250107 FURNITURE PUBLIC ADDRESS (PA) SYSTEM"]
["2250108 FURNITURE SOFAS AND ARM CHAIRS"]
["2250109 FURNITURE CHAIRS AND STOOLS"]
["2250110 FURNITURE TABLES OF MARBLE"]
["2250111 FURNITURE TELEPHONES & MICROPHONES"]
["2250112 FURNITURE AIR CONDITIONING SYSTEM"]
["2250113 FURNITURE KITCHEN UNITS"]
["2250114 FURNITURE OTHER FURNITURE"]
["2250115 FURNITURE OFFICE FURNITURE"]
["2250116 FURNITURE COUNTER"]
["2250117 FURNITURE SAFE"]
["2250118 FURNITURE DRYERS"]
["2250119 FURNITURE SHELVING"]
["225L120 FURNITURE FINANCIAL LEASE"]
["2260001 HARDWARE PRINTERS"]
["2260002 HARDWARE LAPTOPS"]
["2260003 HARDWARE FIXED COMPUTERS"]
["2260004 HARDWARE OTHERS"]
["226L005 HARDWARE FINANCIAL LEASE"]
["2270001 VEHICLES"]
["227L002 VEHICLES FINANCIAL LEASE"]
["2280000 ASSET UNDER CONSTRUCTION"]
["2290001 REAL ESTATE INVESTMENT LAND"]
["2291001 REAL ESTATE INVESTMENT BUILDINGS"]
[" "]